Workbook

Sheet Export
A1: 280.0 | B1: 1.51934 | C1: 1.02611E-04
A2: 290.0 | B2: 1.52489 | C2: 1.06276E-04
A3: 300.0 | B3: 1.53017 | C3: 1.09940E-04 | H3: Type | I3: Row
A4: 310.0 | B4: 1.53516 | C4: 1.13605E-04 | H4: BACD18 | I4: 10
A5: 320.0 | B5: 1.53985 | C5: 6.46375E-06
A6: 330.0 | B6: 1.54424 | C6: 2.86409E-06
A7: 340.0 | B7: 1.54834 | C7: 1.28903E-06
A8: 350.0 | B8: 1.55216 | C8: 6.24986E-07 | E8: Converts Hoya Glass data to Wave (nm), n, k column format
A9: 360.0 | B9: 1.55572 | C9: 2.95477E-07
A10: 370.0 | B10: 1.55904 | C10: 1.54127E-07 | E10: Utilizes 2 , 5 or 10 mm internal transmittance values.
A11: 380.0 | B11: 1.56214 | C11: 8.89911E-08
A12: 390.0 | B12: 1.56503 | C12: 5.63723E-08
A13: 400.0 | B13: 1.56772 | C13: 4.16516E-08
A14: 420.0 | B14: 1.57259 | C14: 3.02165E-08
A15: 440.0 | B15: 1.57685 | C15: 3.51903E-08
A16: 460.0 | B16: 1.58060 | C16: 2.94023E-08
A17: 480.0 | B17: 1.58390 | C17: 2.29873E-08
A18: 500.0 | B18: 1.58683 | C18: 1.59474E-08
A19: 550.0 | B19: 1.59281 | C19: 4.37895E-09
A20: 600.0 | B20: 1.59735 | C20: 9.55886E-09
A21: 650.0 | B21: 1.60085 | C21: 1.55409E-08
A22: 700.0 | B22: 1.60359 | C22: 5.57321E-09
A23: 750.0 | B23: 1.60575 | C23: 1.19486E-08
A24: 780.0 | B24: 1.60683 | C24: 1.24265E-08
A25: 800.0 | B25: 1.60747 | C25: 1.27451E-08
A26: 830.0 | B26: 1.60834 | C26: 1.98446E-08
A27: 850.0 | B27: 1.60885 | C27: 2.03228E-08
A28: 900.0 | B28: 1.60995 | C28: 2.15182E-08
A29: 950.0 | B29: 1.61083 | C29: 2.27137E-08
A30: 1000.0 | B30: 1.61152 | C30: 3.18948E-08
A31: 1050.0 | B31: 1.61206 | C31: 3.34896E-08
A32: 1060.0 | B32: 1.61216 | C32: 3.38085E-08
A33: 1100.0 | B33: 1.61248 | C33: 3.50843E-08
A34: 1200.0 | B34: 1.61300 | C34: 2.86909E-08
A35: 1300.0 | B35: 1.61319 | C35: 3.10819E-08
A36: 1400.0 | B36: 1.61312 | C36: 1.11969E-07
A37: 1500.0 | B37: 1.61285 | C37: 9.58770E-08
A38: 1550.0 | B38: 1.61265 | C38: 9.90729E-08

Sheet Coeff (hidden)
A1: =Table!A5 -> BAC4 | B1: =Table!B5*10^Table!C5 -> 2.4196645 | C1: =Table!D5*10^Table!E5 -> -0.0083329314 | D1: =Table!F5*10^Table!G5 -> 0.01539739 | E1: =Table!H5*10^Table!I5 -> -0.00017391654 | F1: =Table!J5*10^Table!K5 -> 6.218322e-05 | G1: =Table!L5*10^Table!M5 -> -3.062131e-06
A2: =Table!A6 -> BACD11 | B2: =Table!B6*10^Table!C6 -> 2.4095163 | C2: =Table!D6*10^Table!E6 -> -0.0091904415 | D2: =Table!F6*10^Table!G6 -> 0.012939968 | E2: =Table!H6*10^Table!I6 -> 0.0002346143 | F2: =Table!J6*10^Table!K6 -> -1.1130589e-05 | G2: =Table!L6*10^Table!M6 -> 1.0131863e-06
A3: =Table!A7 -> BACD14 | B3: =Table!B7*10^Table!C7 -> 2.5335256 | C3: =Table!D7*10^Table!E7 -> -0.011903338 | D3: =Table!F7*10^Table!G7 -> 0.012257249 | E3: =Table!H7*10^Table!I7 -> 0.00079172149 | F3: =Table!J7*10^Table!K7 -> -7.7381829e-05 | G3: =Table!L7*10^Table!M7 -> 3.9935441e-06
A4: =Table!A8 -> BACD15 | B4: =Table!B8*10^Table!C8 -> 2.5864832 | C4: =Table!D8*10^Table!E8 -> -0.0080357829 | D4: =Table!F8*10^Table!G8 -> 0.018080573 | E4: =Table!H8*10^Table!I8 -> -0.00045974172 | F4: =Table!J8*10^Table!K8 -> 8.8484321e-05 | G4: =Table!L8*10^Table!M8 -> -3.7544765e-06
A5: =Table!A9 -> BACD16 | B5: =Table!B9*10^Table!C9 -> 2.5859898 | C5: =Table!D9*10^Table!E9 -> -0.011940432 | D5: =Table!F9*10^Table!G9 -> 0.013995502 | E5: =Table!H9*10^Table!I9 -> 0.00048974502 | F5: =Table!J9*10^Table!K9 -> -3.9120717e-05 | G5: =Table!L9*10^Table!M9 -> 2.2611915e-06
A6: =Table!A10 -> BACD18 | B6: =Table!B10*10^Table!C10 -> 2.6365277 | C6: =Table!D10*10^Table!E10 -> -0.0097558464 | D6: =Table!F10*10^Table!G10 -> 0.017143665 | E6: =Table!H10*10^Table!I10 -> 0.00022592497 | F6: =Table!J10*10^Table!K10 -> 3.0855342e-06 | G6: =Table!L10*10^Table!M10 -> 4.5831917e-07
A7: =Table!A11 -> BACD2 | B7: =Table!B11*10^Table!C11 -> 2.5393255 | C7: =Table!D11*10^Table!E11 -> -0.0087207883 | D7: =Table!F11*10^Table!G11 -> 0.015909566 | E7: =Table!H11*10^Table!I11 -> 8.8163036e-05 | F7: =Table!J11*10^Table!K11 -> 2.5876593e-05 | G7: =Table!L11*10^Table!M11 -> -1.1733523e-06
A8: =Table!A12 -> BACD4 | B8: =Table!B12*10^Table!C12 -> 2.5584621 | C8: =Table!D12*10^Table!E12 -> -0.0097457283 | D8: =Table!F12*10^Table!G12 -> 0.015110495 | E8: =Table!H12*10^Table!I12 -> 0.00023273333 | F8: =Table!J12*10^Table!K12 -> 1.1137249e-06 | G8: =Table!L12*10^Table!M12 -> 1.6424767e-07
A9: =Table!A13 -> BACD5 | B9: =Table!B13*10^Table!C13 -> 2.4861499 | C9: =Table!D13*10^Table!E13 -> -0.0095684845 | D9: =Table!F13*10^Table!G13 -> 0.014685059 | E9: =Table!H13*10^Table!I13 -> -0.00011216487 | F9: =Table!J13*10^Table!K13 -> 4.1978777e-05 | G9: =Table!L13*10^Table!M13 -> -1.885619e-06
A10: =Table!A14 -> BACED5 | B10: =Table!B14*10^Table!C14 -> 2.6934245 | C10: =Table!D14*10^Table!E14 -> -0.008637014 | D10: =Table!F14*10^Table!G14 -> 0.02049645 | E10: =Table!H14*10^Table!I14 -> -9.3205453e-05 | F10: =Table!J14*10^Table!K14 -> 6.2709747e-05 | G10: =Table!L14*10^Table!M14 -> -2.0834652e-06
A11: =Table!A15 -> BAF10 | B11: =Table!B15*10^Table!C15 -> 2.7324621 | C11: =Table!D15*10^Table!E15 -> -0.01249046 | D11: =Table!F15*10^Table!G15 -> 0.018562334 | E11: =Table!H15*10^Table!I15 -> 0.00099990536 | F11: =Table!J15*10^Table!K15 -> -6.8388552e-05 | G11: =Table!L15*10^Table!M15 -> 4.9257931e-06
A12: =Table!A16 -> BAF11 | B12: =Table!B16*10^Table!C16 -> 2.7272955 | C12: =Table!D16*10^Table!E16 -> -0.013470236 | D12: =Table!F16*10^Table!G16 -> 0.014809271 | E12: =Table!H16*10^Table!I16 -> 0.0019615335 | F12: =Table!J16*10^Table!K16 -> -0.00019787663 | G12: =Table!L16*10^Table!M16 -> 1.0851117e-05
A13: =Table!A17 -> BAFD7 | B13: =Table!B17*10^Table!C17 -> 2.8217211 | C13: =Table!D17*10^Table!E17 -> -0.0097265483 | D13: =Table!F17*10^Table!G17 -> 0.024345979 | E13: =Table!H17*10^Table!I17 -> 0.00078406305 | F13: =Table!J17*10^Table!K17 -> -2.2431497e-05 | G13: =Table!L17*10^Table!M17 -> 4.6726029e-06
A14: =Table!A18 -> BAFD8 | B14: =Table!B18*10^Table!C18 -> 2.8863236 | C14: =Table!D18*10^Table!E18 -> -0.009802724 | D14: =Table!F18*10^Table!G18 -> 0.027654256 | E14: =Table!H18*10^Table!I18 -> 0.00089006367 | F14: =Table!J18*10^Table!K18 -> -3.6309109e-05 | G14: =Table!L18*10^Table!M18 -> 7.6181062e-06
A15: =Table!A19 -> BSC7 | B15: =Table!B19*10^Table!C19 -> 2.2702566 | C15: =Table!D19*10^Table!E19 -> -0.0091988101 | D15: =Table!F19*10^Table!G19 -> 0.011609706 | E15: =Table!H19*10^Table!I19 -> -7.6123911e-05 | F15: =Table!J19*10^Table!K19 -> 2.8558727e-05 | G15: =Table!L19*10^Table!M19 -> -1.2566486e-06
A16: =Table!A20 -> E-ADF10 | B16: =Table!B20*10^Table!C20 -> 2.5528983 | C16: =Table!D20*10^Table!E20 -> -0.015709364 | D16: =Table!F20*10^Table!G20 -> 0.015647688 | E16: =Table!H20*10^Table!I20 -> 0.0014461641 | F16: =Table!J20*10^Table!K20 -> -0.00014458879 | G16: =Table!L20*10^Table!M20 -> 9.5275733e-06
A17: =Table!A21 -> E-ADF50 | B17: =Table!B21*10^Table!C21 -> 2.6680422 | C17: =Table!D21*10^Table!E21 -> -0.013184258 | D17: =Table!F21*10^Table!G21 -> 0.023930479 | E17: =Table!H21*10^Table!I21 -> 0.00023928655 | F17: =Table!J21*10^Table!K21 -> 5.0697941e-05 | G17: =Table!L21*10^Table!M21 -> 9.1240958e-07
A18: =Table!A22 -> E-BACD10 | B18: =Table!B22*10^Table!C22 -> 2.5906326 | C18: =Table!D22*10^Table!E22 -> -0.010608994 | D18: =Table!F22*10^Table!G22 -> 0.014490916 | E18: =Table!H22*10^Table!I22 -> 0.00067542247 | F18: =Table!J22*10^Table!K22 -> -5.5303116e-05 | G18: =Table!L22*10^Table!M22 -> 3.0061364e-06
A19: =Table!A23 -> E-BACED20 | B19: =Table!B23*10^Table!C23 -> 2.6667537 | C19: =Table!D23*10^Table!E23 -> -0.0097319259 | D19: =Table!F23*10^Table!G23 -> 0.017436284 | E19: =Table!H23*10^Table!I23 -> 0.00047558015 | F19: =Table!J23*10^Table!K23 -> -1.7144989e-05 | G19: =Table!L23*10^Table!M23 -> 1.1049589e-06
A20: =Table!A24 -> E-BAF8 | B20: =Table!B24*10^Table!C24 -> 2.5801121 | C20: =Table!D24*10^Table!E24 -> -0.0079717945 | D20: =Table!F24*10^Table!G24 -> 0.019728054 | E20: =Table!H24*10^Table!I24 -> 0.00013876076 | F20: =Table!J24*10^Table!K24 -> 3.7632071e-05 | G20: =Table!L24*10^Table!M24 -> -7.4634717e-07
A21: =Table!A25 -> E-C3 | B21: =Table!B25*10^Table!C25 -> 2.2725452 | C21: =Table!D25*10^Table!E25 -> -0.008410491 | D21: =Table!F25*10^Table!G25 -> 0.011306843 | E21: =Table!H25*10^Table!I25 -> 0.00037782297 | F21: =Table!J25*10^Table!K25 -> -2.6903423e-05 | G21: =Table!L25*10^Table!M25 -> 1.5976489e-06
A22: =Table!A26 -> E-CF6 | B22: =Table!B26*10^Table!C26 -> 2.2668912 | C22: =Table!D26*10^Table!E26 -> -0.0093866212 | D22: =Table!F26*10^Table!G26 -> 0.012174195 | E22: =Table!H26*10^Table!I26 -> 0.0005076903 | F22: =Table!J26*10^Table!K26 -> -3.3573414e-05 | G22: =Table!L26*10^Table!M26 -> 2.9059013e-06
A23: =Table!A27 -> E-F1 | B23: =Table!B27*10^Table!C27 -> 2.5730565 | C23: =Table!D27*10^Table!E27 -> -0.010203605 | D23: =Table!F27*10^Table!G27 -> 0.023095784 | E23: =Table!H27*10^Table!I27 -> 0.00087114252 | F23: =Table!J27*10^Table!K27 -> -3.0730079e-05 | G23: =Table!L27*10^Table!M27 -> 6.9457986e-06
A24: =Table!A28 -> E-F2 | B24: =Table!B28*10^Table!C28 -> 2.5561822 | C24: =Table!D28*10^Table!E28 -> -0.010237038 | D24: =Table!F28*10^Table!G28 -> 0.022470348 | E24: =Table!H28*10^Table!I28 -> 0.00084580679 | F24: =Table!J28*10^Table!K28 -> -3.3087089e-05 | G24: =Table!L28*10^Table!M28 -> 7.1054919e-06
A25: =Table!A29 -> E-F3 | B25: =Table!B29*10^Table!C29 -> 2.5362697 | C25: =Table!D29*10^Table!E29 -> -0.010610424 | D25: =Table!F29*10^Table!G29 -> 0.021233821 | E25: =Table!H29*10^Table!I29 -> 0.00099012105 | F25: =Table!J29*10^Table!K29 -> -5.9984348e-05 | G25: =Table!L29*10^Table!M29 -> 8.2354366e-06
A26: =Table!A30 -> E-F5 | B26: =Table!B30*10^Table!C30 -> 2.5095673 | C26: =Table!D30*10^Table!E30 -> -0.010862661 | D26: =Table!F30*10^Table!G30 -> 0.019894774 | E26: =Table!H30*10^Table!I30 -> 0.0010137134 | F26: =Table!J30*10^Table!K30 -> -6.2697117e-05 | G26: =Table!L30*10^Table!M30 -> 7.5080045e-06
A27: =Table!A31 -> E-F8 | B27: =Table!B31*10^Table!C31 -> 2.4866561 | C27: =Table!D31*10^Table!E31 -> -0.010188484 | D27: =Table!F31*10^Table!G31 -> 0.019287417 | E27: =Table!H31*10^Table!I31 -> 0.00088553737 | F27: =Table!J31*10^Table!K31 -> -5.0937106e-05 | G27: =Table!L31*10^Table!M31 -> 6.4256956e-06
A28: =Table!A32 -> E-FD1 | B28: =Table!B32*10^Table!C32 -> 2.8508499 | C28: =Table!D32*10^Table!E32 -> -0.01323461 | D28: =Table!F32*10^Table!G32 -> 0.029415325 | E28: =Table!H32*10^Table!I32 -> 0.0025542666 | F28: =Table!J32*10^Table!K32 -> -0.00021232133 | G28: =Table!L32*10^Table!M32 -> 2.2261936e-05
A29: =Table!A33 -> E-FD10 | B29: =Table!B33*10^Table!C33 -> 2.881518 | C29: =Table!D33*10^Table!E33 -> -0.013228312 | D29: =Table!F33*10^Table!G33 -> 0.03145559 | E29: =Table!H33*10^Table!I33 -> 0.0026851666 | F29: =Table!J33*10^Table!K33 -> -0.00022577544 | G29: =Table!L33*10^Table!M33 -> 2.4693268e-05
A30: =Table!A34 -> E-FD10L | B30: =Table!B34*10^Table!C34 -> 2.8819845 | C30: =Table!D34*10^Table!E34 -> -0.013360032 | D30: =Table!F34*10^Table!G34 -> 0.031090844 | E30: =Table!H34*10^Table!I34 -> 0.0028218544 | F30: =Table!J34*10^Table!K34 -> -0.0002545828 | G30: =Table!L34*10^Table!M34 -> 2.7374245e-05
A31: =Table!A35 -> E-FD13 | B31: =Table!B35*10^Table!C35 -> 2.9205906 | C31: =Table!D35*10^Table!E35 -> -0.013681618 | D31: =Table!F35*10^Table!G35 -> 0.03256776 | E31: =Table!H35*10^Table!I35 -> 0.0028725519 | F31: =Table!J35*10^Table!K35 -> -0.00024277107 | G31: =Table!L35*10^Table!M35 -> 2.6614514e-05
A32: =Table!A36 -> E-FD15 | B32: =Table!B36*10^Table!C36 -> 2.7919943 | C32: =Table!D36*10^Table!E36 -> -0.012311206 | D32: =Table!F36*10^Table!G36 -> 0.028802741 | E32: =Table!H36*10^Table!I36 -> 0.0021430059 | F32: =Table!J36*10^Table!K36 -> -0.00016932119 | G32: =Table!L36*10^Table!M36 -> 1.9741766e-05
A33: =Table!A37 -> E-FD15L | B33: =Table!B37*10^Table!C37 -> 2.7924658 | C33: =Table!D37*10^Table!E37 -> -0.012540598 | D33: =Table!F37*10^Table!G37 -> 0.028359569 | E33: =Table!H37*10^Table!I37 -> 0.0023368977 | F33: =Table!J37*10^Table!K37 -> -0.00020763765 | G33: =Table!L37*10^Table!M37 -> 2.2481601e-05
A34: =Table!A38 -> E-FD1L | B34: =Table!B38*10^Table!C38 -> 2.8496451 | C34: =Table!D38*10^Table!E38 -> -0.012662471 | D34: =Table!F38*10^Table!G38 -> 0.030196873 | E34: =Table!H38*10^Table!I38 -> 0.0023492982 | F34: =Table!J38*10^Table!K38 -> -0.00019216545 | G34: =Table!L38*10^Table!M38 -> 2.1946899e-05
A35: =Table!A39 -> E-FD2 | B35: =Table!B39*10^Table!C39 -> 2.6399644 | C35: =Table!D39*10^Table!E39 -> -0.011645718 | D35: =Table!F39*10^Table!G39 -> 0.023061733 | E35: =Table!H39*10^Table!I39 -> 0.0017348219 | F35: =Table!J39*10^Table!K39 -> -0.00013986059 | G35: =Table!L39*10^Table!M39 -> 1.391667e-05
A36: =Table!A40 -> E-FD4 | B36: =Table!B40*10^Table!C40 -> 2.9673173 | C36: =Table!D40*10^Table!E40 -> -0.013989565 | D36: =Table!F40*10^Table!G40 -> 0.03345668 | E36: =Table!H40*10^Table!I40 -> 0.0030717804 | F36: =Table!J40*10^Table!K40 -> -0.00026682435 | G36: =Table!L40*10^Table!M40 -> 2.8950241e-05
A37: =Table!A41 -> E-FD4L | B37: =Table!B41*10^Table!C41 -> 2.9677007 | C37: =Table!D41*10^Table!E41 -> -0.014006378 | D37: =Table!F41*10^Table!G41 -> 0.033049583 | E37: =Table!H41*10^Table!I41 -> 0.0032455044 | F37: =Table!J41*10^Table!K41 -> -0.0003015648 | G37: =Table!L41*10^Table!M41 -> 3.1689142e-05
A38: =Table!A42 -> E-FD5 | B38: =Table!B42*10^Table!C42 -> 2.7135839 | C38: =Table!D42*10^Table!E42 -> -0.011419719 | D38: =Table!F42*10^Table!G42 -> 0.026133708 | E38: =Table!H42*10^Table!I42 -> 0.0017576479 | F38: =Table!J42*10^Table!K42 -> -0.00013307737 | G38: =Table!L42*10^Table!M42 -> 1.5203351e-05
A39: =Table!A43 -> E-FD7 | B39: =Table!B43*10^Table!C43 -> 2.6165865 | C39: =Table!D43*10^Table!E43 -> -0.011427854 | D39: =Table!F43*10^Table!G43 -> 0.022534361 | E39: =Table!H43*10^Table!I43 -> 0.001551289 | F39: =Table!J43*10^Table!K43 -> -0.00011769852 | G39: =Table!L43*10^Table!M43 -> 1.2401891e-05
A40: =Table!A44 -> E-FD8 | B40: =Table!B44*10^Table!C44 -> 2.7617586 | C40: =Table!D44*10^Table!E44 -> -0.011254039 | D40: =Table!F44*10^Table!G44 -> 0.028221737 | E40: =Table!H44*10^Table!I44 -> 0.0017540315 | F40: =Table!J44*10^Table!K44 -> -0.00012127053 | G40: =Table!L44*10^Table!M44 -> 1.5522384e-05
A41: =Table!A45 -> E-FD80 | B41: =Table!B45*10^Table!C45 -> 2.7659751 | C41: =Table!D45*10^Table!E45 -> -0.01262138 | D41: =Table!F45*10^Table!G45 -> 0.02715647 | E41: =Table!H45*10^Table!I45 -> 0.0020389447 | F41: =Table!J45*10^Table!K45 -> -0.00016485416 | G41: =Table!L45*10^Table!M45 -> 1.9350106e-05
A42: =Table!A46 -> E-FDS1 | B42: =Table!B46*10^Table!C46 -> 3.5044639 | C42: =Table!D46*10^Table!E46 -> -0.020333833 | D42: =Table!F46*10^Table!G46 -> 0.0538027 | E42: =Table!H46*10^Table!I46 -> 0.0062874192 | F42: =Table!J46*10^Table!K46 -> -0.00056922176 | G42: =Table!L46*10^Table!M46 -> 7.3559387e-05
A43: =Table!A47 -> E-FDS1-W | B43: =Table!B47*10^Table!C47 -> 3.5044639 | C43: =Table!D47*10^Table!E47 -> -0.020333833 | D43: =Table!F47*10^Table!G47 -> 0.0538027 | E43: =Table!H47*10^Table!I47 -> 0.0062874192 | F43: =Table!J47*10^Table!K47 -> -0.00056922176 | G43: =Table!L47*10^Table!M47 -> 7.3559387e-05
A44: =Table!A48 -> E-FDS2 | B44: =Table!B48*10^Table!C48 -> 3.7672603 | C44: =Table!D48*10^Table!E48 -> -0.017001227 | D44: =Table!F48*10^Table!G48 -> 0.069849634 | E44: =Table!H48*10^Table!I48 -> 0.0063862892 | F44: =Table!J48*10^Table!K48 -> -0.00050812539 | G44: =Table!L48*10^Table!M48 -> 8.4455529e-05
A45: =Table!A49 -> E-FDS3 | B45: =Table!B49*10^Table!C49 -> 4.1120387 | C45: =Table!D49*10^Table!E49 -> -0.01822767 | D45: =Table!F49*10^Table!G49 -> 0.089852105 | E45: =Table!H49*10^Table!I49 -> 0.00787144 | F45: =Table!J49*10^Table!K49 -> -0.00052228008 | G45: =Table!L49*10^Table!M49 -> 0.00011773061
A46: =Table!A50 -> E-FEL1 | B46: =Table!B50*10^Table!C50 -> 2.3534484 | C46: =Table!D50*10^Table!E50 -> -0.010330438 | D46: =Table!F50*10^Table!G50 -> 0.014097325 | E46: =Table!H50*10^Table!I50 -> 0.00087167875 | F46: =Table!J50*10^Table!K50 -> -6.998197e-05 | G46: =Table!L50*10^Table!M50 -> 5.7867359e-06
A47: =Table!A51 -> E-FEL2 | B47: =Table!B51*10^Table!C51 -> 2.3317983 | C47: =Table!D51*10^Table!E51 -> -0.0097042192 | D47: =Table!F51*10^Table!G51 -> 0.014032761 | E47: =Table!H51*10^Table!I51 -> 0.00064822896 | F47: =Table!J51*10^Table!K51 -> -4.0813761e-05 | G47: =Table!L51*10^Table!M51 -> 3.9064873e-06
A48: =Table!A52 -> E-FEL6 | B48: =Table!B52*10^Table!C52 -> 2.3068946 | C48: =Table!D52*10^Table!E52 -> -0.0096888755 | D48: =Table!F52*10^Table!G52 -> 0.01309702 | E48: =Table!H52*10^Table!I52 -> 0.00065013927 | F48: =Table!J52*10^Table!K52 -> -4.2328222e-05 | G48: =Table!L52*10^Table!M52 -> 3.5888777e-06
A49: =Table!A53 -> E-FL5 | B49: =Table!B53*10^Table!C53 -> 2.4465754 | C49: =Table!D53*10^Table!E53 -> -0.010107041 | D49: =Table!F53*10^Table!G53 -> 0.017759132 | E49: =Table!H53*10^Table!I53 -> 0.00087970259 | F49: =Table!J53*10^Table!K53 -> -5.7014929e-05 | G49: =Table!L53*10^Table!M53 -> 6.0924663e-06
A50: =Table!A54 -> E-FL6 | B50: =Table!B54*10^Table!C54 -> 2.4079653 | C50: =Table!D54*10^Table!E54 -> -0.011135638 | D50: =Table!F54*10^Table!G54 -> 0.015704715 | E50: =Table!H54*10^Table!I54 -> 0.00099186507 | F50: =Table!J54*10^Table!K54 -> -7.9934653e-05 | G50: =Table!L54*10^Table!M54 -> 7.0985473e-06
A51: =Table!A55 -> E-LAF7 | B51: =Table!B55*10^Table!C55 -> 2.9704178 | C51: =Table!D55*10^Table!E55 -> -0.013290679 | D51: =Table!F55*10^Table!G55 -> 0.028359006 | E51: =Table!H55*10^Table!I55 -> 0.0017661786 | F51: =Table!J55*10^Table!K55 -> -0.00012453482 | G51: =Table!L55*10^Table!M55 -> 1.3951937e-05
A52: =Table!A56 -> FC5 | B52: =Table!B56*10^Table!C56 -> 2.1894054 | C52: =Table!D56*10^Table!E56 -> -0.0099044908 | D52: =Table!F56*10^Table!G56 -> 0.008640337 | E52: =Table!H56*10^Table!I56 -> 0.00022263067 | F52: =Table!J56*10^Table!K56 -> -1.2291942e-05 | G52: =Table!L56*10^Table!M56 -> 5.9386349e-07
A53: =Table!A57 -> FCD1 | B53: =Table!B57*10^Table!C57 -> 2.2181132 | C53: =Table!D57*10^Table!E57 -> -0.005799427 | D53: =Table!F57*10^Table!G57 -> 0.0083470679 | E53: =Table!H57*10^Table!I57 -> 6.5046523e-05 | F53: =Table!J57*10^Table!K57 -> 8.5142186e-06 | G53: =Table!L57*10^Table!M57 -> -5.8852269e-07
A54: =Table!A58 -> FCD10 | B54: =Table!B58*10^Table!C58 -> 2.103249 | C54: =Table!D58*10^Table!E58 -> -0.0050247988 | D54: =Table!F58*10^Table!G58 -> 0.0065323077 | E54: =Table!H58*10^Table!I58 -> 0.00013078405 | F54: =Table!J58*10^Table!K58 -> -6.3652072e-06 | G54: =Table!L58*10^Table!M58 -> 1.9254745e-07
A55: =Table!A59 -> FCD100 | B55: =Table!B59*10^Table!C59 -> 2.0482157 | C55: =Table!D59*10^Table!E59 -> -0.0043211222 | D55: =Table!F59*10^Table!G59 -> 0.0061826755 | E55: =Table!H59*10^Table!I59 -> 3.141148e-05 | F55: =Table!J59*10^Table!K59 -> 3.5370793e-06 | G55: =Table!L59*10^Table!M59 -> -1.6694497e-07
A56: =Table!A60 -> FCD10A | B56: =Table!B60*10^Table!C60 -> 2.1085888 | C56: =Table!D60*10^Table!E60 -> -0.0046553722 | D56: =Table!F60*10^Table!G60 -> 0.006954748 | E56: =Table!H60*10^Table!I60 -> 3.2184141e-05 | F56: =Table!J60*10^Table!K60 -> 5.2670946e-06 | G56: =Table!L60*10^Table!M60 -> -2.7164844e-07
A57: =Table!A61 -> FCD1B | B57: =Table!B61*10^Table!C61 -> 2.2189068 | C57: =Table!D61*10^Table!E61 -> -0.0061707065 | D57: =Table!F61*10^Table!G61 -> 0.0080887631 | E57: =Table!H61*10^Table!I61 -> 0.00013357782 | F57: =Table!J61*10^Table!K61 -> 1.9476186e-07 | G57: =Table!L61*10^Table!M61 -> -2.2577804e-07
A58: =Table!A62 -> FCD505 | B58: =Table!B62*10^Table!C62 -> 2.502355 | C58: =Table!D62*10^Table!E62 -> -0.0072080042 | D58: =Table!F62*10^Table!G62 -> 0.012012743 | E58: =Table!H62*10^Table!I62 -> 0.00034920842 | F58: =Table!J62*10^Table!K62 -> -2.4729676e-05 | G58: =Table!L62*10^Table!M62 -> 1.3801567e-06
A59: =Table!A63 -> FCD515 | B59: =Table!B63*10^Table!C63 -> 2.502355 | C59: =Table!D63*10^Table!E63 -> -0.0072080042 | D59: =Table!F63*10^Table!G63 -> 0.012012743 | E59: =Table!H63*10^Table!I63 -> 0.00034920842 | F59: =Table!J63*10^Table!K63 -> -2.4729676e-05 | G59: =Table!L63*10^Table!M63 -> 1.3801567e-06
A60: =Table!A64 -> FCD600 | B60: =Table!B64*10^Table!C64 -> 2.5009632 | C60: =Table!D64*10^Table!E64 -> -0.0071951364 | D60: =Table!F64*10^Table!G64 -> 0.014064825 | E60: =Table!H64*10^Table!I64 -> 0.00021434104 | F60: =Table!J64*10^Table!K64 -> 4.3873461e-06 | G60: =Table!L64*10^Table!M64 -> 4.8834355e-07
A61: =Table!A65 -> FCD705 | B61: =Table!B65*10^Table!C65 -> 2.3742832 | C61: =Table!D65*10^Table!E65 -> -0.0062014418 | D61: =Table!F65*10^Table!G65 -> 0.010582967 | E61: =Table!H65*10^Table!I65 -> 6.3100703e-05 | F61: =Table!J65*10^Table!K65 -> 8.196715e-06 | G61: =Table!L65*10^Table!M65 -> -3.4424446e-07
A62: =Table!A66 -> FD110 | B62: =Table!B66*10^Table!C66 -> 3.0534415 | C62: =Table!D66*10^Table!E66 -> -0.01275181 | D62: =Table!F66*10^Table!G66 -> 0.040609369 | E62: =Table!H66*10^Table!I66 -> 0.0022706109 | F62: =Table!J66*10^Table!K66 -> -7.8086606e-05 | G62: =Table!L66*10^Table!M66 -> 1.9874026e-05
A63: =Table!A67 -> FD140 | B63: =Table!B67*10^Table!C67 -> 2.9851294 | C63: =Table!D67*10^Table!E67 -> -0.014237988 | D63: =Table!F67*10^Table!G67 -> 0.035496437 | E63: =Table!H67*10^Table!I67 -> 0.0028457557 | F63: =Table!J67*10^Table!K67 -> -0.00019006799 | G63: =Table!L67*10^Table!M67 -> 2.4309252e-05
A64: =Table!A68 -> FD225 | B64: =Table!B68*10^Table!C68 -> 3.1189869 | C64: =Table!D68*10^Table!E68 -> -0.015820772 | D64: =Table!F68*10^Table!G68 -> 0.044425024 | E64: =Table!H68*10^Table!I68 -> 0.0035834882 | F64: =Table!J68*10^Table!K68 -> -0.00023943449 | G64: =Table!L68*10^Table!M68 -> 3.8756542e-05
A65: =Table!A69 -> FD60 | B65: =Table!B69*10^Table!C69 -> 3.1171483 | C65: =Table!D69*10^Table!E69 -> -0.011616277 | D65: =Table!F69*10^Table!G69 -> 0.044864975 | E65: =Table!H69*10^Table!I69 -> 0.0016588491 | F65: =Table!J69*10^Table!K69 -> 2.5716854e-05 | G65: =Table!L69*10^Table!M69 -> 1.4757657e-05
A66: =Table!A70 -> FD60-W | B66: =Table!B70*10^Table!C70 -> 3.1171483 | C66: =Table!D70*10^Table!E70 -> -0.011616277 | D66: =Table!F70*10^Table!G70 -> 0.044864975 | E66: =Table!H70*10^Table!I70 -> 0.0016588491 | F66: =Table!J70*10^Table!K70 -> 2.5716854e-05 | G66: =Table!L70*10^Table!M70 -> 1.4757657e-05
A67: =Table!A71 -> FDS16-W | B67: =Table!B71*10^Table!C71 -> 3.6906098 | C67: =Table!D71*10^Table!E71 -> -0.027849024 | D67: =Table!F71*10^Table!G71 -> 0.063139051 | E67: =Table!H71*10^Table!I71 -> 0.012443698 | F67: =Table!J71*10^Table!K71 -> -0.0014774085 | G67: =Table!L71*10^Table!M71 -> 0.00017478701
A68: =Table!A72 -> FDS18 | B68: =Table!B72*10^Table!C72 -> 3.563784 | C68: =Table!D72*10^Table!E72 -> -0.025449644 | D68: =Table!F72*10^Table!G72 -> 0.058401659 | E68: =Table!H72*10^Table!I72 -> 0.0092310983 | F68: =Table!J72*10^Table!K72 -> -0.00095499727 | G68: =Table!L72*10^Table!M72 -> 0.00011777456
A69: =Table!A73 -> FDS18-W | B69: =Table!B73*10^Table!C73 -> 3.563784 | C69: =Table!D73*10^Table!E73 -> -0.025449644 | D69: =Table!F73*10^Table!G73 -> 0.058401659 | E69: =Table!H73*10^Table!I73 -> 0.0092310983 | F69: =Table!J73*10^Table!K73 -> -0.00095499727 | G69: =Table!L73*10^Table!M73 -> 0.00011777456
A70: =Table!A74 -> FDS20-W | B70: =Table!B74*10^Table!C74 -> 3.3114745 | C70: =Table!D74*10^Table!E74 -> -0.019402447 | D70: =Table!F74*10^Table!G74 -> 0.051621829 | E70: =Table!H74*10^Table!I74 -> 0.0058556024 | F70: =Table!J74*10^Table!K74 -> -0.00053287332 | G70: =Table!L74*10^Table!M74 -> 7.3197844e-05
A71: =Table!A75 -> FDS24 | B71: =Table!B75*10^Table!C75 -> 3.5126327 | C71: =Table!D75*10^Table!E75 -> -0.0153015 | D71: =Table!F75*10^Table!G75 -> 0.053936061 | E71: =Table!H75*10^Table!I75 -> 0.0034949369 | F71: =Table!J75*10^Table!K75 -> -0.00017950295 | G71: =Table!L75*10^Table!M75 -> 3.4403181e-05
A72: =Table!A76 -> FDS24-W | B72: =Table!B76*10^Table!C76 -> 3.5126327 | C72: =Table!D76*10^Table!E76 -> -0.0153015 | D72: =Table!F76*10^Table!G76 -> 0.053936061 | E72: =Table!H76*10^Table!I76 -> 0.0034949369 | F72: =Table!J76*10^Table!K76 -> -0.00017950295 | G72: =Table!L76*10^Table!M76 -> 3.4403181e-05
A73: =Table!A77 -> FDS90 | B73: =Table!B77*10^Table!C77 -> 3.2606321 | C73: =Table!D77*10^Table!E77 -> -0.017780398 | D73: =Table!F77*10^Table!G77 -> 0.040902938 | E73: =Table!H77*10^Table!I77 -> 0.0056076934 | F73: =Table!J77*10^Table!K77 -> -0.00056434039 | G73: =Table!L77*10^Table!M77 -> 5.4763391e-05
A74: =Table!A78 -> FDS90(P) | B74: =Table!B78*10^Table!C78 -> 3.2565619 | C74: =Table!D78*10^Table!E78 -> -0.015803965 | D74: =Table!F78*10^Table!G78 -> 0.044330322 | E74: =Table!H78*10^Table!I78 -> 0.0043620098 | F74: =Table!J78*10^Table!K78 -> -0.00036912261 | G74: =Table!L78*10^Table!M78 -> 4.2999682e-05
A75: =Table!A79 -> FDS90-SG | B75: =Table!B79*10^Table!C79 -> 3.2606321 | C75: =Table!D79*10^Table!E79 -> -0.017780398 | D75: =Table!F79*10^Table!G79 -> 0.040902938 | E75: =Table!H79*10^Table!I79 -> 0.0056076934 | F75: =Table!J79*10^Table!K79 -> -0.00056434039 | G75: =Table!L79*10^Table!M79 -> 5.4763391e-05
A76: =Table!A80 -> FF5 | B76: =Table!B80*10^Table!C80 -> 2.4743324 | C76: =Table!D80*10^Table!E80 -> -0.010955338 | D76: =Table!F80*10^Table!G80 -> 0.019293801 | E76: =Table!H80*10^Table!I80 -> 0.0014497732 | F76: =Table!J80*10^Table!K80 -> -0.00011038744 | G76: =Table!L80*10^Table!M80 -> 1.1136008e-05
A77: =Table!A81 -> FF8 | B77: =Table!B81*10^Table!C81 -> 2.9564361 | C77: =Table!D81*10^Table!E81 -> -0.019762195 | D77: =Table!F81*10^Table!G81 -> 0.029878823 | E77: =Table!H81*10^Table!I81 -> 0.0051830852 | F77: =Table!J81*10^Table!K81 -> -0.00054202389 | G77: =Table!L81*10^Table!M81 -> 4.8463245e-05
A78: =Table!A82 -> LAC10 | B78: =Table!B82*10^Table!C82 -> 2.8951998 | C78: =Table!D82*10^Table!E82 -> -0.011701218 | D78: =Table!F82*10^Table!G82 -> 0.022126485 | E78: =Table!H82*10^Table!I82 -> 0.00038494791 | F78: =Table!J82*10^Table!K82 -> -7.9808302e-06 | G78: =Table!L82*10^Table!M82 -> 1.5035116e-06
A79: =Table!A83 -> LAC12 | B79: =Table!B83*10^Table!C83 -> 2.7634844 | C79: =Table!D83*10^Table!E83 -> -0.011068339 | D79: =Table!F83*10^Table!G83 -> 0.018246442 | E79: =Table!H83*10^Table!I83 -> 0.00037697356 | F79: =Table!J83*10^Table!K83 -> -1.7788655e-05 | G79: =Table!L83*10^Table!M83 -> 1.5314262e-06
A80: =Table!A84 -> LAC13 | B80: =Table!B84*10^Table!C84 -> 2.8125316 | C80: =Table!D84*10^Table!E84 -> -0.012915271 | D80: =Table!F84*10^Table!G84 -> 0.019960339 | E80: =Table!H84*10^Table!I84 -> 0.00019877888 | F80: =Table!J84*10^Table!K84 -> 1.7647061e-05 | G80: =Table!L84*10^Table!M84 -> -4.4767632e-07
A81: =Table!A85 -> LAC14 | B81: =Table!B85*10^Table!C85 -> 2.8255229 | C81: =Table!D85*10^Table!E85 -> -0.013632902 | D81: =Table!F85*10^Table!G85 -> 0.019791402 | E81: =Table!H85*10^Table!I85 -> 1.5032564e-05 | F81: =Table!J85*10^Table!K85 -> 4.0761368e-05 | G81: =Table!L85*10^Table!M85 -> -1.7527267e-06
A82: =Table!A86 -> LAC7 | B82: =Table!B86*10^Table!C86 -> 2.6876223 | C82: =Table!D86*10^Table!E86 -> -0.014375187 | D82: =Table!F86*10^Table!G86 -> 0.012545954 | E82: =Table!H86*10^Table!I86 -> 0.0014642295 | F82: =Table!J86*10^Table!K86 -> -0.00016982461 | G82: =Table!L86*10^Table!M86 -> 8.8048639e-06
A83: =Table!A87 -> LAC8 | B83: =Table!B87*10^Table!C87 -> 2.8778537 | C83: =Table!D87*10^Table!E87 -> -0.013832906 | D83: =Table!F87*10^Table!G87 -> 0.020301185 | E83: =Table!H87*10^Table!I87 -> 0.00027759871 | F83: =Table!J87*10^Table!K87 -> 5.905983e-06 | G83: =Table!L87*10^Table!M87 -> 1.7747647e-07
A84: =Table!A88 -> LAC9 | B84: =Table!B88*10^Table!C88 -> 2.8081523 | C84: =Table!D88*10^Table!E88 -> -0.014167885 | D84: =Table!F88*10^Table!G88 -> 0.017693707 | E84: =Table!H88*10^Table!I88 -> 0.00076788759 | F84: =Table!J88*10^Table!K88 -> -7.4886174e-05 | G84: =Table!L88*10^Table!M88 -> 4.7044756e-06
A85: =Table!A89 -> LACL60 | B85: =Table!B89*10^Table!C89 -> 2.6490884 | C85: =Table!D89*10^Table!E89 -> -0.014159869 | D85: =Table!F89*10^Table!G89 -> 0.014451135 | E85: =Table!H89*10^Table!I89 -> 0.00052707873 | F85: =Table!J89*10^Table!K89 -> -4.3447523e-05 | G85: =Table!L89*10^Table!M89 -> 2.4612971e-06
A86: =Table!A90 -> LAF2 | B86: =Table!B90*10^Table!C90 -> 2.9657374 | C86: =Table!D90*10^Table!E90 -> -0.0096571624 | D86: =Table!F90*10^Table!G90 -> 0.026024525 | E86: =Table!H90*10^Table!I90 -> 0.00036684641 | F86: =Table!J90*10^Table!K90 -> 2.8205551e-05 | G86: =Table!L90*10^Table!M90 -> -1.3739929e-07
A87: =Table!A91 -> LAF3 | B87: =Table!B91*10^Table!C91 -> 2.8789799 | C87: =Table!D91*10^Table!E91 -> -0.008729237 | D87: =Table!F91*10^Table!G91 -> 0.024425656 | E87: =Table!H91*10^Table!I91 -> 4.5491773e-05 | F87: =Table!J91*10^Table!K91 -> 4.2802928e-05 | G87: =Table!L91*10^Table!M91 -> -7.2834306e-07
A88: =Table!A92 -> LBC3N | B88: =Table!B92*10^Table!C92 -> 2.5388484 | C88: =Table!D92*10^Table!E92 -> -0.0066855865 | D88: =Table!F92*10^Table!G92 -> 0.015111456 | E88: =Table!H92*10^Table!I92 -> -0.00015247241 | F88: =Table!J92*10^Table!K92 -> 4.8340116e-05 | G88: =Table!L92*10^Table!M92 -> -2.4061785e-06
A89: =Table!A93 -> M-BACD12 | B89: =Table!B93*10^Table!C93 -> 2.468781 | C89: =Table!D93*10^Table!E93 -> -0.01062639 | D89: =Table!F93*10^Table!G93 -> 0.01325184 | E89: =Table!H93*10^Table!I93 -> 0.0004048612 | F89: =Table!J93*10^Table!K93 -> -2.974799e-05 | G89: =Table!L93*10^Table!M93 -> 1.825884e-06
A90: =Table!A94 -> M-BACD15 | B90: =Table!B94*10^Table!C94 -> 2.590919 | C90: =Table!D94*10^Table!E94 -> -0.01259476 | D90: =Table!F94*10^Table!G94 -> 0.01520205 | E90: =Table!H94*10^Table!I94 -> 0.000299998 | F90: =Table!J94*10^Table!K94 -> -1.131547e-05 | G90: =Table!L94*10^Table!M94 -> 9.15464e-07
A91: =Table!A95 -> M-BACD5N | B91: =Table!B95*10^Table!C95 -> 2.48951 | C91: =Table!D95*10^Table!E95 -> -0.01224496 | D91: =Table!F95*10^Table!G95 -> 0.01294262 | E91: =Table!H95*10^Table!I95 -> 0.0003490449 | F91: =Table!J95*10^Table!K95 -> -1.777228e-05 | G91: =Table!L95*10^Table!M95 -> 9.113719e-07
A92: =Table!A96 -> MC-BACD12 | B92: =Table!B96*10^Table!C96 -> 2.468781 | C92: =Table!D96*10^Table!E96 -> -0.01062639 | D92: =Table!F96*10^Table!G96 -> 0.01325184 | E92: =Table!H96*10^Table!I96 -> 0.0004048612 | F92: =Table!J96*10^Table!K96 -> -2.974799e-05 | G92: =Table!L96*10^Table!M96 -> 1.825884e-06
A93: =Table!A97 -> MC-BACD5N | B93: =Table!B97*10^Table!C97 -> 2.48951 | C93: =Table!D97*10^Table!E97 -> -0.01224496 | D93: =Table!F97*10^Table!G97 -> 0.01294262 | E93: =Table!H97*10^Table!I97 -> 0.0003490449 | F93: =Table!J97*10^Table!K97 -> -1.777228e-05 | G93: =Table!L97*10^Table!M97 -> 9.113719e-07
A94: =Table!A98 -> MC-FCD1-M20 | B94: =Table!B98*10^Table!C98 -> 2.2209418 | C94: =Table!D98*10^Table!E98 -> -0.0074830372 | D94: =Table!F98*10^Table!G98 -> 0.0062463392 | E94: =Table!H98*10^Table!I98 -> 0.00071157759 | F94: =Table!J98*10^Table!K98 -> -8.2274254e-05 | G94: =Table!L98*10^Table!M98 -> 4.0430546e-06
A95: =Table!A99 -> MC-FCD500-20 | B95: =Table!B99*10^Table!C99 -> 2.3850427 | C95: =Table!D99*10^Table!E99 -> -0.007914269 | D95: =Table!F99*10^Table!G99 -> 0.0094886852 | E95: =Table!H99*10^Table!I99 -> 0.00057980093 | F95: =Table!J99*10^Table!K99 -> -6.0011677e-05 | G95: =Table!L99*10^Table!M99 -> 3.0355422e-06
A96: =Table!A100 -> MC-FD80 | B96: =Table!B100*10^Table!C100 -> 2.761638 | C96: =Table!D100*10^Table!E100 -> -0.01132633 | D96: =Table!F100*10^Table!G100 -> 0.02865346 | E96: =Table!H100*10^Table!I100 -> 0.001529038 | F96: =Table!J100*10^Table!K100 -> -8.743577e-05 | G96: =Table!L100*10^Table!M100 -> 1.496579e-05
A97: =Table!A101 -> MC-FDS2 | B97: =Table!B101*10^Table!C101 -> 3.771581 | C97: =Table!D101*10^Table!E101 -> -0.020445364 | D97: =Table!F101*10^Table!G101 -> 0.063942579 | E97: =Table!H101*10^Table!I101 -> 0.008354547 | F97: =Table!J101*10^Table!K101 -> -0.00082031984 | G97: =Table!L101*10^Table!M101 -> 0.00010279507
A98: =Table!A102 -> MC-FDS910-50 | B98: =Table!B102*10^Table!C102 -> 3.1667902 | C98: =Table!D102*10^Table!E102 -> -0.013141416 | D98: =Table!F102*10^Table!G102 -> 0.047178656 | E98: =Table!H102*10^Table!I102 -> 0.0022684284 | F98: =Table!J102*10^Table!K102 -> -5.3672387e-05 | G98: =Table!L102*10^Table!M102 -> 2.5328422e-05
A99: =Table!A103 -> MC-LAC130 | B99: =Table!B103*10^Table!C103 -> 2.813412 | C99: =Table!D103*10^Table!E103 -> -0.01332448 | D99: =Table!F103*10^Table!G103 -> 0.01927865 | E99: =Table!H103*10^Table!I103 -> 0.0004124452 | F99: =Table!J103*10^Table!K103 -> -9.940432e-06 | G99: =Table!L103*10^Table!M103 -> 9.622024e-07
A100: =Table!A104 -> MC-NBF1 | B100: =Table!B104*10^Table!C104 -> 2.975245 | C100: =Table!D104*10^Table!E104 -> -0.01425016 | D100: =Table!F104*10^Table!G104 -> 0.02140074 | E100: =Table!H104*10^Table!I104 -> 0.0009755337 | F100: =Table!J104*10^Table!K104 -> -6.97953e-05 | G100: =Table!L104*10^Table!M104 -> 4.114924e-06
A101: =Table!A105 -> MC-NBFD130 | B101: =Table!B105*10^Table!C105 -> 3.173794 | C101: =Table!D105*10^Table!E105 -> -0.01498658 | D101: =Table!F105*10^Table!G105 -> 0.02906741 | E101: =Table!H105*10^Table!I105 -> 0.001204829 | F101: =Table!J105*10^Table!K105 -> -5.355158e-05 | G101: =Table!L105*10^Table!M105 -> 5.27135e-06
A102: =Table!A106 -> MC-NBFD135 | B102: =Table!B106*10^Table!C106 -> 3.1819698 | C102: =Table!D106*10^Table!E106 -> -0.014926522 | D102: =Table!F106*10^Table!G106 -> 0.028987649 | E102: =Table!H106*10^Table!I106 -> 0.0012223654 | F102: =Table!J106*10^Table!K106 -> -5.2916688e-05 | G102: =Table!L106*10^Table!M106 -> 4.7807227e-06
A103: =Table!A107 -> MC-PCD4-40 | B103: =Table!B107*10^Table!C107 -> 2.5831471 | C103: =Table!D107*10^Table!E107 -> -0.0097502344 | D103: =Table!F107*10^Table!G107 -> 0.013615374 | E103: =Table!H107*10^Table!I107 -> 0.00036346122 | F103: =Table!J107*10^Table!K107 -> -2.1187082e-05 | G103: =Table!L107*10^Table!M107 -> 1.1536132e-06
A104: =Table!A108 -> MC-PCD51-70 | B104: =Table!B108*10^Table!C108 -> 2.5025436 | C104: =Table!D108*10^Table!E108 -> -0.010321437 | D104: =Table!F108*10^Table!G108 -> 0.012433636 | E104: =Table!H108*10^Table!I108 -> 0.00021866535 | F104: =Table!J108*10^Table!K108 -> -5.5793977e-06 | G104: =Table!L108*10^Table!M108 -> 3.0188383e-07
A105: =Table!A109 -> MC-TAF1 | B105: =Table!B109*10^Table!C109 -> 3.070806 | C105: =Table!D109*10^Table!E109 -> -0.012276924 | D105: =Table!F109*10^Table!G109 -> 0.02456566 | E105: =Table!H109*10^Table!I109 -> 0.00047436648 | F105: =Table!J109*10^Table!K109 -> 5.432616e-07 | G105: =Table!L109*10^Table!M109 -> 6.5976661e-07
A106: =Table!A110 -> MC-TAF101-100 | B106: =Table!B110*10^Table!C110 -> 3.0591566 | C106: =Table!D110*10^Table!E110 -> -0.013604717 | D106: =Table!F110*10^Table!G110 -> 0.024624272 | E106: =Table!H110*10^Table!I110 -> 0.00041834242 | F106: =Table!J110*10^Table!K110 -> 2.5361908e-06 | G106: =Table!L110*10^Table!M110 -> 7.998082e-07
A107: =Table!A111 -> MC-TAF105 | B107: =Table!B111*10^Table!C111 -> 3.0705638 | C107: =Table!D111*10^Table!E111 -> -0.013310234 | D107: =Table!F111*10^Table!G111 -> 0.025280355 | E107: =Table!H111*10^Table!I111 -> 0.00021829234 | F107: =Table!J111*10^Table!K111 -> 3.2555293e-05 | G107: =Table!L111*10^Table!M111 -> -8.1300421e-07
A108: =Table!A112 -> MC-TAF31-15 | B108: =Table!B112*10^Table!C112 -> 3.164475 | C108: =Table!D112*10^Table!E112 -> -0.013801295 | D108: =Table!F112*10^Table!G112 -> 0.027926276 | E108: =Table!H112*10^Table!I112 -> 0.00057403 | F108: =Table!J112*10^Table!K112 -> 9.8223773e-07 | G108: =Table!L112*10^Table!M112 -> 1.3284244e-06
A109: =Table!A113 -> MC-TAF401 | B109: =Table!B113*10^Table!C113 -> 3.07279 | C109: =Table!D113*10^Table!E113 -> -0.01366385 | D109: =Table!F113*10^Table!G113 -> 0.02527346 | E109: =Table!H113*10^Table!I113 -> 0.000612182 | F109: =Table!J113*10^Table!K113 -> -1.147045e-05 | G109: =Table!L113*10^Table!M113 -> 1.543e-06
A110: =Table!A114 -> MC-TAFD305 | B110: =Table!B114*10^Table!C114 -> 3.327184 | C110: =Table!D114*10^Table!E114 -> -0.01343242 | D110: =Table!F114*10^Table!G114 -> 0.033398 | E110: =Table!H114*10^Table!I114 -> 0.001006047 | F110: =Table!J114*10^Table!K114 -> -2.136908e-05 | G110: =Table!L114*10^Table!M114 -> 3.972561e-06
A111: =Table!A115 -> MC-TAFD307 | B111: =Table!B115*10^Table!C115 -> 3.4286062 | C111: =Table!D115*10^Table!E115 -> -0.013845333 | D111: =Table!F115*10^Table!G115 -> 0.037363009 | E111: =Table!H115*10^Table!I115 -> 0.0011894554 | F111: =Table!J115*10^Table!K115 -> -1.5979979e-05 | G111: =Table!L115*10^Table!M115 -> 5.1827398e-06
A112: =Table!A116 -> MC-TAFD51-50 | B112: =Table!B116*10^Table!C116 -> 3.2288052 | C112: =Table!D116*10^Table!E116 -> -0.014433046 | D112: =Table!F116*10^Table!G116 -> 0.029863488 | E112: =Table!H116*10^Table!I116 -> 0.00082119282 | F112: =Table!J116*10^Table!K116 -> -1.0943492e-05 | G112: =Table!L116*10^Table!M116 -> 2.5804939e-06
A113: =Table!A117 -> M-FCD1 | B113: =Table!B117*10^Table!C117 -> 2.2189068 | C113: =Table!D117*10^Table!E117 -> -0.0061707065 | D113: =Table!F117*10^Table!G117 -> 0.0080887631 | E113: =Table!H117*10^Table!I117 -> 0.00013357782 | F113: =Table!J117*10^Table!K117 -> 1.9476186e-07 | G113: =Table!L117*10^Table!M117 -> -2.2577804e-07
A114: =Table!A118 -> M-FCD500 | B114: =Table!B118*10^Table!C118 -> 2.3841554 | C114: =Table!D118*10^Table!E118 -> -0.0078084423 | D114: =Table!F118*10^Table!G118 -> 0.0097130883 | E114: =Table!H118*10^Table!I118 -> 0.00049959889 | F114: =Table!J118*10^Table!K118 -> -4.7303224e-05 | G114: =Table!L118*10^Table!M118 -> 2.3205441e-06
A115: =Table!A119 -> M-FD80 | B115: =Table!B119*10^Table!C119 -> 2.761638 | C115: =Table!D119*10^Table!E119 -> -0.01132633 | D115: =Table!F119*10^Table!G119 -> 0.02865346 | E115: =Table!H119*10^Table!I119 -> 0.001529038 | F115: =Table!J119*10^Table!K119 -> -8.743577e-05 | G115: =Table!L119*10^Table!M119 -> 1.496579e-05
A116: =Table!A120 -> M-FDS1 | B116: =Table!B120*10^Table!C120 -> 3.4984224 | C116: =Table!D120*10^Table!E120 -> -0.01689542 | D116: =Table!F120*10^Table!G120 -> 0.057567078 | E116: =Table!H120*10^Table!I120 -> 0.0051693668 | F116: =Table!J120*10^Table!K120 -> -0.0003996631 | G116: =Table!L120*10^Table!M120 -> 6.2368582e-05
A117: =Table!A121 -> M-FDS2 | B117: =Table!B121*10^Table!C121 -> 3.771581 | C117: =Table!D121*10^Table!E121 -> -0.020445364 | D117: =Table!F121*10^Table!G121 -> 0.063942579 | E117: =Table!H121*10^Table!I121 -> 0.008354547 | F117: =Table!J121*10^Table!K121 -> -0.00082031984 | G117: =Table!L121*10^Table!M121 -> 0.00010279507
A118: =Table!A122 -> M-FDS910 | B118: =Table!B122*10^Table!C122 -> 3.165987 | C118: =Table!D122*10^Table!E122 -> -0.01349196 | D118: =Table!F122*10^Table!G122 -> 0.04649918 | E118: =Table!H122*10^Table!I122 -> 0.002471413 | F118: =Table!J122*10^Table!K122 -> -8.659596e-05 | G118: =Table!L122*10^Table!M122 -> 2.725927e-05
A119: =Table!A123 -> M-LAC130 | B119: =Table!B123*10^Table!C123 -> 2.813412 | C119: =Table!D123*10^Table!E123 -> -0.01332448 | D119: =Table!F123*10^Table!G123 -> 0.01927865 | E119: =Table!H123*10^Table!I123 -> 0.0004124452 | F119: =Table!J123*10^Table!K123 -> -9.940432e-06 | G119: =Table!L123*10^Table!M123 -> 9.622024e-07
A120: =Table!A124 -> M-LAC14 | B120: =Table!B124*10^Table!C124 -> 2.8278386 | C120: =Table!D124*10^Table!E124 -> -0.014773939 | D120: =Table!F124*10^Table!G124 -> 0.018211733 | E120: =Table!H124*10^Table!I124 -> 0.00049311964 | F120: =Table!J124*10^Table!K124 -> -2.5486886e-05 | G120: =Table!L124*10^Table!M124 -> 1.6795487e-06
A121: =Table!A125 -> M-LAC8 | B121: =Table!B125*10^Table!C125 -> 2.8817481 | C121: =Table!D125*10^Table!E125 -> -0.015730804 | D121: =Table!F125*10^Table!G125 -> 0.017690493 | E121: =Table!H125*10^Table!I125 -> 0.001052669 | F121: =Table!J125*10^Table!K125 -> -9.909308e-05 | G121: =Table!L125*10^Table!M125 -> 5.5248378e-06
A122: =Table!A126 -> M-LAF81 | B122: =Table!B126*10^Table!C126 -> 2.9167886 | C122: =Table!D126*10^Table!E126 -> -0.012398199 | D122: =Table!F126*10^Table!G126 -> 0.026675237 | E122: =Table!H126*10^Table!I126 -> 0.00065190504 | F122: =Table!J126*10^Table!K126 -> 4.6956175e-06 | G122: =Table!L126*10^Table!M126 -> 2.691054e-06
A123: =Table!A127 -> M-NBF1 | B123: =Table!B127*10^Table!C127 -> 2.975245 | C123: =Table!D127*10^Table!E127 -> -0.01425016 | D123: =Table!F127*10^Table!G127 -> 0.02140074 | E123: =Table!H127*10^Table!I127 -> 0.0009755337 | F123: =Table!J127*10^Table!K127 -> -6.97953e-05 | G123: =Table!L127*10^Table!M127 -> 4.114924e-06
A124: =Table!A128 -> M-NBFD10 | B124: =Table!B128*10^Table!C128 -> 3.264623 | C124: =Table!D128*10^Table!E128 -> -0.01581977 | D124: =Table!F128*10^Table!G128 -> 0.03225894 | E124: =Table!H128*10^Table!I128 -> 0.001709312 | F124: =Table!J128*10^Table!K128 -> -0.0001081957 | G124: =Table!L128*10^Table!M128 -> 1.058323e-05
A125: =Table!A129 -> M-NBFD130 | B125: =Table!B129*10^Table!C129 -> 3.173794 | C125: =Table!D129*10^Table!E129 -> -0.01498658 | D125: =Table!F129*10^Table!G129 -> 0.02906741 | E125: =Table!H129*10^Table!I129 -> 0.001204829 | F125: =Table!J129*10^Table!K129 -> -5.355158e-05 | G125: =Table!L129*10^Table!M129 -> 5.27135e-06
A126: =Table!A130 -> MP-BACD12 | B126: =Table!B130*10^Table!C130 -> 2.468781 | C126: =Table!D130*10^Table!E130 -> -0.01062639 | D126: =Table!F130*10^Table!G130 -> 0.01325184 | E126: =Table!H130*10^Table!I130 -> 0.0004048612 | F126: =Table!J130*10^Table!K130 -> -2.974799e-05 | G126: =Table!L130*10^Table!M130 -> 1.825884e-06
A127: =Table!A131 -> MP-BACD15 | B127: =Table!B131*10^Table!C131 -> 2.590919 | C127: =Table!D131*10^Table!E131 -> -0.01259476 | D127: =Table!F131*10^Table!G131 -> 0.01520205 | E127: =Table!H131*10^Table!I131 -> 0.000299998 | F127: =Table!J131*10^Table!K131 -> -1.131547e-05 | G127: =Table!L131*10^Table!M131 -> 9.15464e-07
A128: =Table!A132 -> MP-BACD5N | B128: =Table!B132*10^Table!C132 -> 2.48951 | C128: =Table!D132*10^Table!E132 -> -0.01224496 | D128: =Table!F132*10^Table!G132 -> 0.01294262 | E128: =Table!H132*10^Table!I132 -> 0.0003490449 | F128: =Table!J132*10^Table!K132 -> -1.777228e-05 | G128: =Table!L132*10^Table!M132 -> 9.113719e-07
A129: =Table!A133 -> M-PCD4 | B129: =Table!B133*10^Table!C133 -> 2.582335 | C129: =Table!D133*10^Table!E133 -> -0.009952039 | D129: =Table!F133*10^Table!G133 -> 0.01329184 | E129: =Table!H133*10^Table!I133 -> 0.0004550621 | F129: =Table!J133*10^Table!K133 -> -3.327132e-05 | G129: =Table!L133*10^Table!M133 -> 1.730172e-06
A130: =Table!A134 -> M-PCD51 | B130: =Table!B134*10^Table!C134 -> 2.502026 | C130: =Table!D134*10^Table!E134 -> -0.01108292 | D130: =Table!F134*10^Table!G134 -> 0.0112772 | E130: =Table!H134*10^Table!I134 -> 0.0005715408 | F130: =Table!J134*10^Table!K134 -> -5.587455e-05 | G130: =Table!L134*10^Table!M134 -> 2.905292e-06
A131: =Table!A135 -> M-PCD55AR | B131: =Table!B135*10^Table!C135 -> 2.6366261 | C131: =Table!D135*10^Table!E135 -> -0.0092645802 | D131: =Table!F135*10^Table!G135 -> 0.016956609 | E131: =Table!H135*10^Table!I135 -> 0.00026444551 | F131: =Table!J135*10^Table!K135 -> 6.1366528e-06 | G131: =Table!L135*10^Table!M135 -> 3.4208341e-07
A132: =Table!A136 -> MP-FCD1-M20 | B132: =Table!B136*10^Table!C136 -> 2.2209418 | C132: =Table!D136*10^Table!E136 -> -0.0074830372 | D132: =Table!F136*10^Table!G136 -> 0.0062463392 | E132: =Table!H136*10^Table!I136 -> 0.00071157759 | F132: =Table!J136*10^Table!K136 -> -8.2274254e-05 | G132: =Table!L136*10^Table!M136 -> 4.0430546e-06
A133: =Table!A137 -> MP-FCD500-20 | B133: =Table!B137*10^Table!C137 -> 2.3850427 | C133: =Table!D137*10^Table!E137 -> -0.007914269 | D133: =Table!F137*10^Table!G137 -> 0.0094886852 | E133: =Table!H137*10^Table!I137 -> 0.00057980093 | F133: =Table!J137*10^Table!K137 -> -6.0011677e-05 | G133: =Table!L137*10^Table!M137 -> 3.0355422e-06
A134: =Table!A138 -> MP-FD80 | B134: =Table!B138*10^Table!C138 -> 2.761638 | C134: =Table!D138*10^Table!E138 -> -0.01132633 | D134: =Table!F138*10^Table!G138 -> 0.02865346 | E134: =Table!H138*10^Table!I138 -> 0.001529038 | F134: =Table!J138*10^Table!K138 -> -8.743577e-05 | G134: =Table!L138*10^Table!M138 -> 1.496579e-05
A135: =Table!A139 -> MP-FDS1 | B135: =Table!B139*10^Table!C139 -> 3.4984224 | C135: =Table!D139*10^Table!E139 -> -0.01689542 | D135: =Table!F139*10^Table!G139 -> 0.057567078 | E135: =Table!H139*10^Table!I139 -> 0.0051693668 | F135: =Table!J139*10^Table!K139 -> -0.0003996631 | G135: =Table!L139*10^Table!M139 -> 6.2368582e-05
A136: =Table!A140 -> MP-FDS2 | B136: =Table!B140*10^Table!C140 -> 3.771581 | C136: =Table!D140*10^Table!E140 -> -0.020445364 | D136: =Table!F140*10^Table!G140 -> 0.063942579 | E136: =Table!H140*10^Table!I140 -> 0.008354547 | F136: =Table!J140*10^Table!K140 -> -0.00082031984 | G136: =Table!L140*10^Table!M140 -> 0.00010279507
A137: =Table!A141 -> MP-FDS910-50 | B137: =Table!B141*10^Table!C141 -> 3.1667902 | C137: =Table!D141*10^Table!E141 -> -0.013141416 | D137: =Table!F141*10^Table!G141 -> 0.047178656 | E137: =Table!H141*10^Table!I141 -> 0.0022684284 | F137: =Table!J141*10^Table!K141 -> -5.3672387e-05 | G137: =Table!L141*10^Table!M141 -> 2.5328422e-05
A138: =Table!A142 -> MP-LAC130 | B138: =Table!B142*10^Table!C142 -> 2.813412 | C138: =Table!D142*10^Table!E142 -> -0.01332448 | D138: =Table!F142*10^Table!G142 -> 0.01927865 | E138: =Table!H142*10^Table!I142 -> 0.0004124452 | F138: =Table!J142*10^Table!K142 -> -9.940432e-06 | G138: =Table!L142*10^Table!M142 -> 9.622024e-07
A139: =Table!A143 -> MP-LAC14-80 | B139: =Table!B143*10^Table!C143 -> 2.8306733 | C139: =Table!D143*10^Table!E143 -> -0.014855863 | D139: =Table!F143*10^Table!G143 -> 0.018103472 | E139: =Table!H143*10^Table!I143 -> 0.00053539971 | F139: =Table!J143*10^Table!K143 -> -3.1929778e-05 | G139: =Table!L143*10^Table!M143 -> 2.0340983e-06
A140: =Table!A144 -> MP-LAC8-30 | B140: =Table!B144*10^Table!C144 -> 2.8827498 | C140: =Table!D144*10^Table!E144 -> -0.015740789 | D140: =Table!F144*10^Table!G144 -> 0.017707976 | E140: =Table!H144*10^Table!I144 -> 0.0010483265 | F140: =Table!J144*10^Table!K144 -> -9.8332811e-05 | G140: =Table!L144*10^Table!M144 -> 5.4828685e-06
A141: =Table!A145 -> MP-LAF81 | B141: =Table!B145*10^Table!C145 -> 2.9167886 | C141: =Table!D145*10^Table!E145 -> -0.012398199 | D141: =Table!F145*10^Table!G145 -> 0.026675237 | E141: =Table!H145*10^Table!I145 -> 0.00065190504 | F141: =Table!J145*10^Table!K145 -> 4.6956175e-06 | G141: =Table!L145*10^Table!M145 -> 2.691054e-06
A142: =Table!A146 -> MP-NBF1 | B142: =Table!B146*10^Table!C146 -> 2.975245 | C142: =Table!D146*10^Table!E146 -> -0.01425016 | D142: =Table!F146*10^Table!G146 -> 0.02140074 | E142: =Table!H146*10^Table!I146 -> 0.0009755337 | F142: =Table!J146*10^Table!K146 -> -6.97953e-05 | G142: =Table!L146*10^Table!M146 -> 4.114924e-06
A143: =Table!A147 -> MP-NBFD10-20 | B143: =Table!B147*10^Table!C147 -> 3.2722586 | C143: =Table!D147*10^Table!E147 -> -0.018817211 | D143: =Table!F147*10^Table!G147 -> 0.027264508 | E143: =Table!H147*10^Table!I147 -> 0.0032789193 | F143: =Table!J147*10^Table!K147 -> -0.00032827672 | G143: =Table!L147*10^Table!M147 -> 2.1743362e-05
A144: =Table!A148 -> MP-NBFD130 | B144: =Table!B148*10^Table!C148 -> 3.173794 | C144: =Table!D148*10^Table!E148 -> -0.01498658 | D144: =Table!F148*10^Table!G148 -> 0.02906741 | E144: =Table!H148*10^Table!I148 -> 0.001204829 | F144: =Table!J148*10^Table!K148 -> -5.355158e-05 | G144: =Table!L148*10^Table!M148 -> 5.27135e-06
A145: =Table!A149 -> MP-PCD4-40 | B145: =Table!B149*10^Table!C149 -> 2.5831471 | C145: =Table!D149*10^Table!E149 -> -0.0097502344 | D145: =Table!F149*10^Table!G149 -> 0.013615374 | E145: =Table!H149*10^Table!I149 -> 0.00036346122 | F145: =Table!J149*10^Table!K149 -> -2.1187082e-05 | G145: =Table!L149*10^Table!M149 -> 1.1536132e-06
A146: =Table!A150 -> MP-PCD51-70 | B146: =Table!B150*10^Table!C150 -> 2.5025436 | C146: =Table!D150*10^Table!E150 -> -0.010321437 | D146: =Table!F150*10^Table!G150 -> 0.012433636 | E146: =Table!H150*10^Table!I150 -> 0.00021866535 | F146: =Table!J150*10^Table!K150 -> -5.5793977e-06 | G146: =Table!L150*10^Table!M150 -> 3.0188383e-07
A147: =Table!A151 -> MP-PCD55AR | B147: =Table!B151*10^Table!C151 -> 2.6366261 | C147: =Table!D151*10^Table!E151 -> -0.0092645802 | D147: =Table!F151*10^Table!G151 -> 0.016956609 | E147: =Table!H151*10^Table!I151 -> 0.00026444551 | F147: =Table!J151*10^Table!K151 -> 6.1366528e-06 | G147: =Table!L151*10^Table!M151 -> 3.4208341e-07
A148: =Table!A152 -> MP-TAC60-90 | B148: =Table!B152*10^Table!C152 -> 3.0209214 | C148: =Table!D152*10^Table!E152 -> -0.0157801 | D148: =Table!F152*10^Table!G152 -> 0.02114253 | E148: =Table!H152*10^Table!I152 -> 0.00095556554 | F148: =Table!J152*10^Table!K152 -> -7.4489819e-05 | G148: =Table!L152*10^Table!M152 -> 4.360632e-06
A149: =Table!A153 -> MP-TAC80-60 | B149: =Table!B153*10^Table!C153 -> 2.9372128 | C149: =Table!D153*10^Table!E153 -> -0.016185789 | D149: =Table!F153*10^Table!G153 -> 0.01839514 | E149: =Table!H153*10^Table!I153 -> 0.0010266071 | F149: =Table!J153*10^Table!K153 -> -9.2379872e-05 | G149: =Table!L153*10^Table!M153 -> 5.0509237e-06
A150: =Table!A154 -> MP-TAF101-100 | B150: =Table!B154*10^Table!C154 -> 3.0591566 | C150: =Table!D154*10^Table!E154 -> -0.013604717 | D150: =Table!F154*10^Table!G154 -> 0.024624272 | E150: =Table!H154*10^Table!I154 -> 0.00041834242 | F150: =Table!J154*10^Table!K154 -> 2.5361908e-06 | G150: =Table!L154*10^Table!M154 -> 7.998082e-07
A151: =Table!A155 -> MP-TAF105 | B151: =Table!B155*10^Table!C155 -> 3.0705638 | C151: =Table!D155*10^Table!E155 -> -0.013310234 | D151: =Table!F155*10^Table!G155 -> 0.025280355 | E151: =Table!H155*10^Table!I155 -> 0.00021829234 | F151: =Table!J155*10^Table!K155 -> 3.2555293e-05 | G151: =Table!L155*10^Table!M155 -> -8.1300421e-07
A152: =Table!A156 -> MP-TAF31-15 | B152: =Table!B156*10^Table!C156 -> 3.164475 | C152: =Table!D156*10^Table!E156 -> -0.013801295 | D152: =Table!F156*10^Table!G156 -> 0.027926276 | E152: =Table!H156*10^Table!I156 -> 0.00057403 | F152: =Table!J156*10^Table!K156 -> 9.8223773e-07 | G152: =Table!L156*10^Table!M156 -> 1.3284244e-06
A153: =Table!A157 -> MP-TAF401 | B153: =Table!B157*10^Table!C157 -> 3.07279 | C153: =Table!D157*10^Table!E157 -> -0.01366385 | D153: =Table!F157*10^Table!G157 -> 0.02527346 | E153: =Table!H157*10^Table!I157 -> 0.000612182 | F153: =Table!J157*10^Table!K157 -> -1.147045e-05 | G153: =Table!L157*10^Table!M157 -> 1.543e-06
A154: =Table!A158 -> MP-TAFD305 | B154: =Table!B158*10^Table!C158 -> 3.327184 | C154: =Table!D158*10^Table!E158 -> -0.01343242 | D154: =Table!F158*10^Table!G158 -> 0.033398 | E154: =Table!H158*10^Table!I158 -> 0.001006047 | F154: =Table!J158*10^Table!K158 -> -2.136908e-05 | G154: =Table!L158*10^Table!M158 -> 3.972561e-06
A155: =Table!A159 -> MP-TAFD307 | B155: =Table!B159*10^Table!C159 -> 3.4286062 | C155: =Table!D159*10^Table!E159 -> -0.013845333 | D155: =Table!F159*10^Table!G159 -> 0.037363009 | E155: =Table!H159*10^Table!I159 -> 0.0011894554 | F155: =Table!J159*10^Table!K159 -> -1.5979979e-05 | G155: =Table!L159*10^Table!M159 -> 5.1827398e-06
A156: =Table!A160 -> MP-TAFD405 | B156: =Table!B160*10^Table!C160 -> 3.6542352 | C156: =Table!D160*10^Table!E160 -> -0.015688325 | D156: =Table!F160*10^Table!G160 -> 0.048094089 | E156: =Table!H160*10^Table!I160 -> 0.0026498065 | F156: =Table!J160*10^Table!K160 -> -0.00013971852 | G156: =Table!L160*10^Table!M160 -> 1.9581201e-05
A157: =Table!A161 -> MP-TAFD51-50 | B157: =Table!B161*10^Table!C161 -> 3.2288052 | C157: =Table!D161*10^Table!E161 -> -0.014433046 | D157: =Table!F161*10^Table!G161 -> 0.029863488 | E157: =Table!H161*10^Table!I161 -> 0.00082119282 | F157: =Table!J161*10^Table!K161 -> -1.0943492e-05 | G157: =Table!L161*10^Table!M161 -> 2.5804939e-06
A158: =Table!A162 -> M-TAC60 | B158: =Table!B162*10^Table!C162 -> 3.017866 | C158: =Table!D162*10^Table!E162 -> -0.015790934 | D158: =Table!F162*10^Table!G162 -> 0.021144702 | E158: =Table!H162*10^Table!I162 -> 0.00093137389 | F158: =Table!J162*10^Table!K162 -> -6.9379914e-05 | G158: =Table!L162*10^Table!M162 -> 4.02762e-06
A159: =Table!A163 -> M-TAC80 | B159: =Table!B163*10^Table!C163 -> 2.9351948 | C159: =Table!D163*10^Table!E163 -> -0.016193458 | D159: =Table!F163*10^Table!G163 -> 0.018392287 | E159: =Table!H163*10^Table!I163 -> 0.0010086167 | F159: =Table!J163*10^Table!K163 -> -8.7565474e-05 | G159: =Table!L163*10^Table!M163 -> 4.6921333e-06
A160: =Table!A164 -> M-TAF1 | B160: =Table!B164*10^Table!C164 -> 3.070806 | C160: =Table!D164*10^Table!E164 -> -0.012276924 | D160: =Table!F164*10^Table!G164 -> 0.02456566 | E160: =Table!H164*10^Table!I164 -> 0.00047436648 | F160: =Table!J164*10^Table!K164 -> 5.432616e-07 | G160: =Table!L164*10^Table!M164 -> 6.5976661e-07
A161: =Table!A165 -> M-TAF101 | B161: =Table!B165*10^Table!C165 -> 3.05615 | C161: =Table!D165*10^Table!E165 -> -0.0138471 | D161: =Table!F165*10^Table!G165 -> 0.02431126 | E161: =Table!H165*10^Table!I165 -> 0.0004980027 | F161: =Table!J165*10^Table!K165 -> -7.318676e-06 | G161: =Table!L165*10^Table!M165 -> 1.24041e-06
A162: =Table!A166 -> M-TAF105 | B162: =Table!B166*10^Table!C166 -> 3.0705638 | C162: =Table!D166*10^Table!E166 -> -0.013310234 | D162: =Table!F166*10^Table!G166 -> 0.025280355 | E162: =Table!H166*10^Table!I166 -> 0.00021829234 | F162: =Table!J166*10^Table!K166 -> 3.2555293e-05 | G162: =Table!L166*10^Table!M166 -> -8.1300421e-07
A163: =Table!A167 -> M-TAF31 | B163: =Table!B167*10^Table!C167 -> 3.164358 | C163: =Table!D167*10^Table!E167 -> -0.01403321 | D163: =Table!F167*10^Table!G167 -> 0.02767034 | E163: =Table!H167*10^Table!I167 -> 0.0006403025 | F163: =Table!J167*10^Table!K167 -> -6.349234e-06 | G163: =Table!L167*10^Table!M167 -> 1.615744e-06
A164: =Table!A168 -> M-TAF401 | B164: =Table!B168*10^Table!C168 -> 3.07279 | C164: =Table!D168*10^Table!E168 -> -0.01366385 | D164: =Table!F168*10^Table!G168 -> 0.02527346 | E164: =Table!H168*10^Table!I168 -> 0.000612182 | F164: =Table!J168*10^Table!K168 -> -1.147045e-05 | G164: =Table!L168*10^Table!M168 -> 1.543e-06
A165: =Table!A169 -> M-TAFD305 | B165: =Table!B169*10^Table!C169 -> 3.327184 | C165: =Table!D169*10^Table!E169 -> -0.01343242 | D165: =Table!F169*10^Table!G169 -> 0.033398 | E165: =Table!H169*10^Table!I169 -> 0.001006047 | F165: =Table!J169*10^Table!K169 -> -2.136908e-05 | G165: =Table!L169*10^Table!M169 -> 3.972561e-06
A166: =Table!A170 -> M-TAFD307 | B166: =Table!B170*10^Table!C170 -> 3.4286062 | C166: =Table!D170*10^Table!E170 -> -0.013845333 | D166: =Table!F170*10^Table!G170 -> 0.037363009 | E166: =Table!H170*10^Table!I170 -> 0.0011894554 | F166: =Table!J170*10^Table!K170 -> -1.5979979e-05 | G166: =Table!L170*10^Table!M170 -> 5.1827398e-06
A167: =Table!A171 -> M-TAFD405 | B167: =Table!B171*10^Table!C171 -> 3.6542352 | C167: =Table!D171*10^Table!E171 -> -0.015688325 | D167: =Table!F171*10^Table!G171 -> 0.048094089 | E167: =Table!H171*10^Table!I171 -> 0.0026498065 | F167: =Table!J171*10^Table!K171 -> -0.00013971852 | G167: =Table!L171*10^Table!M171 -> 1.9581201e-05
A168: =Table!A172 -> M-TAFD51 | B168: =Table!B172*10^Table!C172 -> 3.227682 | C168: =Table!D172*10^Table!E172 -> -0.01453816 | D168: =Table!F172*10^Table!G172 -> 0.0292121 | E168: =Table!H172*10^Table!I172 -> 0.001057062 | F168: =Table!J172*10^Table!K172 -> -4.787162e-05 | G168: =Table!L172*10^Table!M172 -> 4.557239e-06
A169: =Table!A173 -> NBF1 | B169: =Table!B173*10^Table!C173 -> 2.9753491 | C169: =Table!D173*10^Table!E173 -> -0.01461347 | D169: =Table!F173*10^Table!G173 -> 0.021096383 | E169: =Table!H173*10^Table!I173 -> 0.001198038 | F169: =Table!J173*10^Table!K173 -> -0.00011887388 | G169: =Table!L173*10^Table!M173 -> 7.344435e-06
A170: =Table!A174 -> NBFD10 | B170: =Table!B174*10^Table!C174 -> 3.2615573 | C170: =Table!D174*10^Table!E174 -> -0.014542851 | D170: =Table!F174*10^Table!G174 -> 0.033470739 | E170: =Table!H174*10^Table!I174 -> 0.0012266479 | F170: =Table!J174*10^Table!K174 -> -2.5391842e-05 | G170: =Table!L174*10^Table!M174 -> 5.5971739e-06
A171: =Table!A175 -> NBFD11 | B171: =Table!B175*10^Table!C175 -> 3.1010267 | C171: =Table!D175*10^Table!E175 -> -0.010022108 | D171: =Table!F175*10^Table!G175 -> 0.032631687 | E171: =Table!H175*10^Table!I175 -> -0.00081029268 | F171: =Table!J175*10^Table!K175 -> 0.0001935011 | G171: =Table!L175*10^Table!M175 -> -8.0279799e-06
A172: =Table!A176 -> NBFD12 | B172: =Table!B176*10^Table!C176 -> 3.1513655 | C172: =Table!D176*10^Table!E176 -> -0.013052015 | D172: =Table!F176*10^Table!G176 -> 0.029502111 | E172: =Table!H176*10^Table!I176 -> 0.00067643437 | F172: =Table!J176*10^Table!K176 -> 3.6679701e-06 | G172: =Table!L176*10^Table!M176 -> 1.8233293e-06
A173: =Table!A177 -> NBFD13 | B173: =Table!B177*10^Table!C177 -> 3.1729223 | C173: =Table!D177*10^Table!E177 -> -0.014248534 | D173: =Table!F177*10^Table!G177 -> 0.029168114 | E173: =Table!H177*10^Table!I177 -> 0.001342876 | F173: =Table!J177*10^Table!K177 -> -9.6178753e-05 | G173: =Table!L177*10^Table!M177 -> 8.4042556e-06
A174: =Table!A178 -> NBFD15 | B174: =Table!B178*10^Table!C178 -> 3.1540011 | C174: =Table!D178*10^Table!E178 -> -0.013256753 | D174: =Table!F178*10^Table!G178 -> 0.034103312 | E174: =Table!H178*10^Table!I178 -> 0.0018472167 | F174: =Table!J178*10^Table!K178 -> -0.00010807332 | G174: =Table!L178*10^Table!M178 -> 1.2975901e-05
A175: =Table!A179 -> NBFD15-W | B175: =Table!B179*10^Table!C179 -> 3.1540011 | C175: =Table!D179*10^Table!E179 -> -0.013256753 | D175: =Table!F179*10^Table!G179 -> 0.034103312 | E175: =Table!H179*10^Table!I179 -> 0.0018472167 | F175: =Table!J179*10^Table!K179 -> -0.00010807332 | G175: =Table!L179*10^Table!M179 -> 1.2975901e-05
A176: =Table!A180 -> NBFD25 | B176: =Table!B180*10^Table!C180 -> 3.2879389 | C176: =Table!D180*10^Table!E180 -> -0.015856356 | D176: =Table!F180*10^Table!G180 -> 0.045638807 | E176: =Table!H180*10^Table!I180 -> 0.0033027661 | F176: =Table!J180*10^Table!K180 -> -0.00021690686 | G176: =Table!L180*10^Table!M180 -> 2.9625863e-05
A177: =Table!A181 -> NBFD29 | B177: =Table!B181*10^Table!C181 -> 3.023484 | C177: =Table!D181*10^Table!E181 -> -0.014446333 | D177: =Table!F181*10^Table!G181 -> 0.034673303 | E177: =Table!H181*10^Table!I181 -> 0.0020637437 | F177: =Table!J181*10^Table!K181 -> -0.00011126222 | G177: =Table!L181*10^Table!M181 -> 1.4468973e-05
A178: =Table!A182 -> NBFD3 | B178: =Table!B182*10^Table!C182 -> 3.1633746 | C178: =Table!D182*10^Table!E182 -> -0.01327628 | D178: =Table!F182*10^Table!G182 -> 0.031133309 | E178: =Table!H182*10^Table!I182 -> 0.0008352338 | F178: =Table!J182*10^Table!K182 -> 2.9980499e-06 | G178: =Table!L182*10^Table!M182 -> 2.5568853e-06
A179: =Table!A183 -> NBFD30 | B179: =Table!B183*10^Table!C183 -> 3.3241277 | C179: =Table!D183*10^Table!E183 -> -0.013971809 | D179: =Table!F183*10^Table!G183 -> 0.040932303 | E179: =Table!H183*10^Table!I183 -> 0.0022915572 | F179: =Table!J183*10^Table!K183 -> -0.00012906531 | G179: =Table!L183*10^Table!M183 -> 1.8478848e-05
A180: =Table!A184 -> NBFD32 | B180: =Table!B184*10^Table!C184 -> 2.8989349 | C180: =Table!D184*10^Table!E184 -> -0.013348892 | D180: =Table!F184*10^Table!G184 -> 0.030163481 | E180: =Table!H184*10^Table!I184 -> 0.0016257886 | F180: =Table!J184*10^Table!K184 -> -7.6966547e-05 | G180: =Table!L184*10^Table!M184 -> 1.0143236e-05
A181: =Table!A185 -> PCD4 | B181: =Table!B185*10^Table!C185 -> 2.5807045 | C181: =Table!D185*10^Table!E185 -> -0.010957538 | D181: =Table!F185*10^Table!G185 -> 0.01268943 | E181: =Table!H185*10^Table!I185 -> 0.00066387812 | F181: =Table!J185*10^Table!K185 -> -6.4849664e-05 | G181: =Table!L185*10^Table!M185 -> 3.4787863e-06
A182: =Table!A186 -> PCD40 | B182: =Table!B186*10^Table!C186 -> 2.5844463 | C182: =Table!D186*10^Table!E186 -> -0.0090521858 | D182: =Table!F186*10^Table!G186 -> 0.014301987 | E182: =Table!H186*10^Table!I186 -> 0.0001705077 | F182: =Table!J186*10^Table!K186 -> 4.964536e-06 | G182: =Table!L186*10^Table!M186 -> -1.2927479e-07
A183: =Table!A187 -> PCD51 | B183: =Table!B187*10^Table!C187 -> 2.5046638 | C183: =Table!D187*10^Table!E187 -> -0.010149448 | D183: =Table!F187*10^Table!G187 -> 0.012653769 | E183: =Table!H187*10^Table!I187 -> 0.00016566642 | F183: =Table!J187*10^Table!K187 -> 5.3871747e-07 | G183: =Table!L187*10^Table!M187 -> 5.584093e-08
A184: =Table!A188 -> TAC2 | B184: =Table!B188*10^Table!C188 -> 2.9717137 | C184: =Table!D188*10^Table!E188 -> -0.014952593 | D184: =Table!F188*10^Table!G188 -> 0.020162868 | E184: =Table!H188*10^Table!I188 -> 0.00094072283 | F184: =Table!J188*10^Table!K188 -> -8.8614104e-05 | G184: =Table!L188*10^Table!M188 -> 5.3191242e-06
A185: =Table!A189 -> TAC4 | B185: =Table!B189*10^Table!C189 -> 2.9425645 | C185: =Table!D189*10^Table!E189 -> -0.013266554 | D185: =Table!F189*10^Table!G189 -> 0.023559223 | E185: =Table!H189*10^Table!I189 -> -0.00016399009 | F185: =Table!J189*10^Table!K189 -> 9.2370759e-05 | G185: =Table!L189*10^Table!M189 -> -4.8615982e-06
A186: =Table!A190 -> TAC6 | B186: =Table!B190*10^Table!C190 -> 3.0182184 | C186: =Table!D190*10^Table!E190 -> -0.015381633 | D186: =Table!F190*10^Table!G190 -> 0.021520137 | E186: =Table!H190*10^Table!I190 -> 0.00064608303 | F186: =Table!J190*10^Table!K190 -> -3.2355748e-05 | G186: =Table!L190*10^Table!M190 -> 2.0791593e-06
A187: =Table!A191 -> TAC8 | B187: =Table!B191*10^Table!C191 -> 2.9324178 | C187: =Table!D191*10^Table!E191 -> -0.014603156 | D187: =Table!F191*10^Table!G191 -> 0.021121636 | E187: =Table!H191*10^Table!I191 -> 4.8240144e-05 | F187: =Table!J191*10^Table!K191 -> 4.9669475e-05 | G187: =Table!L191*10^Table!M191 -> -2.4904491e-06
A188: =Table!A192 -> TAF1 | B188: =Table!B192*10^Table!C192 -> 3.0736378 | C188: =Table!D192*10^Table!E192 -> -0.015501284 | D188: =Table!F192*10^Table!G192 -> 0.023627699 | E188: =Table!H192*10^Table!I192 -> 0.00066300852 | F188: =Table!J192*10^Table!K192 -> -2.8353438e-05 | G188: =Table!L192*10^Table!M192 -> 2.2090799e-06
A189: =Table!A193 -> TAF2 | B189: =Table!B193*10^Table!C193 -> 3.1415564 | C189: =Table!D193*10^Table!E193 -> -0.014370304 | D189: =Table!F193*10^Table!G193 -> 0.026483051 | E189: =Table!H193*10^Table!I193 -> 0.00095642714 | F189: =Table!J193*10^Table!K193 -> -5.9411087e-05 | G189: =Table!L193*10^Table!M193 -> 4.703953e-06
A190: =Table!A194 -> TAF3 | B190: =Table!B194*10^Table!C194 -> 3.1743707 | C190: =Table!D194*10^Table!E194 -> -0.014110466 | D190: =Table!F194*10^Table!G194 -> 0.028862637 | E190: =Table!H194*10^Table!I194 -> 3.355949e-05 | F190: =Table!J194*10^Table!K194 -> 8.0422109e-05 | G190: =Table!L194*10^Table!M194 -> -2.8956744e-06
A191: =Table!A195 -> TAF3D | B191: =Table!B195*10^Table!C195 -> 3.175337 | C191: =Table!D195*10^Table!E195 -> -0.014107601 | D191: =Table!F195*10^Table!G195 -> 0.0278609 | E191: =Table!H195*10^Table!I195 -> 0.00040102824 | F191: =Table!J195*10^Table!K195 -> 2.4504764e-05 | G191: =Table!L195*10^Table!M195 -> 2.4435731e-08
A192: =Table!A196 -> TAF4 | B192: =Table!B196*10^Table!C196 -> 3.1212281 | C192: =Table!D196*10^Table!E196 -> -0.014119909 | D192: =Table!F196*10^Table!G196 -> 0.026520622 | E192: =Table!H196*10^Table!I196 -> 0.00040415763 | F192: =Table!J196*10^Table!K196 -> 1.4260634e-05 | G192: =Table!L196*10^Table!M196 -> 3.164256e-07
A193: =Table!A197 -> TAF5 | B193: =Table!B197*10^Table!C197 -> 3.2191571 | C193: =Table!D197*10^Table!E197 -> -0.015310562 | D193: =Table!F197*10^Table!G197 -> 0.02636257 | E193: =Table!H197*10^Table!I197 -> 0.0010534452 | F193: =Table!J197*10^Table!K197 -> -6.1660412e-05 | G193: =Table!L197*10^Table!M197 -> 3.9733897e-06
A194: =Table!A198 -> TAFD25 | B194: =Table!B198*10^Table!C198 -> 3.4905528 | C194: =Table!D198*10^Table!E198 -> -0.016325771 | D194: =Table!F198*10^Table!G198 -> 0.041146322 | E194: =Table!H198*10^Table!I198 -> 0.0027169124 | F194: =Table!J198*10^Table!K198 -> -0.00018260518 | G194: =Table!L198*10^Table!M198 -> 2.0641862e-05
A195: =Table!A199 -> TAFD30 | B195: =Table!B199*10^Table!C199 -> 3.4419038 | C195: =Table!D199*10^Table!E199 -> -0.014175245 | D195: =Table!F199*10^Table!G199 -> 0.03435104 | E195: =Table!H199*10^Table!I199 -> 0.0011752271 | F195: =Table!J199*10^Table!K199 -> -3.9010343e-05 | G195: =Table!L199*10^Table!M199 -> 3.7417054e-06
A196: =Table!A200 -> TAFD32 | B196: =Table!B200*10^Table!C200 -> 3.396108 | C196: =Table!D200*10^Table!E200 -> -0.013087065 | D196: =Table!F200*10^Table!G200 -> 0.034853516 | E196: =Table!H200*10^Table!I200 -> 0.00079083177 | F196: =Table!J200*10^Table!K200 -> 7.6995212e-06 | G196: =Table!L200*10^Table!M200 -> 2.3516742e-06
A197: =Table!A201 -> TAFD33 | B197: =Table!B201*10^Table!C201 -> 3.4316955 | C197: =Table!D201*10^Table!E201 -> -0.013156273 | D197: =Table!F201*10^Table!G201 -> 0.035631862 | E197: =Table!H201*10^Table!I201 -> 0.00091378109 | F197: =Table!J201*10^Table!K201 -> -4.0366886e-06 | G197: =Table!L201*10^Table!M201 -> 3.3867688e-06
A198: =Table!A202 -> TAFD35 | B198: =Table!B202*10^Table!C202 -> 3.5274747 | C198: =Table!D202*10^Table!E202 -> -0.014839948 | D198: =Table!F202*10^Table!G202 -> 0.039745402 | E198: =Table!H202*10^Table!I202 -> 0.001803472 | F198: =Table!J202*10^Table!K202 -> -8.9279334e-05 | G198: =Table!L202*10^Table!M202 -> 1.1377783e-05
A199: =Table!A203 -> TAFD37 | B199: =Table!B203*10^Table!C203 -> 3.4943369 | C199: =Table!D203*10^Table!E203 -> -0.013647624 | D199: =Table!F203*10^Table!G203 -> 0.03883317 | E199: =Table!H203*10^Table!I203 -> 0.0011132555 | F199: =Table!J203*10^Table!K203 -> -7.402237e-06 | G199: =Table!L203*10^Table!M203 -> 5.3027754e-06
A200: =Table!A204 -> TAFD37A | B200: =Table!B204*10^Table!C204 -> 3.4958125 | C200: =Table!D204*10^Table!E204 -> -0.014342354 | D200: =Table!F204*10^Table!G204 -> 0.037807251 | E200: =Table!H204*10^Table!I204 -> 0.0014184073 | F200: =Table!J204*10^Table!K204 -> -4.6470269e-05 | G200: =Table!L204*10^Table!M204 -> 6.919444e-06
... 8 more rows

Sheet Table
A1: Glass Type | B1: Constants of Dispersion Formula
B2: A0 | C2: A0pow | D2: A1 | E2: A1pow | F2: A2 | G2: A2pow | H2: A3 | I2: A3pow | J2: A4 | K2: A4pow | L2: A5 | M2: A5pow | N2: Internal Transmittance (2mmt) | BF2: Internal Transmittance (5mmt) | CX2: Internal Transmittance (10mmt)
N3: (2mmt) | Y3: (2mmt) | AJ3: (2mmt) | AU3: (2mmt) | BF3: (5mmt) | BQ3: (5mmt) | CB3: (5mmt) | CM3: (5mmt) | CX3: (10mmt) | DI3: (10mmt) | DT3: (10mmt) | EE3: (10mmt)
N4: 2500 | O4: 2400 | P4: 2200 | Q4: 2000 | R4: 1800 | S4: 1600 | T4: 1550 | U4: 1500 | V4: 1400 | W4: 1300 | X4: 1200 | Y4: 1100 | Z4: 1060 | AA4: 1050 | AB4: 1000 | AC4: 950 | AD4: 900 | AE4: 850 | AF4: 830 | AG4: 800 | AH4: 780 | AI4: 750 | AJ4: 700 | AK4: 650 | AL4: 600 | AM4: 550 | AN4: 500 | AO4: 480 | AP4: 460 | AQ4: 440 | AR4: 420 | AS4: 400 | AT4: 390 | AU4: 380 | AV4: 370 | AW4: 360 | AX4: 350 | AY4: 340 | AZ4: 330 | BA4: 320 | BB4: 310 | BC4: 300 | BD4: 290 | BE4: 280 | BF4: 2500 | BG4: 2400 | BH4: 2200 | BI4: 2000 | BJ4: 1800 | BK4: 1600 | BL4: 1550 | BM4: 1500 | BN4: 1400 | BO4: 1300 | BP4: 1200 | BQ4: 1100 | BR4: 1060 | BS4: 1050 | BT4: 1000 | BU4: 950 | BV4: 900 | BW4: 850 | BX4: 830 | BY4: 800 | BZ4: 780 | CA4: 750 | CB4: 700 | CC4: 650 | CD4: 600 | CE4: 550 | CF4: 500 | CG4: 480 | CH4: 460 | CI4: 440 | CJ4: 420 | CK4: 400 | CL4: 390 | CM4: 380 | CN4: 370 | CO4: 360 | CP4: 350 | CQ4: 340 | CR4: 330 | CS4: 320 | CT4: 310 | CU4: 300 | CV4: 290 | CW4: 280 | CX4: 2500 | CY4: 2400 | CZ4: 2200 | DA4: 2000 | DB4: 1800 | DC4: 1600 | DD4: 1550 | DE4: 1500 | DF4: 1400 | DG4: 1300 | DH4: 1200 | DI4: 1100 | DJ4: 1060 | DK4: 1050 | DL4: 1000 | DM4: 950 | DN4: 900 | DO4: 850 | DP4: 830 | DQ4: 800 | DR4: 780 | DS4: 750 | DT4: 700 | DU4: 650 | DV4: 600 | DW4: 550 | DX4: 500 | DY4: 480 | DZ4: 460 | EA4: 440 | EB4: 420 | EC4: 400 | ED4: 390 | EE4: 380 | EF4: 370 | EG4: 360 | EH4: 350 | EI4: 340 | EJ4: 330 | EK4: 320 | EL4: 310 | EM4: 300 | EN4: 290 | EO4: 280
A5: BAC4 | B5: 2.4196645 | C5: 0 | D5: -8.3329314 | E5: -3 | F5: 1.5397390 | G5: -2 | H5: -1.7391654 | I5: -4 | J5: 6.2183220 | K5: -5 | L5: -3.0621310 | M5: -6 | T5: 0.999 | U5: 0.999 | V5: 0.998 | W5: 0.999 | X5: 0.999 | Y5: 0.999 | Z5: 0.999 | AA5: 0.999 | AB5: 0.999 | AC5: 0.999 | AD5: 0.999 | AE5: 0.999 | AF5: 0.999 | AG5: 0.999 | AH5: 0.999 | AI5: 0.999 | AJ5: 0.999 | AK5: 0.999 | AL5: 0.999 | AM5: 0.999 | AN5: 0.999 | AO5: 0.999 | AP5: 0.998 | AQ5: 0.998 | AR5: 0.998 | AS5: 0.998 | AT5: 0.997 | AU5: 0.995 | AV5: 0.993 | AW5: 0.987 | AX5: 0.978 | AY5: 0.959 | AZ5: 0.927 | BA5: 0.871 | BB5: 0.777 | BC5: 0.628 | BD5: 0.432 | BE5: 0.243 | BL5: 0.997 | BM5: 0.997 | BN5: 0.994 | BO5: 0.999 | BP5: 0.999 | BQ5: 0.999 | BR5: 0.999 | BS5: 0.999 | BT5: 0.999 | BU5: 0.999 | BV5: 0.999 | BW5: 0.999 | BX5: 0.999 | BY5: 0.999 | BZ5: 0.999 | CA5: 0.999 | CB5: 0.998 | CC5: 0.998 | CD5: 0.998 | CE5: 0.999 | CF5: 0.998 | CG5: 0.997 | CH5: 0.996 | CI5: 0.995 | CJ5: 0.995 | CK5: 0.994 | CL5: 0.993 | CM5: 0.988 | CN5: 0.982 | CO5: 0.969 | CP5: 0.945 | CQ5: 0.901 | CR5: 0.827 | CS5: 0.707 | CT5: 0.530 | CU5: 0.311 | CV5: 0.122 | CW5: 0.029 | DD5: 0.995 | DE5: 0.995 | DF5: 0.987 | DG5: 0.998 | DH5: 0.998 | DI5: 0.998 | DJ5: 0.998 | DK5: 0.998 | DL5: 0.998 | DM5: 0.998 | DN5: 0.998 | DO5: 0.998 | DP5: 0.998 | DQ5: 0.998 | DR5: 0.998 | DS5: 0.997 | DT5: 0.996 | DU5: 0.995 | DV5: 0.997 | DW5: 0.997 | DX5: 0.995 | DY5: 0.994 | DZ5: 0.992 | EA5: 0.991 | EB5: 0.990 | EC5: 0.988 | ED5: 0.985 | EE5: 0.976 | EF5: 0.964 | EG5: 0.938 | EH5: 0.892 | EI5: 0.812 | EJ5: 0.684 | EK5: 0.500 | EL5: 0.281 | EM5: 0.097 | EN5: 0.015 | EO5: 0.000
A6: BACD11 | B6: 2.4095163 | C6: 0 | D6: -9.1904415 | E6: -3 | F6: 1.2939968 | G6: -2 | H6: 2.3461430 | I6: -4 | J6: -1.1130589 | K6: -5 | L6: 1.0131863 | M6: -6 | BL6: 0.996 | BM6: 0.996 | BN6: 0.989 | BO6: 0.998 | BP6: 0.998 | BQ6: 0.998 | BR6: 0.998 | BS6: 0.998 | BT6: 0.998 | BU6: 0.998 | BV6: 0.999 | BW6: 0.999 | BX6: 0.999 | BY6: 0.999 | BZ6: 0.999 | CA6: 0.999 | CB6: 0.999 | CC6: 0.999 | CD6: 0.999 | CE6: 0.999 | CF6: 0.999 | CG6: 0.999 | CH6: 0.998 | CI6: 0.998 | CJ6: 0.999 | CK6: 0.999 | CL6: 0.997 | CM6: 0.996 | CN6: 0.993 | CO6: 0.992 | CP6: 0.972 | CQ6: 0.952 | CR6: 0.913 | CS6: 0.838 | CT6: 0.718 | CU6: 0.527 | CV6: 0.311 | CW6: 0.129 | DD6: 0.991 | DE6: 0.992 | DF6: 0.979 | DG6: 0.996 | DH6: 0.996 | DI6: 0.997 | DJ6: 0.997 | DK6: 0.997 | DL6: 0.997 | DM6: 0.997 | DN6: 0.998 | DO6: 0.998 | DP6: 0.998 | DQ6: 0.999 | DR6: 0.999 | DS6: 0.999 | DT6: 0.999 | DU6: 0.999 | DV6: 0.999 | DW6: 0.999 | DX6: 0.999 | DY6: 0.997 | DZ6: 0.996 | EA6: 0.996 | EB6: 0.997 | EC6: 0.997 | ED6: 0.995 | EE6: 0.993 | EF6: 0.985 | EG6: 0.984 | EH6: 0.944 | EI6: 0.905 | EJ6: 0.834 | EK6: 0.703 | EL6: 0.516 | EM6: 0.278 | EN6: 0.097 | EO6: 0.017
A7: BACD14 | B7: 2.5335256 | C7: 0 | D7: -1.1903338 | E7: -2 | F7: 1.2257249 | G7: -2 | H7: 7.9172149 | I7: -4 | J7: -7.7381829 | K7: -5 | L7: 3.9935441 | M7: -6 | T7: 0.999 | U7: 0.998 | V7: 0.997 | W7: 0.999 | X7: 0.999 | Y7: 0.999 | Z7: 0.999 | AA7: 0.999 | AB7: 0.999 | AC7: 0.999 | AD7: 0.999 | AE7: 0.999 | AF7: 0.999 | AG7: 0.999 | AH7: 0.999 | AI7: 0.999 | AJ7: 0.999 | AK7: 0.999 | AL7: 0.999 | AM7: 0.999 | AN7: 0.999 | AO7: 0.999 | AP7: 0.998 | AQ7: 0.998 | AR7: 0.998 | AS7: 0.998 | AT7: 0.998 | AU7: 0.996 | AV7: 0.993 | AW7: 0.988 | AX7: 0.978 | AY7: 0.961 | AZ7: 0.929 | BA7: 0.878 | BB7: 0.793 | BC7: 0.664 | BD7: 0.490 | BE7: 0.303 | BL7: 0.996 | BM7: 0.996 | BN7: 0.991 | BO7: 0.999 | BP7: 0.999 | BQ7: 0.999 | BR7: 0.999 | BS7: 0.999 | BT7: 0.999 | BU7: 0.999 | BV7: 0.999 | BW7: 0.999 | BX7: 0.999 | BY7: 0.999 | BZ7: 0.999 | CA7: 0.999 | CB7: 0.999 | CC7: 0.999 | CD7: 0.999 | CE7: 0.999 | CF7: 0.998 | CG7: 0.997 | CH7: 0.996 | CI7: 0.995 | CJ7: 0.996 | CK7: 0.995 | CL7: 0.994 | CM7: 0.989 | CN7: 0.982 | CO7: 0.970 | CP7: 0.946 | CQ7: 0.905 | CR7: 0.833 | CS7: 0.722 | CT7: 0.559 | CU7: 0.358 | CV7: 0.167 | CW7: 0.050 | DD7: 0.993 | DE7: 0.992 | DF7: 0.983 | DG7: 0.998 | DH7: 0.998 | DI7: 0.998 | DJ7: 0.998 | DK7: 0.999 | DL7: 0.999 | DM7: 0.999 | DN7: 0.999 | DO7: 0.999 | DP7: 0.999 | DQ7: 0.999 | DR7: 0.999 | DS7: 0.999 | DT7: 0.999 | DU7: 0.997 | DV7: 0.997 | DW7: 0.999 | DX7: 0.996 | DY7: 0.994 | DZ7: 0.992 | EA7: 0.991 | EB7: 0.991 | EC7: 0.990 | ED7: 0.988 | EE7: 0.978 | EF7: 0.965 | EG7: 0.941 | EH7: 0.894 | EI7: 0.819 | EJ7: 0.693 | EK7: 0.522 | EL7: 0.313 | EM7: 0.128 | EN7: 0.028 | EO7: 0.000
A8: BACD15 | B8: 2.5864832 | C8: 0 | D8: -8.0357829 | E8: -3 | F8: 1.8080573 | G8: -2 | H8: -4.5974172 | I8: -4 | J8: 8.8484321 | K8: -5 | L8: -3.7544765 | M8: -6 | T8: 0.999 | U8: 0.998 | V8: 0.997 | W8: 0.999 | X8: 0.999 | Y8: 0.999 | Z8: 0.999 | AA8: 0.999 | AB8: 0.999 | AC8: 0.999 | AD8: 0.999 | AE8: 0.999 | AF8: 0.999 | AG8: 0.999 | AH8: 0.999 | AI8: 0.999 | AJ8: 0.999 | AK8: 0.999 | AL8: 0.999 | AM8: 0.999 | AN8: 0.999 | AO8: 0.999 | AP8: 0.999 | AQ8: 0.999 | AR8: 0.999 | AS8: 0.998 | AT8: 0.997 | AU8: 0.995 | AV8: 0.992 | AW8: 0.985 | AX8: 0.971 | AY8: 0.950 | AZ8: 0.905 | BA8: 0.842 | BB8: 0.739 | BC8: 0.601 | BD8: 0.428 | BE8: 0.325 | BL8: 0.997 | BM8: 0.996 | BN8: 0.992 | BO8: 0.999 | BP8: 0.999 | BQ8: 0.999 | BR8: 0.998 | BS8: 0.998 | BT8: 0.998 | BU8: 0.998 | BV8: 0.998 | BW8: 0.998 | BX8: 0.999 | BY8: 0.999 | BZ8: 0.999 | CA8: 0.999 | CB8: 0.999 | CC8: 0.998 | CD8: 0.998 | CE8: 0.999 | CF8: 0.999 | CG8: 0.999 | CH8: 0.998 | CI8: 0.997 | CJ8: 0.997 | CK8: 0.995 | CL8: 0.993 | CM8: 0.988 | CN8: 0.979 | CO8: 0.963 | CP8: 0.930 | CQ8: 0.880 | CR8: 0.780 | CS8: 0.650 | CT8: 0.470 | CU8: 0.280 | CV8: 0.120 | CW8: 0.060 | DD8: 0.993 | DE8: 0.993 | DF8: 0.984 | DG8: 0.997 | DH8: 0.997 | DI8: 0.997 | DJ8: 0.996 | DK8: 0.996 | DL8: 0.996 | DM8: 0.996 | DN8: 0.996 | DO8: 0.996 | DP8: 0.997 | DQ8: 0.997 | DR8: 0.998 | DS8: 0.998 | DT8: 0.997 | DU8: 0.997 | DV8: 0.997 | DW8: 0.998 | DX8: 0.997 | DY8: 0.997 | DZ8: 0.996 | EA8: 0.995 | EB8: 0.994 | EC8: 0.991 | ED8: 0.986 | EE8: 0.975 | EF8: 0.959 | EG8: 0.927 | EH8: 0.870 | EI8: 0.770 | EJ8: 0.620 | EK8: 0.430 | EL8: 0.220 | EM8: 0.080 | EN8: 0.010 | EO8: 0.000
A9: BACD16 | B9: 2.5859898 | C9: 0 | D9: -1.1940432 | E9: -2 | F9: 1.3995502 | G9: -2 | H9: 4.8974502 | I9: -4 | J9: -3.9120717 | K9: -5 | L9: 2.2611915 | M9: -6 | T9: 0.998 | U9: 0.998 | V9: 0.997 | W9: 0.999 | X9: 0.999 | Y9: 0.999 | Z9: 0.999 | AA9: 0.999 | AB9: 0.999 | AC9: 0.999 | AD9: 0.999 | AE9: 0.999 | AF9: 0.999 | AG9: 0.999 | AH9: 0.999 | AI9: 0.999 | AJ9: 0.999 | AK9: 0.999 | AL9: 0.999 | AM9: 0.999 | AN9: 0.999 | AO9: 0.999 | AP9: 0.999 | AQ9: 0.999 | AR9: 0.999 | AS9: 0.998 | AT9: 0.996 | AU9: 0.993 | AV9: 0.987 | AW9: 0.977 | AX9: 0.957 | AY9: 0.925 | AZ9: 0.872 | BA9: 0.789 | BB9: 0.677 | BC9: 0.545 | BD9: 0.406 | BE9: 0.281 | BL9: 0.995 | BM9: 0.995 | BN9: 0.992 | BO9: 0.999 | BP9: 0.999 | BQ9: 0.999 | BR9: 0.999 | BS9: 0.999 | BT9: 0.999 | BU9: 0.999 | BV9: 0.999 | BW9: 0.999 | BX9: 0.999 | BY9: 0.999 | BZ9: 0.999 | CA9: 0.999 | CB9: 0.999 | CC9: 0.999 | CD9: 0.999 | CE9: 0.999 | CF9: 0.999 | CG9: 0.999 | CH9: 0.998 | CI9: 0.998 | CJ9: 0.996 | CK9: 0.994 | CL9: 0.990 | CM9: 0.982 | CN9: 0.969 | CO9: 0.943 | CP9: 0.896 | CQ9: 0.823 | CR9: 0.709 | CS9: 0.553 | CT9: 0.377 | CU9: 0.218 | CV9: 0.105 | CW9: 0.000 | DD9: 0.990 | DE9: 0.990 | DF9: 0.984 | DG9: 0.999 | DH9: 0.999 | DI9: 0.999 | DJ9: 0.999 | DK9: 0.999 | DL9: 0.999 | DM9: 0.999 | DN9: 0.999 | DO9: 0.999 | DP9: 0.999 | DQ9: 0.999 | DR9: 0.999 | DS9: 0.999 | DT9: 0.999 | DU9: 0.999 | DV9: 0.999 | DW9: 0.999 | DX9: 0.999 | DY9: 0.997 | DZ9: 0.996 | EA9: 0.995 | EB9: 0.993 | EC9: 0.989 | ED9: 0.979 | EE9: 0.965 | EF9: 0.939 | EG9: 0.890 | EH9: 0.803 | EI9: 0.677 | EJ9: 0.503 | EK9: 0.306 | EL9: 0.142 | EM9: 0.048 | EN9: 0.000 | EO9: 0.000
A10: BACD18 | B10: 2.6365277 | C10: 0 | D10: -9.7558464 | E10: -3 | F10: 1.7143665 | G10: -2 | H10: 2.2592497 | I10: -4 | J10: 3.0855342 | K10: -6 | L10: 4.5831917 | M10: -7 | T10: 0.998 | U10: 0.998 | V10: 0.998 | W10: 0.999 | X10: 0.999 | Y10: 0.999 | Z10: 0.999 | AA10: 0.999 | AB10: 0.999 | AC10: 0.999 | AD10: 0.999 | AE10: 0.999 | AF10: 0.999 | AG10: 0.999 | AH10: 0.999 | AI10: 0.999 | AJ10: 0.999 | AK10: 0.999 | AL10: 0.999 | AM10: 0.999 | AN10: 0.999 | AO10: 0.999 | AP10: 0.998 | AQ10: 0.998 | AR10: 0.998 | AS10: 0.997 | AT10: 0.996 | AU10: 0.994 | AV10: 0.990 | AW10: 0.980 | AX10: 0.956 | AY10: 0.909 | AZ10: 0.804 | BA10: 0.602 | BB10: 0.312 | BC10: 0.000 | BD10: 0.000 | BE10: 0.000 | BL10: 0.996 | BM10: 0.996 | BN10: 0.995 | BO10: 0.998 | BP10: 0.998 | BQ10: 0.998 | BR10: 0.998 | BS10: 0.998 | BT10: 0.998 | BU10: 0.998 | BV10: 0.998 | BW10: 0.999 | BX10: 0.999 | BY10: 0.999 | BZ10: 0.999 | CA10: 0.999 | CB10: 0.999 | CC10: 0.998 | CD10: 0.999 | CE10: 0.999 | CF10: 0.998 | CG10: 0.997 | CH10: 0.996 | CI10: 0.995 | CJ10: 0.995 | CK10: 0.994 | CL10: 0.991 | CM10: 0.986 | CN10: 0.974 | CO10: 0.950 | CP10: 0.894 | CQ10: 0.788 | CR10: 0.580 | CS10: 0.281 | CT10: 0.054 | CU10: 0.000 | CV10: 0.000 | CW10: 0.000 | DD10: 0.992 | DE10: 0.992 | DF10: 0.990 | DG10: 0.997 | DH10: 0.997 | DI10: 0.996 | DJ10: 0.996 | DK10: 0.996 | DL10: 0.996 | DM10: 0.997 | DN10: 0.997 | DO10: 0.997 | DP10: 0.997 | DQ10: 0.998 | DR10: 0.998 | DS10: 0.998 | DT10: 0.999 | DU10: 0.997 | DV10: 0.998 | DW10: 0.999 | DX10: 0.996 | DY10: 0.994 | DZ10: 0.992 | EA10: 0.990 | EB10: 0.991 | EC10: 0.987 | ED10: 0.982 | EE10: 0.971 | EF10: 0.949 | EG10: 0.902 | EH10: 0.799 | EI10: 0.621 | EJ10: 0.336 | EK10: 0.079 | EL10: 0.000 | EM10: 0.000 | EN10: 0.000 | EO10: 0.000
A11: BACD2 | B11: 2.5393255 | C11: 0 | D11: -8.7207883 | E11: -3 | F11: 1.5909566 | G11: -2 | H11: 8.8163036 | I11: -5 | J11: 2.5876593 | K11: -5 | L11: -1.1733523 | M11: -6 | BL11: 0.997 | BM11: 0.997 | BN11: 0.994 | BO11: 0.998 | BP11: 0.998 | BQ11: 0.998 | BR11: 0.998 | BS11: 0.998 | BT11: 0.998 | BU11: 0.999 | BV11: 0.999 | BW11: 0.999 | BX11: 0.999 | BY11: 0.999 | BZ11: 0.999 | CA11: 0.999 | CB11: 0.999 | CC11: 0.999 | CD11: 0.999 | CE11: 0.999 | CF11: 0.999 | CG11: 0.999 | CH11: 0.997 | CI11: 0.997 | CJ11: 0.996 | CK11: 0.994 | CL11: 0.991 | CM11: 0.984 | CN11: 0.975 | CO11: 0.953 | CP11: 0.910 | CQ11: 0.840 | CR11: 0.710 | CS11: 0.520 | CT11: 0.500 | CU11: 0.030 | CV11: 0.000 | CW11: 0.000 | DD11: 0.994 | DE11: 0.995 | DF11: 0.988 | DG11: 0.997 | DH11: 0.997 | DI11: 0.997 | DJ11: 0.997 | DK11: 0.997 | DL11: 0.997 | DM11: 0.998 | DN11: 0.998 | DO11: 0.998 | DP11: 0.998 | DQ11: 0.999 | DR11: 0.999 | DS11: 0.999 | DT11: 0.997 | DU11: 0.997 | DV11: 0.999 | DW11: 0.999 | DX11: 0.999 | DY11: 0.997 | DZ11: 0.994 | EA11: 0.994 | EB11: 0.992 | EC11: 0.987 | ED11: 0.982 | EE11: 0.969 | EF11: 0.951 | EG11: 0.908 | EH11: 0.830 | EI11: 0.700 | EJ11: 0.510 | EK11: 0.270 | EL11: 0.250 | EM11: 0.000 | EN11: 0.000 | EO11: 0.000
A12: BACD4 | B12: 2.5584621 | C12: 0 | D12: -9.7457283 | E12: -3 | F12: 1.5110495 | G12: -2 | H12: 2.3273333 | I12: -4 | J12: 1.1137249 | K12: -6 | L12: 1.6424767 | M12: -7 | BL12: 0.996 | BM12: 0.996 | BN12: 0.992 | BO12: 0.998 | BP12: 0.998 | BQ12: 0.998 | BR12: 0.998 | BS12: 0.999 | BT12: 0.999 | BU12: 0.999 | BV12: 0.999 | BW12: 0.999 | BX12: 0.999 | BY12: 0.999 | BZ12: 0.999 | CA12: 0.999 | CB12: 0.999 | CC12: 0.999 | CD12: 0.999 | CE12: 0.999 | CF12: 0.999 | CG12: 0.999 | CH12: 0.999 | CI12: 0.999 | CJ12: 0.998 | CK12: 0.994 | CL12: 0.992 | CM12: 0.985 | CN12: 0.973 | CO12: 0.949 | CP12: 0.910 | CQ12: 0.830 | CR12: 0.710 | CS12: 0.540 | CT12: 0.350 | CU12: 0.180 | CV12: 0.040 | CW12: 0.000 | DD12: 0.991 | DE12: 0.991 | DF12: 0.984 | DG12: 0.996 | DH12: 0.996 | DI12: 0.996 | DJ12: 0.996 | DK12: 0.998 | DL12: 0.998 | DM12: 0.998 | DN12: 0.998 | DO12: 0.998 | DP12: 0.998 | DQ12: 0.998 | DR12: 0.998 | DS12: 0.999 | DT12: 0.999 | DU12: 0.999 | DV12: 0.999 | DW12: 0.999 | DX12: 0.999 | DY12: 0.997 | DZ12: 0.997 | EA12: 0.997 | EB12: 0.996 | EC12: 0.989 | ED12: 0.983 | EE12: 0.971 | EF12: 0.946 | EG12: 0.901 | EH12: 0.820 | EI12: 0.690 | EJ12: 0.510 | EK12: 0.300 | EL12: 0.130 | EM12: 0.030 | EN12: 0.000 | EO12: 0.000
A13: BACD5 | B13: 2.4861499 | C13: 0 | D13: -9.5684845 | E13: -3 | F13: 1.4685059 | G13: -2 | H13: -1.1216487 | I13: -4 | J13: 4.1978777 | K13: -5 | L13: -1.8856190 | M13: -6 | T13: 0.999 | U13: 0.999 | V13: 0.996 | W13: 0.999 | X13: 0.999 | Y13: 0.999 | Z13: 0.999 | AA13: 0.999 | AB13: 0.999 | AC13: 0.999 | AD13: 0.999 | AE13: 0.999 | AF13: 0.999 | AG13: 0.999 | AH13: 0.999 | AI13: 0.999 | AJ13: 0.999 | AK13: 0.999 | AL13: 0.999 | AM13: 0.999 | AN13: 0.999 | AO13: 0.999 | AP13: 0.999 | AQ13: 0.999 | AR13: 0.999 | AS13: 0.999 | AT13: 0.998 | AU13: 0.997 | AV13: 0.995 | AW13: 0.991 | AX13: 0.984 | AY13: 0.969 | AZ13: 0.945 | BA13: 0.900 | BB13: 0.827 | BC13: 0.717 | BD13: 0.570 | BE13: 0.397 | BL13: 0.997 | BM13: 0.997 | BN13: 0.990 | BO13: 0.999 | BP13: 0.999 | BQ13: 0.999 | BR13: 0.999 | BS13: 0.999 | BT13: 0.999 | BU13: 0.999 | BV13: 0.999 | BW13: 0.999 | BX13: 0.999 | BY13: 0.999 | BZ13: 0.999 | CA13: 0.999 | CB13: 0.999 | CC13: 0.999 | CD13: 0.999 | CE13: 0.999 | CF13: 0.999 | CG13: 0.999 | CH13: 0.998 | CI13: 0.998 | CJ13: 0.998 | CK13: 0.997 | CL13: 0.995 | CM13: 0.992 | CN13: 0.988 | CO13: 0.978 | CP13: 0.960 | CQ13: 0.925 | CR13: 0.867 | CS13: 0.768 | CT13: 0.622 | CU13: 0.434 | CV13: 0.244 | CW13: 0.099 | DD13: 0.994 | DE13: 0.994 | DF13: 0.980 | DG13: 0.998 | DH13: 0.998 | DI13: 0.998 | DJ13: 0.998 | DK13: 0.998 | DL13: 0.998 | DM13: 0.998 | DN13: 0.998 | DO13: 0.998 | DP13: 0.998 | DQ13: 0.998 | DR13: 0.998 | DS13: 0.998 | DT13: 0.999 | DU13: 0.999 | DV13: 0.999 | DW13: 0.999 | DX13: 0.999 | DY13: 0.997 | DZ13: 0.996 | EA13: 0.995 | EB13: 0.995 | EC13: 0.994 | ED13: 0.990 | EE13: 0.985 | EF13: 0.976 | EG13: 0.956 | EH13: 0.922 | EI13: 0.856 | EJ13: 0.752 | EK13: 0.590 | EL13: 0.387 | EM13: 0.189 | EN13: 0.059 | EO13: 0.000
A14: BACED5 | B14: 2.6934245 | C14: 0 | D14: -8.6370140 | E14: -3 | F14: 2.0496450 | G14: -2 | H14: -9.3205453 | I14: -5 | J14: 6.2709747 | K14: -5 | L14: -2.0834652 | M14: -6 | T14: 0.999 | U14: 0.999 | V14: 0.999 | W14: 0.999 | X14: 0.999 | Y14: 0.999 | Z14: 0.999 | AA14: 0.999 | AB14: 0.999 | AC14: 0.999 | AD14: 0.999 | AE14: 0.999 | AF14: 0.999 | AG14: 0.999 | AH14: 0.999 | AI14: 0.999 | AJ14: 0.999 | AK14: 0.999 | AL14: 0.999 | AM14: 0.999 | AN14: 0.999 | AO14: 0.999 | AP14: 0.998 | AQ14: 0.998 | AR14: 0.998 | AS14: 0.996 | AT14: 0.992 | AU14: 0.986 | AV14: 0.973 | AW14: 0.943 | AX14: 0.878 | AY14: 0.750 | AZ14: 0.523 | BA14: 0.279 | BB14: 0.000 | BC14: 0.000 | BD14: 0.000 | BE14: 0.000 | BL14: 0.998 | BM14: 0.998 | BN14: 0.997 | BO14: 0.999 | BP14: 0.999 | BQ14: 0.999 | BR14: 0.999 | BS14: 0.999 | BT14: 0.999 | BU14: 0.999 | BV14: 0.999 | BW14: 0.999 | BX14: 0.999 | BY14: 0.999 | BZ14: 0.999 | CA14: 0.998 | CB14: 0.999 | CC14: 0.998 | CD14: 0.998 | CE14: 0.999 | CF14: 0.999 | CG14: 0.997 | CH14: 0.996 | CI14: 0.995 | CJ14: 0.994 | CK14: 0.989 | CL14: 0.981 | CM14: 0.966 | CN14: 0.934 | CO14: 0.864 | CP14: 0.723 | CQ14: 0.488 | CR14: 0.197 | CS14: 0.041 | CT14: 0.000 | CU14: 0.000 | CV14: 0.000 | CW14: 0.000 | DD14: 0.995 | DE14: 0.995 | DF14: 0.995 | DG14: 0.998 | DH14: 0.999 | DI14: 0.999 | DJ14: 0.998 | DK14: 0.998 | DL14: 0.998 | DM14: 0.998 | DN14: 0.998 | DO14: 0.999 | DP14: 0.998 | DQ14: 0.998 | DR14: 0.998 | DS14: 0.998 | DT14: 0.998 | DU14: 0.995 | DV14: 0.997 | DW14: 0.999 | DX14: 0.997 | DY14: 0.995 | DZ14: 0.992 | EA14: 0.990 | EB14: 0.988 | EC14: 0.979 | ED14: 0.962 | EE14: 0.933 | EF14: 0.872 | EG14: 0.747 | EH14: 0.523 | EI14: 0.238 | EJ14: 0.039 | EK14: 0.000 | EL14: 0.000 | EM14: 0.000 | EN14: 0.000 | EO14: 0.000
A15: BAF10 | B15: 2.7324621 | C15: 0 | D15: -1.2490460 | E15: -2 | F15: 1.8562334 | G15: -2 | H15: 9.9990536 | I15: -4 | J15: -6.8388552 | K15: -5 | L15: 4.9257931 | M15: -6 | CB15: 0.999 | CC15: 0.999 | CD15: 0.999 | CE15: 0.999 | CF15: 0.995 | CG15: 0.993 | CH15: 0.991 | CI15: 0.986 | CJ15: 0.984 | CK15: 0.975 | CL15: 0.960 | CM15: 0.940 | CN15: 0.890 | CO15: 0.780 | CP15: 0.560 | CQ15: 0.220 | CR15: 0.000 | CS15: 0.000 | CT15: 0.000 | CU15: 0.000 | CV15: 0.000 | CW15: 0.000 | DT15: 0.997 | DU15: 0.997 | DV15: 0.997 | DW15: 0.997 | DX15: 0.990 | DY15: 0.986 | DZ15: 0.982 | EA15: 0.972 | EB15: 0.969 | EC15: 0.951 | ED15: 0.921 | EE15: 0.880 | EF15: 0.780 | EG15: 0.610 | EH15: 0.320 | EI15: 0.050 | EJ15: 0.000 | EK15: 0.000 | EL15: 0.000 | EM15: 0.000 | EN15: 0.000 | EO15: 0.000
A16: BAF11 | B16: 2.7272955 | C16: 0 | D16: -1.3470236 | E16: -2 | F16: 1.4809271 | G16: -2 | H16: 1.9615335 | I16: -3 | J16: -1.9787663 | K16: -4 | L16: 1.0851117 | M16: -5 | BL16: 0.998 | BM16: 0.998 | BN16: 0.997 | BO16: 0.999 | BP16: 0.999 | BQ16: 0.999 | BR16: 0.999 | BS16: 0.999 | BT16: 0.999 | BU16: 0.999 | BV16: 0.999 | BW16: 0.999 | BX16: 0.999 | BY16: 0.999 | BZ16: 0.999 | CA16: 0.999 | CB16: 0.999 | CC16: 0.999 | CD16: 0.999 | CE16: 0.999 | CF16: 0.999 | CG16: 0.995 | CH16: 0.993 | CI16: 0.990 | CJ16: 0.988 | CK16: 0.983 | CL16: 0.973 | CM16: 0.951 | CN16: 0.910 | CO16: 0.810 | CP16: 0.520 | CQ16: 0.340 | CR16: 0.080 | CS16: 0.000 | CT16: 0.000 | CU16: 0.000 | CV16: 0.000 | CW16: 0.000 | DD16: 0.997 | DE16: 0.996 | DF16: 0.995 | DG16: 0.999 | DH16: 0.998 | DI16: 0.997 | DJ16: 0.997 | DK16: 0.997 | DL16: 0.997 | DM16: 0.997 | DN16: 0.997 | DO16: 0.997 | DP16: 0.997 | DQ16: 0.997 | DR16: 0.999 | DS16: 0.999 | DT16: 0.999 | DU16: 0.999 | DV16: 0.999 | DW16: 0.999 | DX16: 0.997 | DY16: 0.990 | DZ16: 0.986 | EA16: 0.980 | EB16: 0.976 | EC16: 0.966 | ED16: 0.946 | EE16: 0.904 | EF16: 0.830 | EG16: 0.660 | EH16: 0.270 | EI16: 0.110 | EJ16: 0.010 | EK16: 0.000 | EL16: 0.000 | EM16: 0.000 | EN16: 0.000 | EO16: 0.000
A17: BAFD7 | B17: 2.8217211 | C17: 0 | D17: -9.7265483 | E17: -3 | F17: 2.4345979 | G17: -2 | H17: 7.8406305 | I17: -4 | J17: -2.2431497 | K17: -5 | L17: 4.6726029 | M17: -6 | T17: 0.999 | U17: 0.999 | V17: 0.999 | W17: 0.999 | X17: 0.999 | Y17: 0.999 | Z17: 0.999 | AA17: 0.999 | AB17: 0.999 | AC17: 0.999 | AD17: 0.999 | AE17: 0.999 | AF17: 0.999 | AG17: 0.999 | AH17: 0.999 | AI17: 0.999 | AJ17: 0.999 | AK17: 0.999 | AL17: 0.999 | AM17: 0.999 | AN17: 0.999 | AO17: 0.998 | AP17: 0.996 | AQ17: 0.995 | AR17: 0.992 | AS17: 0.984 | AT17: 0.975 | AU17: 0.956 | AV17: 0.913 | AW17: 0.811 | AX17: 0.577 | AY17: 0.240 | AZ17: 0.000 | BA17: 0.000 | BB17: 0.000 | BC17: 0.000 | BD17: 0.000 | BE17: 0.000 | BL17: 0.999 | BM17: 0.998 | BN17: 0.999 | BO17: 0.999 | BP17: 0.999 | BQ17: 0.999 | BR17: 0.999 | BS17: 0.999 | BT17: 0.999 | BU17: 0.999 | BV17: 0.999 | BW17: 0.999 | BX17: 0.999 | BY17: 0.999 | BZ17: 0.999 | CA17: 0.999 | CB17: 0.997 | CC17: 0.999 | CD17: 0.999 | CE17: 0.999 | CF17: 0.997 | CG17: 0.995 | CH17: 0.991 | CI17: 0.988 | CJ17: 0.981 | CK17: 0.961 | CL17: 0.939 | CM17: 0.894 | CN17: 0.797 | CO17: 0.593 | CP17: 0.253 | CQ17: 0.028 | CR17: 0.000 | CS17: 0.000 | CT17: 0.000 | CU17: 0.000 | CV17: 0.000 | CW17: 0.000 | DD17: 0.997 | DE17: 0.996 | DF17: 0.998 | DG17: 0.999 | DH17: 0.999 | DI17: 0.999 | DJ17: 0.999 | DK17: 0.999 | DL17: 0.999 | DM17: 0.999 | DN17: 0.999 | DO17: 0.999 | DP17: 0.999 | DQ17: 0.999 | DR17: 0.999 | DS17: 0.999 | DT17: 0.995 | DU17: 0.998 | DV17: 0.998 | DW17: 0.999 | DX17: 0.993 | DY17: 0.990 | DZ17: 0.982 | EA17: 0.975 | EB17: 0.962 | EC17: 0.924 | ED17: 0.882 | EE17: 0.799 | EF17: 0.636 | EG17: 0.351 | EH17: 0.064 | EI17: 0.000 | EJ17: 0.000 | EK17: 0.000 | EL17: 0.000 | EM17: 0.000 | EN17: 0.000 | EO17: 0.000
A18: BAFD8 | B18: 2.8863236 | C18: 0 | D18: -9.8027240 | E18: -3 | F18: 2.7654256 | G18: -2 | H18: 8.9006367 | I18: -4 | J18: -3.6309109 | K18: -5 | L18: 7.6181062 | M18: -6 | T18: 0.999 | U18: 0.999 | V18: 0.999 | W18: 0.999 | X18: 0.999 | Y18: 0.999 | Z18: 0.999 | AA18: 0.999 | AB18: 0.999 | AC18: 0.999 | AD18: 0.999 | AE18: 0.999 | AF18: 0.999 | AG18: 0.999 | AH18: 0.999 | AI18: 0.999 | AJ18: 0.999 | AK18: 0.999 | AL18: 0.999 | AM18: 0.999 | AN18: 0.999 | AO18: 0.998 | AP18: 0.997 | AQ18: 0.995 | AR18: 0.989 | AS18: 0.969 | AT18: 0.943 | AU18: 0.895 | AV18: 0.797 | AW18: 0.609 | AX18: 0.310 | AY18: 0.000 | AZ18: 0.000 | BA18: 0.000 | BB18: 0.000 | BC18: 0.000 | BD18: 0.000 | BE18: 0.000 | BL18: 0.998 | BM18: 0.997 | BN18: 0.998 | BO18: 0.999 | BP18: 0.999 | BQ18: 0.999 | BR18: 0.999 | BS18: 0.999 | BT18: 0.999 | BU18: 0.999 | BV18: 0.999 | BW18: 0.999 | BX18: 0.999 | BY18: 0.999 | BZ18: 0.999 | CA18: 0.999 | CB18: 0.999 | CC18: 0.999 | CD18: 0.999 | CE18: 0.999 | CF18: 0.997 | CG18: 0.995 | CH18: 0.992 | CI18: 0.987 | CJ18: 0.972 | CK18: 0.924 | CL18: 0.864 | CM18: 0.757 | CN18: 0.567 | CO18: 0.290 | CP18: 0.053 | CQ18: 0.000 | CR18: 0.000 | CS18: 0.000 | CT18: 0.000 | CU18: 0.000 | CV18: 0.000 | CW18: 0.000 | DD18: 0.996 | DE18: 0.995 | DF18: 0.997 | DG18: 0.999 | DH18: 0.999 | DI18: 0.999 | DJ18: 0.999 | DK18: 0.998 | DL18: 0.999 | DM18: 0.999 | DN18: 0.998 | DO18: 0.999 | DP18: 0.999 | DQ18: 0.999 | DR18: 0.999 | DS18: 0.999 | DT18: 0.999 | DU18: 0.999 | DV18: 0.998 | DW18: 0.998 | DX18: 0.994 | DY18: 0.990 | DZ18: 0.984 | EA18: 0.974 | EB18: 0.945 | EC18: 0.854 | ED18: 0.747 | EE18: 0.573 | EF18: 0.322 | EG18: 0.084 | EH18: 0.000 | EI18: 0.000 | EJ18: 0.000 | EK18: 0.000 | EL18: 0.000 | EM18: 0.000 | EN18: 0.000 | EO18: 0.000
A19: BSC7 | B19: 2.2702566 | C19: 0 | D19: -9.1988101 | E19: -3 | F19: 1.1609706 | G19: -2 | H19: -7.6123911 | I19: -5 | J19: 2.8558727 | K19: -5 | L19: -1.2566486 | M19: -6 | T19: 0.998 | U19: 0.998 | V19: 0.995 | W19: 0.999 | X19: 0.999 | Y19: 0.999 | Z19: 0.999 | AA19: 0.999 | AB19: 0.999 | AC19: 0.999 | AD19: 0.999 | AE19: 0.999 | AF19: 0.999 | AG19: 0.999 | AH19: 0.999 | AI19: 0.999 | AJ19: 0.999 | AK19: 0.999 | AL19: 0.999 | AM19: 0.999 | AN19: 0.999 | AO19: 0.999 | AP19: 0.999 | AQ19: 0.999 | AR19: 0.999 | AS19: 0.999 | AT19: 0.999 | AU19: 0.999 | AV19: 0.998 | AW19: 0.998 | AX19: 0.994 | AY19: 0.990 | AZ19: 0.981 | BA19: 0.961 | BB19: 0.918 | BC19: 0.831 | BD19: 0.686 | BE19: 0.487 | BL19: 0.994 | BM19: 0.996 | BN19: 0.987 | BO19: 0.997 | BP19: 0.998 | BQ19: 0.998 | BR19: 0.998 | BS19: 0.998 | BT19: 0.999 | BU19: 0.999 | BV19: 0.999 | BW19: 0.999 | BX19: 0.999 | BY19: 0.999 | BZ19: 0.999 | CA19: 0.999 | CB19: 0.999 | CC19: 0.999 | CD19: 0.999 | CE19: 0.999 | CF19: 0.999 | CG19: 0.999 | CH19: 0.999 | CI19: 0.999 | CJ19: 0.999 | CK19: 0.999 | CL19: 0.999 | CM19: 0.997 | CN19: 0.996 | CO19: 0.994 | CP19: 0.985 | CQ19: 0.974 | CR19: 0.952 | CS19: 0.905 | CT19: 0.807 | CU19: 0.629 | CV19: 0.389 | CW19: 0.165 | DD19: 0.989 | DE19: 0.993 | DF19: 0.974 | DG19: 0.994 | DH19: 0.995 | DI19: 0.995 | DJ19: 0.996 | DK19: 0.996 | DL19: 0.997 | DM19: 0.997 | DN19: 0.998 | DO19: 0.998 | DP19: 0.999 | DQ19: 0.999 | DR19: 0.999 | DS19: 0.999 | DT19: 0.999 | DU19: 0.999 | DV19: 0.999 | DW19: 0.999 | DX19: 0.998 | DY19: 0.998 | DZ19: 0.999 | EA19: 0.998 | EB19: 0.999 | EC19: 0.998 | ED19: 0.997 | EE19: 0.993 | EF19: 0.992 | EG19: 0.989 | EH19: 0.970 | EI19: 0.948 | EJ19: 0.906 | EK19: 0.818 | EL19: 0.652 | EM19: 0.396 | EN19: 0.151 | EO19: 0.027
A20: E-ADF10 | B20: 2.5528983 | C20: 0 | D20: -1.5709364 | E20: -2 | F20: 1.5647688 | G20: -2 | H20: 1.4461641 | I20: -3 | J20: -1.4458879 | K20: -4 | L20: 9.5275733 | M20: -6 | BL20: 0.981 | BM20: 0.977 | BN20: 0.962 | BO20: 0.996 | BP20: 0.997 | BQ20: 0.998 | BR20: 0.998 | BS20: 0.998 | BT20: 0.997 | BU20: 0.998 | BV20: 0.998 | BW20: 0.999 | BX20: 0.998 | BY20: 0.998 | BZ20: 0.999 | CA20: 0.999 | CB20: 0.998 | CC20: 0.998 | CD20: 0.998 | CE20: 0.998 | CF20: 0.997 | CG20: 0.996 | CH20: 0.995 | CI20: 0.992 | CJ20: 0.987 | CK20: 0.977 | CL20: 0.966 | CM20: 0.945 | CN20: 0.900 | CO20: 0.820 | CP20: 0.610 | CQ20: 0.310 | CR20: 0.060 | CS20: 0.000 | CT20: 0.000 | CU20: 0.000 | CV20: 0.000 | CW20: 0.000 | DD20: 0.963 | DE20: 0.954 | DF20: 0.926 | DG20: 0.992 | DH20: 0.995 | DI20: 0.995 | DJ20: 0.995 | DK20: 0.996 | DL20: 0.995 | DM20: 0.995 | DN20: 0.997 | DO20: 0.998 | DP20: 0.997 | DQ20: 0.997 | DR20: 0.997 | DS20: 0.997 | DT20: 0.997 | DU20: 0.997 | DV20: 0.997 | DW20: 0.996 | DX20: 0.994 | DY20: 0.992 | DZ20: 0.989 | EA20: 0.984 | EB20: 0.975 | EC20: 0.954 | ED20: 0.932 | EE20: 0.893 | EF20: 0.820 | EG20: 0.670 | EH20: 0.380 | EI20: 0.090 | EJ20: 0.000 | EK20: 0.000 | EL20: 0.000 | EM20: 0.000 | EN20: 0.000 | EO20: 0.000
A21: E-ADF50 | B21: 2.6680422 | C21: 0 | D21: -1.3184258 | E21: -2 | F21: 2.3930479 | G21: -2 | H21: 2.3928655 | I21: -4 | J21: 5.0697941 | K21: -5 | L21: 9.1240958 | M21: -7 | BL21: 0.986 | BM21: 0.984 | BN21: 0.976 | BO21: 0.996 | BP21: 0.997 | BQ21: 0.997 | BR21: 0.998 | BS21: 0.997 | BT21: 0.996 | BU21: 0.996 | BV21: 0.996 | BW21: 0.996 | BX21: 0.996 | BY21: 0.997 | BZ21: 0.997 | CA21: 0.997 | CB21: 0.997 | CC21: 0.997 | CD21: 0.997 | CE21: 0.998 | CF21: 0.996 | CG21: 0.994 | CH21: 0.990 | CI21: 0.984 | CJ21: 0.975 | CK21: 0.953 | CL21: 0.930 | CM21: 0.890 | CN21: 0.800 | CO21: 0.620 | CP21: 0.300 | CQ21: 0.060 | CR21: 0.000 | CS21: 0.000 | CT21: 0.000 | CU21: 0.000 | CV21: 0.000 | CW21: 0.000 | DD21: 0.972 | DE21: 0.967 | DF21: 0.953 | DG21: 0.993 | DH21: 0.995 | DI21: 0.994 | DJ21: 0.995 | DK21: 0.994 | DL21: 0.993 | DM21: 0.992 | DN21: 0.993 | DO21: 0.992 | DP21: 0.993 | DQ21: 0.993 | DR21: 0.993 | DS21: 0.993 | DT21: 0.994 | DU21: 0.995 | DV21: 0.995 | DW21: 0.995 | DX21: 0.992 | DY21: 0.987 | DZ21: 0.980 | EA21: 0.969 | EB21: 0.950 | EC21: 0.909 | ED21: 0.870 | EE21: 0.790 | EF21: 0.630 | EG21: 0.380 | EH21: 0.090 | EI21: 0.000 | EJ21: 0.000 | EK21: 0.000 | EL21: 0.000 | EM21: 0.000 | EN21: 0.000 | EO21: 0.000
A22: E-BACD10 | B22: 2.5906326 | C22: 0 | D22: -1.0608994 | E22: -2 | F22: 1.4490916 | G22: -2 | H22: 6.7542247 | I22: -4 | J22: -5.5303116 | K22: -5 | L22: 3.0061364 | M22: -6 | BL22: 0.997 | BM22: 0.997 | BN22: 0.996 | BO22: 0.999 | BP22: 0.999 | BQ22: 0.999 | BR22: 0.999 | BS22: 0.999 | BT22: 0.999 | BU22: 0.999 | BV22: 0.999 | BW22: 0.999 | BX22: 0.999 | BY22: 0.999 | BZ22: 0.999 | CA22: 0.999 | CB22: 0.999 | CC22: 0.999 | CD22: 0.999 | CE22: 0.999 | CF22: 0.999 | CG22: 0.999 | CH22: 0.999 | CI22: 0.999 | CJ22: 0.999 | CK22: 0.997 | CL22: 0.994 | CM22: 0.991 | CN22: 0.983 | CO22: 0.968 | CP22: 0.940 | CQ22: 0.890 | CR22: 0.810 | CS22: 0.680 | CT22: 0.500 | CU22: 0.280 | CV22: 0.110 | CW22: 0.030 | DD22: 0.995 | DE22: 0.994 | DF22: 0.992 | DG22: 0.998 | DH22: 0.999 | DI22: 0.999 | DJ22: 0.999 | DK22: 0.999 | DL22: 0.999 | DM22: 0.999 | DN22: 0.999 | DO22: 0.999 | DP22: 0.999 | DQ22: 0.999 | DR22: 0.999 | DS22: 0.999 | DT22: 0.999 | DU22: 0.999 | DV22: 0.999 | DW22: 0.999 | DX22: 0.999 | DY22: 0.999 | DZ22: 0.999 | EA22: 0.998 | EB22: 0.998 | EC22: 0.994 | ED22: 0.989 | EE22: 0.983 | EF22: 0.967 | EG22: 0.938 | EH22: 0.884 | EI22: 0.800 | EJ22: 0.660 | EK22: 0.470 | EL22: 0.250 | EM22: 0.080 | EN22: 0.010 | EO22: 0.000
A23: E-BACED20 | B23: 2.6667537 | C23: 0 | D23: -9.7319259 | E23: -3 | F23: 1.7436284 | G23: -2 | H23: 4.7558015 | I23: -4 | J23: -1.7144989 | K23: -5 | L23: 1.1049589 | M23: -6 | BL23: 0.998 | BM23: 0.998 | BN23: 0.997 | BO23: 0.999 | BP23: 0.999 | BQ23: 0.999 | BR23: 0.999 | BS23: 0.999 | BT23: 0.999 | BU23: 0.999 | BV23: 0.999 | BW23: 0.999 | BX23: 0.999 | BY23: 0.999 | BZ23: 0.999 | CA23: 0.999 | CB23: 0.999 | CC23: 0.999 | CD23: 0.999 | CE23: 0.999 | CF23: 0.998 | CG23: 0.998 | CH23: 0.997 | CI23: 0.996 | CJ23: 0.995 | CK23: 0.992 | CL23: 0.989 | CM23: 0.983 | CN23: 0.972 | CO23: 0.950 | CP23: 0.910 | CQ23: 0.840 | CR23: 0.730 | CS23: 0.570 | CT23: 0.380 | CU23: 0.190 | CV23: 0.070 | CW23: 0.020 | DD23: 0.995 | DE23: 0.995 | DF23: 0.994 | DG23: 0.997 | DH23: 0.997 | DI23: 0.997 | DJ23: 0.997 | DK23: 0.998 | DL23: 0.998 | DM23: 0.998 | DN23: 0.998 | DO23: 0.998 | DP23: 0.998 | DQ23: 0.998 | DR23: 0.998 | DS23: 0.997 | DT23: 0.997 | DU23: 0.997 | DV23: 0.997 | DW23: 0.997 | DX23: 0.996 | DY23: 0.995 | DZ23: 0.994 | EA23: 0.992 | EB23: 0.990 | EC23: 0.984 | ED23: 0.978 | EE23: 0.966 | EF23: 0.945 | EG23: 0.903 | EH23: 0.820 | EI23: 0.700 | EJ23: 0.530 | EK23: 0.320 | EL23: 0.140 | EM23: 0.040 | EN23: 0.010 | EO23: 0.000
A24: E-BAF8 | B24: 2.5801121 | C24: 0 | D24: -7.9717945 | E24: -3 | F24: 1.9728054 | G24: -2 | H24: 1.3876076 | I24: -4 | J24: 3.7632071 | K24: -5 | L24: -7.4634717 | M24: -7 | BL24: 0.997 | BM24: 0.997 | BN24: 0.995 | BO24: 0.999 | BP24: 0.999 | BQ24: 0.999 | BR24: 0.999 | BS24: 0.999 | BT24: 0.999 | BU24: 0.999 | BV24: 0.999 | BW24: 0.999 | BX24: 0.999 | BY24: 0.999 | BZ24: 0.999 | CA24: 0.999 | CB24: 0.999 | CC24: 0.999 | CD24: 0.999 | CE24: 0.999 | CF24: 0.998 | CG24: 0.997 | CH24: 0.996 | CI24: 0.995 | CJ24: 0.992 | CK24: 0.981 | CL24: 0.967 | CM24: 0.940 | CN24: 0.890 | CO24: 0.780 | CP24: 0.570 | CQ24: 0.280 | CR24: 0.060 | CS24: 0.000 | CT24: 0.000 | CU24: 0.000 | CV24: 0.000 | CW24: 0.000 | DD24: 0.995 | DE24: 0.993 | DF24: 0.991 | DG24: 0.998 | DH24: 0.999 | DI24: 0.999 | DJ24: 0.998 | DK24: 0.998 | DL24: 0.999 | DM24: 0.999 | DN24: 0.999 | DO24: 0.999 | DP24: 0.999 | DQ24: 0.999 | DR24: 0.999 | DS24: 0.999 | DT24: 0.998 | DU24: 0.997 | DV24: 0.998 | DW24: 0.998 | DX24: 0.996 | DY24: 0.995 | DZ24: 0.993 | EA24: 0.990 | EB24: 0.984 | EC24: 0.962 | ED24: 0.934 | EE24: 0.883 | EF24: 0.790 | EG24: 0.610 | EH24: 0.320 | EI24: 0.080 | EJ24: 0.000 | EK24: 0.000 | EL24: 0.000 | EM24: 0.000 | EN24: 0.000 | EO24: 0.000
A25: E-C3 | B25: 2.2725452 | C25: 0 | D25: -8.4104910 | E25: -3 | F25: 1.1306843 | G25: -2 | H25: 3.7782297 | I25: -4 | J25: -2.6903423 | K25: -5 | L25: 1.5976489 | M25: -6 | T25: 0.998 | U25: 0.998 | V25: 0.999 | W25: 0.999 | X25: 0.999 | Y25: 0.999 | Z25: 0.999 | AA25: 0.999 | AB25: 0.999 | AC25: 0.999 | AD25: 0.999 | AE25: 0.999 | AF25: 0.999 | AG25: 0.999 | AH25: 0.999 | AI25: 0.999 | AJ25: 0.999 | AK25: 0.999 | AL25: 0.999 | AM25: 0.999 | AN25: 0.999 | AO25: 0.998 | AP25: 0.999 | AQ25: 0.999 | AR25: 0.998 | AS25: 0.998 | AT25: 0.998 | AU25: 0.998 | AV25: 0.997 | AW25: 0.998 | AX25: 0.995 | AY25: 0.994 | AZ25: 0.986 | BA25: 0.973 | BB25: 0.935 | BC25: 0.842 | BD25: 0.677 | BE25: 0.454 | BL25: 0.995 | BM25: 0.996 | BN25: 0.998 | BO25: 0.998 | BP25: 0.998 | BQ25: 0.998 | BR25: 0.999 | BS25: 0.999 | BT25: 0.999 | BU25: 0.999 | BV25: 0.999 | BW25: 0.999 | BX25: 0.999 | BY25: 0.999 | BZ25: 0.999 | CA25: 0.999 | CB25: 0.999 | CC25: 0.998 | CD25: 0.998 | CE25: 0.997 | CF25: 0.997 | CG25: 0.996 | CH25: 0.997 | CI25: 0.997 | CJ25: 0.995 | CK25: 0.994 | CL25: 0.995 | CM25: 0.994 | CN25: 0.992 | CO25: 0.995 | CP25: 0.988 | CQ25: 0.985 | CR25: 0.966 | CS25: 0.933 | CT25: 0.844 | CU25: 0.650 | CV25: 0.376 | CW25: 0.139 | DD25: 0.991 | DE25: 0.991 | DF25: 0.996 | DG25: 0.996 | DH25: 0.997 | DI25: 0.997 | DJ25: 0.998 | DK25: 0.998 | DL25: 0.998 | DM25: 0.998 | DN25: 0.998 | DO25: 0.999 | DP25: 0.999 | DQ25: 0.999 | DR25: 0.999 | DS25: 0.999 | DT25: 0.997 | DU25: 0.995 | DV25: 0.996 | DW25: 0.994 | DX25: 0.993 | DY25: 0.992 | DZ25: 0.993 | EA25: 0.993 | EB25: 0.990 | EC25: 0.989 | ED25: 0.991 | EE25: 0.988 | EF25: 0.984 | EG25: 0.991 | EH25: 0.975 | EI25: 0.969 | EJ25: 0.932 | EK25: 0.871 | EL25: 0.712 | EM25: 0.422 | EN25: 0.142 | EO25: 0.019
A26: E-CF6 | B26: 2.2668912 | C26: 0 | D26: -9.3866212 | E26: -3 | F26: 1.2174195 | G26: -2 | H26: 5.0769030 | I26: -4 | J26: -3.3573414 | K26: -5 | L26: 2.9059013 | M26: -6 | T26: 0.998 | U26: 0.999 | V26: 0.999 | W26: 0.999 | X26: 0.999 | Y26: 0.999 | Z26: 0.999 | AA26: 0.999 | AB26: 0.999 | AC26: 0.999 | AD26: 0.999 | AE26: 0.999 | AF26: 0.999 | AG26: 0.999 | AH26: 0.999 | AI26: 0.999 | AJ26: 0.999 | AK26: 0.999 | AL26: 0.999 | AM26: 0.999 | AN26: 0.998 | AO26: 0.998 | AP26: 0.997 | AQ26: 0.997 | AR26: 0.997 | AS26: 0.996 | AT26: 0.996 | AU26: 0.993 | AV26: 0.987 | AW26: 0.967 | AX26: 0.890 | AY26: 0.684 | AZ26: 0.330 | BA26: 0.000 | BB26: 0.000 | BC26: 0.000 | BD26: 0.000 | BE26: 0.000 | BL26: 0.996 | BM26: 0.997 | BN26: 0.997 | BO26: 0.998 | BP26: 0.999 | BQ26: 0.999 | BR26: 0.999 | BS26: 0.999 | BT26: 0.999 | BU26: 0.999 | BV26: 0.999 | BW26: 0.999 | BX26: 0.999 | BY26: 0.999 | BZ26: 0.999 | CA26: 0.999 | CB26: 0.998 | CC26: 0.997 | CD26: 0.998 | CE26: 0.998 | CF26: 0.995 | CG26: 0.995 | CH26: 0.993 | CI26: 0.993 | CJ26: 0.993 | CK26: 0.991 | CL26: 0.989 | CM26: 0.983 | CN26: 0.969 | CO26: 0.920 | CP26: 0.748 | CQ26: 0.387 | CR26: 0.063 | CS26: 0.000 | CT26: 0.000 | CU26: 0.000 | CV26: 0.000 | CW26: 0.000 | DD26: 0.993 | DE26: 0.995 | DF26: 0.995 | DG26: 0.996 | DH26: 0.998 | DI26: 0.998 | DJ26: 0.998 | DK26: 0.998 | DL26: 0.998 | DM26: 0.998 | DN26: 0.998 | DO26: 0.998 | DP26: 0.998 | DQ26: 0.998 | DR26: 0.998 | DS26: 0.998 | DT26: 0.996 | DU26: 0.994 | DV26: 0.996 | DW26: 0.996 | DX26: 0.990 | DY26: 0.989 | DZ26: 0.986 | EA26: 0.986 | EB26: 0.985 | EC26: 0.982 | ED26: 0.978 | EE26: 0.967 | EF26: 0.939 | EG26: 0.847 | EH26: 0.559 | EI26: 0.150 | EJ26: 0.000 | EK26: 0.000 | EL26: 0.000 | EM26: 0.000 | EN26: 0.000 | EO26: 0.000
A27: E-F1 | B27: 2.5730565 | C27: 0 | D27: -1.0203605 | E27: -2 | F27: 2.3095784 | G27: -2 | H27: 8.7114252 | I27: -4 | J27: -3.0730079 | K27: -5 | L27: 6.9457986 | M27: -6 | BL27: 0.996 | BM27: 0.996 | BN27: 0.996 | BO27: 0.999 | BP27: 0.999 | BQ27: 0.999 | BR27: 0.999 | BS27: 0.999 | BT27: 0.999 | BU27: 0.999 | BV27: 0.999 | BW27: 0.999 | BX27: 0.999 | BY27: 0.999 | BZ27: 0.998 | CA27: 0.998 | CB27: 0.998 | CC27: 0.998 | CD27: 0.998 | CE27: 0.999 | CF27: 0.996 | CG27: 0.995 | CH27: 0.993 | CI27: 0.991 | CJ27: 0.988 | CK27: 0.972 | CL27: 0.947 | CM27: 0.877 | CN27: 0.704 | CO27: 0.345 | CP27: 0.000 | CQ27: 0.000 | CR27: 0.000 | CS27: 0.000 | CT27: 0.000 | CU27: 0.000 | CV27: 0.000 | CW27: 0.000 | DD27: 0.992 | DE27: 0.993 | DF27: 0.992 | DG27: 0.997 | DH27: 0.997 | DI27: 0.997 | DJ27: 0.997 | DK27: 0.997 | DL27: 0.997 | DM27: 0.997 | DN27: 0.997 | DO27: 0.998 | DP27: 0.998 | DQ27: 0.997 | DR27: 0.997 | DS27: 0.996 | DT27: 0.997 | DU27: 0.997 | DV27: 0.997 | DW27: 0.997 | DX27: 0.993 | DY27: 0.989 | DZ27: 0.986 | EA27: 0.982 | EB27: 0.976 | EC27: 0.946 | ED27: 0.896 | EE27: 0.769 | EF27: 0.495 | EG27: 0.119 | EH27: 0.000 | EI27: 0.000 | EJ27: 0.000 | EK27: 0.000 | EL27: 0.000 | EM27: 0.000 | EN27: 0.000 | EO27: 0.000
A28: E-F2 | B28: 2.5561822 | C28: 0 | D28: -1.0237038 | E28: -2 | F28: 2.2470348 | G28: -2 | H28: 8.4580679 | I28: -4 | J28: -3.3087089 | K28: -5 | L28: 7.1054919 | M28: -6 | T28: 0.999 | U28: 0.999 | V28: 0.998 | W28: 0.999 | X28: 0.999 | Y28: 0.999 | Z28: 0.999 | AA28: 0.999 | AB28: 0.999 | AC28: 0.999 | AD28: 0.999 | AE28: 0.999 | AF28: 0.999 | AG28: 0.999 | AH28: 0.999 | AI28: 0.999 | AJ28: 0.999 | AK28: 0.998 | AL28: 0.999 | AM28: 0.999 | AN28: 0.998 | AO28: 0.997 | AP28: 0.996 | AQ28: 0.996 | AR28: 0.995 | AS28: 0.990 | AT28: 0.981 | AU28: 0.957 | AV28: 0.885 | AW28: 0.682 | AX28: 0.312 | AY28: 0.000 | AZ28: 0.000 | BA28: 0.000 | BB28: 0.000 | BC28: 0.000 | BD28: 0.000 | BE28: 0.000 | BL28: 0.998 | BM28: 0.998 | BN28: 0.996 | BO28: 0.999 | BP28: 0.999 | BQ28: 0.999 | BR28: 0.999 | BS28: 0.999 | BT28: 0.999 | BU28: 0.999 | BV28: 0.999 | BW28: 0.999 | BX28: 0.999 | BY28: 0.999 | BZ28: 0.999 | CA28: 0.999 | CB28: 0.997 | CC28: 0.996 | CD28: 0.997 | CE28: 0.998 | CF28: 0.995 | CG28: 0.992 | CH28: 0.991 | CI28: 0.990 | CJ28: 0.987 | CK28: 0.976 | CL28: 0.954 | CM28: 0.895 | CN28: 0.736 | CO28: 0.384 | CP28: 0.054 | CQ28: 0.000 | CR28: 0.000 | CS28: 0.000 | CT28: 0.000 | CU28: 0.000 | CV28: 0.000 | CW28: 0.000 | DD28: 0.995 | DE28: 0.995 | DF28: 0.993 | DG28: 0.999 | DH28: 0.999 | DI28: 0.999 | DJ28: 0.998 | DK28: 0.998 | DL28: 0.998 | DM28: 0.998 | DN28: 0.998 | DO28: 0.998 | DP28: 0.998 | DQ28: 0.998 | DR28: 0.998 | DS28: 0.998 | DT28: 0.994 | DU28: 0.993 | DV28: 0.995 | DW28: 0.995 | DX28: 0.989 | DY28: 0.985 | DZ28: 0.982 | EA28: 0.981 | EB28: 0.974 | EC28: 0.952 | ED28: 0.910 | EE28: 0.802 | EF28: 0.542 | EG28: 0.147 | EH28: 0.000 | EI28: 0.000 | EJ28: 0.000 | EK28: 0.000 | EL28: 0.000 | EM28: 0.000 | EN28: 0.000 | EO28: 0.000
A29: E-F3 | B29: 2.5362697 | C29: 0 | D29: -1.0610424 | E29: -2 | F29: 2.1233821 | G29: -2 | H29: 9.9012105 | I29: -4 | J29: -5.9984348 | K29: -5 | L29: 8.2354366 | M29: -6 | BL29: 0.997 | BM29: 0.998 | BN29: 0.995 | BO29: 0.999 | BP29: 0.999 | BQ29: 0.999 | BR29: 0.999 | BS29: 0.999 | BT29: 0.999 | BU29: 0.999 | BV29: 0.999 | BW29: 0.999 | BX29: 0.999 | BY29: 0.999 | BZ29: 0.999 | CA29: 0.999 | CB29: 0.999 | CC29: 0.998 | CD29: 0.999 | CE29: 0.999 | CF29: 0.996 | CG29: 0.995 | CH29: 0.993 | CI29: 0.992 | CJ29: 0.988 | CK29: 0.974 | CL29: 0.949 | CM29: 0.880 | CN29: 0.710 | CO29: 0.410 | CP29: 0.117 | CQ29: 0.000 | CR29: 0.000 | CS29: 0.000 | CT29: 0.000 | CU29: 0.000 | CV29: 0.000 | CW29: 0.000 | DD29: 0.995 | DE29: 0.995 | DF29: 0.990 | DG29: 0.999 | DH29: 0.999 | DI29: 0.999 | DJ29: 0.998 | DK29: 0.998 | DL29: 0.998 | DM29: 0.999 | DN29: 0.999 | DO29: 0.999 | DP29: 0.999 | DQ29: 0.999 | DR29: 0.998 | DS29: 0.998 | DT29: 0.998 | DU29: 0.997 | DV29: 0.998 | DW29: 0.998 | DX29: 0.993 | DY29: 0.990 | DZ29: 0.986 | EA29: 0.983 | EB29: 0.977 | EC29: 0.949 | ED29: 0.901 | EE29: 0.775 | EF29: 0.504 | EG29: 0.168 | EH29: 0.014 | EI29: 0.000 | EJ29: 0.000 | EK29: 0.000 | EL29: 0.000 | EM29: 0.000 | EN29: 0.000 | EO29: 0.000
A30: E-F5 | B30: 2.5095673 | C30: 0 | D30: -1.0862661 | E30: -2 | F30: 1.9894774 | G30: -2 | H30: 1.0137134 | I30: -3 | J30: -6.2697117 | K30: -5 | L30: 7.5080045 | M30: -6 | T30: 0.999 | U30: 0.999 | V30: 0.998 | W30: 0.999 | X30: 0.999 | Y30: 0.999 | Z30: 0.999 | AA30: 0.999 | AB30: 0.999 | AC30: 0.999 | AD30: 0.999 | AE30: 0.999 | AF30: 0.999 | AG30: 0.999 | AH30: 0.999 | AI30: 0.999 | AJ30: 0.999 | AK30: 0.999 | AL30: 0.999 | AM30: 0.999 | AN30: 0.998 | AO30: 0.998 | AP30: 0.997 | AQ30: 0.997 | AR30: 0.996 | AS30: 0.991 | AT30: 0.983 | AU30: 0.961 | AV30: 0.895 | AW30: 0.717 | AX30: 0.390 | AY30: 0.000 | AZ30: 0.000 | BA30: 0.000 | BB30: 0.000 | BC30: 0.000 | BD30: 0.000 | BE30: 0.000 | BL30: 0.997 | BM30: 0.997 | BN30: 0.995 | BO30: 0.999 | BP30: 0.999 | BQ30: 0.999 | BR30: 0.999 | BS30: 0.999 | BT30: 0.999 | BU30: 0.999 | BV30: 0.999 | BW30: 0.999 | BX30: 0.999 | BY30: 0.999 | BZ30: 0.999 | CA30: 0.999 | CB30: 0.998 | CC30: 0.997 | CD30: 0.998 | CE30: 0.998 | CF30: 0.996 | CG30: 0.994 | CH30: 0.993 | CI30: 0.992 | CJ30: 0.989 | CK30: 0.978 | CL30: 0.957 | CM30: 0.906 | CN30: 0.758 | CO30: 0.435 | CP30: 0.095 | CQ30: 0.000 | CR30: 0.000 | CS30: 0.000 | CT30: 0.000 | CU30: 0.000 | CV30: 0.000 | CW30: 0.000 | DD30: 0.994 | DE30: 0.994 | DF30: 0.990 | DG30: 0.998 | DH30: 0.998 | DI30: 0.998 | DJ30: 0.998 | DK30: 0.998 | DL30: 0.998 | DM30: 0.998 | DN30: 0.999 | DO30: 0.999 | DP30: 0.999 | DQ30: 0.999 | DR30: 0.999 | DS30: 0.999 | DT30: 0.996 | DU30: 0.994 | DV30: 0.997 | DW30: 0.996 | DX30: 0.991 | DY30: 0.988 | DZ30: 0.985 | EA30: 0.984 | EB30: 0.978 | EC30: 0.957 | ED30: 0.916 | EE30: 0.820 | EF30: 0.574 | EG30: 0.190 | EH30: 0.000 | EI30: 0.000 | EJ30: 0.000 | EK30: 0.000 | EL30: 0.000 | EM30: 0.000 | EN30: 0.000 | EO30: 0.000
A31: E-F8 | B31: 2.4866561 | C31: 0 | D31: -1.0188484 | E31: -2 | F31: 1.9287417 | G31: -2 | H31: 8.8553737 | I31: -4 | J31: -5.0937106 | K31: -5 | L31: 6.4256956 | M31: -6 | BL31: 0.999 | BM31: 0.999 | BN31: 0.997 | BO31: 0.999 | BP31: 0.999 | BQ31: 0.999 | BR31: 0.999 | BS31: 0.999 | BT31: 0.999 | BU31: 0.999 | BV31: 0.999 | BW31: 0.999 | BX31: 0.999 | BY31: 0.999 | BZ31: 0.999 | CA31: 0.999 | CB31: 0.999 | CC31: 0.998 | CD31: 0.999 | CE31: 0.999 | CF31: 0.997 | CG31: 0.996 | CH31: 0.995 | CI31: 0.994 | CJ31: 0.992 | CK31: 0.982 | CL31: 0.966 | CM31: 0.922 | CN31: 0.800 | CO31: 0.506 | CP31: 0.123 | CQ31: 0.000 | CR31: 0.000 | CS31: 0.000 | CT31: 0.000 | CU31: 0.000 | CV31: 0.000 | CW31: 0.000 | DD31: 0.997 | DE31: 0.997 | DF31: 0.995 | DG31: 0.999 | DH31: 0.999 | DI31: 0.999 | DJ31: 0.999 | DK31: 0.999 | DL31: 0.999 | DM31: 0.999 | DN31: 0.999 | DO31: 0.999 | DP31: 0.999 | DQ31: 0.999 | DR31: 0.999 | DS31: 0.999 | DT31: 0.999 | DU31: 0.996 | DV31: 0.998 | DW31: 0.998 | DX31: 0.994 | DY31: 0.992 | DZ31: 0.991 | EA31: 0.988 | EB31: 0.984 | EC31: 0.965 | ED31: 0.934 | EE31: 0.851 | EF31: 0.641 | EG31: 0.256 | EH31: 0.015 | EI31: 0.000 | EJ31: 0.000 | EK31: 0.000 | EL31: 0.000 | EM31: 0.000 | EN31: 0.000 | EO31: 0.000
A32: E-FD1 | B32: 2.8508499 | C32: 0 | D32: -1.3234610 | E32: -2 | F32: 2.9415325 | G32: -2 | H32: 2.5542666 | I32: -3 | J32: -2.1232133 | K32: -4 | L32: 2.2261936 | M32: -5 | T32: 0.998 | U32: 0.998 | V32: 0.998 | W32: 0.999 | X32: 0.999 | Y32: 0.999 | Z32: 0.999 | AA32: 0.999 | AB32: 0.999 | AC32: 0.999 | AD32: 0.999 | AE32: 0.999 | AF32: 0.999 | AG32: 0.999 | AH32: 0.999 | AI32: 0.999 | AJ32: 0.999 | AK32: 0.999 | AL32: 0.999 | AM32: 0.999 | AN32: 0.998 | AO32: 0.997 | AP32: 0.996 | AQ32: 0.994 | AR32: 0.990 | AS32: 0.977 | AT32: 0.958 | AU32: 0.911 | AV32: 0.776 | AW32: 0.457 | AX32: 0.000 | AY32: 0.000 | AZ32: 0.000 | BA32: 0.000 | BB32: 0.000 | BC32: 0.000 | BD32: 0.000 | BE32: 0.000 | BL32: 0.995 | BM32: 0.996 | BN32: 0.996 | BO32: 0.999 | BP32: 0.999 | BQ32: 0.999 | BR32: 0.999 | BS32: 0.999 | BT32: 0.999 | BU32: 0.999 | BV32: 0.999 | BW32: 0.999 | BX32: 0.999 | BY32: 0.998 | BZ32: 0.998 | CA32: 0.998 | CB32: 0.998 | CC32: 0.998 | CD32: 0.997 | CE32: 0.996 | CF32: 0.994 | CG32: 0.993 | CH32: 0.990 | CI32: 0.985 | CJ32: 0.976 | CK32: 0.944 | CL32: 0.899 | CM32: 0.793 | CN32: 0.530 | CO32: 0.141 | CP32: 0.000 | CQ32: 0.000 | CR32: 0.000 | CS32: 0.000 | CT32: 0.000 | CU32: 0.000 | CV32: 0.000 | CW32: 0.000 | DD32: 0.991 | DE32: 0.992 | DF32: 0.992 | DG32: 0.998 | DH32: 0.998 | DI32: 0.998 | DJ32: 0.998 | DK32: 0.998 | DL32: 0.998 | DM32: 0.998 | DN32: 0.998 | DO32: 0.998 | DP32: 0.998 | DQ32: 0.997 | DR32: 0.997 | DS32: 0.997 | DT32: 0.996 | DU32: 0.996 | DV32: 0.994 | DW32: 0.993 | DX32: 0.989 | DY32: 0.986 | DZ32: 0.981 | EA32: 0.971 | EB32: 0.953 | EC32: 0.892 | ED32: 0.809 | EE32: 0.629 | EF32: 0.281 | EG32: 0.020 | EH32: 0.000 | EI32: 0.000 | EJ32: 0.000 | EK32: 0.000 | EL32: 0.000 | EM32: 0.000 | EN32: 0.000 | EO32: 0.000
A33: E-FD10 | B33: 2.8815180 | C33: 0 | D33: -1.3228312 | E33: -2 | F33: 3.1455590 | G33: -2 | H33: 2.6851666 | I33: -3 | J33: -2.2577544 | K33: -4 | L33: 2.4693268 | M33: -5 | T33: 0.999 | U33: 0.999 | V33: 0.999 | W33: 0.999 | X33: 0.999 | Y33: 0.999 | Z33: 0.999 | AA33: 0.999 | AB33: 0.999 | AC33: 0.999 | AD33: 0.999 | AE33: 0.999 | AF33: 0.999 | AG33: 0.999 | AH33: 0.999 | AI33: 0.999 | AJ33: 0.999 | AK33: 0.999 | AL33: 0.999 | AM33: 0.999 | AN33: 0.997 | AO33: 0.996 | AP33: 0.995 | AQ33: 0.993 | AR33: 0.987 | AS33: 0.969 | AT33: 0.940 | AU33: 0.870 | AV33: 0.700 | AW33: 0.396 | AX33: 0.000 | AY33: 0.000 | AZ33: 0.000 | BA33: 0.000 | BB33: 0.000 | BC33: 0.000 | BD33: 0.000 | BE33: 0.000 | BL33: 0.998 | BM33: 0.998 | BN33: 0.997 | BO33: 0.999 | BP33: 0.999 | BQ33: 0.999 | BR33: 0.999 | BS33: 0.999 | BT33: 0.999 | BU33: 0.999 | BV33: 0.999 | BW33: 0.999 | BX33: 0.999 | BY33: 0.999 | BZ33: 0.999 | CA33: 0.999 | CB33: 0.997 | CC33: 0.997 | CD33: 0.998 | CE33: 0.997 | CF33: 0.993 | CG33: 0.990 | CH33: 0.986 | CI33: 0.982 | CJ33: 0.968 | CK33: 0.923 | CL33: 0.856 | CM33: 0.705 | CN33: 0.409 | CO33: 0.099 | CP33: 0.000 | CQ33: 0.000 | CR33: 0.000 | CS33: 0.000 | CT33: 0.000 | CU33: 0.000 | CV33: 0.000 | CW33: 0.000 | DD33: 0.995 | DE33: 0.995 | DF33: 0.994 | DG33: 0.999 | DH33: 0.999 | DI33: 0.999 | DJ33: 0.999 | DK33: 0.999 | DL33: 0.999 | DM33: 0.999 | DN33: 0.999 | DO33: 0.999 | DP33: 0.998 | DQ33: 0.998 | DR33: 0.998 | DS33: 0.998 | DT33: 0.995 | DU33: 0.994 | DV33: 0.996 | DW33: 0.994 | DX33: 0.985 | DY33: 0.980 | DZ33: 0.973 | EA33: 0.964 | EB33: 0.937 | EC33: 0.853 | ED33: 0.733 | EE33: 0.497 | EF33: 0.168 | EG33: 0.000 | EH33: 0.000 | EI33: 0.000 | EJ33: 0.000 | EK33: 0.000 | EL33: 0.000 | EM33: 0.000 | EN33: 0.000 | EO33: 0.000
A34: E-FD10L | B34: 2.8819845 | C34: 0 | D34: -1.3360032 | E34: -2 | F34: 3.1090844 | G34: -2 | H34: 2.8218544 | I34: -3 | J34: -2.5458280 | K34: -4 | L34: 2.7374245 | M34: -5 | N34: 0.964 | O34: 0.972 | P34: 0.981 | Q34: 0.991 | R34: 0.995 | S34: 0.998 | T34: 0.998 | U34: 0.998 | V34: 0.999 | W34: 0.999 | X34: 0.999 | Y34: 0.999 | Z34: 0.999 | AA34: 0.999 | AB34: 0.999 | AC34: 0.999 | AD34: 0.999 | AE34: 0.999 | AF34: 0.999 | AG34: 0.999 | AH34: 0.999 | AI34: 0.999 | AJ34: 0.999 | AK34: 0.999 | AL34: 0.999 | AM34: 0.999 | AN34: 0.998 | AO34: 0.998 | AP34: 0.997 | AQ34: 0.995 | AR34: 0.990 | AS34: 0.971 | AT34: 0.942 | AU34: 0.870 | AV34: 0.692 | AW34: 0.249 | AX34: 0.000 | AY34: 0.000 | AZ34: 0.000 | BA34: 0.000 | BB34: 0.000 | BC34: 0.000 | BD34: 0.000 | BE34: 0.000 | BF34: 0.912 | BG34: 0.931 | BH34: 0.953 | BI34: 0.978 | BJ34: 0.986 | BK34: 0.995 | BL34: 0.996 | BM34: 0.996 | BN34: 0.996 | BO34: 0.999 | BP34: 0.999 | BQ34: 0.999 | BR34: 0.999 | BS34: 0.999 | BT34: 0.999 | BU34: 0.999 | BV34: 0.999 | BW34: 0.999 | BX34: 0.999 | BY34: 0.999 | BZ34: 0.999 | CA34: 0.999 | CB34: 0.998 | CC34: 0.998 | CD34: 0.998 | CE34: 0.998 | CF34: 0.996 | CG34: 0.994 | CH34: 0.992 | CI34: 0.988 | CJ34: 0.975 | CK34: 0.929 | CL34: 0.862 | CM34: 0.705 | CN34: 0.398 | CO34: 0.000 | CP34: 0.000 | CQ34: 0.000 | CR34: 0.000 | CS34: 0.000 | CT34: 0.000 | CU34: 0.000 | CV34: 0.000 | CW34: 0.000 | CX34: 0.831 | CY34: 0.868 | CZ34: 0.909 | DA34: 0.957 | DB34: 0.973 | DC34: 0.990 | DD34: 0.992 | DE34: 0.992 | DF34: 0.993 | DG34: 0.998 | DH34: 0.998 | DI34: 0.998 | DJ34: 0.998 | DK34: 0.998 | DL34: 0.998 | DM34: 0.998 | DN34: 0.998 | DO34: 0.999 | DP34: 0.999 | DQ34: 0.998 | DR34: 0.998 | DS34: 0.998 | DT34: 0.997 | DU34: 0.997 | DV34: 0.997 | DW34: 0.996 | DX34: 0.992 | DY34: 0.989 | DZ34: 0.985 | EA34: 0.975 | EB34: 0.951 | EC34: 0.864 | ED34: 0.743 | EE34: 0.497 | EF34: 0.158 | EG34: 0.000 | EH34: 0.000 | EI34: 0.000 | EJ34: 0.000 | EK34: 0.000 | EL34: 0.000 | EM34: 0.000 | EN34: 0.000 | EO34: 0.000
A35: E-FD13 | B35: 2.9205906 | C35: 0 | D35: -1.3681618 | E35: -2 | F35: 3.2567760 | G35: -2 | H35: 2.8725519 | I35: -3 | J35: -2.4277107 | K35: -4 | L35: 2.6614514 | M35: -5 | T35: 0.999 | U35: 0.999 | V35: 0.999 | W35: 0.999 | X35: 0.999 | Y35: 0.999 | Z35: 0.999 | AA35: 0.999 | AB35: 0.999 | AC35: 0.999 | AD35: 0.999 | AE35: 0.999 | AF35: 0.999 | AG35: 0.999 | AH35: 0.999 | AI35: 0.999 | AJ35: 0.999 | AK35: 0.998 | AL35: 0.999 | AM35: 0.999 | AN35: 0.997 | AO35: 0.996 | AP35: 0.995 | AQ35: 0.992 | AR35: 0.987 | AS35: 0.967 | AT35: 0.937 | AU35: 0.866 | AV35: 0.699 | AW35: 0.396 | AX35: 0.000 | AY35: 0.000 | AZ35: 0.000 | BA35: 0.000 | BB35: 0.000 | BC35: 0.000 | BD35: 0.000 | BE35: 0.000 | BL35: 0.999 | BM35: 0.999 | BN35: 0.999 | BO35: 0.999 | BP35: 0.999 | BQ35: 0.999 | BR35: 0.999 | BS35: 0.999 | BT35: 0.999 | BU35: 0.999 | BV35: 0.999 | BW35: 0.999 | BX35: 0.999 | BY35: 0.999 | BZ35: 0.999 | CA35: 0.998 | CB35: 0.997 | CC35: 0.995 | CD35: 0.998 | CE35: 0.997 | CF35: 0.993 | CG35: 0.990 | CH35: 0.986 | CI35: 0.980 | CJ35: 0.967 | CK35: 0.919 | CL35: 0.849 | CM35: 0.698 | CN35: 0.409 | CO35: 0.099 | CP35: 0.000 | CQ35: 0.000 | CR35: 0.000 | CS35: 0.000 | CT35: 0.000 | CU35: 0.000 | CV35: 0.000 | CW35: 0.000 | DD35: 0.997 | DE35: 0.997 | DF35: 0.998 | DG35: 0.999 | DH35: 0.999 | DI35: 0.999 | DJ35: 0.999 | DK35: 0.999 | DL35: 0.999 | DM35: 0.999 | DN35: 0.999 | DO35: 0.999 | DP35: 0.999 | DQ35: 0.998 | DR35: 0.998 | DS35: 0.996 | DT35: 0.995 | DU35: 0.991 | DV35: 0.995 | DW35: 0.995 | DX35: 0.985 | DY35: 0.979 | DZ35: 0.973 | EA35: 0.961 | EB35: 0.936 | EC35: 0.845 | ED35: 0.722 | EE35: 0.487 | EF35: 0.167 | EG35: 0.000 | EH35: 0.000 | EI35: 0.000 | EJ35: 0.000 | EK35: 0.000 | EL35: 0.000 | EM35: 0.000 | EN35: 0.000 | EO35: 0.000
A36: E-FD15 | B36: 2.7919943 | C36: 0 | D36: -1.2311206 | E36: -2 | F36: 2.8802741 | G36: -2 | H36: 2.1430059 | I36: -3 | J36: -1.6932119 | K36: -4 | L36: 1.9741766 | M36: -5 | T36: 0.999 | U36: 0.999 | V36: 0.999 | W36: 0.999 | X36: 0.999 | Y36: 0.999 | Z36: 0.999 | AA36: 0.999 | AB36: 0.999 | AC36: 0.999 | AD36: 0.999 | AE36: 0.999 | AF36: 0.999 | AG36: 0.999 | AH36: 0.999 | AI36: 0.999 | AJ36: 0.999 | AK36: 0.998 | AL36: 0.999 | AM36: 0.999 | AN36: 0.997 | AO36: 0.996 | AP36: 0.995 | AQ36: 0.993 | AR36: 0.989 | AS36: 0.973 | AT36: 0.948 | AU36: 0.885 | AV36: 0.746 | AW36: 0.511 | AX36: 0.191 | AY36: 0.000 | AZ36: 0.000 | BA36: 0.000 | BB36: 0.000 | BC36: 0.000 | BD36: 0.000 | BE36: 0.000 | BL36: 0.997 | BM36: 0.997 | BN36: 0.998 | BO36: 0.999 | BP36: 0.999 | BQ36: 0.999 | BR36: 0.999 | BS36: 0.999 | BT36: 0.999 | BU36: 0.999 | BV36: 0.999 | BW36: 0.999 | BX36: 0.999 | BY36: 0.999 | BZ36: 0.999 | CA36: 0.998 | CB36: 0.998 | CC36: 0.996 | CD36: 0.998 | CE36: 0.998 | CF36: 0.993 | CG36: 0.990 | CH36: 0.987 | CI36: 0.983 | CJ36: 0.974 | CK36: 0.935 | CL36: 0.875 | CM36: 0.736 | CN36: 0.481 | CO36: 0.187 | CP36: 0.016 | CQ36: 0.000 | CR36: 0.000 | CS36: 0.000 | CT36: 0.000 | CU36: 0.000 | CV36: 0.000 | CW36: 0.000 | DD36: 0.997 | DE36: 0.996 | DF36: 0.996 | DG36: 0.998 | DH36: 0.999 | DI36: 0.999 | DJ36: 0.998 | DK36: 0.998 | DL36: 0.998 | DM36: 0.998 | DN36: 0.998 | DO36: 0.998 | DP36: 0.998 | DQ36: 0.998 | DR36: 0.998 | DS36: 0.997 | DT36: 0.995 | DU36: 0.992 | DV36: 0.996 | DW36: 0.996 | DX36: 0.986 | DY36: 0.980 | DZ36: 0.973 | EA36: 0.966 | EB36: 0.948 | EC36: 0.874 | ED36: 0.765 | EE36: 0.542 | EF36: 0.231 | EG36: 0.035 | EH36: 0.000 | EI36: 0.000 | EJ36: 0.000 | EK36: 0.000 | EL36: 0.000 | EM36: 0.000 | EN36: 0.000 | EO36: 0.000
A37: E-FD15L | B37: 2.7924658 | C37: 0 | D37: -1.2540598 | E37: -2 | F37: 2.8359569 | G37: -2 | H37: 2.3368977 | I37: -3 | J37: -2.0763765 | K37: -4 | L37: 2.2481601 | M37: -5 | N37: 0.962 | O37: 0.972 | P37: 0.980 | Q37: 0.992 | R37: 0.995 | S37: 0.998 | T37: 0.999 | U37: 0.999 | V37: 0.999 | W37: 0.999 | X37: 0.999 | Y37: 0.999 | Z37: 0.999 | AA37: 0.999 | AB37: 0.999 | AC37: 0.999 | AD37: 0.999 | AE37: 0.999 | AF37: 0.999 | AG37: 0.999 | AH37: 0.999 | AI37: 0.999 | AJ37: 0.999 | AK37: 0.999 | AL37: 0.999 | AM37: 0.999 | AN37: 0.998 | AO37: 0.998 | AP37: 0.997 | AQ37: 0.996 | AR37: 0.992 | AS37: 0.977 | AT37: 0.953 | AU37: 0.890 | AV37: 0.717 | AW37: 0.328 | AX37: 0.031 | AY37: 0.000 | AZ37: 0.000 | BA37: 0.000 | BB37: 0.000 | BC37: 0.000 | BD37: 0.000 | BE37: 0.000 | BF37: 0.908 | BG37: 0.931 | BH37: 0.951 | BI37: 0.979 | BJ37: 0.988 | BK37: 0.996 | BL37: 0.997 | BM37: 0.997 | BN37: 0.997 | BO37: 0.999 | BP37: 0.999 | BQ37: 0.999 | BR37: 0.999 | BS37: 0.999 | BT37: 0.999 | BU37: 0.999 | BV37: 0.999 | BW37: 0.999 | BX37: 0.999 | BY37: 0.999 | BZ37: 0.999 | CA37: 0.999 | CB37: 0.999 | CC37: 0.999 | CD37: 0.999 | CE37: 0.999 | CF37: 0.996 | CG37: 0.995 | CH37: 0.993 | CI37: 0.990 | CJ37: 0.980 | CK37: 0.943 | CL37: 0.887 | CM37: 0.747 | CN37: 0.435 | CO37: 0.061 | CP37: 0.000 | CQ37: 0.000 | CR37: 0.000 | CS37: 0.000 | CT37: 0.000 | CU37: 0.000 | CV37: 0.000 | CW37: 0.000 | CX37: 0.825 | CY37: 0.867 | CZ37: 0.905 | DA37: 0.958 | DB37: 0.976 | DC37: 0.992 | DD37: 0.993 | DE37: 0.993 | DF37: 0.994 | DG37: 0.998 | DH37: 0.999 | DI37: 0.999 | DJ37: 0.998 | DK37: 0.998 | DL37: 0.998 | DM37: 0.998 | DN37: 0.999 | DO37: 0.998 | DP37: 0.999 | DQ37: 0.999 | DR37: 0.999 | DS37: 0.998 | DT37: 0.999 | DU37: 0.998 | DV37: 0.998 | DW37: 0.997 | DX37: 0.992 | DY37: 0.990 | DZ37: 0.987 | EA37: 0.980 | EB37: 0.960 | EC37: 0.890 | ED37: 0.787 | EE37: 0.558 | EF37: 0.190 | EG37: 0.000 | EH37: 0.000 | EI37: 0.000 | EJ37: 0.000 | EK37: 0.000 | EL37: 0.000 | EM37: 0.000 | EN37: 0.000 | EO37: 0.000
A38: E-FD1L | B38: 2.8496451 | C38: 0 | D38: -1.2662471 | E38: -2 | F38: 3.0196873 | G38: -2 | H38: 2.3492982 | I38: -3 | J38: -1.9216545 | K38: -4 | L38: 2.1946899 | M38: -5 | N38: 0.961 | O38: 0.969 | P38: 0.979 | Q38: 0.990 | R38: 0.994 | S38: 0.997 | T38: 0.998 | U38: 0.998 | V38: 0.998 | W38: 0.999 | X38: 0.999 | Y38: 0.999 | Z38: 0.999 | AA38: 0.999 | AB38: 0.999 | AC38: 0.999 | AD38: 0.999 | AE38: 0.999 | AF38: 1.000 | AG38: 0.999 | AH38: 0.999 | AI38: 0.999 | AJ38: 0.999 | AK38: 0.999 | AL38: 0.999 | AM38: 0.999 | AN38: 0.998 | AO38: 0.997 | AP38: 0.997 | AQ38: 0.995 | AR38: 0.990 | AS38: 0.974 | AT38: 0.948 | AU38: 0.885 | AV38: 0.728 | AW38: 0.287 | AX38: 0.028 | AY38: 0.000 | AZ38: 0.000 | BA38: 0.000 | BB38: 0.000 | BC38: 0.000 | BD38: 0.000 | BE38: 0.000 | BF38: 0.905 | BG38: 0.924 | BH38: 0.949 | BI38: 0.975 | BJ38: 0.984 | BK38: 0.992 | BL38: 0.994 | BM38: 0.994 | BN38: 0.994 | BO38: 0.997 | BP38: 0.997 | BQ38: 0.997 | BR38: 0.997 | BS38: 0.997 | BT38: 0.997 | BU38: 0.998 | BV38: 0.998 | BW38: 0.998 | BX38: 0.999 | BY38: 0.997 | BZ38: 0.997 | CA38: 0.997 | CB38: 0.997 | CC38: 0.997 | CD38: 0.997 | CE38: 0.996 | CF38: 0.994 | CG38: 0.993 | CH38: 0.991 | CI38: 0.987 | CJ38: 0.976 | CK38: 0.936 | CL38: 0.875 | CM38: 0.736 | CN38: 0.453 | CO38: 0.057 | CP38: 0.000 | CQ38: 0.000 | CR38: 0.000 | CS38: 0.000 | CT38: 0.000 | CU38: 0.000 | CV38: 0.000 | CW38: 0.000 | CX38: 0.819 | CY38: 0.854 | CZ38: 0.901 | DA38: 0.950 | DB38: 0.969 | DC38: 0.985 | DD38: 0.988 | DE38: 0.989 | DF38: 0.989 | DG38: 0.994 | DH38: 0.995 | DI38: 0.995 | DJ38: 0.995 | DK38: 0.995 | DL38: 0.995 | DM38: 0.996 | DN38: 0.997 | DO38: 0.997 | DP38: 0.998 | DQ38: 0.994 | DR38: 0.995 | DS38: 0.995 | DT38: 0.994 | DU38: 0.994 | DV38: 0.994 | DW38: 0.993 | DX38: 0.989 | DY38: 0.986 | DZ38: 0.983 | EA38: 0.975 | EB38: 0.953 | EC38: 0.876 | ED38: 0.766 | EE38: 0.542 | EF38: 0.205 | EG38: 0.000 | EH38: 0.000 | EI38: 0.000 | EJ38: 0.000 | EK38: 0.000 | EL38: 0.000 | EM38: 0.000 | EN38: 0.000 | EO38: 0.000
A39: E-FD2 | B39: 2.6399644 | C39: 0 | D39: -1.1645718 | E39: -2 | F39: 2.3061733 | G39: -2 | H39: 1.7348219 | I39: -3 | J39: -1.3986059 | K39: -4 | L39: 1.3916670 | M39: -5 | T39: 0.999 | U39: 0.999 | V39: 0.999 | W39: 0.999 | X39: 0.999 | Y39: 0.999 | Z39: 0.999 | AA39: 0.999 | AB39: 0.999 | AC39: 0.999 | AD39: 0.999 | AE39: 0.999 | AF39: 0.999 | AG39: 0.999 | AH39: 0.999 | AI39: 0.999 | AJ39: 0.999 | AK39: 0.999 | AL39: 0.999 | AM39: 0.999 | AN39: 0.999 | AO39: 0.998 | AP39: 0.997 | AQ39: 0.996 | AR39: 0.995 | AS39: 0.989 | AT39: 0.977 | AU39: 0.949 | AV39: 0.869 | AW39: 0.659 | AX39: 0.303 | AY39: 0.000 | AZ39: 0.000 | BA39: 0.000 | BB39: 0.000 | BC39: 0.000 | BD39: 0.000 | BE39: 0.000 | BL39: 0.998 | BM39: 0.998 | BN39: 0.998 | BO39: 0.999 | BP39: 0.999 | BQ39: 0.999 | BR39: 0.999 | BS39: 0.999 | BT39: 0.999 | BU39: 0.999 | BV39: 0.999 | BW39: 0.999 | BX39: 0.999 | BY39: 0.999 | BZ39: 0.999 | CA39: 0.999 | CB39: 0.998 | CC39: 0.998 | CD39: 0.999 | CE39: 0.998 | CF39: 0.997 | CG39: 0.995 | CH39: 0.993 | CI39: 0.991 | CJ39: 0.987 | CK39: 0.972 | CL39: 0.944 | CM39: 0.877 | CN39: 0.704 | CO39: 0.352 | CP39: 0.051 | CQ39: 0.000 | CR39: 0.000 | CS39: 0.000 | CT39: 0.000 | CU39: 0.000 | CV39: 0.000 | CW39: 0.000 | DD39: 0.995 | DE39: 0.996 | DF39: 0.996 | DG39: 0.999 | DH39: 0.999 | DI39: 0.999 | DJ39: 0.999 | DK39: 0.999 | DL39: 0.999 | DM39: 0.998 | DN39: 0.998 | DO39: 0.998 | DP39: 0.998 | DQ39: 0.998 | DR39: 0.998 | DS39: 0.998 | DT39: 0.996 | DU39: 0.996 | DV39: 0.997 | DW39: 0.996 | DX39: 0.994 | DY39: 0.991 | DZ39: 0.986 | EA39: 0.983 | EB39: 0.975 | EC39: 0.945 | ED39: 0.891 | EE39: 0.769 | EF39: 0.496 | EG39: 0.124 | EH39: 0.000 | EI39: 0.000 | EJ39: 0.000 | EK39: 0.000 | EL39: 0.000 | EM39: 0.000 | EN39: 0.000 | EO39: 0.000
A40: E-FD4 | B40: 2.9673173 | C40: 0 | D40: -1.3989565 | E40: -2 | F40: 3.3456680 | G40: -2 | H40: 3.0717804 | I40: -3 | J40: -2.6682435 | K40: -4 | L40: 2.8950241 | M40: -5 | T40: 0.999 | U40: 0.999 | V40: 0.999 | W40: 0.999 | X40: 0.999 | Y40: 0.999 | Z40: 0.999 | AA40: 0.999 | AB40: 0.999 | AC40: 0.999 | AD40: 0.999 | AE40: 0.999 | AF40: 0.999 | AG40: 0.999 | AH40: 0.999 | AI40: 0.999 | AJ40: 0.999 | AK40: 0.999 | AL40: 0.999 | AM40: 0.999 | AN40: 0.997 | AO40: 0.996 | AP40: 0.995 | AQ40: 0.993 | AR40: 0.989 | AS40: 0.974 | AT40: 0.951 | AU40: 0.888 | AV40: 0.718 | AW40: 0.394 | AX40: 0.000 | AY40: 0.000 | AZ40: 0.000 | BA40: 0.000 | BB40: 0.000 | BC40: 0.000 | BD40: 0.000 | BE40: 0.000 | BL40: 0.998 | BM40: 0.998 | BN40: 0.998 | BO40: 0.999 | BP40: 0.999 | BQ40: 0.999 | BR40: 0.999 | BS40: 0.999 | BT40: 0.999 | BU40: 0.999 | BV40: 0.999 | BW40: 0.999 | BX40: 0.999 | BY40: 0.999 | BZ40: 0.999 | CA40: 0.998 | CB40: 0.997 | CC40: 0.998 | CD40: 0.998 | CE40: 0.998 | CF40: 0.994 | CG40: 0.991 | CH40: 0.987 | CI40: 0.983 | CJ40: 0.972 | CK40: 0.936 | CL40: 0.882 | CM40: 0.742 | CN40: 0.437 | CO40: 0.097 | CP40: 0.000 | CQ40: 0.000 | CR40: 0.000 | CS40: 0.000 | CT40: 0.000 | CU40: 0.000 | CV40: 0.000 | CW40: 0.000 | DD40: 0.996 | DE40: 0.996 | DF40: 0.996 | DG40: 0.999 | DH40: 0.999 | DI40: 0.999 | DJ40: 0.998 | DK40: 0.998 | DL40: 0.998 | DM40: 0.998 | DN40: 0.998 | DO40: 0.998 | DP40: 0.998 | DQ40: 0.998 | DR40: 0.998 | DS40: 0.997 | DT40: 0.993 | DU40: 0.996 | DV40: 0.995 | DW40: 0.996 | DX40: 0.987 | DY40: 0.982 | DZ40: 0.974 | EA40: 0.966 | EB40: 0.944 | EC40: 0.876 | ED40: 0.778 | EE40: 0.551 | EF40: 0.191 | EG40: 0.000 | EH40: 0.000 | EI40: 0.000 | EJ40: 0.000 | EK40: 0.000 | EL40: 0.000 | EM40: 0.000 | EN40: 0.000 | EO40: 0.000
A41: E-FD4L | B41: 2.9677007 | C41: 0 | D41: -1.4006378 | E41: -2 | F41: 3.3049583 | G41: -2 | H41: 3.2455044 | I41: -3 | J41: -3.0156480 | K41: -4 | L41: 3.1689142 | M41: -5 | N41: 0.963 | O41: 0.971 | P41: 0.982 | Q41: 0.991 | R41: 0.994 | S41: 0.999 | T41: 0.999 | U41: 0.999 | V41: 0.999 | W41: 0.999 | X41: 0.999 | Y41: 0.999 | Z41: 0.999 | AA41: 0.999 | AB41: 0.999 | AC41: 0.999 | AD41: 0.999 | AE41: 0.999 | AF41: 0.999 | AG41: 0.999 | AH41: 0.999 | AI41: 0.999 | AJ41: 0.999 | AK41: 0.999 | AL41: 0.999 | AM41: 0.999 | AN41: 0.997 | AO41: 0.996 | AP41: 0.995 | AQ41: 0.992 | AR41: 0.985 | AS41: 0.958 | AT41: 0.921 | AU41: 0.834 | AV41: 0.639 | AW41: 0.235 | AX41: 0.000 | AY41: 0.000 | AZ41: 0.000 | BA41: 0.000 | BB41: 0.000 | BC41: 0.000 | BD41: 0.000 | BE41: 0.000 | BF41: 0.910 | BG41: 0.929 | BH41: 0.956 | BI41: 0.978 | BJ41: 0.986 | BK41: 0.996 | BL41: 0.997 | BM41: 0.997 | BN41: 0.998 | BO41: 0.999 | BP41: 0.999 | BQ41: 0.999 | BR41: 0.999 | BS41: 0.999 | BT41: 0.999 | BU41: 0.999 | BV41: 0.999 | BW41: 0.999 | BX41: 0.999 | BY41: 0.999 | BZ41: 0.998 | CA41: 0.998 | CB41: 0.998 | CC41: 0.997 | CD41: 0.997 | CE41: 0.997 | CF41: 0.994 | CG41: 0.991 | CH41: 0.988 | CI41: 0.980 | CJ41: 0.962 | CK41: 0.899 | CL41: 0.815 | CM41: 0.636 | CN41: 0.326 | CO41: 0.000 | CP41: 0.000 | CQ41: 0.000 | CR41: 0.000 | CS41: 0.000 | CT41: 0.000 | CU41: 0.000 | CV41: 0.000 | CW41: 0.000 | CX41: 0.827 | CY41: 0.863 | CZ41: 0.914 | DA41: 0.957 | DB41: 0.972 | DC41: 0.993 | DD41: 0.994 | DE41: 0.994 | DF41: 0.996 | DG41: 0.999 | DH41: 0.999 | DI41: 0.999 | DJ41: 0.999 | DK41: 0.999 | DL41: 0.999 | DM41: 0.999 | DN41: 0.999 | DO41: 0.999 | DP41: 0.999 | DQ41: 0.997 | DR41: 0.997 | DS41: 0.997 | DT41: 0.996 | DU41: 0.995 | DV41: 0.995 | DW41: 0.993 | DX41: 0.987 | DY41: 0.982 | DZ41: 0.975 | EA41: 0.961 | EB41: 0.925 | EC41: 0.808 | ED41: 0.664 | EE41: 0.404 | EF41: 0.106 | EG41: 0.000 | EH41: 0.000 | EI41: 0.000 | EJ41: 0.000 | EK41: 0.000 | EL41: 0.000 | EM41: 0.000 | EN41: 0.000 | EO41: 0.000
A42: E-FD5 | B42: 2.7135839 | C42: 0 | D42: -1.1419719 | E42: -2 | F42: 2.6133708 | G42: -2 | H42: 1.7576479 | I42: -3 | J42: -1.3307737 | K42: -4 | L42: 1.5203351 | M42: -5 | T42: 0.999 | U42: 0.999 | V42: 0.999 | W42: 0.999 | X42: 0.999 | Y42: 0.999 | Z42: 0.999 | AA42: 0.999 | AB42: 0.999 | AC42: 0.999 | AD42: 0.999 | AE42: 0.999 | AF42: 0.999 | AG42: 0.999 | AH42: 0.999 | AI42: 0.999 | AJ42: 0.999 | AK42: 0.999 | AL42: 0.999 | AM42: 0.999 | AN42: 0.998 | AO42: 0.997 | AP42: 0.996 | AQ42: 0.995 | AR42: 0.992 | AS42: 0.984 | AT42: 0.970 | AU42: 0.929 | AV42: 0.815 | AW42: 0.546 | AX42: 0.000 | AY42: 0.000 | AZ42: 0.000 | BA42: 0.000 | BB42: 0.000 | BC42: 0.000 | BD42: 0.000 | BE42: 0.000 | BL42: 0.997 | BM42: 0.997 | BN42: 0.997 | BO42: 0.999 | BP42: 0.999 | BQ42: 0.998 | BR42: 0.998 | BS42: 0.998 | BT42: 0.998 | BU42: 0.998 | BV42: 0.997 | BW42: 0.997 | BX42: 0.998 | BY42: 0.998 | BZ42: 0.999 | CA42: 0.999 | CB42: 0.997 | CC42: 0.997 | CD42: 0.998 | CE42: 0.997 | CF42: 0.994 | CG42: 0.993 | CH42: 0.990 | CI42: 0.988 | CJ42: 0.981 | CK42: 0.960 | CL42: 0.926 | CM42: 0.832 | CN42: 0.600 | CO42: 0.220 | CP42: 0.000 | CQ42: 0.000 | CR42: 0.000 | CS42: 0.000 | CT42: 0.000 | CU42: 0.000 | CV42: 0.000 | CW42: 0.000 | DD42: 0.994 | DE42: 0.993 | DF42: 0.995 | DG42: 0.998 | DH42: 0.997 | DI42: 0.996 | DJ42: 0.996 | DK42: 0.996 | DL42: 0.996 | DM42: 0.996 | DN42: 0.995 | DO42: 0.994 | DP42: 0.996 | DQ42: 0.997 | DR42: 0.997 | DS42: 0.997 | DT42: 0.994 | DU42: 0.994 | DV42: 0.995 | DW42: 0.994 | DX42: 0.988 | DY42: 0.985 | DZ42: 0.979 | EA42: 0.975 | EB42: 0.962 | EC42: 0.922 | ED42: 0.857 | EE42: 0.692 | EF42: 0.360 | EG42: 0.048 | EH42: 0.000 | EI42: 0.000 | EJ42: 0.000 | EK42: 0.000 | EL42: 0.000 | EM42: 0.000 | EN42: 0.000 | EO42: 0.000
A43: E-FD7 | B43: 2.6165865 | C43: 0 | D43: -1.1427854 | E43: -2 | F43: 2.2534361 | G43: -2 | H43: 1.5512890 | I43: -3 | J43: -1.1769852 | K43: -4 | L43: 1.2401891 | M43: -5 | BL43: 0.997 | BM43: 0.998 | BN43: 0.997 | BO43: 0.999 | BP43: 0.999 | BQ43: 0.999 | BR43: 0.999 | BS43: 0.999 | BT43: 0.999 | BU43: 0.999 | BV43: 0.999 | BW43: 0.999 | BX43: 0.999 | BY43: 0.999 | BZ43: 0.999 | CA43: 0.999 | CB43: 0.999 | CC43: 0.997 | CD43: 0.998 | CE43: 0.999 | CF43: 0.996 | CG43: 0.995 | CH43: 0.993 | CI43: 0.991 | CJ43: 0.986 | CK43: 0.966 | CL43: 0.934 | CM43: 0.852 | CN43: 0.650 | CO43: 0.286 | CP43: 0.000 | CQ43: 0.000 | CR43: 0.000 | CS43: 0.000 | CT43: 0.000 | CU43: 0.000 | CV43: 0.000 | CW43: 0.000 | DD43: 0.994 | DE43: 0.995 | DF43: 0.995 | DG43: 0.999 | DH43: 0.999 | DI43: 0.999 | DJ43: 0.998 | DK43: 0.998 | DL43: 0.998 | DM43: 0.998 | DN43: 0.998 | DO43: 0.998 | DP43: 0.998 | DQ43: 0.998 | DR43: 0.998 | DS43: 0.998 | DT43: 0.997 | DU43: 0.994 | DV43: 0.997 | DW43: 0.998 | DX43: 0.992 | DY43: 0.990 | DZ43: 0.987 | EA43: 0.982 | EB43: 0.973 | EC43: 0.933 | ED43: 0.872 | EE43: 0.726 | EF43: 0.423 | EG43: 0.082 | EH43: 0.000 | EI43: 0.000 | EJ43: 0.000 | EK43: 0.000 | EL43: 0.000 | EM43: 0.000 | EN43: 0.000 | EO43: 0.000
A44: E-FD8 | B44: 2.7617586 | C44: 0 | D44: -1.1254039 | E44: -2 | F44: 2.8221737 | G44: -2 | H44: 1.7540315 | I44: -3 | J44: -1.2127053 | K44: -4 | L44: 1.5522384 | M44: -5 | T44: 0.999 | U44: 0.999 | V44: 0.999 | W44: 0.999 | X44: 0.999 | Y44: 0.999 | Z44: 0.999 | AA44: 0.999 | AB44: 0.999 | AC44: 0.999 | AD44: 0.999 | AE44: 0.999 | AF44: 0.999 | AG44: 0.999 | AH44: 0.999 | AI44: 0.999 | AJ44: 0.999 | AK44: 0.999 | AL44: 0.999 | AM44: 0.999 | AN44: 0.998 | AO44: 0.998 | AP44: 0.996 | AQ44: 0.995 | AR44: 0.992 | AS44: 0.980 | AT44: 0.962 | AU44: 0.915 | AV44: 0.790 | AW44: 0.517 | AX44: 0.159 | AY44: 0.000 | AZ44: 0.000 | BA44: 0.000 | BB44: 0.000 | BC44: 0.000 | BD44: 0.000 | BE44: 0.000 | BL44: 0.998 | BM44: 0.998 | BN44: 0.998 | BO44: 0.998 | BP44: 0.998 | BQ44: 0.998 | BR44: 0.998 | BS44: 0.998 | BT44: 0.998 | BU44: 0.998 | BV44: 0.998 | BW44: 0.998 | BX44: 0.998 | BY44: 0.998 | BZ44: 0.998 | CA44: 0.998 | CB44: 0.998 | CC44: 0.997 | CD44: 0.998 | CE44: 0.999 | CF44: 0.994 | CG44: 0.994 | CH44: 0.991 | CI44: 0.988 | CJ44: 0.980 | CK44: 0.951 | CL44: 0.907 | CM44: 0.800 | CN44: 0.555 | CO44: 0.192 | CP44: 0.010 | CQ44: 0.000 | CR44: 0.000 | CS44: 0.000 | CT44: 0.000 | CU44: 0.000 | CV44: 0.000 | CW44: 0.000 | DD44: 0.995 | DE44: 0.996 | DF44: 0.996 | DG44: 0.998 | DH44: 0.999 | DI44: 0.998 | DJ44: 0.998 | DK44: 0.999 | DL44: 0.998 | DM44: 0.999 | DN44: 0.998 | DO44: 0.997 | DP44: 0.997 | DQ44: 0.997 | DR44: 0.997 | DS44: 0.997 | DT44: 0.996 | DU44: 0.994 | DV44: 0.996 | DW44: 0.997 | DX44: 0.987 | DY44: 0.988 | DZ44: 0.981 | EA44: 0.977 | EB44: 0.960 | EC44: 0.904 | ED44: 0.822 | EE44: 0.640 | EF44: 0.308 | EG44: 0.037 | EH44: 0.000 | EI44: 0.000 | EJ44: 0.000 | EK44: 0.000 | EL44: 0.000 | EM44: 0.000 | EN44: 0.000 | EO44: 0.000
A45: E-FD80 | B45: 2.7659751 | C45: 0 | D45: -1.2621380 | E45: -2 | F45: 2.7156470 | G45: -2 | H45: 2.0389447 | I45: -3 | J45: -1.6485416 | K45: -4 | L45: 1.9350106 | M45: -5 | N45: 0.949 | O45: 0.960 | P45: 0.972 | Q45: 0.986 | R45: 0.993 | S45: 0.997 | T45: 0.998 | U45: 0.998 | V45: 0.999 | W45: 0.999 | X45: 0.999 | Y45: 0.999 | Z45: 0.999 | AA45: 0.999 | AB45: 0.999 | AC45: 0.999 | AD45: 0.999 | AE45: 0.999 | AF45: 0.999 | AG45: 0.999 | AH45: 0.999 | AI45: 0.999 | AJ45: 0.999 | AK45: 0.999 | AL45: 0.999 | AM45: 0.999 | AN45: 0.999 | AO45: 0.998 | AP45: 0.997 | AQ45: 0.996 | AR45: 0.994 | AS45: 0.986 | AT45: 0.970 | AU45: 0.921 | AV45: 0.765 | AW45: 0.000 | AX45: 0.000 | AY45: 0.000 | AZ45: 0.000 | BA45: 0.000 | BB45: 0.000 | BC45: 0.000 | BD45: 0.000 | BE45: 0.000 | BF45: 0.877 | BG45: 0.904 | BH45: 0.930 | BI45: 0.966 | BJ45: 0.982 | BK45: 0.993 | BL45: 0.994 | BM45: 0.995 | BN45: 0.997 | BO45: 0.999 | BP45: 0.999 | BQ45: 0.999 | BR45: 0.999 | BS45: 0.999 | BT45: 0.999 | BU45: 0.999 | BV45: 0.999 | BW45: 0.998 | BX45: 0.998 | BY45: 0.999 | BZ45: 0.999 | CA45: 0.999 | CB45: 0.999 | CC45: 0.999 | CD45: 0.999 | CE45: 0.998 | CF45: 0.996 | CG45: 0.995 | CH45: 0.993 | CI45: 0.990 | CJ45: 0.985 | CK45: 0.965 | CL45: 0.928 | CM45: 0.813 | CN45: 0.512 | CO45: 0.000 | CP45: 0.000 | CQ45: 0.000 | CR45: 0.000 | CS45: 0.000 | CT45: 0.000 | CU45: 0.000 | CV45: 0.000 | CW45: 0.000 | CX45: 0.769 | CY45: 0.816 | CZ45: 0.866 | DA45: 0.933 | DB45: 0.965 | DC45: 0.986 | DD45: 0.988 | DE45: 0.989 | DF45: 0.993 | DG45: 0.997 | DH45: 0.998 | DI45: 0.998 | DJ45: 0.998 | DK45: 0.997 | DL45: 0.997 | DM45: 0.997 | DN45: 0.997 | DO45: 0.997 | DP45: 0.997 | DQ45: 0.999 | DR45: 0.999 | DS45: 0.998 | DT45: 0.998 | DU45: 0.997 | DV45: 0.997 | DW45: 0.997 | DX45: 0.993 | DY45: 0.989 | DZ45: 0.986 | EA45: 0.981 | EB45: 0.970 | EC45: 0.931 | ED45: 0.861 | EE45: 0.661 | EF45: 0.263 | EG45: 0.000 | EH45: 0.000 | EI45: 0.000 | EJ45: 0.000 | EK45: 0.000 | EL45: 0.000 | EM45: 0.000 | EN45: 0.000 | EO45: 0.000
A46: E-FDS1 | B46: 3.5044639 | C46: 0 | D46: -2.0333833 | E46: -2 | F46: 5.3802700 | G46: -2 | H46: 6.2874192 | I46: -3 | J46: -5.6922176 | K46: -4 | L46: 7.3559387 | M46: -5 | N46: 0.967 | O46: 0.978 | P46: 0.987 | Q46: 0.997 | R46: 0.999 | S46: 0.999 | T46: 0.998 | U46: 0.998 | V46: 0.999 | W46: 0.999 | X46: 0.999 | Y46: 0.999 | Z46: 0.999 | AA46: 0.999 | AB46: 0.999 | AC46: 0.999 | AD46: 0.999 | AE46: 0.999 | AF46: 0.999 | AG46: 0.999 | AH46: 0.999 | AI46: 0.998 | AJ46: 0.999 | AK46: 0.999 | AL46: 0.998 | AM46: 0.997 | AN46: 0.992 | AO46: 0.989 | AP46: 0.983 | AQ46: 0.972 | AR46: 0.941 | AS46: 0.822 | AT46: 0.657 | AU46: 0.373 | AV46: 0.000 | AW46: 0.000 | AX46: 0.000 | AY46: 0.000 | AZ46: 0.000 | BA46: 0.000 | BB46: 0.000 | BC46: 0.000 | BD46: 0.000 | BE46: 0.000 | BF46: 0.919 | BG46: 0.946 | BH46: 0.969 | BI46: 0.993 | BJ46: 0.999 | BK46: 0.999 | BL46: 0.995 | BM46: 0.995 | BN46: 0.997 | BO46: 0.998 | BP46: 0.998 | BQ46: 0.998 | BR46: 0.998 | BS46: 0.997 | BT46: 0.997 | BU46: 0.997 | BV46: 0.997 | BW46: 0.997 | BX46: 0.997 | BY46: 0.997 | BZ46: 0.997 | CA46: 0.996 | CB46: 0.997 | CC46: 0.997 | CD46: 0.996 | CE46: 0.992 | CF46: 0.980 | CG46: 0.972 | CH46: 0.959 | CI46: 0.932 | CJ46: 0.859 | CK46: 0.613 | CL46: 0.350 | CM46: 0.085 | CN46: 0.000 | CO46: 0.000 | CP46: 0.000 | CQ46: 0.000 | CR46: 0.000 | CS46: 0.000 | CT46: 0.000 | CU46: 0.000 | CV46: 0.000 | CW46: 0.000 | CX46: 0.845 | CY46: 0.895 | CZ46: 0.938 | DA46: 0.987 | DB46: 0.999 | DC46: 0.999 | DD46: 0.993 | DE46: 0.992 | DF46: 0.995 | DG46: 0.998 | DH46: 0.998 | DI46: 0.997 | DJ46: 0.999 | DK46: 0.997 | DL46: 0.996 | DM46: 0.996 | DN46: 0.996 | DO46: 0.996 | DP46: 0.997 | DQ46: 0.996 | DR46: 0.997 | DS46: 0.997 | DT46: 0.997 | DU46: 0.996 | DV46: 0.993 | DW46: 0.983 | DX46: 0.960 | DY46: 0.944 | DZ46: 0.919 | EA46: 0.868 | EB46: 0.737 | EC46: 0.376 | ED46: 0.122 | EE46: 0.000 | EF46: 0.000 | EG46: 0.000 | EH46: 0.000 | EI46: 0.000 | EJ46: 0.000 | EK46: 0.000 | EL46: 0.000 | EM46: 0.000 | EN46: 0.000 | EO46: 0.000
A47: E-FDS1-W | B47: 3.5044639 | C47: 0 | D47: -2.0333833 | E47: -2 | F47: 5.3802700 | G47: -2 | H47: 6.2874192 | I47: -3 | J47: -5.6922176 | K47: -4 | L47: 7.3559387 | M47: -5 | T47: 0.997 | U47: 0.996 | V47: 0.998 | W47: 0.999 | X47: 0.999 | Y47: 0.999 | Z47: 0.999 | AA47: 0.999 | AB47: 0.999 | AC47: 0.999 | AD47: 0.999 | AE47: 0.999 | AF47: 0.999 | AG47: 0.999 | AH47: 0.999 | AI47: 0.999 | AJ47: 0.999 | AK47: 0.999 | AL47: 0.999 | AM47: 0.999 | AN47: 0.998 | AO47: 0.997 | AP47: 0.995 | AQ47: 0.992 | AR47: 0.985 | AS47: 0.934 | AT47: 0.812 | AU47: 0.521 | AV47: 0.063 | AW47: 0.000 | AX47: 0.000 | AY47: 0.000 | AZ47: 0.000 | BA47: 0.000 | BB47: 0.000 | BC47: 0.000 | BD47: 0.000 | BE47: 0.000 | BL47: 0.993 | BM47: 0.991 | BN47: 0.995 | BO47: 0.999 | BP47: 0.999 | BQ47: 0.999 | BR47: 0.999 | BS47: 0.999 | BT47: 0.999 | BU47: 0.999 | BV47: 0.999 | BW47: 0.999 | BX47: 0.999 | BY47: 0.999 | BZ47: 0.999 | CA47: 0.999 | CB47: 0.999 | CC47: 0.999 | CD47: 0.999 | CE47: 0.998 | CF47: 0.994 | CG47: 0.992 | CH47: 0.988 | CI47: 0.981 | CJ47: 0.962 | CK47: 0.842 | CL47: 0.595 | CM47: 0.196 | CN47: 0.000 | CO47: 0.000 | CP47: 0.000 | CQ47: 0.000 | CR47: 0.000 | CS47: 0.000 | CT47: 0.000 | CU47: 0.000 | CV47: 0.000 | CW47: 0.000 | DD47: 0.985 | DE47: 0.983 | DF47: 0.990 | DG47: 0.997 | DH47: 0.998 | DI47: 0.999 | DJ47: 0.998 | DK47: 0.999 | DL47: 0.998 | DM47: 0.998 | DN47: 0.998 | DO47: 0.998 | DP47: 0.998 | DQ47: 0.999 | DR47: 0.999 | DS47: 0.999 | DT47: 0.998 | DU47: 0.998 | DV47: 0.998 | DW47: 0.996 | DX47: 0.989 | DY47: 0.983 | DZ47: 0.976 | EA47: 0.963 | EB47: 0.926 | EC47: 0.710 | ED47: 0.353 | EE47: 0.039 | EF47: 0.000 | EG47: 0.000 | EH47: 0.000 | EI47: 0.000 | EJ47: 0.000 | EK47: 0.000 | EL47: 0.000 | EM47: 0.000 | EN47: 0.000 | EO47: 0.000
A48: E-FDS2 | B48: 3.7672603 | C48: 0 | D48: -1.7001227 | E48: -2 | F48: 6.9849634 | G48: -2 | H48: 6.3862892 | I48: -3 | J48: -5.0812539 | K48: -4 | L48: 8.4455529 | M48: -5 | N48: 0.970 | O48: 0.980 | P48: 0.988 | Q48: 0.996 | R48: 0.998 | S48: 0.999 | T48: 0.999 | U48: 0.999 | V48: 0.999 | W48: 0.999 | X48: 0.999 | Y48: 0.999 | Z48: 0.999 | AA48: 0.999 | AB48: 0.999 | AC48: 0.999 | AD48: 0.999 | AE48: 0.999 | AF48: 0.999 | AG48: 0.999 | AH48: 0.999 | AI48: 0.999 | AJ48: 0.999 | AK48: 0.998 | AL48: 0.998 | AM48: 0.997 | AN48: 0.991 | AO48: 0.985 | AP48: 0.976 | AQ48: 0.950 | AR48: 0.855 | AS48: 0.503 | AT48: 0.000 | AU48: 0.000 | AV48: 0.000 | AW48: 0.000 | AX48: 0.000 | AY48: 0.000 | AZ48: 0.000 | BA48: 0.000 | BB48: 0.000 | BC48: 0.000 | BD48: 0.000 | BE48: 0.000 | BF48: 0.926 | BG48: 0.951 | BH48: 0.970 | BI48: 0.991 | BJ48: 0.994 | BK48: 0.998 | BL48: 0.998 | BM48: 0.997 | BN48: 0.999 | BO48: 0.999 | BP48: 0.999 | BQ48: 0.999 | BR48: 0.998 | BS48: 0.999 | BT48: 0.999 | BU48: 0.999 | BV48: 0.999 | BW48: 0.999 | BX48: 0.998 | BY48: 0.999 | BZ48: 0.998 | CA48: 0.999 | CB48: 0.998 | CC48: 0.996 | CD48: 0.996 | CE48: 0.992 | CF48: 0.977 | CG48: 0.964 | CH48: 0.940 | CI48: 0.880 | CJ48: 0.676 | CK48: 0.179 | CL48: 0.000 | CM48: 0.000 | CN48: 0.000 | CO48: 0.000 | CP48: 0.000 | CQ48: 0.000 | CR48: 0.000 | CS48: 0.000 | CT48: 0.000 | CU48: 0.000 | CV48: 0.000 | CW48: 0.000 | CX48: 0.857 | CY48: 0.904 | CZ48: 0.941 | DA48: 0.982 | DB48: 0.988 | DC48: 0.996 | DD48: 0.995 | DE48: 0.994 | DF48: 0.997 | DG48: 0.998 | DH48: 0.999 | DI48: 0.998 | DJ48: 0.996 | DK48: 0.998 | DL48: 0.998 | DM48: 0.998 | DN48: 0.998 | DO48: 0.998 | DP48: 0.996 | DQ48: 0.998 | DR48: 0.996 | DS48: 0.998 | DT48: 0.995 | DU48: 0.992 | DV48: 0.993 | DW48: 0.984 | DX48: 0.954 | DY48: 0.928 | DZ48: 0.884 | EA48: 0.774 | EB48: 0.457 | EC48: 0.032 | ED48: 0.000 | EE48: 0.000 | EF48: 0.000 | EG48: 0.000 | EH48: 0.000 | EI48: 0.000 | EJ48: 0.000 | EK48: 0.000 | EL48: 0.000 | EM48: 0.000 | EN48: 0.000 | EO48: 0.000
A49: E-FDS3 | B49: 4.1120387 | C49: 0 | D49: -1.8227670 | E49: -2 | F49: 8.9852105 | G49: -2 | H49: 7.8714400 | I49: -3 | J49: -5.2228008 | K49: -4 | L49: 1.1773061 | M49: -4 | N49: 0.985 | O49: 0.989 | P49: 0.996 | Q49: 0.999 | R49: 0.999 | S49: 0.999 | T49: 0.999 | U49: 0.999 | V49: 0.999 | W49: 0.999 | X49: 0.999 | Y49: 0.999 | Z49: 0.999 | AA49: 0.999 | AB49: 0.999 | AC49: 0.999 | AD49: 0.999 | AE49: 0.999 | AF49: 0.999 | AG49: 0.999 | AH49: 0.999 | AI49: 0.999 | AJ49: 0.998 | AK49: 0.998 | AL49: 0.996 | AM49: 0.993 | AN49: 0.985 | AO49: 0.977 | AP49: 0.960 | AQ49: 0.894 | AR49: 0.605 | AS49: 0.034 | AT49: 0.000 | AU49: 0.000 | AV49: 0.000 | AW49: 0.000 | AX49: 0.000 | AY49: 0.000 | AZ49: 0.000 | BA49: 0.000 | BB49: 0.000 | BC49: 0.000 | BD49: 0.000 | BE49: 0.000 | BF49: 0.962 | BG49: 0.973 | BH49: 0.989 | BI49: 0.998 | BJ49: 0.999 | BK49: 0.999 | BL49: 0.998 | BM49: 0.997 | BN49: 0.999 | BO49: 0.999 | BP49: 0.999 | BQ49: 0.999 | BR49: 0.999 | BS49: 0.999 | BT49: 0.998 | BU49: 0.998 | BV49: 0.998 | BW49: 0.998 | BX49: 0.997 | BY49: 0.997 | BZ49: 0.997 | CA49: 0.997 | CB49: 0.996 | CC49: 0.994 | CD49: 0.991 | CE49: 0.982 | CF49: 0.962 | CG49: 0.944 | CH49: 0.902 | CI49: 0.755 | CJ49: 0.285 | CK49: 0.000 | CL49: 0.000 | CM49: 0.000 | CN49: 0.000 | CO49: 0.000 | CP49: 0.000 | CQ49: 0.000 | CR49: 0.000 | CS49: 0.000 | CT49: 0.000 | CU49: 0.000 | CV49: 0.000 | CW49: 0.000 | CX49: 0.925 | CY49: 0.947 | CZ49: 0.978 | DA49: 0.996 | DB49: 0.998 | DC49: 0.999 | DD49: 0.996 | DE49: 0.995 | DF49: 0.999 | DG49: 0.999 | DH49: 0.999 | DI49: 0.998 | DJ49: 0.997 | DK49: 0.997 | DL49: 0.996 | DM49: 0.996 | DN49: 0.996 | DO49: 0.995 | DP49: 0.995 | DQ49: 0.994 | DR49: 0.994 | DS49: 0.993 | DT49: 0.992 | DU49: 0.988 | DV49: 0.982 | DW49: 0.965 | DX49: 0.925 | DY49: 0.891 | DZ49: 0.814 | EA49: 0.570 | EB49: 0.081 | EC49: 0.000 | ED49: 0.000 | EE49: 0.000 | EF49: 0.000 | EG49: 0.000 | EH49: 0.000 | EI49: 0.000 | EJ49: 0.000 | EK49: 0.000 | EL49: 0.000 | EM49: 0.000 | EN49: 0.000 | EO49: 0.000
A50: E-FEL1 | B50: 2.3534484 | C50: 0 | D50: -1.0330438 | E50: -2 | F50: 1.4097325 | G50: -2 | H50: 8.7167875 | I50: -4 | J50: -6.9981970 | K50: -5 | L50: 5.7867359 | M50: -6 | T50: 0.999 | U50: 0.999 | V50: 0.999 | W50: 0.999 | X50: 0.999 | Y50: 0.999 | Z50: 0.999 | AA50: 0.999 | AB50: 0.999 | AC50: 0.999 | AD50: 0.999 | AE50: 0.999 | AF50: 0.999 | AG50: 0.999 | AH50: 0.999 | AI50: 0.999 | AJ50: 0.999 | AK50: 0.999 | AL50: 0.999 | AM50: 0.999 | AN50: 0.998 | AO50: 0.998 | AP50: 0.997 | AQ50: 0.997 | AR50: 0.997 | AS50: 0.996 | AT50: 0.993 | AU50: 0.989 | AV50: 0.971 | AW50: 0.912 | AX50: 0.719 | AY50: 0.367 | AZ50: 0.000 | BA50: 0.000 | BB50: 0.000 | BC50: 0.000 | BD50: 0.000 | BE50: 0.000 | BL50: 0.998 | BM50: 0.999 | BN50: 0.999 | BO50: 0.999 | BP50: 0.999 | BQ50: 0.999 | BR50: 0.999 | BS50: 0.999 | BT50: 0.999 | BU50: 0.999 | BV50: 0.999 | BW50: 0.999 | BX50: 0.999 | BY50: 0.999 | BZ50: 0.999 | CA50: 0.999 | CB50: 0.999 | CC50: 0.997 | CD50: 0.998 | CE50: 0.998 | CF50: 0.996 | CG50: 0.995 | CH50: 0.993 | CI50: 0.992 | CJ50: 0.993 | CK50: 0.990 | CL50: 0.983 | CM50: 0.972 | CN50: 0.930 | CO50: 0.794 | CP50: 0.438 | CQ50: 0.082 | CR50: 0.000 | CS50: 0.000 | CT50: 0.000 | CU50: 0.000 | CV50: 0.000 | CW50: 0.000 | DD50: 0.996 | DE50: 0.998 | DF50: 0.998 | DG50: 0.999 | DH50: 0.999 | DI50: 0.999 | DJ50: 0.999 | DK50: 0.999 | DL50: 0.999 | DM50: 0.999 | DN50: 0.999 | DO50: 0.999 | DP50: 0.999 | DQ50: 0.999 | DR50: 0.999 | DS50: 0.999 | DT50: 0.998 | DU50: 0.994 | DV50: 0.996 | DW50: 0.996 | DX50: 0.992 | DY50: 0.990 | DZ50: 0.987 | EA50: 0.985 | EB50: 0.985 | EC50: 0.980 | ED50: 0.967 | EE50: 0.944 | EF50: 0.864 | EG50: 0.630 | EH50: 0.192 | EI50: 0.000 | EJ50: 0.000 | EK50: 0.000 | EL50: 0.000 | EM50: 0.000 | EN50: 0.000 | EO50: 0.000
A51: E-FEL2 | B51: 2.3317983 | C51: 0 | D51: -9.7042192 | E51: -3 | F51: 1.4032761 | G51: -2 | H51: 6.4822896 | I51: -4 | J51: -4.0813761 | K51: -5 | L51: 3.9064873 | M51: -6 | T51: 0.998 | U51: 0.999 | V51: 0.999 | W51: 0.999 | X51: 0.999 | Y51: 0.999 | Z51: 0.999 | AA51: 0.999 | AB51: 0.999 | AC51: 0.999 | AD51: 0.999 | AE51: 0.999 | AF51: 0.999 | AG51: 0.999 | AH51: 0.999 | AI51: 0.999 | AJ51: 0.999 | AK51: 0.999 | AL51: 0.999 | AM51: 0.999 | AN51: 0.999 | AO51: 0.999 | AP51: 0.998 | AQ51: 0.998 | AR51: 0.998 | AS51: 0.998 | AT51: 0.996 | AU51: 0.992 | AV51: 0.981 | AW51: 0.938 | AX51: 0.792 | AY51: 0.484 | AZ51: 0.260 | BA51: 0.000 | BB51: 0.000 | BC51: 0.000 | BD51: 0.000 | BE51: 0.000 | BL51: 0.996 | BM51: 0.998 | BN51: 0.997 | BO51: 0.999 | BP51: 0.999 | BQ51: 0.999 | BR51: 0.999 | BS51: 0.999 | BT51: 0.999 | BU51: 0.999 | BV51: 0.999 | BW51: 0.999 | BX51: 0.999 | BY51: 0.999 | BZ51: 0.999 | CA51: 0.999 | CB51: 0.999 | CC51: 0.999 | CD51: 0.999 | CE51: 0.999 | CF51: 0.998 | CG51: 0.997 | CH51: 0.996 | CI51: 0.996 | CJ51: 0.996 | CK51: 0.995 | CL51: 0.990 | CM51: 0.980 | CN51: 0.953 | CO51: 0.853 | CP51: 0.558 | CQ51: 0.163 | CR51: 0.034 | CS51: 0.000 | CT51: 0.000 | CU51: 0.000 | CV51: 0.000 | CW51: 0.000 | DD51: 0.993 | DE51: 0.996 | DF51: 0.995 | DG51: 0.998 | DH51: 0.998 | DI51: 0.998 | DJ51: 0.997 | DK51: 0.997 | DL51: 0.997 | DM51: 0.998 | DN51: 0.998 | DO51: 0.998 | DP51: 0.998 | DQ51: 0.999 | DR51: 0.999 | DS51: 0.999 | DT51: 0.999 | DU51: 0.998 | DV51: 0.998 | DW51: 0.999 | DX51: 0.996 | DY51: 0.995 | DZ51: 0.992 | EA51: 0.991 | EB51: 0.992 | EC51: 0.989 | ED51: 0.979 | EE51: 0.960 | EF51: 0.908 | EG51: 0.728 | EH51: 0.312 | EI51: 0.027 | EJ51: 0.000 | EK51: 0.000 | EL51: 0.000 | EM51: 0.000 | EN51: 0.000 | EO51: 0.000
A52: E-FEL6 | B52: 2.3068946 | C52: 0 | D52: -9.6888755 | E52: -3 | F52: 1.3097020 | G52: -2 | H52: 6.5013927 | I52: -4 | J52: -4.2328222 | K52: -5 | L52: 3.5888777 | M52: -6 | BL52: 0.996 | BM52: 0.997 | BN52: 0.998 | BO52: 0.999 | BP52: 0.999 | BQ52: 0.999 | BR52: 0.999 | BS52: 0.999 | BT52: 0.999 | BU52: 0.999 | BV52: 0.999 | BW52: 0.999 | BX52: 0.999 | BY52: 0.999 | BZ52: 0.999 | CA52: 0.999 | CB52: 0.998 | CC52: 0.998 | CD52: 0.998 | CE52: 0.998 | CF52: 0.997 | CG52: 0.996 | CH52: 0.996 | CI52: 0.996 | CJ52: 0.996 | CK52: 0.994 | CL52: 0.991 | CM52: 0.982 | CN52: 0.964 | CO52: 0.894 | CP52: 0.670 | CQ52: 0.278 | CR52: 0.000 | CS52: 0.000 | CT52: 0.000 | CU52: 0.000 | CV52: 0.000 | CW52: 0.000 | DD52: 0.993 | DE52: 0.995 | DF52: 0.995 | DG52: 0.998 | DH52: 0.998 | DI52: 0.999 | DJ52: 0.998 | DK52: 0.998 | DL52: 0.998 | DM52: 0.999 | DN52: 0.998 | DO52: 0.999 | DP52: 0.998 | DQ52: 0.999 | DR52: 0.999 | DS52: 0.999 | DT52: 0.997 | DU52: 0.996 | DV52: 0.997 | DW52: 0.997 | DX52: 0.993 | DY52: 0.992 | DZ52: 0.991 | EA52: 0.991 | EB52: 0.991 | EC52: 0.989 | ED52: 0.982 | EE52: 0.965 | EF52: 0.929 | EG52: 0.799 | EH52: 0.448 | EI52: 0.077 | EJ52: 0.000 | EK52: 0.000 | EL52: 0.000 | EM52: 0.000 | EN52: 0.000 | EO52: 0.000
A53: E-FL5 | B53: 2.4465754 | C53: 0 | D53: -1.0107041 | E53: -2 | F53: 1.7759132 | G53: -2 | H53: 8.7970259 | I53: -4 | J53: -5.7014929 | K53: -5 | L53: 6.0924663 | M53: -6 | T53: 0.999 | U53: 0.999 | V53: 0.998 | W53: 0.999 | X53: 0.999 | Y53: 0.999 | Z53: 0.999 | AA53: 0.999 | AB53: 0.999 | AC53: 0.999 | AD53: 0.999 | AE53: 0.999 | AF53: 0.999 | AG53: 0.999 | AH53: 0.999 | AI53: 0.999 | AJ53: 0.999 | AK53: 0.999 | AL53: 0.999 | AM53: 0.999 | AN53: 0.999 | AO53: 0.999 | AP53: 0.998 | AQ53: 0.998 | AR53: 0.998 | AS53: 0.994 | AT53: 0.988 | AU53: 0.973 | AV53: 0.929 | AW53: 0.799 | AX53: 0.503 | AY53: 0.283 | AZ53: 0.000 | BA53: 0.000 | BB53: 0.000 | BC53: 0.000 | BD53: 0.000 | BE53: 0.000 | BL53: 0.997 | BM53: 0.997 | BN53: 0.996 | BO53: 0.999 | BP53: 0.999 | BQ53: 0.999 | BR53: 0.999 | BS53: 0.999 | BT53: 0.999 | BU53: 0.999 | BV53: 0.999 | BW53: 0.999 | BX53: 0.999 | BY53: 0.999 | BZ53: 0.999 | CA53: 0.999 | CB53: 0.999 | CC53: 0.999 | CD53: 0.999 | CE53: 0.999 | CF53: 0.998 | CG53: 0.997 | CH53: 0.996 | CI53: 0.994 | CJ53: 0.994 | CK53: 0.984 | CL53: 0.970 | CM53: 0.934 | CN53: 0.832 | CO53: 0.570 | CP53: 0.179 | CQ53: 0.042 | CR53: 0.000 | CS53: 0.000 | CT53: 0.000 | CU53: 0.000 | CV53: 0.000 | CW53: 0.000 | DD53: 0.993 | DE53: 0.994 | DF53: 0.993 | DG53: 0.999 | DH53: 0.999 | DI53: 0.998 | DJ53: 0.998 | DK53: 0.998 | DL53: 0.999 | DM53: 0.998 | DN53: 0.998 | DO53: 0.998 | DP53: 0.998 | DQ53: 0.998 | DR53: 0.998 | DS53: 0.998 | DT53: 0.999 | DU53: 0.998 | DV53: 0.999 | DW53: 0.999 | DX53: 0.996 | DY53: 0.994 | DZ53: 0.993 | EA53: 0.989 | EB53: 0.987 | EC53: 0.967 | ED53: 0.941 | EE53: 0.873 | EF53: 0.692 | EG53: 0.325 | EH53: 0.032 | EI53: 0.000 | EJ53: 0.000 | EK53: 0.000 | EL53: 0.000 | EM53: 0.000 | EN53: 0.000 | EO53: 0.000
A54: E-FL6 | B54: 2.4079653 | C54: 0 | D54: -1.1135638 | E54: -2 | F54: 1.5704715 | G54: -2 | H54: 9.9186507 | I54: -4 | J54: -7.9934653 | K54: -5 | L54: 7.0985473 | M54: -6 | T54: 0.998 | U54: 0.998 | V54: 0.996 | W54: 0.999 | X54: 0.999 | Y54: 0.999 | Z54: 0.999 | AA54: 0.999 | AB54: 0.999 | AC54: 0.999 | AD54: 0.999 | AE54: 0.999 | AF54: 0.999 | AG54: 0.999 | AH54: 0.999 | AI54: 0.999 | AJ54: 0.999 | AK54: 0.999 | AL54: 0.999 | AM54: 0.999 | AN54: 0.999 | AO54: 0.999 | AP54: 0.998 | AQ54: 0.998 | AR54: 0.997 | AS54: 0.992 | AT54: 0.984 | AU54: 0.964 | AV54: 0.909 | AW54: 0.760 | AX54: 0.453 | AY54: 0.000 | AZ54: 0.000 | BA54: 0.000 | BB54: 0.000 | BC54: 0.000 | BD54: 0.000 | BE54: 0.000 | BL54: 0.996 | BM54: 0.996 | BN54: 0.989 | BO54: 0.999 | BP54: 0.999 | BQ54: 0.999 | BR54: 0.999 | BS54: 0.999 | BT54: 0.999 | BU54: 0.999 | BV54: 0.999 | BW54: 0.999 | BX54: 0.999 | BY54: 0.999 | BZ54: 0.999 | CA54: 0.999 | CB54: 0.999 | CC54: 0.998 | CD54: 0.999 | CE54: 0.999 | CF54: 0.998 | CG54: 0.997 | CH54: 0.995 | CI54: 0.994 | CJ54: 0.992 | CK54: 0.980 | CL54: 0.959 | CM54: 0.913 | CN54: 0.787 | CO54: 0.504 | CP54: 0.138 | CQ54: 0.000 | CR54: 0.000 | CS54: 0.000 | CT54: 0.000 | CU54: 0.000 | CV54: 0.000 | CW54: 0.000 | DD54: 0.992 | DE54: 0.991 | DF54: 0.979 | DG54: 0.997 | DH54: 0.998 | DI54: 0.998 | DJ54: 0.998 | DK54: 0.998 | DL54: 0.998 | DM54: 0.998 | DN54: 0.999 | DO54: 0.999 | DP54: 0.999 | DQ54: 0.999 | DR54: 0.999 | DS54: 0.998 | DT54: 0.997 | DU54: 0.996 | DV54: 0.998 | DW54: 0.999 | DX54: 0.996 | DY54: 0.993 | DZ54: 0.990 | EA54: 0.989 | EB54: 0.983 | EC54: 0.960 | ED54: 0.921 | EE54: 0.833 | EF54: 0.619 | EG54: 0.254 | EH54: 0.019 | EI54: 0.000 | EJ54: 0.000 | EK54: 0.000 | EL54: 0.000 | EM54: 0.000 | EN54: 0.000 | EO54: 0.000
A55: E-LAF7 | B55: 2.9704178 | C55: 0 | D55: -1.3290679 | E55: -2 | F55: 2.8359006 | G55: -2 | H55: 1.7661786 | I55: -3 | J55: -1.2453482 | K55: -4 | L55: 1.3951937 | M55: -5 | BL55: 0.998 | BM55: 0.998 | BN55: 0.998 | BO55: 0.999 | BP55: 0.999 | BQ55: 0.999 | BR55: 0.999 | BS55: 0.999 | BT55: 0.999 | BU55: 0.999 | BV55: 0.999 | BW55: 0.999 | BX55: 0.999 | BY55: 0.999 | BZ55: 0.999 | CA55: 0.999 | CB55: 0.997 | CC55: 0.997 | CD55: 0.997 | CE55: 0.997 | CF55: 0.992 | CG55: 0.991 | CH55: 0.988 | CI55: 0.981 | CJ55: 0.967 | CK55: 0.912 | CL55: 0.846 | CM55: 0.716 | CN55: 0.485 | CO55: 0.179 | CP55: 0.000 | CQ55: 0.000 | CR55: 0.000 | CS55: 0.000 | CT55: 0.000 | CU55: 0.000 | CV55: 0.000 | CW55: 0.000 | DD55: 0.996 | DE55: 0.996 | DF55: 0.996 | DG55: 0.999 | DH55: 0.999 | DI55: 0.999 | DJ55: 0.999 | DK55: 0.999 | DL55: 0.999 | DM55: 0.999 | DN55: 0.999 | DO55: 0.999 | DP55: 0.999 | DQ55: 0.999 | DR55: 0.999 | DS55: 0.998 | DT55: 0.995 | DU55: 0.994 | DV55: 0.993 | DW55: 0.994 | DX55: 0.984 | DY55: 0.982 | DZ55: 0.975 | EA55: 0.962 | EB55: 0.934 | EC55: 0.831 | ED55: 0.715 | EE55: 0.513 | EF55: 0.235 | EG55: 0.032 | EH55: 0.000 | EI55: 0.000 | EJ55: 0.000 | EK55: 0.000 | EL55: 0.000 | EM55: 0.000 | EN55: 0.000 | EO55: 0.000
A56: FC5 | B56: 2.1894054 | C56: 0 | D56: -9.9044908 | E56: -3 | F56: 8.6403370 | G56: -3 | H56: 2.2263067 | I56: -4 | J56: -1.2291942 | K56: -5 | L56: 5.9386349 | M56: -7 | T56: 0.998 | U56: 0.998 | V56: 0.994 | W56: 0.999 | X56: 0.999 | Y56: 0.999 | Z56: 0.999 | AA56: 0.999 | AB56: 0.999 | AC56: 0.999 | AD56: 0.999 | AE56: 0.999 | AF56: 0.999 | AG56: 0.999 | AH56: 0.999 | AI56: 0.999 | AJ56: 0.999 | AK56: 0.999 | AL56: 0.999 | AM56: 0.999 | AN56: 0.999 | AO56: 0.999 | AP56: 0.999 | AQ56: 0.999 | AR56: 0.999 | AS56: 0.999 | AT56: 0.999 | AU56: 0.999 | AV56: 0.999 | AW56: 0.999 | AX56: 0.998 | AY56: 0.997 | AZ56: 0.994 | BA56: 0.987 | BB56: 0.972 | BC56: 0.933 | BD56: 0.847 | BE56: 0.657 | BL56: 0.996 | BM56: 0.995 | BN56: 0.986 | BO56: 0.999 | BP56: 0.999 | BQ56: 0.999 | BR56: 0.999 | BS56: 0.999 | BT56: 0.999 | BU56: 0.999 | BV56: 0.999 | BW56: 0.999 | BX56: 0.999 | BY56: 0.999 | BZ56: 0.999 | CA56: 0.999 | CB56: 0.999 | CC56: 0.999 | CD56: 0.999 | CE56: 0.999 | CF56: 0.999 | CG56: 0.999 | CH56: 0.999 | CI56: 0.999 | CJ56: 0.999 | CK56: 0.999 | CL56: 0.999 | CM56: 0.997 | CN56: 0.998 | CO56: 0.997 | CP56: 0.996 | CQ56: 0.992 | CR56: 0.985 | CS56: 0.968 | CT56: 0.932 | CU56: 0.840 | CV56: 0.660 | CW56: 0.350 | DD56: 0.992 | DE56: 0.991 | DF56: 0.971 | DG56: 0.999 | DH56: 0.999 | DI56: 0.999 | DJ56: 0.999 | DK56: 0.999 | DL56: 0.999 | DM56: 0.999 | DN56: 0.999 | DO56: 0.999 | DP56: 0.999 | DQ56: 0.999 | DR56: 0.999 | DS56: 0.999 | DT56: 0.999 | DU56: 0.998 | DV56: 0.999 | DW56: 0.999 | DX56: 0.999 | DY56: 0.999 | DZ56: 0.998 | EA56: 0.997 | EB56: 0.997 | EC56: 0.998 | ED56: 0.998 | EE56: 0.993 | EF56: 0.996 | EG56: 0.995 | EH56: 0.992 | EI56: 0.984 | EJ56: 0.970 | EK56: 0.937 | EL56: 0.868 | EM56: 0.710 | EN56: 0.430 | EO56: 0.120
A57: FCD1 | B57: 2.2181132 | C57: 0 | D57: -5.7994270 | E57: -3 | F57: 8.3470679 | G57: -3 | H57: 6.5046523 | I57: -5 | J57: 8.5142186 | K57: -6 | L57: -5.8852269 | M57: -7 | N57: 0.999 | O57: 0.999 | P57: 0.999 | Q57: 0.999 | R57: 0.999 | S57: 0.999 | T57: 0.999 | U57: 0.999 | V57: 0.999 | W57: 0.999 | X57: 0.999 | Y57: 0.999 | Z57: 0.999 | AA57: 0.999 | AB57: 0.999 | AC57: 0.999 | AD57: 0.999 | AE57: 0.999 | AF57: 0.999 | AG57: 0.999 | AH57: 0.999 | AI57: 0.999 | AJ57: 0.999 | AK57: 0.999 | AL57: 0.999 | AM57: 0.999 | AN57: 0.999 | AO57: 0.999 | AP57: 0.999 | AQ57: 0.999 | AR57: 0.999 | AS57: 0.999 | AT57: 0.999 | AU57: 0.999 | AV57: 0.998 | AW57: 0.994 | AX57: 0.988 | AY57: 0.975 | AZ57: 0.947 | BA57: 0.899 | BB57: 0.823 | BC57: 0.718 | BD57: 0.599 | BE57: 0.486 | BF57: 0.999 | BG57: 0.999 | BH57: 0.999 | BI57: 0.999 | BJ57: 0.999 | BK57: 0.999 | BL57: 0.999 | BM57: 0.999 | BN57: 0.999 | BO57: 0.999 | BP57: 0.999 | BQ57: 0.999 | BR57: 0.999 | BS57: 0.999 | BT57: 0.999 | BU57: 0.999 | BV57: 0.999 | BW57: 0.999 | BX57: 0.999 | BY57: 0.999 | BZ57: 0.999 | CA57: 0.999 | CB57: 0.999 | CC57: 0.999 | CD57: 0.999 | CE57: 0.999 | CF57: 0.999 | CG57: 0.999 | CH57: 0.999 | CI57: 0.998 | CJ57: 0.999 | CK57: 0.997 | CL57: 0.998 | CM57: 0.997 | CN57: 0.995 | CO57: 0.986 | CP57: 0.969 | CQ57: 0.937 | CR57: 0.872 | CS57: 0.765 | CT57: 0.613 | CU57: 0.436 | CV57: 0.277 | CW57: 0.164 | CX57: 0.999 | CY57: 0.999 | CZ57: 0.999 | DA57: 0.999 | DB57: 0.999 | DC57: 0.999 | DD57: 0.999 | DE57: 0.999 | DF57: 0.999 | DG57: 0.999 | DH57: 0.999 | DI57: 0.999 | DJ57: 0.999 | DK57: 0.999 | DL57: 0.999 | DM57: 0.999 | DN57: 0.999 | DO57: 0.999 | DP57: 0.999 | DQ57: 0.999 | DR57: 0.999 | DS57: 0.999 | DT57: 0.999 | DU57: 0.998 | DV57: 0.999 | DW57: 0.999 | DX57: 0.999 | DY57: 0.999 | DZ57: 0.997 | EA57: 0.997 | EB57: 0.997 | EC57: 0.995 | ED57: 0.996 | EE57: 0.995 | EF57: 0.990 | EG57: 0.972 | EH57: 0.939 | EI57: 0.878 | EJ57: 0.761 | EK57: 0.586 | EL57: 0.376 | EM57: 0.190 | EN57: 0.077 | EO57: 0.027
A58: FCD10 | B58: 2.1032490 | C58: 0 | D58: -5.0247988 | E58: -3 | F58: 6.5323077 | G58: -3 | H58: 1.3078405 | I58: -4 | J58: -6.3652072 | K58: -6 | L58: 1.9254745 | M58: -7 | BL58: 0.999 | BM58: 0.999 | BN58: 0.999 | BO58: 0.999 | BP58: 0.999 | BQ58: 0.999 | BR58: 0.998 | BS58: 0.998 | BT58: 0.998 | BU58: 0.998 | BV58: 0.998 | BW58: 0.999 | BX58: 0.999 | BY58: 0.999 | BZ58: 0.999 | CA58: 0.999 | CB58: 0.999 | CC58: 0.999 | CD58: 0.999 | CE58: 0.999 | CF58: 0.999 | CG58: 0.999 | CH58: 0.998 | CI58: 0.998 | CJ58: 0.998 | CK58: 0.999 | CL58: 0.999 | CM58: 0.998 | CN58: 0.996 | CO58: 0.991 | CP58: 0.980 | CQ58: 0.956 | CR58: 0.905 | CS58: 0.820 | CT58: 0.680 | CU58: 0.510 | CV58: 0.320 | CW58: 0.170 | DD58: 0.999 | DE58: 0.999 | DF58: 0.999 | DG58: 0.998 | DH58: 0.998 | DI58: 0.998 | DJ58: 0.997 | DK58: 0.996 | DL58: 0.997 | DM58: 0.997 | DN58: 0.997 | DO58: 0.998 | DP58: 0.998 | DQ58: 0.998 | DR58: 0.998 | DS58: 0.998 | DT58: 0.998 | DU58: 0.998 | DV58: 0.998 | DW58: 0.999 | DX58: 0.999 | DY58: 0.998 | DZ58: 0.997 | EA58: 0.996 | EB58: 0.996 | EC58: 0.998 | ED58: 0.998 | EE58: 0.997 | EF58: 0.992 | EG58: 0.982 | EH58: 0.960 | EI58: 0.914 | EJ58: 0.820 | EK58: 0.670 | EL58: 0.470 | EM58: 0.260 | EN58: 0.100 | EO58: 0.030
A59: FCD100 | B59: 2.0482157 | C59: 0 | D59: -4.3211222 | E59: -3 | F59: 6.1826755 | G59: -3 | H59: 3.1411480 | I59: -5 | J59: 3.5370793 | K59: -6 | L59: -1.6694497 | M59: -7 | N59: 0.999 | O59: 0.999 | P59: 0.999 | Q59: 0.999 | R59: 0.999 | S59: 0.999 | T59: 0.999 | U59: 0.999 | V59: 0.999 | W59: 0.999 | X59: 0.999 | Y59: 0.999 | Z59: 0.999 | AA59: 0.999 | AB59: 0.999 | AC59: 0.999 | AD59: 0.999 | AE59: 0.999 | AF59: 0.999 | AG59: 0.999 | AH59: 0.999 | AI59: 0.999 | AJ59: 0.999 | AK59: 0.999 | AL59: 0.999 | AM59: 0.999 | AN59: 0.999 | AO59: 0.999 | AP59: 0.999 | AQ59: 0.999 | AR59: 0.999 | AS59: 0.999 | AT59: 0.999 | AU59: 0.999 | AV59: 0.998 | AW59: 0.995 | AX59: 0.989 | AY59: 0.975 | AZ59: 0.947 | BA59: 0.897 | BB59: 0.815 | BC59: 0.700 | BD59: 0.564 | BE59: 0.430 | BF59: 0.999 | BG59: 0.999 | BH59: 0.999 | BI59: 0.999 | BJ59: 0.999 | BK59: 0.999 | BL59: 0.999 | BM59: 0.999 | BN59: 0.999 | BO59: 0.999 | BP59: 0.998 | BQ59: 0.997 | BR59: 0.997 | BS59: 0.997 | BT59: 0.997 | BU59: 0.998 | BV59: 0.998 | BW59: 0.998 | BX59: 0.998 | BY59: 0.999 | BZ59: 0.999 | CA59: 0.999 | CB59: 0.999 | CC59: 0.999 | CD59: 0.999 | CE59: 0.999 | CF59: 0.999 | CG59: 0.999 | CH59: 0.999 | CI59: 0.999 | CJ59: 0.999 | CK59: 0.999 | CL59: 0.999 | CM59: 0.998 | CN59: 0.995 | CO59: 0.988 | CP59: 0.972 | CQ59: 0.938 | CR59: 0.873 | CS59: 0.761 | CT59: 0.599 | CU59: 0.410 | CV59: 0.239 | CW59: 0.121 | CX59: 0.999 | CY59: 0.998 | CZ59: 0.999 | DA59: 0.999 | DB59: 0.999 | DC59: 0.999 | DD59: 0.997 | DE59: 0.997 | DF59: 0.998 | DG59: 0.997 | DH59: 0.996 | DI59: 0.995 | DJ59: 0.994 | DK59: 0.995 | DL59: 0.995 | DM59: 0.995 | DN59: 0.996 | DO59: 0.997 | DP59: 0.997 | DQ59: 0.999 | DR59: 0.999 | DS59: 0.999 | DT59: 0.999 | DU59: 0.999 | DV59: 0.999 | DW59: 0.999 | DX59: 0.999 | DY59: 0.999 | DZ59: 0.998 | EA59: 0.998 | EB59: 0.997 | EC59: 0.997 | ED59: 0.998 | EE59: 0.995 | EF59: 0.989 | EG59: 0.976 | EH59: 0.944 | EI59: 0.880 | EJ59: 0.761 | EK59: 0.579 | EL59: 0.358 | EM59: 0.168 | EN59: 0.057 | EO59: 0.015
A60: FCD10A | B60: 2.1085888 | C60: 0 | D60: -4.6553722 | E60: -3 | F60: 6.9547480 | G60: -3 | H60: 3.2184141 | I60: -5 | J60: 5.2670946 | K60: -6 | L60: -2.7164844 | M60: -7 | T60: 0.999 | U60: 0.999 | V60: 0.999 | W60: 0.999 | X60: 0.999 | Y60: 0.999 | Z60: 0.999 | AA60: 0.999 | AB60: 0.999 | AC60: 0.999 | AD60: 0.999 | AE60: 0.999 | AF60: 0.999 | AG60: 0.999 | AH60: 0.999 | AI60: 0.999 | AJ60: 0.999 | AK60: 0.999 | AL60: 0.999 | AM60: 0.999 | AN60: 0.999 | AO60: 0.999 | AP60: 0.999 | AQ60: 0.999 | AR60: 0.999 | AS60: 0.999 | AT60: 0.999 | AU60: 0.998 | AV60: 0.997 | AW60: 0.994 | AX60: 0.987 | AY60: 0.972 | AZ60: 0.943 | BA60: 0.891 | BB60: 0.810 | BC60: 0.699 | BD60: 0.569 | BE60: 0.438 | BL60: 0.999 | BM60: 0.999 | BN60: 0.999 | BO60: 0.999 | BP60: 0.999 | BQ60: 0.999 | BR60: 0.999 | BS60: 0.999 | BT60: 0.999 | BU60: 0.998 | BV60: 0.998 | BW60: 0.999 | BX60: 0.999 | BY60: 0.999 | BZ60: 0.999 | CA60: 0.999 | CB60: 0.999 | CC60: 0.999 | CD60: 0.999 | CE60: 0.999 | CF60: 0.999 | CG60: 0.999 | CH60: 0.999 | CI60: 0.998 | CJ60: 0.998 | CK60: 0.998 | CL60: 0.997 | CM60: 0.995 | CN60: 0.992 | CO60: 0.984 | CP60: 0.967 | CQ60: 0.931 | CR60: 0.862 | CS60: 0.749 | CT60: 0.589 | CU60: 0.407 | CV60: 0.243 | CW60: 0.127 | DD60: 0.998 | DE60: 0.998 | DF60: 0.999 | DG60: 0.999 | DH60: 0.999 | DI60: 0.998 | DJ60: 0.997 | DK60: 0.997 | DL60: 0.997 | DM60: 0.997 | DN60: 0.997 | DO60: 0.997 | DP60: 0.998 | DQ60: 0.998 | DR60: 0.998 | DS60: 0.998 | DT60: 0.999 | DU60: 0.999 | DV60: 0.999 | DW60: 0.999 | DX60: 0.999 | DY60: 0.999 | DZ60: 0.997 | EA60: 0.996 | EB60: 0.996 | EC60: 0.995 | ED60: 0.994 | EE60: 0.990 | EF60: 0.983 | EG60: 0.968 | EH60: 0.935 | EI60: 0.867 | EJ60: 0.744 | EK60: 0.561 | EL60: 0.347 | EM60: 0.166 | EN60: 0.059 | EO60: 0.016
A61: FCD1B | B61: 2.2189068 | C61: 0 | D61: -6.1707065 | E61: -3 | F61: 8.0887631 | G61: -3 | H61: 1.3357782 | I61: -4 | J61: 1.9476186 | K61: -7 | L61: -2.2577804 | M61: -7 | T61: 0.999 | U61: 0.999 | V61: 0.999 | W61: 0.999 | X61: 0.999 | Y61: 0.999 | Z61: 0.999 | AA61: 0.999 | AB61: 0.999 | AC61: 0.999 | AD61: 0.999 | AE61: 0.999 | AF61: 0.999 | AG61: 0.999 | AH61: 0.999 | AI61: 0.999 | AJ61: 0.999 | AK61: 0.999 | AL61: 0.999 | AM61: 0.999 | AN61: 0.999 | AO61: 0.999 | AP61: 0.999 | AQ61: 0.999 | AR61: 0.999 | AS61: 0.999 | AT61: 0.999 | AU61: 0.997 | AV61: 0.994 | AW61: 0.987 | AX61: 0.971 | AY61: 0.938 | AZ61: 0.878 | BA61: 0.780 | BB61: 0.646 | BC61: 0.489 | BD61: 0.337 | BE61: 0.205 | BL61: 0.999 | BM61: 0.998 | BN61: 0.999 | BO61: 0.999 | BP61: 0.999 | BQ61: 0.999 | BR61: 0.999 | BS61: 0.999 | BT61: 0.999 | BU61: 0.999 | BV61: 0.998 | BW61: 0.998 | BX61: 0.998 | BY61: 0.998 | BZ61: 0.998 | CA61: 0.998 | CB61: 0.999 | CC61: 0.999 | CD61: 0.999 | CE61: 0.999 | CF61: 0.999 | CG61: 0.999 | CH61: 0.998 | CI61: 0.998 | CJ61: 0.998 | CK61: 0.998 | CL61: 0.997 | CM61: 0.993 | CN61: 0.986 | CO61: 0.968 | CP61: 0.929 | CQ61: 0.852 | CR61: 0.721 | CS61: 0.537 | CT61: 0.334 | CU61: 0.167 | CV61: 0.066 | CW61: 0.000 | DD61: 0.997 | DE61: 0.997 | DF61: 0.997 | DG61: 0.999 | DH61: 0.999 | DI61: 0.999 | DJ61: 0.999 | DK61: 0.999 | DL61: 0.999 | DM61: 0.999 | DN61: 0.999 | DO61: 0.999 | DP61: 0.999 | DQ61: 0.999 | DR61: 0.999 | DS61: 0.999 | DT61: 0.998 | DU61: 0.998 | DV61: 0.999 | DW61: 0.999 | DX61: 0.999 | DY61: 0.998 | DZ61: 0.997 | EA61: 0.996 | EB61: 0.995 | EC61: 0.996 | ED61: 0.993 | EE61: 0.987 | EF61: 0.972 | EG61: 0.938 | EH61: 0.863 | EI61: 0.726 | EJ61: 0.520 | EK61: 0.288 | EL61: 0.112 | EM61: 0.028 | EN61: 0.000 | EO61: 0.000
A62: FCD505 | B62: 2.5023550 | C62: 0 | D62: -7.2080042 | E62: -3 | F62: 1.2012743 | G62: -2 | H62: 3.4920842 | I62: -4 | J62: -2.4729676 | K62: -5 | L62: 1.3801567 | M62: -6 | BF62: 0.967 | BG62: 0.975 | BH62: 0.984 | BI62: 0.993 | BJ62: 0.997 | BK62: 0.999 | BL62: 0.999 | BM62: 0.999 | BN62: 0.999 | BO62: 0.999 | BP62: 0.999 | BQ62: 0.999 | BR62: 0.999 | BS62: 0.999 | BT62: 0.999 | BU62: 0.999 | BV62: 0.999 | BW62: 0.999 | BX62: 0.999 | BY62: 0.999 | BZ62: 0.999 | CA62: 0.999 | CB62: 0.998 | CC62: 0.998 | CD62: 0.998 | CE62: 0.998 | CF62: 0.997 | CG62: 0.997 | CH62: 0.996 | CI62: 0.994 | CJ62: 0.994 | CK62: 0.988 | CL62: 0.981 | CM62: 0.964 | CN62: 0.931 | CO62: 0.866 | CP62: 0.749 | CQ62: 0.585 | CR62: 0.390 | CS62: 0.213 | CT62: 0.000 | CU62: 0.000 | CV62: 0.000 | CW62: 0.000 | CX62: 0.935 | CY62: 0.951 | CZ62: 0.968 | DA62: 0.987 | DB62: 0.995 | DC62: 0.999 | DD62: 0.998 | DE62: 0.999 | DF62: 0.999 | DG62: 0.999 | DH62: 0.999 | DI62: 0.999 | DJ62: 0.999 | DK62: 0.999 | DL62: 0.999 | DM62: 0.999 | DN62: 0.999 | DO62: 0.999 | DP62: 0.999 | DQ62: 0.999 | DR62: 0.999 | DS62: 0.999 | DT62: 0.997 | DU62: 0.997 | DV62: 0.997 | DW62: 0.997 | DX62: 0.995 | DY62: 0.994 | DZ62: 0.992 | EA62: 0.989 | EB62: 0.988 | EC62: 0.977 | ED62: 0.962 | EE62: 0.930 | EF62: 0.866 | EG62: 0.750 | EH62: 0.560 | EI62: 0.342 | EJ62: 0.152 | EK62: 0.045 | EL62: 0.000 | EM62: 0.000 | EN62: 0.000 | EO62: 0.000
A63: FCD515 | B63: 2.5023550 | C63: 0 | D63: -7.2080042 | E63: -3 | F63: 1.2012743 | G63: -2 | H63: 3.4920842 | I63: -4 | J63: -2.4729676 | K63: -5 | L63: 1.3801567 | M63: -6 | N63: 0.979 | O63: 0.984 | P63: 0.989 | Q63: 0.994 | R63: 0.997 | S63: 0.999 | T63: 0.999 | U63: 0.999 | V63: 0.999 | W63: 0.999 | X63: 0.999 | Y63: 0.999 | Z63: 0.999 | AA63: 0.999 | AB63: 0.999 | AC63: 0.999 | AD63: 0.999 | AE63: 0.999 | AF63: 0.999 | AG63: 0.999 | AH63: 0.999 | AI63: 0.999 | AJ63: 0.999 | AK63: 0.999 | AL63: 0.999 | AM63: 0.999 | AN63: 0.999 | AO63: 0.999 | AP63: 0.998 | AQ63: 0.998 | AR63: 0.998 | AS63: 0.996 | AT63: 0.992 | AU63: 0.985 | AV63: 0.969 | AW63: 0.935 | AX63: 0.877 | AY63: 0.781 | AZ63: 0.641 | BA63: 0.480 | BB63: 0.317 | BC63: 0.192 | BD63: 0.103 | BE63: 0.000 | BF63: 0.948 | BG63: 0.961 | BH63: 0.973 | BI63: 0.986 | BJ63: 0.993 | BK63: 0.999 | BL63: 0.999 | BM63: 0.999 | BN63: 0.999 | BO63: 0.999 | BP63: 0.999 | BQ63: 0.999 | BR63: 0.999 | BS63: 0.999 | BT63: 0.998 | BU63: 0.998 | BV63: 0.998 | BW63: 0.998 | BX63: 0.999 | BY63: 0.998 | BZ63: 0.999 | CA63: 0.999 | CB63: 0.998 | CC63: 0.998 | CD63: 0.999 | CE63: 0.999 | CF63: 0.999 | CG63: 0.998 | CH63: 0.997 | CI63: 0.996 | CJ63: 0.995 | CK63: 0.990 | CL63: 0.981 | CM63: 0.962 | CN63: 0.925 | CO63: 0.845 | CP63: 0.720 | CQ63: 0.538 | CR63: 0.330 | CS63: 0.161 | CT63: 0.056 | CU63: 0.000 | CV63: 0.000 | CW63: 0.000 | CX63: 0.899 | CY63: 0.923 | CZ63: 0.946 | DA63: 0.973 | DB63: 0.987 | DC63: 0.999 | DD63: 0.998 | DE63: 0.999 | DF63: 0.999 | DG63: 0.999 | DH63: 0.998 | DI63: 0.998 | DJ63: 0.997 | DK63: 0.997 | DL63: 0.997 | DM63: 0.997 | DN63: 0.996 | DO63: 0.996 | DP63: 0.998 | DQ63: 0.997 | DR63: 0.997 | DS63: 0.998 | DT63: 0.997 | DU63: 0.997 | DV63: 0.998 | DW63: 0.999 | DX63: 0.997 | DY63: 0.996 | DZ63: 0.994 | EA63: 0.991 | EB63: 0.990 | EC63: 0.980 | ED63: 0.962 | EE63: 0.926 | EF63: 0.856 | EG63: 0.714 | EH63: 0.518 | EI63: 0.290 | EJ63: 0.109 | EK63: 0.026 | EL63: 0.000 | EM63: 0.000 | EN63: 0.000 | EO63: 0.000
A64: FCD600 | B64: 2.5009632 | C64: 0 | D64: -7.1951364 | E64: -3 | F64: 1.4064825 | G64: -2 | H64: 2.1434104 | I64: -4 | J64: 4.3873461 | K64: -6 | L64: 4.8834355 | M64: -7 | N64: 0.994 | O64: 0.995 | P64: 0.997 | Q64: 0.998 | R64: 0.999 | S64: 0.999 | T64: 0.999 | U64: 0.999 | V64: 0.999 | W64: 0.999 | X64: 0.999 | Y64: 0.999 | Z64: 0.999 | AA64: 0.999 | AB64: 0.999 | AC64: 0.999 | AD64: 0.999 | AE64: 0.999 | AF64: 0.999 | AG64: 0.999 | AH64: 0.999 | AI64: 0.999 | AJ64: 0.999 | AK64: 0.999 | AL64: 0.999 | AM64: 0.999 | AN64: 0.998 | AO64: 0.998 | AP64: 0.997 | AQ64: 0.996 | AR64: 0.995 | AS64: 0.994 | AT64: 0.993 | AU64: 0.990 | AV64: 0.983 | AW64: 0.969 | AX64: 0.942 | AY64: 0.888 | AZ64: 0.777 | BA64: 0.528 | BB64: 0.166 | BC64: 0.000 | BD64: 0.000 | BE64: 0.000 | BF64: 0.986 | BG64: 0.988 | BH64: 0.992 | BI64: 0.996 | BJ64: 0.997 | BK64: 0.998 | BL64: 0.999 | BM64: 0.999 | BN64: 0.999 | BO64: 0.999 | BP64: 0.999 | BQ64: 0.999 | BR64: 0.999 | BS64: 0.999 | BT64: 0.998 | BU64: 0.998 | BV64: 0.998 | BW64: 0.998 | BX64: 0.999 | BY64: 0.999 | BZ64: 0.998 | CA64: 0.999 | CB64: 0.998 | CC64: 0.998 | CD64: 0.998 | CE64: 0.999 | CF64: 0.996 | CG64: 0.994 | CH64: 0.993 | CI64: 0.991 | CJ64: 0.989 | CK64: 0.986 | CL64: 0.982 | CM64: 0.974 | CN64: 0.959 | CO64: 0.925 | CP64: 0.861 | CQ64: 0.744 | CR64: 0.532 | CS64: 0.203 | CT64: 0.011 | CU64: 0.000 | CV64: 0.000 | CW64: 0.000 | CX64: 0.971 | CY64: 0.976 | CZ64: 0.983 | DA64: 0.991 | DB64: 0.994 | DC64: 0.997 | DD64: 0.999 | DE64: 0.999 | DF64: 0.998 | DG64: 0.999 | DH64: 0.999 | DI64: 0.998 | DJ64: 0.997 | DK64: 0.997 | DL64: 0.997 | DM64: 0.996 | DN64: 0.996 | DO64: 0.997 | DP64: 0.997 | DQ64: 0.997 | DR64: 0.996 | DS64: 0.997 | DT64: 0.996 | DU64: 0.996 | DV64: 0.997 | DW64: 0.998 | DX64: 0.992 | DY64: 0.989 | DZ64: 0.985 | EA64: 0.982 | EB64: 0.977 | EC64: 0.971 | ED64: 0.963 | EE64: 0.949 | EF64: 0.919 | EG64: 0.856 | EH64: 0.742 | EI64: 0.553 | EJ64: 0.283 | EK64: 0.041 | EL64: 0.000 | EM64: 0.000 | EN64: 0.000 | EO64: 0.000
A65: FCD705 | B65: 2.3742832 | C65: 0 | D65: -6.2014418 | E65: -3 | F65: 1.0582967 | G65: -2 | H65: 6.3100703 | I65: -5 | J65: 8.1967150 | K65: -6 | L65: -3.4424446 | M65: -7 | N65: 0.993 | O65: 0.994 | P65: 0.996 | Q65: 0.998 | R65: 0.998 | S65: 0.999 | T65: 0.999 | U65: 0.999 | V65: 0.999 | W65: 0.999 | X65: 0.999 | Y65: 0.998 | Z65: 0.998 | AA65: 0.998 | AB65: 0.998 | AC65: 0.998 | AD65: 0.998 | AE65: 0.998 | AF65: 0.998 | AG65: 0.999 | AH65: 0.999 | AI65: 0.999 | AJ65: 0.999 | AK65: 0.999 | AL65: 0.999 | AM65: 0.999 | AN65: 0.999 | AO65: 0.999 | AP65: 0.999 | AQ65: 0.998 | AR65: 0.998 | AS65: 0.997 | AT65: 0.995 | AU65: 0.991 | AV65: 0.983 | AW65: 0.963 | AX65: 0.928 | AY65: 0.863 | AZ65: 0.756 | BA65: 0.613 | BB65: 0.451 | BC65: 0.290 | BD65: 0.184 | BE65: 0.121 | BF65: 0.982 | BG65: 0.985 | BH65: 0.989 | BI65: 0.995 | BJ65: 0.996 | BK65: 0.997 | BL65: 0.998 | BM65: 0.998 | BN65: 0.998 | BO65: 0.998 | BP65: 0.997 | BQ65: 0.996 | BR65: 0.996 | BS65: 0.996 | BT65: 0.996 | BU65: 0.996 | BV65: 0.996 | BW65: 0.996 | BX65: 0.997 | BY65: 0.997 | BZ65: 0.997 | CA65: 0.997 | CB65: 0.997 | CC65: 0.997 | CD65: 0.998 | CE65: 0.999 | CF65: 0.998 | CG65: 0.997 | CH65: 0.996 | CI65: 0.995 | CJ65: 0.995 | CK65: 0.993 | CL65: 0.988 | CM65: 0.978 | CN65: 0.958 | CO65: 0.911 | CP65: 0.829 | CQ65: 0.691 | CR65: 0.497 | CS65: 0.295 | CT65: 0.137 | CU65: 0.045 | CV65: 0.000 | CW65: 0.000 | CX65: 0.965 | CY65: 0.970 | CZ65: 0.978 | DA65: 0.990 | DB65: 0.993 | DC65: 0.995 | DD65: 0.995 | DE65: 0.995 | DF65: 0.995 | DG65: 0.995 | DH65: 0.994 | DI65: 0.993 | DJ65: 0.992 | DK65: 0.992 | DL65: 0.992 | DM65: 0.991 | DN65: 0.992 | DO65: 0.992 | DP65: 0.994 | DQ65: 0.993 | DR65: 0.994 | DS65: 0.994 | DT65: 0.994 | DU65: 0.994 | DV65: 0.997 | DW65: 0.999 | DX65: 0.997 | DY65: 0.995 | DZ65: 0.993 | EA65: 0.990 | EB65: 0.990 | EC65: 0.986 | ED65: 0.977 | EE65: 0.956 | EF65: 0.918 | EG65: 0.830 | EH65: 0.687 | EI65: 0.478 | EJ65: 0.247 | EK65: 0.087 | EL65: 0.019 | EM65: 0.000 | EN65: 0.000 | EO65: 0.000
A66: FD110 | B66: 3.0534415 | C66: 0 | D66: -1.2751810 | E66: -2 | F66: 4.0609369 | G66: -2 | H66: 2.2706109 | I66: -3 | J66: -7.8086606 | K66: -5 | L66: 1.9874026 | M66: -5 | T66: 0.999 | U66: 0.999 | V66: 0.999 | W66: 0.999 | X66: 0.999 | Y66: 0.999 | Z66: 0.999 | AA66: 0.999 | AB66: 0.999 | AC66: 0.999 | AD66: 0.999 | AE66: 0.999 | AF66: 0.999 | AG66: 0.999 | AH66: 0.999 | AI66: 0.999 | AJ66: 0.998 | AK66: 0.998 | AL66: 0.998 | AM66: 0.999 | AN66: 0.997 | AO66: 0.995 | AP66: 0.993 | AQ66: 0.989 | AR66: 0.982 | AS66: 0.959 | AT66: 0.928 | AU66: 0.854 | AV66: 0.667 | AW66: 0.347 | AX66: 0.000 | AY66: 0.000 | AZ66: 0.000 | BA66: 0.000 | BB66: 0.000 | BC66: 0.000 | BD66: 0.000 | BE66: 0.000 | BL66: 0.997 | BM66: 0.997 | BN66: 0.998 | BO66: 0.999 | BP66: 0.999 | BQ66: 0.999 | BR66: 0.999 | BS66: 0.999 | BT66: 0.999 | BU66: 0.999 | BV66: 0.999 | BW66: 0.999 | BX66: 0.999 | BY66: 0.999 | BZ66: 0.998 | CA66: 0.998 | CB66: 0.996 | CC66: 0.995 | CD66: 0.996 | CE66: 0.996 | CF66: 0.991 | CG66: 0.987 | CH66: 0.982 | CI66: 0.973 | CJ66: 0.955 | CK66: 0.900 | CL66: 0.829 | CM66: 0.674 | CN66: 0.363 | CO66: 0.071 | CP66: 0.000 | CQ66: 0.000 | CR66: 0.000 | CS66: 0.000 | CT66: 0.000 | CU66: 0.000 | CV66: 0.000 | CW66: 0.000 | DD66: 0.994 | DE66: 0.994 | DF66: 0.996 | DG66: 0.999 | DH66: 0.999 | DI66: 0.999 | DJ66: 0.998 | DK66: 0.998 | DL66: 0.998 | DM66: 0.998 | DN66: 0.999 | DO66: 0.999 | DP66: 0.999 | DQ66: 0.997 | DR66: 0.997 | DS66: 0.995 | DT66: 0.991 | DU66: 0.990 | DV66: 0.992 | DW66: 0.993 | DX66: 0.983 | DY66: 0.975 | DZ66: 0.964 | EA66: 0.946 | EB66: 0.912 | EC66: 0.810 | ED66: 0.687 | EE66: 0.454 | EF66: 0.132 | EG66: 0.000 | EH66: 0.000 | EI66: 0.000 | EJ66: 0.000 | EK66: 0.000 | EL66: 0.000 | EM66: 0.000 | EN66: 0.000 | EO66: 0.000
A67: FD140 | B67: 2.9851294 | C67: 0 | D67: -1.4237988 | E67: -2 | F67: 3.5496437 | G67: -2 | H67: 2.8457557 | I67: -3 | J67: -1.9006799 | K67: -4 | L67: 2.4309252 | M67: -5 | T67: 0.999 | U67: 0.999 | V67: 0.999 | W67: 0.999 | X67: 0.999 | Y67: 0.999 | Z67: 0.999 | AA67: 0.999 | AB67: 0.999 | AC67: 0.999 | AD67: 0.999 | AE67: 0.999 | AF67: 0.999 | AG67: 0.999 | AH67: 0.999 | AI67: 0.998 | AJ67: 0.998 | AK67: 0.998 | AL67: 0.999 | AM67: 0.999 | AN67: 0.996 | AO67: 0.995 | AP67: 0.993 | AQ67: 0.991 | AR67: 0.984 | AS67: 0.959 | AT67: 0.921 | AU67: 0.829 | AV67: 0.619 | AW67: 0.285 | AX67: 0.000 | AY67: 0.000 | AZ67: 0.000 | BA67: 0.000 | BB67: 0.000 | BC67: 0.000 | BD67: 0.000 | BE67: 0.000 | BL67: 0.997 | BM67: 0.997 | BN67: 0.997 | BO67: 0.999 | BP67: 0.999 | BQ67: 0.998 | BR67: 0.998 | BS67: 0.998 | BT67: 0.998 | BU67: 0.998 | BV67: 0.998 | BW67: 0.998 | BX67: 0.998 | BY67: 0.998 | BZ67: 0.998 | CA67: 0.996 | CB67: 0.996 | CC67: 0.995 | CD67: 0.997 | CE67: 0.997 | CF67: 0.991 | CG67: 0.988 | CH67: 0.983 | CI67: 0.977 | CJ67: 0.961 | CK67: 0.901 | CL67: 0.815 | CM67: 0.626 | CN67: 0.301 | CO67: 0.043 | CP67: 0.000 | CQ67: 0.000 | CR67: 0.000 | CS67: 0.000 | CT67: 0.000 | CU67: 0.000 | CV67: 0.000 | CW67: 0.000 | DD67: 0.995 | DE67: 0.995 | DF67: 0.995 | DG67: 0.998 | DH67: 0.998 | DI67: 0.996 | DJ67: 0.996 | DK67: 0.996 | DL67: 0.996 | DM67: 0.996 | DN67: 0.996 | DO67: 0.996 | DP67: 0.995 | DQ67: 0.995 | DR67: 0.995 | DS67: 0.994 | DT67: 0.992 | DU67: 0.989 | DV67: 0.994 | DW67: 0.993 | DX67: 0.982 | DY67: 0.976 | DZ67: 0.966 | EA67: 0.954 | EB67: 0.924 | EC67: 0.812 | ED67: 0.663 | EE67: 0.392 | EF67: 0.091 | EG67: 0.000 | EH67: 0.000 | EI67: 0.000 | EJ67: 0.000 | EK67: 0.000 | EL67: 0.000 | EM67: 0.000 | EN67: 0.000 | EO67: 0.000
A68: FD225 | B68: 3.1189869 | C68: 0 | D68: -1.5820772 | E68: -2 | F68: 4.4425024 | G68: -2 | H68: 3.5834882 | I68: -3 | J68: -2.3943449 | K68: -4 | L68: 3.8756542 | M68: -5 | N68: 0.944 | O68: 0.956 | P68: 0.972 | Q68: 0.989 | R68: 0.993 | S68: 0.996 | T68: 0.998 | U68: 0.998 | V68: 0.999 | W68: 0.999 | X68: 0.999 | Y68: 0.999 | Z68: 0.999 | AA68: 0.999 | AB68: 0.999 | AC68: 0.999 | AD68: 0.999 | AE68: 0.999 | AF68: 0.999 | AG68: 0.999 | AH68: 0.999 | AI68: 0.999 | AJ68: 0.999 | AK68: 0.999 | AL68: 0.999 | AM68: 0.999 | AN68: 0.997 | AO68: 0.996 | AP68: 0.995 | AQ68: 0.994 | AR68: 0.990 | AS68: 0.977 | AT68: 0.945 | AU68: 0.831 | AV68: 0.544 | AW68: 0.049 | AX68: 0.000 | AY68: 0.000 | AZ68: 0.000 | BA68: 0.000 | BB68: 0.000 | BC68: 0.000 | BD68: 0.000 | BE68: 0.000 | BF68: 0.866 | BG68: 0.894 | BH68: 0.932 | BI68: 0.973 | BJ68: 0.983 | BK68: 0.989 | BL68: 0.995 | BM68: 0.995 | BN68: 0.997 | BO68: 0.999 | BP68: 0.999 | BQ68: 0.999 | BR68: 0.999 | BS68: 0.999 | BT68: 0.999 | BU68: 0.999 | BV68: 0.999 | BW68: 0.999 | BX68: 0.999 | BY68: 0.999 | BZ68: 0.998 | CA68: 0.998 | CB68: 0.998 | CC68: 0.997 | CD68: 0.997 | CE68: 0.996 | CF68: 0.992 | CG68: 0.990 | CH68: 0.988 | CI68: 0.984 | CJ68: 0.976 | CK68: 0.944 | CL68: 0.868 | CM68: 0.630 | CN68: 0.218 | CO68: 0.000 | CP68: 0.000 | CQ68: 0.000 | CR68: 0.000 | CS68: 0.000 | CT68: 0.000 | CU68: 0.000 | CV68: 0.000 | CW68: 0.000 | CX68: 0.750 | CY68: 0.799 | CZ68: 0.868 | DA68: 0.946 | DB68: 0.966 | DC68: 0.978 | DD68: 0.990 | DE68: 0.990 | DF68: 0.994 | DG68: 0.998 | DH68: 0.998 | DI68: 0.998 | DJ68: 0.998 | DK68: 0.998 | DL68: 0.998 | DM68: 0.998 | DN68: 0.999 | DO68: 0.999 | DP68: 0.999 | DQ68: 0.997 | DR68: 0.996 | DS68: 0.996 | DT68: 0.996 | DU68: 0.995 | DV68: 0.994 | DW68: 0.992 | DX68: 0.984 | DY68: 0.981 | DZ68: 0.975 | EA68: 0.967 | EB68: 0.953 | EC68: 0.890 | ED68: 0.753 | EE68: 0.397 | EF68: 0.048 | EG68: 0.000 | EH68: 0.000 | EI68: 0.000 | EJ68: 0.000 | EK68: 0.000 | EL68: 0.000 | EM68: 0.000 | EN68: 0.000 | EO68: 0.000
A69: FD60 | B69: 3.1171483 | C69: 0 | D69: -1.1616277 | E69: -2 | F69: 4.4864975 | G69: -2 | H69: 1.6588491 | I69: -3 | J69: 2.5716854 | K69: -5 | L69: 1.4757657 | M69: -5 | N69: 0.970 | O69: 0.974 | P69: 0.986 | Q69: 0.995 | R69: 0.997 | S69: 0.999 | T69: 0.999 | U69: 0.999 | V69: 0.999 | W69: 0.999 | X69: 0.999 | Y69: 0.999 | Z69: 0.999 | AA69: 0.999 | AB69: 0.999 | AC69: 0.999 | AD69: 0.999 | AE69: 0.999 | AF69: 0.999 | AG69: 0.999 | AH69: 0.999 | AI69: 0.999 | AJ69: 0.999 | AK69: 0.998 | AL69: 0.999 | AM69: 0.998 | AN69: 0.996 | AO69: 0.994 | AP69: 0.993 | AQ69: 0.991 | AR69: 0.987 | AS69: 0.977 | AT69: 0.958 | AU69: 0.903 | AV69: 0.748 | AW69: 0.426 | AX69: 0.000 | AY69: 0.000 | AZ69: 0.000 | BA69: 0.000 | BB69: 0.000 | BC69: 0.000 | BD69: 0.000 | BE69: 0.000 | BF69: 0.926 | BG69: 0.937 | BH69: 0.966 | BI69: 0.986 | BJ69: 0.993 | BK69: 0.999 | BL69: 0.999 | BM69: 0.998 | BN69: 0.999 | BO69: 0.999 | BP69: 0.999 | BQ69: 0.999 | BR69: 0.999 | BS69: 0.999 | BT69: 0.999 | BU69: 0.999 | BV69: 0.999 | BW69: 0.999 | BX69: 0.999 | BY69: 0.999 | BZ69: 0.999 | CA69: 0.998 | CB69: 0.997 | CC69: 0.995 | CD69: 0.996 | CE69: 0.996 | CF69: 0.989 | CG69: 0.986 | CH69: 0.983 | CI69: 0.978 | CJ69: 0.969 | CK69: 0.943 | CL69: 0.898 | CM69: 0.774 | CN69: 0.483 | CO69: 0.117 | CP69: 0.000 | CQ69: 0.000 | CR69: 0.000 | CS69: 0.000 | CT69: 0.000 | CU69: 0.000 | CV69: 0.000 | CW69: 0.000 | CX69: 0.857 | CY69: 0.878 | CZ69: 0.934 | DA69: 0.973 | DB69: 0.986 | DC69: 0.999 | DD69: 0.997 | DE69: 0.996 | DF69: 0.998 | DG69: 0.998 | DH69: 0.998 | DI69: 0.998 | DJ69: 0.997 | DK69: 0.997 | DL69: 0.997 | DM69: 0.997 | DN69: 0.998 | DO69: 0.998 | DP69: 0.999 | DQ69: 0.998 | DR69: 0.997 | DS69: 0.995 | DT69: 0.993 | DU69: 0.990 | DV69: 0.993 | DW69: 0.991 | DX69: 0.979 | DY69: 0.972 | DZ69: 0.965 | EA69: 0.957 | EB69: 0.939 | EC69: 0.889 | ED69: 0.806 | EE69: 0.599 | EF69: 0.234 | EG69: 0.014 | EH69: 0.000 | EI69: 0.000 | EJ69: 0.000 | EK69: 0.000 | EL69: 0.000 | EM69: 0.000 | EN69: 0.000 | EO69: 0.000
A70: FD60-W | B70: 3.1171483 | C70: 0 | D70: -1.1616277 | E70: -2 | F70: 4.4864975 | G70: -2 | H70: 1.6588491 | I70: -3 | J70: 2.5716854 | K70: -5 | L70: 1.4757657 | M70: -5 | N70: 0.970 | O70: 0.974 | P70: 0.986 | Q70: 0.994 | R70: 0.997 | S70: 0.999 | T70: 0.999 | U70: 0.999 | V70: 0.999 | W70: 0.999 | X70: 0.999 | Y70: 0.999 | Z70: 0.999 | AA70: 0.999 | AB70: 0.999 | AC70: 0.999 | AD70: 0.999 | AE70: 0.999 | AF70: 0.999 | AG70: 0.999 | AH70: 0.999 | AI70: 0.999 | AJ70: 0.998 | AK70: 0.998 | AL70: 0.998 | AM70: 0.999 | AN70: 0.997 | AO70: 0.996 | AP70: 0.996 | AQ70: 0.994 | AR70: 0.990 | AS70: 0.977 | AT70: 0.956 | AU70: 0.901 | AV70: 0.747 | AW70: 0.420 | AX70: 0.000 | AY70: 0.000 | AZ70: 0.000 | BA70: 0.000 | BB70: 0.000 | BC70: 0.000 | BD70: 0.000 | BE70: 0.000 | BF70: 0.926 | BG70: 0.937 | BH70: 0.966 | BI70: 0.986 | BJ70: 0.993 | BK70: 0.999 | BL70: 0.999 | BM70: 0.998 | BN70: 0.999 | BO70: 0.999 | BP70: 0.999 | BQ70: 0.999 | BR70: 0.999 | BS70: 0.999 | BT70: 0.999 | BU70: 0.999 | BV70: 0.999 | BW70: 0.999 | BX70: 0.999 | BY70: 0.999 | BZ70: 0.999 | CA70: 0.998 | CB70: 0.996 | CC70: 0.995 | CD70: 0.996 | CE70: 0.997 | CF70: 0.993 | CG70: 0.991 | CH70: 0.989 | CI70: 0.984 | CJ70: 0.976 | CK70: 0.944 | CL70: 0.894 | CM70: 0.770 | CN70: 0.482 | CO70: 0.114 | CP70: 0.000 | CQ70: 0.000 | CR70: 0.000 | CS70: 0.000 | CT70: 0.000 | CU70: 0.000 | CV70: 0.000 | CW70: 0.000 | CX70: 0.857 | CY70: 0.878 | CZ70: 0.934 | DA70: 0.973 | DB70: 0.986 | DC70: 0.999 | DD70: 0.997 | DE70: 0.996 | DF70: 0.998 | DG70: 0.998 | DH70: 0.998 | DI70: 0.998 | DJ70: 0.997 | DK70: 0.997 | DL70: 0.997 | DM70: 0.997 | DN70: 0.998 | DO70: 0.998 | DP70: 0.999 | DQ70: 0.998 | DR70: 0.997 | DS70: 0.995 | DT70: 0.993 | DU70: 0.993 | DV70: 0.992 | DW70: 0.993 | DX70: 0.986 | DY70: 0.982 | DZ70: 0.977 | EA70: 0.969 | EB70: 0.952 | EC70: 0.891 | ED70: 0.800 | EE70: 0.593 | EF70: 0.232 | EG70: 0.013 | EH70: 0.000 | EI70: 0.000 | EJ70: 0.000 | EK70: 0.000 | EL70: 0.000 | EM70: 0.000 | EN70: 0.000 | EO70: 0.000
A71: FDS16-W | B71: 3.6906098 | C71: 0 | D71: -2.7849024 | E71: -2 | F71: 6.3139051 | G71: -2 | H71: 1.2443698 | I71: -2 | J71: -1.4774085 | K71: -3 | L71: 1.7478701 | M71: -4 | N71: 0.964 | O71: 0.973 | P71: 0.979 | Q71: 0.993 | R71: 0.995 | S71: 0.997 | T71: 0.997 | U71: 0.996 | V71: 0.999 | W71: 0.999 | X71: 0.999 | Y71: 0.999 | Z71: 0.999 | AA71: 0.999 | AB71: 0.999 | AC71: 0.999 | AD71: 0.999 | AE71: 0.999 | AF71: 0.999 | AG71: 0.999 | AH71: 0.999 | AI71: 0.999 | AJ71: 0.999 | AK71: 0.999 | AL71: 0.998 | AM71: 0.997 | AN71: 0.992 | AO71: 0.990 | AP71: 0.985 | AQ71: 0.974 | AR71: 0.903 | AS71: 0.440 | AT71: 0.037 | AU71: 0.000 | AV71: 0.000 | AW71: 0.000 | AX71: 0.000 | AY71: 0.000 | AZ71: 0.000 | BA71: 0.000 | BB71: 0.000 | BC71: 0.000 | BD71: 0.000 | BE71: 0.000 | BF71: 0.913 | BG71: 0.934 | BH71: 0.948 | BI71: 0.982 | BJ71: 0.987 | BK71: 0.992 | BL71: 0.993 | BM71: 0.991 | BN71: 0.997 | BO71: 0.999 | BP71: 0.999 | BQ71: 0.999 | BR71: 0.999 | BS71: 0.999 | BT71: 0.999 | BU71: 0.999 | BV71: 0.998 | BW71: 0.998 | BX71: 0.998 | BY71: 0.999 | BZ71: 0.998 | CA71: 0.998 | CB71: 0.998 | CC71: 0.997 | CD71: 0.996 | CE71: 0.992 | CF71: 0.981 | CG71: 0.974 | CH71: 0.963 | CI71: 0.937 | CJ71: 0.774 | CK71: 0.129 | CL71: 0.000 | CM71: 0.000 | CN71: 0.000 | CO71: 0.000 | CP71: 0.000 | CQ71: 0.000 | CR71: 0.000 | CS71: 0.000 | CT71: 0.000 | CU71: 0.000 | CV71: 0.000 | CW71: 0.000 | CX71: 0.833 | CY71: 0.873 | CZ71: 0.898 | DA71: 0.965 | DB71: 0.973 | DC71: 0.985 | DD71: 0.985 | DE71: 0.982 | DF71: 0.993 | DG71: 0.998 | DH71: 0.999 | DI71: 0.998 | DJ71: 0.998 | DK71: 0.998 | DL71: 0.997 | DM71: 0.997 | DN71: 0.997 | DO71: 0.997 | DP71: 0.996 | DQ71: 0.997 | DR71: 0.997 | DS71: 0.996 | DT71: 0.995 | DU71: 0.994 | DV71: 0.993 | DW71: 0.984 | DX71: 0.962 | DY71: 0.948 | DZ71: 0.928 | EA71: 0.877 | EB71: 0.599 | EC71: 0.017 | ED71: 0.000 | EE71: 0.000 | EF71: 0.000 | EG71: 0.000 | EH71: 0.000 | EI71: 0.000 | EJ71: 0.000 | EK71: 0.000 | EL71: 0.000 | EM71: 0.000 | EN71: 0.000 | EO71: 0.000
A72: FDS18 | B72: 3.5637840 | C72: 0 | D72: -2.5449644 | E72: -2 | F72: 5.8401659 | G72: -2 | H72: 9.2310983 | I72: -3 | J72: -9.5499727 | K72: -4 | L72: 1.1777456 | M72: -4 | N72: 0.970 | O72: 0.979 | P72: 0.986 | Q72: 0.996 | R72: 0.998 | S72: 0.999 | T72: 0.996 | U72: 0.996 | V72: 0.996 | W72: 0.997 | X72: 0.998 | Y72: 0.998 | Z72: 0.998 | AA72: 0.998 | AB72: 0.998 | AC72: 0.999 | AD72: 0.999 | AE72: 0.999 | AF72: 0.999 | AG72: 0.999 | AH72: 0.999 | AI72: 0.999 | AJ72: 0.998 | AK72: 0.997 | AL72: 0.996 | AM72: 0.993 | AN72: 0.984 | AO72: 0.978 | AP72: 0.967 | AQ72: 0.942 | AR72: 0.868 | AS72: 0.594 | AT72: 0.316 | AU72: 0.000 | AV72: 0.000 | AW72: 0.000 | AX72: 0.000 | AY72: 0.000 | AZ72: 0.000 | BA72: 0.000 | BB72: 0.000 | BC72: 0.000 | BD72: 0.000 | BE72: 0.000 | BF72: 0.927 | BG72: 0.949 | BH72: 0.966 | BI72: 0.991 | BJ72: 0.995 | BK72: 0.999 | BL72: 0.990 | BM72: 0.989 | BN72: 0.991 | BO72: 0.993 | BP72: 0.994 | BQ72: 0.995 | BR72: 0.995 | BS72: 0.995 | BT72: 0.996 | BU72: 0.997 | BV72: 0.998 | BW72: 0.999 | BX72: 0.999 | BY72: 0.998 | BZ72: 0.998 | CA72: 0.997 | CB72: 0.996 | CC72: 0.993 | CD72: 0.991 | CE72: 0.983 | CF72: 0.961 | CG72: 0.945 | CH72: 0.919 | CI72: 0.862 | CJ72: 0.701 | CK72: 0.272 | CL72: 0.056 | CM72: 0.000 | CN72: 0.000 | CO72: 0.000 | CP72: 0.000 | CQ72: 0.000 | CR72: 0.000 | CS72: 0.000 | CT72: 0.000 | CU72: 0.000 | CV72: 0.000 | CW72: 0.000 | CX72: 0.860 | CY72: 0.900 | CZ72: 0.934 | DA72: 0.982 | DB72: 0.991 | DC72: 0.999 | DD72: 0.980 | DE72: 0.979 | DF72: 0.982 | DG72: 0.986 | DH72: 0.988 | DI72: 0.990 | DJ72: 0.990 | DK72: 0.990 | DL72: 0.992 | DM72: 0.993 | DN72: 0.996 | DO72: 0.998 | DP72: 0.999 | DQ72: 0.996 | DR72: 0.995 | DS72: 0.994 | DT72: 0.992 | DU72: 0.987 | DV72: 0.982 | DW72: 0.966 | DX72: 0.923 | DY72: 0.894 | DZ72: 0.845 | EA72: 0.743 | EB72: 0.491 | EC72: 0.074 | ED72: 0.000 | EE72: 0.000 | EF72: 0.000 | EG72: 0.000 | EH72: 0.000 | EI72: 0.000 | EJ72: 0.000 | EK72: 0.000 | EL72: 0.000 | EM72: 0.000 | EN72: 0.000 | EO72: 0.000
A73: FDS18-W | B73: 3.5637840 | C73: 0 | D73: -2.5449644 | E73: -2 | F73: 5.8401659 | G73: -2 | H73: 9.2310983 | I73: -3 | J73: -9.5499727 | K73: -4 | L73: 1.1777456 | M73: -4 | T73: 0.997 | U73: 0.996 | V73: 0.998 | W73: 0.999 | X73: 0.999 | Y73: 0.999 | Z73: 0.999 | AA73: 0.999 | AB73: 0.999 | AC73: 0.999 | AD73: 0.999 | AE73: 0.999 | AF73: 0.999 | AG73: 0.999 | AH73: 0.999 | AI73: 0.999 | AJ73: 0.999 | AK73: 0.999 | AL73: 0.999 | AM73: 0.998 | AN73: 0.996 | AO73: 0.995 | AP73: 0.992 | AQ73: 0.988 | AR73: 0.971 | AS73: 0.815 | AT73: 0.541 | AU73: 0.074 | AV73: 0.000 | AW73: 0.000 | AX73: 0.000 | AY73: 0.000 | AZ73: 0.000 | BA73: 0.000 | BB73: 0.000 | BC73: 0.000 | BD73: 0.000 | BE73: 0.000 | BL73: 0.992 | BM73: 0.991 | BN73: 0.995 | BO73: 0.998 | BP73: 0.999 | BQ73: 0.999 | BR73: 0.999 | BS73: 0.999 | BT73: 0.999 | BU73: 0.999 | BV73: 0.999 | BW73: 0.999 | BX73: 0.999 | BY73: 0.999 | BZ73: 0.999 | CA73: 0.999 | CB73: 0.999 | CC73: 0.999 | CD73: 0.998 | CE73: 0.996 | CF73: 0.990 | CG73: 0.987 | CH73: 0.981 | CI73: 0.971 | CJ73: 0.929 | CK73: 0.600 | CL73: 0.215 | CM73: 0.000 | CN73: 0.000 | CO73: 0.000 | CP73: 0.000 | CQ73: 0.000 | CR73: 0.000 | CS73: 0.000 | CT73: 0.000 | CU73: 0.000 | CV73: 0.000 | CW73: 0.000 | DD73: 0.985 | DE73: 0.982 | DF73: 0.990 | DG73: 0.997 | DH73: 0.998 | DI73: 0.998 | DJ73: 0.998 | DK73: 0.998 | DL73: 0.998 | DM73: 0.998 | DN73: 0.997 | DO73: 0.998 | DP73: 0.998 | DQ73: 0.998 | DR73: 0.998 | DS73: 0.998 | DT73: 0.998 | DU73: 0.997 | DV73: 0.996 | DW73: 0.991 | DX73: 0.980 | DY73: 0.974 | DZ73: 0.963 | EA73: 0.943 | EB73: 0.863 | EC73: 0.360 | ED73: 0.046 | EE73: 0.000 | EF73: 0.000 | EG73: 0.000 | EH73: 0.000 | EI73: 0.000 | EJ73: 0.000 | EK73: 0.000 | EL73: 0.000 | EM73: 0.000 | EN73: 0.000 | EO73: 0.000
A74: FDS20-W | B74: 3.3114745 | C74: 0 | D74: -1.9402447 | E74: -2 | F74: 5.1621829 | G74: -2 | H74: 5.8556024 | I74: -3 | J74: -5.3287332 | K74: -4 | L74: 7.3197844 | M74: -5 | N74: 0.917 | O74: 0.934 | P74: 0.953 | Q74: 0.984 | R74: 0.991 | S74: 0.996 | T74: 0.997 | U74: 0.996 | V74: 0.998 | W74: 0.999 | X74: 0.999 | Y74: 0.999 | Z74: 0.999 | AA74: 0.999 | AB74: 0.999 | AC74: 0.999 | AD74: 0.999 | AE74: 0.999 | AF74: 0.999 | AG74: 0.999 | AH74: 0.999 | AI74: 0.999 | AJ74: 0.999 | AK74: 0.999 | AL74: 0.999 | AM74: 0.998 | AN74: 0.998 | AO74: 0.997 | AP74: 0.997 | AQ74: 0.995 | AR74: 0.989 | AS74: 0.928 | AT74: 0.739 | AU74: 0.315 | AV74: 0.022 | AW74: 0.000 | AX74: 0.000 | AY74: 0.000 | AZ74: 0.000 | BA74: 0.000 | BB74: 0.000 | BC74: 0.000 | BD74: 0.000 | BE74: 0.000 | BF74: 0.806 | BG74: 0.844 | BH74: 0.887 | BI74: 0.961 | BJ74: 0.979 | BK74: 0.991 | BL74: 0.992 | BM74: 0.991 | BN74: 0.995 | BO74: 0.999 | BP74: 0.999 | BQ74: 0.999 | BR74: 0.999 | BS74: 0.999 | BT74: 0.998 | BU74: 0.998 | BV74: 0.997 | BW74: 0.997 | BX74: 0.997 | BY74: 0.996 | BZ74: 0.997 | CA74: 0.997 | CB74: 0.997 | CC74: 0.997 | CD74: 0.997 | CE74: 0.996 | CF74: 0.994 | CG74: 0.993 | CH74: 0.991 | CI74: 0.988 | CJ74: 0.974 | CK74: 0.829 | CL74: 0.469 | CM74: 0.056 | CN74: 0.000 | CO74: 0.000 | CP74: 0.000 | CQ74: 0.000 | CR74: 0.000 | CS74: 0.000 | CT74: 0.000 | CU74: 0.000 | CV74: 0.000 | CW74: 0.000 | CX74: 0.649 | CY74: 0.712 | CZ74: 0.787 | DA74: 0.923 | DB74: 0.958 | DC74: 0.981 | DD74: 0.984 | DE74: 0.982 | DF74: 0.990 | DG74: 0.999 | DH74: 0.999 | DI74: 0.999 | DJ74: 0.998 | DK74: 0.998 | DL74: 0.996 | DM74: 0.996 | DN74: 0.995 | DO74: 0.994 | DP74: 0.994 | DQ74: 0.993 | DR74: 0.995 | DS74: 0.993 | DT74: 0.993 | DU74: 0.994 | DV74: 0.994 | DW74: 0.992 | DX74: 0.988 | DY74: 0.986 | DZ74: 0.983 | EA74: 0.976 | EB74: 0.949 | EC74: 0.687 | ED74: 0.220 | EE74: 0.000 | EF74: 0.000 | EG74: 0.000 | EH74: 0.000 | EI74: 0.000 | EJ74: 0.000 | EK74: 0.000 | EL74: 0.000 | EM74: 0.000 | EN74: 0.000 | EO74: 0.000
A75: FDS24 | B75: 3.5126327 | C75: 0 | D75: -1.5301500 | E75: -2 | F75: 5.3936061 | G75: -2 | H75: 3.4949369 | I75: -3 | J75: -1.7950295 | K75: -4 | L75: 3.4403181 | M75: -5 | N75: 0.985 | O75: 0.989 | P75: 0.996 | Q75: 0.999 | R75: 0.999 | S75: 0.999 | T75: 0.999 | U75: 0.999 | V75: 0.999 | W75: 0.999 | X75: 0.999 | Y75: 0.999 | Z75: 0.999 | AA75: 0.999 | AB75: 0.999 | AC75: 0.999 | AD75: 0.999 | AE75: 0.999 | AF75: 0.999 | AG75: 0.999 | AH75: 0.999 | AI75: 0.999 | AJ75: 0.998 | AK75: 0.998 | AL75: 0.998 | AM75: 0.997 | AN75: 0.991 | AO75: 0.988 | AP75: 0.983 | AQ75: 0.975 | AR75: 0.958 | AS75: 0.919 | AT75: 0.878 | AU75: 0.787 | AV75: 0.586 | AW75: 0.163 | AX75: 0.000 | AY75: 0.000 | AZ75: 0.000 | BA75: 0.000 | BB75: 0.000 | BC75: 0.000 | BD75: 0.000 | BE75: 0.000 | BF75: 0.962 | BG75: 0.972 | BH75: 0.989 | BI75: 0.997 | BJ75: 0.999 | BK75: 0.998 | BL75: 0.999 | BM75: 0.999 | BN75: 0.999 | BO75: 0.999 | BP75: 0.999 | BQ75: 0.999 | BR75: 0.999 | BS75: 0.999 | BT75: 0.999 | BU75: 0.999 | BV75: 0.999 | BW75: 0.998 | BX75: 0.998 | BY75: 0.998 | BZ75: 0.998 | CA75: 0.998 | CB75: 0.996 | CC75: 0.995 | CD75: 0.994 | CE75: 0.991 | CF75: 0.979 | CG75: 0.971 | CH75: 0.959 | CI75: 0.939 | CJ75: 0.898 | CK75: 0.811 | CL75: 0.722 | CM75: 0.549 | CN75: 0.263 | CO75: 0.000 | CP75: 0.000 | CQ75: 0.000 | CR75: 0.000 | CS75: 0.000 | CT75: 0.000 | CU75: 0.000 | CV75: 0.000 | CW75: 0.000 | CX75: 0.925 | CY75: 0.944 | CZ75: 0.978 | DA75: 0.995 | DB75: 0.999 | DC75: 0.997 | DD75: 0.999 | DE75: 0.999 | DF75: 0.999 | DG75: 0.999 | DH75: 0.999 | DI75: 0.999 | DJ75: 0.998 | DK75: 0.998 | DL75: 0.998 | DM75: 0.998 | DN75: 0.997 | DO75: 0.997 | DP75: 0.997 | DQ75: 0.997 | DR75: 0.996 | DS75: 0.995 | DT75: 0.992 | DU75: 0.989 | DV75: 0.989 | DW75: 0.983 | DX75: 0.958 | DY75: 0.942 | DZ75: 0.920 | EA75: 0.881 | EB75: 0.806 | EC75: 0.657 | ED75: 0.521 | EE75: 0.301 | EF75: 0.069 | EG75: 0.000 | EH75: 0.000 | EI75: 0.000 | EJ75: 0.000 | EK75: 0.000 | EL75: 0.000 | EM75: 0.000 | EN75: 0.000 | EO75: 0.000
A76: FDS24-W | B76: 3.5126327 | C76: 0 | D76: -1.5301500 | E76: -2 | F76: 5.3936061 | G76: -2 | H76: 3.4949369 | I76: -3 | J76: -1.7950295 | K76: -4 | L76: 3.4403181 | M76: -5 | N76: 0.973 | O76: 0.978 | P76: 0.990 | Q76: 0.994 | R76: 0.996 | S76: 0.998 | T76: 0.998 | U76: 0.998 | V76: 0.998 | W76: 0.999 | X76: 0.999 | Y76: 0.999 | Z76: 0.999 | AA76: 0.999 | AB76: 0.999 | AC76: 0.999 | AD76: 0.999 | AE76: 0.999 | AF76: 0.999 | AG76: 0.999 | AH76: 0.998 | AI76: 0.998 | AJ76: 0.998 | AK76: 0.998 | AL76: 0.997 | AM76: 0.996 | AN76: 0.993 | AO76: 0.991 | AP76: 0.988 | AQ76: 0.983 | AR76: 0.972 | AS76: 0.946 | AT76: 0.915 | AU76: 0.838 | AV76: 0.646 | AW76: 0.248 | AX76: 0.007 | AY76: 0.000 | AZ76: 0.000 | BA76: 0.000 | BB76: 0.000 | BC76: 0.000 | BD76: 0.000 | BE76: 0.000 | BF76: 0.933 | BG76: 0.945 | BH76: 0.974 | BI76: 0.984 | BJ76: 0.989 | BK76: 0.995 | BL76: 0.995 | BM76: 0.995 | BN76: 0.996 | BO76: 0.996 | BP76: 0.997 | BQ76: 0.997 | BR76: 0.997 | BS76: 0.997 | BT76: 0.997 | BU76: 0.997 | BV76: 0.997 | BW76: 0.997 | BX76: 0.997 | BY76: 0.997 | BZ76: 0.996 | CA76: 0.996 | CB76: 0.995 | CC76: 0.994 | CD76: 0.993 | CE76: 0.991 | CF76: 0.983 | CG76: 0.978 | CH76: 0.971 | CI76: 0.958 | CJ76: 0.932 | CK76: 0.871 | CL76: 0.801 | CM76: 0.644 | CN76: 0.336 | CO76: 0.031 | CP76: 0.000 | CQ76: 0.000 | CR76: 0.000 | CS76: 0.000 | CT76: 0.000 | CU76: 0.000 | CV76: 0.000 | CW76: 0.000 | CX76: 0.870 | CY76: 0.894 | CZ76: 0.949 | DA76: 0.968 | DB76: 0.979 | DC76: 0.990 | DD76: 0.990 | DE76: 0.990 | DF76: 0.992 | DG76: 0.993 | DH76: 0.993 | DI76: 0.993 | DJ76: 0.993 | DK76: 0.993 | DL76: 0.993 | DM76: 0.994 | DN76: 0.994 | DO76: 0.994 | DP76: 0.994 | DQ76: 0.993 | DR76: 0.992 | DS76: 0.992 | DT76: 0.990 | DU76: 0.988 | DV76: 0.987 | DW76: 0.982 | DX76: 0.967 | DY76: 0.956 | DZ76: 0.942 | EA76: 0.917 | EB76: 0.868 | EC76: 0.759 | ED76: 0.642 | EE76: 0.414 | EF76: 0.113 | EG76: 0.000 | EH76: 0.000 | EI76: 0.000 | EJ76: 0.000 | EK76: 0.000 | EL76: 0.000 | EM76: 0.000 | EN76: 0.000 | EO76: 0.000
A77: FDS90 | B77: 3.2606321 | C77: 0 | D77: -1.7780398 | E77: -2 | F77: 4.0902938 | G77: -2 | H77: 5.6076934 | I77: -3 | J77: -5.6434039 | K77: -4 | L77: 5.4763391 | M77: -5 | N77: 0.975 | O77: 0.980 | P77: 0.990 | Q77: 0.997 | R77: 0.999 | S77: 0.999 | T77: 0.999 | U77: 0.999 | V77: 0.999 | W77: 0.999 | X77: 0.999 | Y77: 0.999 | Z77: 0.999 | AA77: 0.999 | AB77: 0.999 | AC77: 0.999 | AD77: 0.999 | AE77: 0.999 | AF77: 0.999 | AG77: 0.999 | AH77: 0.999 | AI77: 0.999 | AJ77: 0.998 | AK77: 0.998 | AL77: 0.998 | AM77: 0.998 | AN77: 0.995 | AO77: 0.994 | AP77: 0.991 | AQ77: 0.987 | AR77: 0.978 | AS77: 0.953 | AT77: 0.918 | AU77: 0.830 | AV77: 0.616 | AW77: 0.306 | AX77: 0.000 | AY77: 0.000 | AZ77: 0.000 | BA77: 0.000 | BB77: 0.000 | BC77: 0.000 | BD77: 0.000 | BE77: 0.000 | BF77: 0.938 | BG77: 0.950 | BH77: 0.976 | BI77: 0.991 | BJ77: 0.997 | BK77: 0.999 | BL77: 0.997 | BM77: 0.997 | BN77: 0.998 | BO77: 0.999 | BP77: 0.999 | BQ77: 0.999 | BR77: 0.999 | BS77: 0.999 | BT77: 0.999 | BU77: 0.999 | BV77: 0.999 | BW77: 0.999 | BX77: 0.999 | BY77: 0.998 | BZ77: 0.999 | CA77: 0.998 | CB77: 0.996 | CC77: 0.994 | CD77: 0.995 | CE77: 0.995 | CF77: 0.989 | CG77: 0.984 | CH77: 0.977 | CI77: 0.968 | CJ77: 0.946 | CK77: 0.887 | CL77: 0.808 | CM77: 0.627 | CN77: 0.298 | CO77: 0.052 | CP77: 0.000 | CQ77: 0.000 | CR77: 0.000 | CS77: 0.000 | CT77: 0.000 | CU77: 0.000 | CV77: 0.000 | CW77: 0.000 | CX77: 0.879 | CY77: 0.902 | CZ77: 0.953 | DA77: 0.983 | DB77: 0.994 | DC77: 0.999 | DD77: 0.993 | DE77: 0.994 | DF77: 0.996 | DG77: 0.999 | DH77: 0.999 | DI77: 0.999 | DJ77: 0.999 | DK77: 0.999 | DL77: 0.999 | DM77: 0.998 | DN77: 0.998 | DO77: 0.998 | DP77: 0.997 | DQ77: 0.997 | DR77: 0.997 | DS77: 0.995 | DT77: 0.992 | DU77: 0.988 | DV77: 0.991 | DW77: 0.990 | DX77: 0.977 | DY77: 0.968 | DZ77: 0.954 | EA77: 0.937 | EB77: 0.895 | EC77: 0.786 | ED77: 0.653 | EE77: 0.393 | EF77: 0.089 | EG77: 0.000 | EH77: 0.000 | EI77: 0.000 | EJ77: 0.000 | EK77: 0.000 | EL77: 0.000 | EM77: 0.000 | EN77: 0.000 | EO77: 0.000
A78: FDS90(P) | B78: 3.2565619 | C78: 0 | D78: -1.5803965 | E78: -2 | F78: 4.4330322 | G78: -2 | H78: 4.3620098 | I78: -3 | J78: -3.6912261 | K78: -4 | L78: 4.2999682 | M78: -5 | N78: 0.975 | O78: 0.980 | P78: 0.990 | Q78: 0.997 | R78: 0.999 | S78: 0.999 | T78: 0.999 | U78: 0.999 | V78: 0.999 | W78: 0.999 | X78: 0.999 | Y78: 0.999 | Z78: 0.999 | AA78: 0.999 | AB78: 0.999 | AC78: 0.999 | AD78: 0.999 | AE78: 0.999 | AF78: 0.999 | AG78: 0.999 | AH78: 0.999 | AI78: 0.999 | AJ78: 0.998 | AK78: 0.998 | AL78: 0.998 | AM78: 0.998 | AN78: 0.995 | AO78: 0.994 | AP78: 0.991 | AQ78: 0.987 | AR78: 0.978 | AS78: 0.953 | AT78: 0.918 | AU78: 0.830 | AV78: 0.616 | AW78: 0.306 | AX78: 0.000 | AY78: 0.000 | AZ78: 0.000 | BA78: 0.000 | BB78: 0.000 | BC78: 0.000 | BD78: 0.000 | BE78: 0.000 | BF78: 0.938 | BG78: 0.950 | BH78: 0.976 | BI78: 0.991 | BJ78: 0.997 | BK78: 0.999 | BL78: 0.997 | BM78: 0.997 | BN78: 0.998 | BO78: 0.999 | BP78: 0.999 | BQ78: 0.999 | BR78: 0.999 | BS78: 0.999 | BT78: 0.999 | BU78: 0.999 | BV78: 0.999 | BW78: 0.999 | BX78: 0.999 | BY78: 0.998 | BZ78: 0.999 | CA78: 0.998 | CB78: 0.996 | CC78: 0.994 | CD78: 0.995 | CE78: 0.995 | CF78: 0.989 | CG78: 0.984 | CH78: 0.977 | CI78: 0.968 | CJ78: 0.946 | CK78: 0.887 | CL78: 0.808 | CM78: 0.627 | CN78: 0.298 | CO78: 0.052 | CP78: 0.000 | CQ78: 0.000 | CR78: 0.000 | CS78: 0.000 | CT78: 0.000 | CU78: 0.000 | CV78: 0.000 | CW78: 0.000 | CX78: 0.879 | CY78: 0.902 | CZ78: 0.953 | DA78: 0.983 | DB78: 0.994 | DC78: 0.999 | DD78: 0.993 | DE78: 0.994 | DF78: 0.996 | DG78: 0.999 | DH78: 0.999 | DI78: 0.999 | DJ78: 0.999 | DK78: 0.999 | DL78: 0.999 | DM78: 0.998 | DN78: 0.998 | DO78: 0.998 | DP78: 0.997 | DQ78: 0.997 | DR78: 0.997 | DS78: 0.995 | DT78: 0.992 | DU78: 0.988 | DV78: 0.991 | DW78: 0.990 | DX78: 0.977 | DY78: 0.968 | DZ78: 0.954 | EA78: 0.937 | EB78: 0.895 | EC78: 0.786 | ED78: 0.653 | EE78: 0.393 | EF78: 0.089 | EG78: 0.000 | EH78: 0.000 | EI78: 0.000 | EJ78: 0.000 | EK78: 0.000 | EL78: 0.000 | EM78: 0.000 | EN78: 0.000 | EO78: 0.000
A79: FDS90-SG | B79: 3.2606321 | C79: 0 | D79: -1.7780398 | E79: -2 | F79: 4.0902938 | G79: -2 | H79: 5.6076934 | I79: -3 | J79: -5.6434039 | K79: -4 | L79: 5.4763391 | M79: -5 | N79: 0.975 | O79: 0.980 | P79: 0.990 | Q79: 0.996 | R79: 0.999 | S79: 0.999 | T79: 0.999 | U79: 0.999 | V79: 0.999 | W79: 0.999 | X79: 0.999 | Y79: 0.999 | Z79: 0.999 | AA79: 0.999 | AB79: 0.999 | AC79: 0.999 | AD79: 0.999 | AE79: 0.999 | AF79: 0.999 | AG79: 0.999 | AH79: 0.999 | AI79: 0.999 | AJ79: 0.999 | AK79: 0.998 | AL79: 0.999 | AM79: 0.999 | AN79: 0.996 | AO79: 0.995 | AP79: 0.993 | AQ79: 0.990 | AR79: 0.984 | AS79: 0.962 | AT79: 0.927 | AU79: 0.839 | AV79: 0.656 | AW79: 0.384 | AX79: 0.000 | AY79: 0.000 | AZ79: 0.000 | BA79: 0.000 | BB79: 0.000 | BC79: 0.000 | BD79: 0.000 | BE79: 0.000 | BF79: 0.938 | BG79: 0.950 | BH79: 0.976 | BI79: 0.991 | BJ79: 0.997 | BK79: 0.999 | BL79: 0.997 | BM79: 0.997 | BN79: 0.998 | BO79: 0.999 | BP79: 0.999 | BQ79: 0.999 | BR79: 0.999 | BS79: 0.999 | BT79: 0.999 | BU79: 0.999 | BV79: 0.999 | BW79: 0.999 | BX79: 0.999 | BY79: 0.998 | BZ79: 0.999 | CA79: 0.998 | CB79: 0.997 | CC79: 0.996 | CD79: 0.998 | CE79: 0.998 | CF79: 0.991 | CG79: 0.988 | CH79: 0.983 | CI79: 0.976 | CJ79: 0.960 | CK79: 0.908 | CL79: 0.828 | CM79: 0.644 | CN79: 0.348 | CO79: 0.091 | CP79: 0.000 | CQ79: 0.000 | CR79: 0.000 | CS79: 0.000 | CT79: 0.000 | CU79: 0.000 | CV79: 0.000 | CW79: 0.000 | CX79: 0.879 | CY79: 0.902 | CZ79: 0.953 | DA79: 0.983 | DB79: 0.994 | DC79: 0.999 | DD79: 0.993 | DE79: 0.994 | DF79: 0.996 | DG79: 0.999 | DH79: 0.999 | DI79: 0.999 | DJ79: 0.999 | DK79: 0.999 | DL79: 0.999 | DM79: 0.998 | DN79: 0.998 | DO79: 0.998 | DP79: 0.997 | DQ79: 0.997 | DR79: 0.997 | DS79: 0.995 | DT79: 0.994 | DU79: 0.993 | DV79: 0.996 | DW79: 0.995 | DX79: 0.983 | DY79: 0.975 | DZ79: 0.966 | EA79: 0.952 | EB79: 0.921 | EC79: 0.825 | ED79: 0.686 | EE79: 0.415 | EF79: 0.121 | EG79: 0.000 | EH79: 0.000 | EI79: 0.000 | EJ79: 0.000 | EK79: 0.000 | EL79: 0.000 | EM79: 0.000 | EN79: 0.000 | EO79: 0.000
A80: FF5 | B80: 2.4743324 | C80: 0 | D80: -1.0955338 | E80: -2 | F80: 1.9293801 | G80: -2 | H80: 1.4497732 | I80: -3 | J80: -1.1038744 | K80: -4 | L80: 1.1136008 | M80: -5 | AJ80: 0.999 | AK80: 0.999 | AL80: 0.999 | AM80: 0.999 | AN80: 0.999 | AO80: 0.998 | AP80: 0.998 | AQ80: 0.998 | AR80: 0.996 | AS80: 0.993 | AT80: 0.987 | AU80: 0.974 | AV80: 0.937 | AW80: 0.821 | AX80: 0.532 | AY80: 0.255 | AZ80: 0.000 | BA80: 0.000 | BB80: 0.000 | BC80: 0.000 | BD80: 0.000 | BE80: 0.000 | CB80: 0.999 | CC80: 0.999 | CD80: 0.999 | CE80: 0.999 | CF80: 0.997 | CG80: 0.996 | CH80: 0.995 | CI80: 0.994 | CJ80: 0.991 | CK80: 0.982 | CL80: 0.969 | CM80: 0.937 | CN80: 0.849 | CO80: 0.610 | CP80: 0.206 | CQ80: 0.033 | CR80: 0.000 | CS80: 0.000 | CT80: 0.000 | CU80: 0.000 | CV80: 0.000 | CW80: 0.000 | DT80: 0.999 | DU80: 0.998 | DV80: 0.998 | DW80: 0.998 | DX80: 0.995 | DY80: 0.992 | DZ80: 0.991 | EA80: 0.988 | EB80: 0.982 | EC80: 0.964 | ED80: 0.939 | EE80: 0.878 | EF80: 0.721 | EG80: 0.372 | EH80: 0.042 | EI80: 0.000 | EJ80: 0.000 | EK80: 0.000 | EL80: 0.000 | EM80: 0.000 | EN80: 0.000 | EO80: 0.000
A81: FF8 | B81: 2.9564361 | C81: 0 | D81: -1.9762195 | E81: -2 | F81: 2.9878823 | G81: -2 | H81: 5.1830852 | I81: -3 | J81: -5.4202389 | K81: -4 | L81: 4.8463245 | M81: -5 | T81: 0.997 | U81: 0.996 | V81: 0.996 | W81: 0.999 | X81: 0.999 | Y81: 0.999 | Z81: 0.999 | AA81: 0.999 | AB81: 0.999 | AC81: 0.999 | AD81: 0.999 | AE81: 0.999 | AF81: 0.999 | AG81: 0.999 | AH81: 0.999 | AI81: 0.999 | AJ81: 0.999 | AK81: 0.999 | AL81: 0.999 | AM81: 0.999 | AN81: 0.997 | AO81: 0.996 | AP81: 0.995 | AQ81: 0.992 | AR81: 0.986 | AS81: 0.967 | AT81: 0.944 | AU81: 0.892 | AV81: 0.765 | AW81: 0.496 | AX81: 0.000 | AY81: 0.000 | AZ81: 0.000 | BA81: 0.000 | BB81: 0.000 | BC81: 0.000 | BD81: 0.000 | BE81: 0.000 | BL81: 0.992 | BM81: 0.991 | BN81: 0.990 | BO81: 0.998 | BP81: 0.998 | BQ81: 0.998 | BR81: 0.998 | BS81: 0.998 | BT81: 0.998 | BU81: 0.998 | BV81: 0.998 | BW81: 0.998 | BX81: 0.998 | BY81: 0.998 | BZ81: 0.998 | CA81: 0.998 | CB81: 0.999 | CC81: 0.999 | CD81: 0.999 | CE81: 0.998 | CF81: 0.994 | CG81: 0.990 | CH81: 0.987 | CI81: 0.980 | CJ81: 0.965 | CK81: 0.920 | CL81: 0.865 | CM81: 0.752 | CN81: 0.512 | CO81: 0.173 | CP81: 0.000 | CQ81: 0.000 | CR81: 0.000 | CS81: 0.000 | CT81: 0.000 | CU81: 0.000 | CV81: 0.000 | CW81: 0.000 | DD81: 0.984 | DE81: 0.982 | DF81: 0.980 | DG81: 0.996 | DH81: 0.997 | DI81: 0.996 | DJ81: 0.997 | DK81: 0.996 | DL81: 0.996 | DM81: 0.996 | DN81: 0.996 | DO81: 0.996 | DP81: 0.996 | DQ81: 0.997 | DR81: 0.996 | DS81: 0.996 | DT81: 0.999 | DU81: 0.999 | DV81: 0.999 | DW81: 0.996 | DX81: 0.987 | DY81: 0.981 | DZ81: 0.975 | EA81: 0.960 | EB81: 0.932 | EC81: 0.846 | ED81: 0.748 | EE81: 0.566 | EF81: 0.262 | EG81: 0.030 | EH81: 0.000 | EI81: 0.000 | EJ81: 0.000 | EK81: 0.000 | EL81: 0.000 | EM81: 0.000 | EN81: 0.000 | EO81: 0.000
A82: LAC10 | B82: 2.8951998 | C82: 0 | D82: -1.1701218 | E82: -2 | F82: 2.2126485 | G82: -2 | H82: 3.8494791 | I82: -4 | J82: -7.9808302 | K82: -6 | L82: 1.5035116 | M82: -6 | BL82: 0.998 | BM82: 0.998 | BN82: 0.999 | BO82: 0.999 | BP82: 0.999 | BQ82: 0.999 | BR82: 0.999 | BS82: 0.999 | BT82: 0.999 | BU82: 0.999 | BV82: 0.999 | BW82: 0.999 | BX82: 0.999 | BY82: 0.999 | BZ82: 0.999 | CA82: 0.999 | CB82: 0.998 | CC82: 0.998 | CD82: 0.998 | CE82: 0.998 | CF82: 0.998 | CG82: 0.998 | CH82: 0.997 | CI82: 0.997 | CJ82: 0.996 | CK82: 0.993 | CL82: 0.989 | CM82: 0.985 | CN82: 0.975 | CO82: 0.958 | CP82: 0.926 | CQ82: 0.879 | CR82: 0.807 | CS82: 0.690 | CT82: 0.492 | CU82: 0.214 | CV82: 0.030 | CW82: 0.000 | DD82: 0.997 | DE82: 0.997 | DF82: 0.998 | DG82: 0.999 | DH82: 0.999 | DI82: 0.999 | DJ82: 0.999 | DK82: 0.999 | DL82: 0.999 | DM82: 0.999 | DN82: 0.999 | DO82: 0.999 | DP82: 0.999 | DQ82: 0.999 | DR82: 0.999 | DS82: 0.998 | DT82: 0.996 | DU82: 0.996 | DV82: 0.996 | DW82: 0.996 | DX82: 0.996 | DY82: 0.996 | DZ82: 0.994 | EA82: 0.994 | EB82: 0.991 | EC82: 0.985 | ED82: 0.979 | EE82: 0.970 | EF82: 0.950 | EG82: 0.917 | EH82: 0.858 | EI82: 0.772 | EJ82: 0.650 | EK82: 0.476 | EL82: 0.242 | EM82: 0.046 | EN82: 0.000 | EO82: 0.000
A83: LAC12 | B83: 2.7634844 | C83: 0 | D83: -1.1068339 | E83: -2 | F83: 1.8246442 | G83: -2 | H83: 3.7697356 | I83: -4 | J83: -1.7788655 | K83: -5 | L83: 1.5314262 | M83: -6 | BL83: 0.996 | BM83: 0.997 | BN83: 0.997 | BO83: 0.999 | BP83: 0.999 | BQ83: 0.999 | BR83: 0.999 | BS83: 0.999 | BT83: 0.998 | BU83: 0.999 | BV83: 0.999 | BW83: 0.999 | BX83: 0.999 | BY83: 0.999 | BZ83: 0.999 | CA83: 0.999 | CB83: 0.999 | CC83: 0.999 | CD83: 0.999 | CE83: 0.999 | CF83: 0.999 | CG83: 0.997 | CH83: 0.997 | CI83: 0.994 | CJ83: 0.993 | CK83: 0.990 | CL83: 0.975 | CM83: 0.958 | CN83: 0.930 | CO83: 0.870 | CP83: 0.770 | CQ83: 0.640 | CR83: 0.470 | CS83: 0.300 | CT83: 0.170 | CU83: 0.090 | CV83: 0.040 | CW83: 0.000 | DD83: 0.993 | DE83: 0.993 | DF83: 0.994 | DG83: 0.998 | DH83: 0.998 | DI83: 0.998 | DJ83: 0.998 | DK83: 0.997 | DL83: 0.997 | DM83: 0.997 | DN83: 0.997 | DO83: 0.998 | DP83: 0.998 | DQ83: 0.998 | DR83: 0.998 | DS83: 0.998 | DT83: 0.999 | DU83: 0.999 | DV83: 0.999 | DW83: 0.999 | DX83: 0.999 | DY83: 0.994 | DZ83: 0.994 | EA83: 0.989 | EB83: 0.986 | EC83: 0.980 | ED83: 0.951 | EE83: 0.917 | EF83: 0.860 | EG83: 0.760 | EH83: 0.600 | EI83: 0.410 | EJ83: 0.220 | EK83: 0.090 | EL83: 0.030 | EM83: 0.010 | EN83: 0.000 | EO83: 0.000
A84: LAC13 | B84: 2.8125316 | C84: 0 | D84: -1.2915271 | E84: -2 | F84: 1.9960339 | G84: -2 | H84: 1.9877888 | I84: -4 | J84: 1.7647061 | K84: -5 | L84: -4.4767632 | M84: -7 | BL84: 0.994 | BM84: 0.993 | BN84: 0.991 | BO84: 0.999 | BP84: 0.999 | BQ84: 0.999 | BR84: 0.999 | BS84: 0.999 | BT84: 0.999 | BU84: 0.999 | BV84: 0.999 | BW84: 0.999 | BX84: 0.999 | BY84: 0.999 | BZ84: 0.999 | CA84: 0.999 | CB84: 0.999 | CC84: 0.999 | CD84: 0.999 | CE84: 0.999 | CF84: 0.998 | CG84: 0.998 | CH84: 0.998 | CI84: 0.997 | CJ84: 0.995 | CK84: 0.990 | CL84: 0.985 | CM84: 0.976 | CN84: 0.960 | CO84: 0.930 | CP84: 0.890 | CQ84: 0.820 | CR84: 0.720 | CS84: 0.590 | CT84: 0.390 | CU84: 0.160 | CV84: 0.060 | CW84: 0.000 | DD84: 0.988 | DE84: 0.986 | DF84: 0.982 | DG84: 0.998 | DH84: 0.999 | DI84: 0.999 | DJ84: 0.999 | DK84: 0.999 | DL84: 0.999 | DM84: 0.999 | DN84: 0.999 | DO84: 0.999 | DP84: 0.999 | DQ84: 0.999 | DR84: 0.999 | DS84: 0.999 | DT84: 0.999 | DU84: 0.998 | DV84: 0.998 | DW84: 0.999 | DX84: 0.997 | DY84: 0.996 | DZ84: 0.995 | EA84: 0.993 | EB84: 0.990 | EC84: 0.980 | ED84: 0.970 | EE84: 0.952 | EF84: 0.921 | EG84: 0.870 | EH84: 0.790 | EI84: 0.670 | EJ84: 0.520 | EK84: 0.340 | EL84: 0.160 | EM84: 0.030 | EN84: 0.000 | EO84: 0.000
A85: LAC14 | B85: 2.8255229 | C85: 0 | D85: -1.3632902 | E85: -2 | F85: 1.9791402 | G85: -2 | H85: 1.5032564 | I85: -5 | J85: 4.0761368 | K85: -5 | L85: -1.7527267 | M85: -6 | N85: 0.843 | O85: 0.887 | P85: 0.960 | Q85: 0.990 | R85: 0.996 | S85: 0.999 | T85: 0.999 | U85: 0.999 | V85: 0.999 | W85: 0.999 | X85: 0.999 | Y85: 0.999 | Z85: 0.999 | AA85: 0.999 | AB85: 0.999 | AC85: 0.999 | AD85: 0.999 | AE85: 0.999 | AF85: 0.999 | AG85: 0.999 | AH85: 0.999 | AI85: 0.999 | AJ85: 0.999 | AK85: 0.999 | AL85: 0.999 | AM85: 0.999 | AN85: 0.999 | AO85: 0.999 | AP85: 0.999 | AQ85: 0.998 | AR85: 0.998 | AS85: 0.997 | AT85: 0.996 | AU85: 0.995 | AV85: 0.992 | AW85: 0.987 | AX85: 0.981 | AY85: 0.971 | AZ85: 0.954 | BA85: 0.931 | BB85: 0.904 | BC85: 0.868 | BD85: 0.817 | BE85: 0.746 | BF85: 0.653 | BG85: 0.741 | BH85: 0.904 | BI85: 0.974 | BJ85: 0.990 | BK85: 0.998 | BL85: 0.997 | BM85: 0.997 | BN85: 0.997 | BO85: 0.999 | BP85: 0.999 | BQ85: 0.999 | BR85: 0.999 | BS85: 0.999 | BT85: 0.999 | BU85: 0.999 | BV85: 0.999 | BW85: 0.999 | BX85: 0.999 | BY85: 0.999 | BZ85: 0.999 | CA85: 0.999 | CB85: 0.999 | CC85: 0.999 | CD85: 0.999 | CE85: 0.999 | CF85: 0.999 | CG85: 0.998 | CH85: 0.997 | CI85: 0.996 | CJ85: 0.995 | CK85: 0.993 | CL85: 0.991 | CM85: 0.987 | CN85: 0.981 | CO85: 0.969 | CP85: 0.954 | CQ85: 0.929 | CR85: 0.890 | CS85: 0.837 | CT85: 0.776 | CU85: 0.701 | CV85: 0.603 | CW85: 0.481 | CX85: 0.427 | CY85: 0.549 | CZ85: 0.818 | DA85: 0.949 | DB85: 0.981 | DC85: 0.996 | DD85: 0.994 | DE85: 0.993 | DF85: 0.993 | DG85: 0.999 | DH85: 0.999 | DI85: 0.999 | DJ85: 0.999 | DK85: 0.999 | DL85: 0.999 | DM85: 0.999 | DN85: 0.999 | DO85: 0.999 | DP85: 0.998 | DQ85: 0.999 | DR85: 0.999 | DS85: 0.999 | DT85: 0.999 | DU85: 0.999 | DV85: 0.998 | DW85: 0.999 | DX85: 0.997 | DY85: 0.997 | DZ85: 0.995 | EA85: 0.992 | EB85: 0.990 | EC85: 0.986 | ED85: 0.983 | EE85: 0.974 | EF85: 0.963 | EG85: 0.939 | EH85: 0.910 | EI85: 0.863 | EJ85: 0.792 | EK85: 0.701 | EL85: 0.602 | EM85: 0.491 | EN85: 0.364 | EO85: 0.231
A86: LAC7 | B86: 2.6876223 | C86: 0 | D86: -1.4375187 | E86: -2 | F86: 1.2545954 | G86: -2 | H86: 1.4642295 | I86: -3 | J86: -1.6982461 | K86: -4 | L86: 8.8048639 | M86: -6 | BL86: 0.995 | BM86: 0.995 | BN86: 0.995 | BO86: 0.998 | BP86: 0.998 | BQ86: 0.998 | BR86: 0.998 | BS86: 0.998 | BT86: 0.998 | BU86: 0.998 | BV86: 0.999 | BW86: 0.998 | BX86: 0.998 | BY86: 0.998 | BZ86: 0.998 | CA86: 0.998 | CB86: 0.999 | CC86: 0.999 | CD86: 0.999 | CE86: 0.999 | CF86: 0.999 | CG86: 0.998 | CH86: 0.997 | CI86: 0.996 | CJ86: 0.994 | CK86: 0.991 | CL86: 0.985 | CM86: 0.977 | CN86: 0.957 | CO86: 0.920 | CP86: 0.870 | CQ86: 0.790 | CR86: 0.660 | CS86: 0.510 | CT86: 0.350 | CU86: 0.220 | CV86: 0.100 | CW86: 0.040 | DD86: 0.991 | DE86: 0.991 | DF86: 0.989 | DG86: 0.996 | DH86: 0.996 | DI86: 0.996 | DJ86: 0.996 | DK86: 0.996 | DL86: 0.996 | DM86: 0.996 | DN86: 0.996 | DO86: 0.996 | DP86: 0.997 | DQ86: 0.997 | DR86: 0.997 | DS86: 0.998 | DT86: 0.999 | DU86: 0.999 | DV86: 0.999 | DW86: 0.999 | DX86: 0.999 | DY86: 0.996 | DZ86: 0.994 | EA86: 0.991 | EB86: 0.989 | EC86: 0.981 | ED86: 0.970 | EE86: 0.954 | EF86: 0.915 | EG86: 0.850 | EH86: 0.750 | EI86: 0.620 | EJ86: 0.430 | EK86: 0.260 | EL86: 0.120 | EM86: 0.050 | EN86: 0.010 | EO86: 0.000
A87: LAC8 | B87: 2.8778537 | C87: 0 | D87: -1.3832906 | E87: -2 | F87: 2.0301185 | G87: -2 | H87: 2.7759871 | I87: -4 | J87: 5.9059830 | K87: -6 | L87: 1.7747647 | M87: -7 | T87: 0.998 | U87: 0.998 | V87: 0.998 | W87: 0.999 | X87: 0.999 | Y87: 0.999 | Z87: 0.999 | AA87: 0.999 | AB87: 0.999 | AC87: 0.999 | AD87: 0.999 | AE87: 0.999 | AF87: 0.999 | AG87: 0.999 | AH87: 0.999 | AI87: 0.999 | AJ87: 0.999 | AK87: 0.999 | AL87: 0.999 | AM87: 0.999 | AN87: 0.999 | AO87: 0.999 | AP87: 0.999 | AQ87: 0.999 | AR87: 0.998 | AS87: 0.997 | AT87: 0.996 | AU87: 0.995 | AV87: 0.992 | AW87: 0.986 | AX87: 0.977 | AY87: 0.965 | AZ87: 0.947 | BA87: 0.921 | BB87: 0.887 | BC87: 0.845 | BD87: 0.790 | BE87: 0.710 | BL87: 0.995 | BM87: 0.995 | BN87: 0.995 | BO87: 0.999 | BP87: 0.999 | BQ87: 0.999 | BR87: 0.999 | BS87: 0.999 | BT87: 0.999 | BU87: 0.999 | BV87: 0.999 | BW87: 0.999 | BX87: 0.999 | BY87: 0.999 | BZ87: 0.999 | CA87: 0.999 | CB87: 0.999 | CC87: 0.999 | CD87: 0.999 | CE87: 0.999 | CF87: 0.999 | CG87: 0.999 | CH87: 0.998 | CI87: 0.998 | CJ87: 0.994 | CK87: 0.993 | CL87: 0.991 | CM87: 0.988 | CN87: 0.981 | CO87: 0.966 | CP87: 0.943 | CQ87: 0.915 | CR87: 0.873 | CS87: 0.814 | CT87: 0.742 | CU87: 0.657 | CV87: 0.554 | CW87: 0.425 | DD87: 0.991 | DE87: 0.990 | DF87: 0.990 | DG87: 0.999 | DH87: 0.999 | DI87: 0.999 | DJ87: 0.999 | DK87: 0.999 | DL87: 0.998 | DM87: 0.998 | DN87: 0.998 | DO87: 0.998 | DP87: 0.999 | DQ87: 0.999 | DR87: 0.998 | DS87: 0.998 | DT87: 0.999 | DU87: 0.997 | DV87: 0.998 | DW87: 0.998 | DX87: 0.998 | DY87: 0.997 | DZ87: 0.996 | EA87: 0.995 | EB87: 0.987 | EC87: 0.986 | ED87: 0.981 | EE87: 0.976 | EF87: 0.962 | EG87: 0.932 | EH87: 0.889 | EI87: 0.838 | EJ87: 0.761 | EK87: 0.663 | EL87: 0.551 | EM87: 0.431 | EN87: 0.306 | EO87: 0.180
A88: LAC9 | B88: 2.8081523 | C88: 0 | D88: -1.4167885 | E88: -2 | F88: 1.7693707 | G88: -2 | H88: 7.6788759 | I88: -4 | J88: -7.4886174 | K88: -5 | L88: 4.7044756 | M88: -6 | BL88: 0.997 | BM88: 0.997 | BN88: 0.996 | BO88: 0.999 | BP88: 0.999 | BQ88: 0.999 | BR88: 0.999 | BS88: 0.999 | BT88: 0.999 | BU88: 0.999 | BV88: 0.999 | BW88: 0.999 | BX88: 0.999 | BY88: 0.999 | BZ88: 0.999 | CA88: 0.999 | CB88: 0.999 | CC88: 0.999 | CD88: 0.999 | CE88: 0.999 | CF88: 0.999 | CG88: 0.999 | CH88: 0.998 | CI88: 0.997 | CJ88: 0.995 | CK88: 0.992 | CL88: 0.989 | CM88: 0.985 | CN88: 0.975 | CO88: 0.958 | CP88: 0.926 | CQ88: 0.883 | CR88: 0.822 | CS88: 0.743 | CT88: 0.650 | CU88: 0.551 | CV88: 0.449 | CW88: 0.343 | DD88: 0.995 | DE88: 0.993 | DF88: 0.992 | DG88: 0.998 | DH88: 0.999 | DI88: 0.999 | DJ88: 0.999 | DK88: 0.999 | DL88: 0.999 | DM88: 0.999 | DN88: 0.999 | DO88: 0.999 | DP88: 0.999 | DQ88: 0.999 | DR88: 0.999 | DS88: 0.999 | DT88: 0.999 | DU88: 0.999 | DV88: 0.999 | DW88: 0.999 | DX88: 0.999 | DY88: 0.999 | DZ88: 0.997 | EA88: 0.995 | EB88: 0.990 | EC88: 0.985 | ED88: 0.979 | EE88: 0.970 | EF88: 0.950 | EG88: 0.917 | EH88: 0.858 | EI88: 0.780 | EJ88: 0.675 | EK88: 0.552 | EL88: 0.422 | EM88: 0.303 | EN88: 0.201 | EO88: 0.080
A89: LACL60 | B89: 2.6490884 | C89: 0 | D89: -1.4159869 | E89: -2 | F89: 1.4451135 | G89: -2 | H89: 5.2707873 | I89: -4 | J89: -4.3447523 | K89: -5 | L89: 2.4612971 | M89: -6 | BL89: 0.997 | BM89: 0.996 | BN89: 0.995 | BO89: 0.999 | BP89: 0.999 | BQ89: 0.999 | BR89: 0.999 | BS89: 0.999 | BT89: 0.999 | BU89: 0.999 | BV89: 0.999 | BW89: 0.999 | BX89: 0.999 | BY89: 0.999 | BZ89: 0.999 | CA89: 0.999 | CB89: 0.999 | CC89: 0.999 | CD89: 0.998 | CE89: 0.999 | CF89: 0.999 | CG89: 0.998 | CH89: 0.997 | CI89: 0.996 | CJ89: 0.995 | CK89: 0.993 | CL89: 0.990 | CM89: 0.984 | CN89: 0.976 | CO89: 0.960 | CP89: 0.940 | CQ89: 0.900 | CR89: 0.840 | CS89: 0.760 | CT89: 0.650 | CU89: 0.540 | CV89: 0.410 | CW89: 0.280 | DD89: 0.993 | DE89: 0.992 | DF89: 0.991 | DG89: 0.998 | DH89: 0.998 | DI89: 0.998 | DJ89: 0.998 | DK89: 0.998 | DL89: 0.998 | DM89: 0.998 | DN89: 0.998 | DO89: 0.999 | DP89: 0.998 | DQ89: 0.998 | DR89: 0.998 | DS89: 0.998 | DT89: 0.998 | DU89: 0.997 | DV89: 0.997 | DW89: 0.998 | DX89: 0.997 | DY89: 0.996 | DZ89: 0.994 | EA89: 0.993 | EB89: 0.990 | EC89: 0.985 | ED89: 0.979 | EE89: 0.969 | EF89: 0.952 | EG89: 0.922 | EH89: 0.870 | EI89: 0.800 | EJ89: 0.700 | EK89: 0.570 | EL89: 0.430 | EM89: 0.290 | EN89: 0.170 | EO89: 0.080
A90: LAF2 | B90: 2.9657374 | C90: 0 | D90: -9.6571624 | E90: -3 | F90: 2.6024525 | G90: -2 | H90: 3.6684641 | I90: -4 | J90: 2.8205551 | K90: -5 | L90: -1.3739929 | M90: -7 | T90: 0.999 | U90: 0.999 | V90: 0.999 | W90: 0.999 | X90: 0.999 | Y90: 0.999 | Z90: 0.999 | AA90: 0.999 | AB90: 0.999 | AC90: 0.999 | AD90: 0.999 | AE90: 0.999 | AF90: 0.999 | AG90: 0.999 | AH90: 0.999 | AI90: 0.999 | AJ90: 0.999 | AK90: 0.999 | AL90: 0.999 | AM90: 0.999 | AN90: 0.999 | AO90: 0.999 | AP90: 0.998 | AQ90: 0.997 | AR90: 0.997 | AS90: 0.995 | AT90: 0.993 | AU90: 0.988 | AV90: 0.978 | AW90: 0.957 | AX90: 0.919 | AY90: 0.852 | AZ90: 0.738 | BA90: 0.554 | BB90: 0.310 | BC90: 0.000 | BD90: 0.000 | BE90: 0.000 | BL90: 0.998 | BM90: 0.998 | BN90: 0.999 | BO90: 0.999 | BP90: 0.999 | BQ90: 0.999 | BR90: 0.999 | BS90: 0.999 | BT90: 0.999 | BU90: 0.999 | BV90: 0.999 | BW90: 0.999 | BX90: 0.999 | BY90: 0.999 | BZ90: 0.999 | CA90: 0.999 | CB90: 0.999 | CC90: 0.998 | CD90: 0.999 | CE90: 0.999 | CF90: 0.998 | CG90: 0.997 | CH90: 0.995 | CI90: 0.994 | CJ90: 0.993 | CK90: 0.988 | CL90: 0.982 | CM90: 0.969 | CN90: 0.946 | CO90: 0.895 | CP90: 0.809 | CQ90: 0.671 | CR90: 0.468 | CS90: 0.228 | CT90: 0.053 | CU90: 0.000 | CV90: 0.000 | CW90: 0.000 | DD90: 0.997 | DE90: 0.997 | DF90: 0.998 | DG90: 0.999 | DH90: 0.999 | DI90: 0.999 | DJ90: 0.999 | DK90: 0.999 | DL90: 0.999 | DM90: 0.999 | DN90: 0.999 | DO90: 0.999 | DP90: 0.999 | DQ90: 0.999 | DR90: 0.999 | DS90: 0.998 | DT90: 0.997 | DU90: 0.996 | DV90: 0.997 | DW90: 0.999 | DX90: 0.996 | DY90: 0.994 | DZ90: 0.990 | EA90: 0.987 | EB90: 0.985 | EC90: 0.977 | ED90: 0.965 | EE90: 0.940 | EF90: 0.895 | EG90: 0.801 | EH90: 0.655 | EI90: 0.450 | EJ90: 0.219 | EK90: 0.052 | EL90: 0.000 | EM90: 0.000 | EN90: 0.000 | EO90: 0.000
A91: LAF3 | B91: 2.8789799 | C91: 0 | D91: -8.7292370 | E91: -3 | F91: 2.4425656 | G91: -2 | H91: 4.5491773 | I91: -5 | J91: 4.2802928 | K91: -5 | L91: -7.2834306 | M91: -7 | T91: 0.999 | U91: 0.999 | V91: 0.999 | W91: 0.999 | X91: 0.999 | Y91: 0.999 | Z91: 0.999 | AA91: 0.999 | AB91: 0.999 | AC91: 0.999 | AD91: 0.999 | AE91: 0.999 | AF91: 0.999 | AG91: 0.999 | AH91: 0.999 | AI91: 0.999 | AJ91: 0.999 | AK91: 0.999 | AL91: 0.999 | AM91: 0.999 | AN91: 0.999 | AO91: 0.999 | AP91: 0.998 | AQ91: 0.998 | AR91: 0.997 | AS91: 0.995 | AT91: 0.993 | AU91: 0.988 | AV91: 0.980 | AW91: 0.963 | AX91: 0.928 | AY91: 0.857 | AZ91: 0.713 | BA91: 0.480 | BB91: 0.225 | BC91: 0.000 | BD91: 0.000 | BE91: 0.000 | BL91: 0.998 | BM91: 0.998 | BN91: 0.998 | BO91: 0.999 | BP91: 0.999 | BQ91: 0.999 | BR91: 0.999 | BS91: 0.999 | BT91: 0.998 | BU91: 0.999 | BV91: 0.998 | BW91: 0.999 | BX91: 0.999 | BY91: 0.998 | BZ91: 0.999 | CA91: 0.999 | CB91: 0.999 | CC91: 0.999 | CD91: 0.999 | CE91: 0.999 | CF91: 0.999 | CG91: 0.998 | CH91: 0.996 | CI91: 0.994 | CJ91: 0.993 | CK91: 0.988 | CL91: 0.982 | CM91: 0.971 | CN91: 0.950 | CO91: 0.910 | CP91: 0.830 | CQ91: 0.680 | CR91: 0.430 | CS91: 0.160 | CT91: 0.024 | CU91: 0.000 | CV91: 0.000 | CW91: 0.000 | DD91: 0.995 | DE91: 0.995 | DF91: 0.996 | DG91: 0.997 | DH91: 0.998 | DI91: 0.997 | DJ91: 0.997 | DK91: 0.997 | DL91: 0.997 | DM91: 0.997 | DN91: 0.997 | DO91: 0.997 | DP91: 0.997 | DQ91: 0.996 | DR91: 0.997 | DS91: 0.997 | DT91: 0.999 | DU91: 0.997 | DV91: 0.997 | DW91: 0.997 | DX91: 0.997 | DY91: 0.996 | DZ91: 0.991 | EA91: 0.987 | EB91: 0.986 | EC91: 0.975 | ED91: 0.965 | EE91: 0.943 | EF91: 0.900 | EG91: 0.820 | EH91: 0.680 | EI91: 0.460 | EJ91: 0.190 | EK91: 0.020 | EL91: 0.000 | EM91: 0.000 | EN91: 0.000 | EO91: 0.000
A92: LBC3N | B92: 2.5388484 | C92: 0 | D92: -6.6855865 | E92: -3 | F92: 1.5111456 | G92: -2 | H92: -1.5247241 | I92: -4 | J92: 4.8340116 | K92: -5 | L92: -2.4061785 | M92: -6 | BL92: 0.996 | BM92: 0.997 | BN92: 0.999 | BO92: 0.999 | BP92: 0.999 | BQ92: 0.999 | BR92: 0.999 | BS92: 0.999 | BT92: 0.999 | BU92: 0.999 | BV92: 0.999 | BW92: 0.999 | BX92: 0.999 | BY92: 0.999 | BZ92: 0.999 | CA92: 0.999 | CB92: 0.998 | CC92: 0.998 | CD92: 0.999 | CE92: 0.999 | CF92: 0.998 | CG92: 0.996 | CH92: 0.995 | CI92: 0.994 | CJ92: 0.994 | CK92: 0.993 | CL92: 0.991 | CM92: 0.985 | CN92: 0.981 | CO92: 0.969 | CP92: 0.941 | CQ92: 0.900 | CR92: 0.836 | CS92: 0.742 | CT92: 0.624 | CU92: 0.486 | CV92: 0.337 | CW92: 0.180 | DD92: 0.993 | DE92: 0.995 | DF92: 0.999 | DG92: 0.999 | DH92: 0.999 | DI92: 0.999 | DJ92: 0.999 | DK92: 0.999 | DL92: 0.999 | DM92: 0.999 | DN92: 0.999 | DO92: 0.999 | DP92: 0.999 | DQ92: 0.999 | DR92: 0.999 | DS92: 0.999 | DT92: 0.996 | DU92: 0.996 | DV92: 0.998 | DW92: 0.997 | DX92: 0.995 | DY92: 0.992 | DZ92: 0.991 | EA92: 0.988 | EB92: 0.988 | EC92: 0.986 | ED92: 0.982 | EE92: 0.971 | EF92: 0.961 | EG92: 0.939 | EH92: 0.886 | EI92: 0.810 | EJ92: 0.698 | EK92: 0.550 | EL92: 0.390 | EM92: 0.236 | EN92: 0.113 | EO92: 0.032
A93: M-BACD12 | B93: 2.4687810 | C93: 0 | D93: -1.0626390 | E93: -2 | F93: 1.3251840 | G93: -2 | H93: 4.0486120 | I93: -4 | J93: -2.9747990 | K93: -5 | L93: 1.8258840 | M93: -6 | N93: 0.951 | O93: 0.962 | P93: 0.979 | Q93: 0.994 | R93: 0.997 | S93: 0.999 | T93: 0.999 | U93: 0.999 | V93: 0.999 | W93: 0.999 | X93: 0.999 | Y93: 0.999 | Z93: 0.999 | AA93: 0.999 | AB93: 0.999 | AC93: 0.999 | AD93: 0.999 | AE93: 0.999 | AF93: 0.999 | AG93: 0.999 | AH93: 0.999 | AI93: 0.999 | AJ93: 0.999 | AK93: 0.999 | AL93: 0.999 | AM93: 0.999 | AN93: 0.999 | AO93: 0.999 | AP93: 0.999 | AQ93: 0.999 | AR93: 0.999 | AS93: 0.999 | AT93: 0.999 | AU93: 0.998 | AV93: 0.996 | AW93: 0.993 | AX93: 0.985 | AY93: 0.972 | AZ93: 0.949 | BA93: 0.906 | BB93: 0.838 | BC93: 0.739 | BD93: 0.615 | BE93: 0.482 | BF93: 0.883 | BG93: 0.909 | BH93: 0.949 | BI93: 0.986 | BJ93: 0.992 | BK93: 0.998 | BL93: 0.998 | BM93: 0.998 | BN93: 0.998 | BO93: 0.999 | BP93: 0.998 | BQ93: 0.998 | BR93: 0.998 | BS93: 0.998 | BT93: 0.998 | BU93: 0.998 | BV93: 0.998 | BW93: 0.998 | BX93: 0.998 | BY93: 0.998 | BZ93: 0.998 | CA93: 0.999 | CB93: 0.999 | CC93: 0.999 | CD93: 0.999 | CE93: 0.999 | CF93: 0.999 | CG93: 0.999 | CH93: 0.999 | CI93: 0.998 | CJ93: 0.998 | CK93: 0.998 | CL93: 0.996 | CM93: 0.994 | CN93: 0.990 | CO93: 0.982 | CP93: 0.964 | CQ93: 0.932 | CR93: 0.876 | CS93: 0.782 | CT93: 0.643 | CU93: 0.469 | CV93: 0.297 | CW93: 0.160 | CX93: 0.779 | CY93: 0.826 | CZ93: 0.900 | DA93: 0.972 | DB93: 0.985 | DC93: 0.997 | DD93: 0.996 | DE93: 0.996 | DF93: 0.996 | DG93: 0.997 | DH93: 0.997 | DI93: 0.996 | DJ93: 0.996 | DK93: 0.996 | DL93: 0.995 | DM93: 0.995 | DN93: 0.995 | DO93: 0.996 | DP93: 0.996 | DQ93: 0.997 | DR93: 0.996 | DS93: 0.998 | DT93: 0.999 | DU93: 0.999 | DV93: 0.999 | DW93: 0.999 | DX93: 0.999 | DY93: 0.999 | DZ93: 0.998 | EA93: 0.996 | EB93: 0.997 | EC93: 0.996 | ED93: 0.993 | EE93: 0.988 | EF93: 0.981 | EG93: 0.964 | EH93: 0.929 | EI93: 0.869 | EJ93: 0.768 | EK93: 0.612 | EL93: 0.413 | EM93: 0.220 | EN93: 0.088 | EO93: 0.026
A94: M-BACD15 | B94: 2.5909190 | C94: 0 | D94: -1.2594760 | E94: -2 | F94: 1.5202050 | G94: -2 | H94: 2.9999800 | I94: -4 | J94: -1.1315470 | K94: -5 | L94: 9.1546400 | M94: -7 | T94: 0.999 | U94: 0.999 | V94: 0.999 | W94: 0.999 | X94: 0.999 | Y94: 0.999 | Z94: 0.999 | AA94: 0.999 | AB94: 0.999 | AC94: 0.999 | AD94: 0.999 | AE94: 0.999 | AF94: 0.999 | AG94: 0.999 | AH94: 0.999 | AI94: 0.999 | AJ94: 0.999 | AK94: 0.999 | AL94: 0.999 | AM94: 0.999 | AN94: 0.999 | AO94: 0.999 | AP94: 0.999 | AQ94: 0.998 | AR94: 0.998 | AS94: 0.998 | AT94: 0.997 | AU94: 0.996 | AV94: 0.994 | AW94: 0.989 | AX94: 0.979 | AY94: 0.963 | AZ94: 0.936 | BA94: 0.893 | BB94: 0.816 | BC94: 0.746 | BD94: 0.644 | BE94: 0.500 | BL94: 0.998 | BM94: 0.998 | BN94: 0.998 | BO94: 0.999 | BP94: 0.998 | BQ94: 0.998 | BR94: 0.998 | BS94: 0.998 | BT94: 0.998 | BU94: 0.998 | BV94: 0.998 | BW94: 0.998 | BX94: 0.998 | BY94: 0.998 | BZ94: 0.998 | CA94: 0.999 | CB94: 0.998 | CC94: 0.998 | CD94: 0.998 | CE94: 0.999 | CF94: 0.998 | CG94: 0.998 | CH94: 0.997 | CI94: 0.996 | CJ94: 0.996 | CK94: 0.995 | CL94: 0.993 | CM94: 0.990 | CN94: 0.984 | CO94: 0.972 | CP94: 0.949 | CQ94: 0.910 | CR94: 0.847 | CS94: 0.753 | CT94: 0.602 | CU94: 0.481 | CV94: 0.333 | CW94: 0.177 | DD94: 0.996 | DE94: 0.996 | DF94: 0.996 | DG94: 0.997 | DH94: 0.997 | DI94: 0.996 | DJ94: 0.996 | DK94: 0.996 | DL94: 0.995 | DM94: 0.995 | DN94: 0.995 | DO94: 0.996 | DP94: 0.996 | DQ94: 0.997 | DR94: 0.996 | DS94: 0.998 | DT94: 0.997 | DU94: 0.996 | DV94: 0.996 | DW94: 0.997 | DX94: 0.996 | DY94: 0.996 | DZ94: 0.995 | EA94: 0.992 | EB94: 0.991 | EC94: 0.989 | ED94: 0.985 | EE94: 0.979 | EF94: 0.968 | EG94: 0.945 | EH94: 0.900 | EI94: 0.827 | EJ94: 0.718 | EK94: 0.567 | EL94: 0.363 | EM94: 0.231 | EN94: 0.111 | EO94: 0.031
A95: M-BACD5N | B95: 2.4895100 | C95: 0 | D95: -1.2244960 | E95: -2 | F95: 1.2942620 | G95: -2 | H95: 3.4904490 | I95: -4 | J95: -1.7772280 | K95: -5 | L95: 9.1137190 | M95: -7 | N95: 0.923 | O95: 0.940 | P95: 0.973 | Q95: 0.993 | R95: 0.997 | S95: 0.999 | T95: 0.998 | U95: 0.998 | V95: 0.996 | W95: 0.998 | X95: 0.998 | Y95: 0.998 | Z95: 0.998 | AA95: 0.998 | AB95: 0.998 | AC95: 0.998 | AD95: 0.998 | AE95: 0.998 | AF95: 0.998 | AG95: 0.998 | AH95: 0.999 | AI95: 0.999 | AJ95: 0.999 | AK95: 0.999 | AL95: 0.999 | AM95: 0.999 | AN95: 0.999 | AO95: 0.999 | AP95: 0.999 | AQ95: 0.999 | AR95: 0.999 | AS95: 0.999 | AT95: 0.998 | AU95: 0.997 | AV95: 0.994 | AW95: 0.989 | AX95: 0.979 | AY95: 0.962 | AZ95: 0.932 | BA95: 0.882 | BB95: 0.808 | BC95: 0.707 | BD95: 0.587 | BE95: 0.461 | BF95: 0.819 | BG95: 0.857 | BH95: 0.935 | BI95: 0.983 | BJ95: 0.992 | BK95: 0.998 | BL95: 0.995 | BM95: 0.994 | BN95: 0.991 | BO95: 0.996 | BP95: 0.996 | BQ95: 0.996 | BR95: 0.995 | BS95: 0.996 | BT95: 0.996 | BU95: 0.996 | BV95: 0.996 | BW95: 0.996 | BX95: 0.996 | BY95: 0.996 | BZ95: 0.997 | CA95: 0.998 | CB95: 0.999 | CC95: 0.999 | CD95: 0.999 | CE95: 0.999 | CF95: 0.999 | CG95: 0.999 | CH95: 0.999 | CI95: 0.999 | CJ95: 0.998 | CK95: 0.997 | CL95: 0.995 | CM95: 0.992 | CN95: 0.986 | CO95: 0.973 | CP95: 0.949 | CQ95: 0.907 | CR95: 0.838 | CS95: 0.731 | CT95: 0.587 | CU95: 0.421 | CV95: 0.264 | CW95: 0.144 | CX95: 0.671 | CY95: 0.734 | CZ95: 0.874 | DA95: 0.967 | DB95: 0.985 | DC95: 0.996 | DD95: 0.990 | DE95: 0.989 | DF95: 0.981 | DG95: 0.992 | DH95: 0.992 | DI95: 0.991 | DJ95: 0.990 | DK95: 0.991 | DL95: 0.991 | DM95: 0.991 | DN95: 0.992 | DO95: 0.992 | DP95: 0.992 | DQ95: 0.993 | DR95: 0.994 | DS95: 0.996 | DT95: 0.999 | DU95: 0.999 | DV95: 0.999 | DW95: 0.999 | DX95: 0.999 | DY95: 0.999 | DZ95: 0.998 | EA95: 0.997 | EB95: 0.996 | EC95: 0.994 | ED95: 0.990 | EE95: 0.984 | EF95: 0.972 | EG95: 0.946 | EH95: 0.900 | EI95: 0.822 | EJ95: 0.702 | EK95: 0.534 | EL95: 0.344 | EM95: 0.177 | EN95: 0.070 | EO95: 0.021
A96: MC-BACD12 | B96: 2.4687810 | C96: 0 | D96: -1.0626390 | E96: -2 | F96: 1.3251840 | G96: -2 | H96: 4.0486120 | I96: -4 | J96: -2.9747990 | K96: -5 | L96: 1.8258840 | M96: -6 | T96: 0.998 | U96: 0.998 | V96: 0.996 | W96: 0.998 | X96: 0.998 | Y96: 0.998 | Z96: 0.998 | AA96: 0.998 | AB96: 0.998 | AC96: 0.998 | AD96: 0.998 | AE96: 0.998 | AF96: 0.998 | AG96: 0.999 | AH96: 0.999 | AI96: 0.999 | AJ96: 0.999 | AK96: 0.999 | AL96: 0.999 | AM96: 0.999 | AN96: 0.999 | AO96: 0.999 | AP96: 0.999 | AQ96: 0.999 | AR96: 0.999 | AS96: 0.999 | AT96: 0.999 | AU96: 0.998 | AV96: 0.998 | AW96: 0.995 | AX96: 0.991 | AY96: 0.980 | AZ96: 0.960 | BA96: 0.925 | BB96: 0.858 | BC96: 0.754 | BD96: 0.606 | BE96: 0.432 | BL96: 0.995 | BM96: 0.994 | BN96: 0.991 | BO96: 0.996 | BP96: 0.996 | BQ96: 0.996 | BR96: 0.995 | BS96: 0.996 | BT96: 0.996 | BU96: 0.996 | BV96: 0.996 | BW96: 0.996 | BX96: 0.996 | BY96: 0.996 | BZ96: 0.997 | CA96: 0.998 | CB96: 0.999 | CC96: 0.999 | CD96: 0.999 | CE96: 0.999 | CF96: 0.999 | CG96: 0.999 | CH96: 0.999 | CI96: 0.999 | CJ96: 0.999 | CK96: 0.999 | CL96: 0.997 | CM96: 0.996 | CN96: 0.994 | CO96: 0.989 | CP96: 0.978 | CQ96: 0.951 | CR96: 0.903 | CS96: 0.823 | CT96: 0.681 | CU96: 0.493 | CV96: 0.286 | CW96: 0.122 | DD96: 0.990 | DE96: 0.989 | DF96: 0.981 | DG96: 0.992 | DH96: 0.992 | DI96: 0.991 | DJ96: 0.990 | DK96: 0.991 | DL96: 0.991 | DM96: 0.991 | DN96: 0.991 | DO96: 0.992 | DP96: 0.992 | DQ96: 0.993 | DR96: 0.994 | DS96: 0.996 | DT96: 0.997 | DU96: 0.998 | DV96: 0.997 | DW96: 0.997 | DX96: 0.997 | DY96: 0.997 | DZ96: 0.999 | EA96: 0.998 | EB96: 0.999 | EC96: 0.999 | ED96: 0.994 | EE96: 0.991 | EF96: 0.989 | EG96: 0.977 | EH96: 0.956 | EI96: 0.904 | EJ96: 0.816 | EK96: 0.677 | EL96: 0.464 | EM96: 0.243 | EN96: 0.082 | EO96: 0.015
A97: MC-BACD5N | B97: 2.4895100 | C97: 0 | D97: -1.2244960 | E97: -2 | F97: 1.2942620 | G97: -2 | H97: 3.4904490 | I97: -4 | J97: -1.7772280 | K97: -5 | L97: 9.1137190 | M97: -7 | N97: 0.923 | O97: 0.940 | P97: 0.973 | Q97: 0.993 | R97: 0.997 | S97: 0.999 | T97: 0.998 | U97: 0.998 | V97: 0.996 | W97: 0.998 | X97: 0.998 | Y97: 0.998 | Z97: 0.998 | AA97: 0.998 | AB97: 0.998 | AC97: 0.998 | AD97: 0.998 | AE97: 0.998 | AF97: 0.998 | AG97: 0.998 | AH97: 0.999 | AI97: 0.999 | AJ97: 0.999 | AK97: 0.999 | AL97: 0.999 | AM97: 0.999 | AN97: 0.999 | AO97: 0.999 | AP97: 0.999 | AQ97: 0.999 | AR97: 0.999 | AS97: 0.999 | AT97: 0.998 | AU97: 0.998 | AV97: 0.996 | AW97: 0.993 | AX97: 0.983 | AY97: 0.971 | AZ97: 0.944 | BA97: 0.903 | BB97: 0.836 | BC97: 0.747 | BD97: 0.636 | BE97: 0.518 | BF97: 0.819 | BG97: 0.857 | BH97: 0.935 | BI97: 0.983 | BJ97: 0.992 | BK97: 0.998 | BL97: 0.995 | BM97: 0.994 | BN97: 0.991 | BO97: 0.996 | BP97: 0.996 | BQ97: 0.996 | BR97: 0.995 | BS97: 0.996 | BT97: 0.996 | BU97: 0.996 | BV97: 0.996 | BW97: 0.996 | BX97: 0.996 | BY97: 0.996 | BZ97: 0.997 | CA97: 0.998 | CB97: 0.999 | CC97: 0.999 | CD97: 0.999 | CE97: 0.999 | CF97: 0.999 | CG97: 0.999 | CH97: 0.999 | CI97: 0.998 | CJ97: 0.998 | CK97: 0.997 | CL97: 0.996 | CM97: 0.994 | CN97: 0.990 | CO97: 0.982 | CP97: 0.958 | CQ97: 0.928 | CR97: 0.866 | CS97: 0.775 | CT97: 0.639 | CU97: 0.482 | CV97: 0.322 | CW97: 0.193 | CX97: 0.671 | CY97: 0.734 | CZ97: 0.874 | DA97: 0.967 | DB97: 0.985 | DC97: 0.996 | DD97: 0.990 | DE97: 0.989 | DF97: 0.981 | DG97: 0.992 | DH97: 0.992 | DI97: 0.991 | DJ97: 0.990 | DK97: 0.991 | DL97: 0.991 | DM97: 0.991 | DN97: 0.992 | DO97: 0.992 | DP97: 0.992 | DQ97: 0.993 | DR97: 0.994 | DS97: 0.996 | DT97: 0.997 | DU97: 0.997 | DV97: 0.997 | DW97: 0.997 | DX97: 0.997 | DY97: 0.997 | DZ97: 0.998 | EA97: 0.997 | EB97: 0.995 | EC97: 0.995 | ED97: 0.992 | EE97: 0.988 | EF97: 0.980 | EG97: 0.965 | EH97: 0.919 | EI97: 0.861 | EJ97: 0.750 | EK97: 0.600 | EL97: 0.408 | EM97: 0.233 | EN97: 0.104 | EO97: 0.037
A98: MC-FCD1-M20 | B98: 2.2209418 | C98: 0 | D98: -7.4830372 | E98: -3 | F98: 6.2463392 | G98: -3 | H98: 7.1157759 | I98: -4 | J98: -8.2274254 | K98: -5 | L98: 4.0430546 | M98: -6 | T98: 0.999 | U98: 0.999 | V98: 0.999 | W98: 0.999 | X98: 0.999 | Y98: 0.999 | Z98: 0.999 | AA98: 0.999 | AB98: 0.999 | AC98: 0.999 | AD98: 0.999 | AE98: 0.999 | AF98: 0.999 | AG98: 0.999 | AH98: 0.999 | AI98: 0.999 | AJ98: 0.999 | AK98: 0.999 | AL98: 0.999 | AM98: 0.999 | AN98: 0.999 | AO98: 0.999 | AP98: 0.999 | AQ98: 0.999 | AR98: 0.999 | AS98: 0.999 | AT98: 0.999 | AU98: 0.997 | AV98: 0.994 | AW98: 0.987 | AX98: 0.971 | AY98: 0.938 | AZ98: 0.877 | BA98: 0.780 | BB98: 0.645 | BC98: 0.489 | BD98: 0.337 | BE98: 0.205 | BL98: 0.999 | BM98: 0.998 | BN98: 0.999 | BO98: 0.999 | BP98: 0.999 | BQ98: 0.999 | BR98: 0.999 | BS98: 0.999 | BT98: 0.999 | BU98: 0.999 | BV98: 0.998 | BW98: 0.998 | BX98: 0.998 | BY98: 0.998 | BZ98: 0.998 | CA98: 0.998 | CB98: 0.999 | CC98: 0.999 | CD98: 0.999 | CE98: 0.999 | CF98: 0.999 | CG98: 0.999 | CH98: 0.998 | CI98: 0.998 | CJ98: 0.998 | CK98: 0.998 | CL98: 0.997 | CM98: 0.993 | CN98: 0.986 | CO98: 0.968 | CP98: 0.929 | CQ98: 0.852 | CR98: 0.721 | CS98: 0.537 | CT98: 0.334 | CU98: 0.167 | CV98: 0.066 | CW98: 0.019 | DD98: 0.997 | DE98: 0.997 | DF98: 0.997 | DG98: 0.999 | DH98: 0.999 | DI98: 0.999 | DJ98: 0.999 | DK98: 0.999 | DL98: 0.999 | DM98: 0.999 | DN98: 0.999 | DO98: 0.999 | DP98: 0.999 | DQ98: 0.999 | DR98: 0.999 | DS98: 0.999 | DT98: 0.998 | DU98: 0.998 | DV98: 0.999 | DW98: 0.999 | DX98: 0.999 | DY98: 0.998 | DZ98: 0.997 | EA98: 0.996 | EB98: 0.995 | EC98: 0.996 | ED98: 0.993 | EE98: 0.987 | EF98: 0.972 | EG98: 0.938 | EH98: 0.863 | EI98: 0.726 | EJ98: 0.520 | EK98: 0.288 | EL98: 0.112 | EM98: 0.028 | EN98: 0.000 | EO98: 0.000
A99: MC-FCD500-20 | B99: 2.3850427 | C99: 0 | D99: -7.9142690 | E99: -3 | F99: 9.4886852 | G99: -3 | H99: 5.7980093 | I99: -4 | J99: -6.0011677 | K99: -5 | L99: 3.0355422 | M99: -6 | T99: 0.999 | U99: 0.999 | V99: 0.999 | W99: 0.999 | X99: 0.999 | Y99: 0.999 | Z99: 0.999 | AA99: 0.999 | AB99: 0.999 | AC99: 0.999 | AD99: 0.999 | AE99: 0.999 | AF99: 0.999 | AG99: 0.999 | AH99: 0.999 | AI99: 0.999 | AJ99: 0.999 | AK99: 0.999 | AL99: 0.999 | AM99: 0.999 | AN99: 0.999 | AO99: 0.999 | AP99: 0.999 | AQ99: 0.999 | AR99: 0.999 | AS99: 0.998 | AT99: 0.997 | AU99: 0.994 | AV99: 0.987 | AW99: 0.972 | AX99: 0.938 | AY99: 0.878 | AZ99: 0.779 | BA99: 0.643 | BB99: 0.480 | BC99: 0.323 | BD99: 0.181 | BE99: 0.000 | BL99: 0.999 | BM99: 0.998 | BN99: 0.999 | BO99: 0.999 | BP99: 0.999 | BQ99: 0.999 | BR99: 0.999 | BS99: 0.999 | BT99: 0.999 | BU99: 0.999 | BV99: 0.998 | BW99: 0.998 | BX99: 0.998 | BY99: 0.998 | BZ99: 0.998 | CA99: 0.998 | CB99: 0.999 | CC99: 0.999 | CD99: 0.999 | CE99: 0.999 | CF99: 0.999 | CG99: 0.999 | CH99: 0.998 | CI99: 0.997 | CJ99: 0.997 | CK99: 0.996 | CL99: 0.993 | CM99: 0.986 | CN99: 0.969 | CO99: 0.931 | CP99: 0.853 | CQ99: 0.722 | CR99: 0.536 | CS99: 0.331 | CT99: 0.160 | CU99: 0.059 | CV99: 0.014 | CW99: 0.000 | DD99: 0.997 | DE99: 0.997 | DF99: 0.997 | DG99: 0.999 | DH99: 0.999 | DI99: 0.999 | DJ99: 0.999 | DK99: 0.999 | DL99: 0.999 | DM99: 0.999 | DN99: 0.999 | DO99: 0.999 | DP99: 0.999 | DQ99: 0.999 | DR99: 0.999 | DS99: 0.999 | DT99: 0.998 | DU99: 0.998 | DV99: 0.999 | DW99: 0.999 | DX99: 0.999 | DY99: 0.998 | DZ99: 0.996 | EA99: 0.995 | EB99: 0.994 | EC99: 0.993 | ED99: 0.986 | EE99: 0.972 | EF99: 0.939 | EG99: 0.867 | EH99: 0.728 | EI99: 0.521 | EJ99: 0.287 | EK99: 0.109 | EL99: 0.026 | EM99: 0.000 | EN99: 0.000 | EO99: 0.000
A100: MC-FD80 | B100: 2.7616380 | C100: 0 | D100: -1.1326330 | E100: -2 | F100: 2.8653460 | G100: -2 | H100: 1.5290380 | I100: -3 | J100: -8.7435770 | K100: -5 | L100: 1.4965790 | M100: -5 | N100: 0.949 | O100: 0.960 | P100: 0.972 | Q100: 0.986 | R100: 0.993 | S100: 0.997 | T100: 0.998 | U100: 0.998 | V100: 0.999 | W100: 0.999 | X100: 0.999 | Y100: 0.999 | Z100: 0.999 | AA100: 0.999 | AB100: 0.999 | AC100: 0.999 | AD100: 0.999 | AE100: 0.999 | AF100: 0.999 | AG100: 0.999 | AH100: 0.999 | AI100: 0.999 | AJ100: 0.999 | AK100: 0.999 | AL100: 0.999 | AM100: 0.999 | AN100: 0.999 | AO100: 0.998 | AP100: 0.997 | AQ100: 0.996 | AR100: 0.994 | AS100: 0.986 | AT100: 0.970 | AU100: 0.921 | AV100: 0.765 | AW100: 0.000 | AX100: 0.000 | AY100: 0.000 | AZ100: 0.000 | BA100: 0.000 | BB100: 0.000 | BC100: 0.000 | BD100: 0.000 | BE100: 0.000 | BF100: 0.877 | BG100: 0.904 | BH100: 0.930 | BI100: 0.966 | BJ100: 0.982 | BK100: 0.993 | BL100: 0.994 | BM100: 0.995 | BN100: 0.997 | BO100: 0.999 | BP100: 0.999 | BQ100: 0.999 | BR100: 0.999 | BS100: 0.999 | BT100: 0.999 | BU100: 0.999 | BV100: 0.999 | BW100: 0.998 | BX100: 0.998 | BY100: 0.999 | BZ100: 0.999 | CA100: 0.999 | CB100: 0.999 | CC100: 0.999 | CD100: 0.999 | CE100: 0.998 | CF100: 0.996 | CG100: 0.995 | CH100: 0.993 | CI100: 0.990 | CJ100: 0.985 | CK100: 0.965 | CL100: 0.928 | CM100: 0.813 | CN100: 0.512 | CO100: 0.000 | CP100: 0.000 | CQ100: 0.000 | CR100: 0.000 | CS100: 0.000 | CT100: 0.000 | CU100: 0.000 | CV100: 0.000 | CW100: 0.000 | CX100: 0.769 | CY100: 0.816 | CZ100: 0.866 | DA100: 0.933 | DB100: 0.965 | DC100: 0.986 | DD100: 0.988 | DE100: 0.989 | DF100: 0.993 | DG100: 0.997 | DH100: 0.998 | DI100: 0.998 | DJ100: 0.998 | DK100: 0.997 | DL100: 0.997 | DM100: 0.997 | DN100: 0.997 | DO100: 0.997 | DP100: 0.997 | DQ100: 0.999 | DR100: 0.999 | DS100: 0.998 | DT100: 0.998 | DU100: 0.997 | DV100: 0.997 | DW100: 0.997 | DX100: 0.993 | DY100: 0.989 | DZ100: 0.986 | EA100: 0.981 | EB100: 0.970 | EC100: 0.931 | ED100: 0.861 | EE100: 0.661 | EF100: 0.263 | EG100: 0.000 | EH100: 0.000 | EI100: 0.000 | EJ100: 0.000 | EK100: 0.000 | EL100: 0.000 | EM100: 0.000 | EN100: 0.000 | EO100: 0.000
A101: MC-FDS2 | B101: 3.7715810 | C101: 0 | D101: -2.0445364 | E101: -2 | F101: 6.3942579 | G101: -2 | H101: 8.3545470 | I101: -3 | J101: -8.2031984 | K101: -4 | L101: 1.0279507 | M101: -4 | N101: 0.970 | O101: 0.980 | P101: 0.988 | Q101: 0.996 | R101: 0.998 | S101: 0.999 | T101: 0.999 | U101: 0.999 | V101: 0.999 | W101: 0.999 | X101: 0.999 | Y101: 0.999 | Z101: 0.999 | AA101: 0.999 | AB101: 0.999 | AC101: 0.999 | AD101: 0.999 | AE101: 0.999 | AF101: 0.999 | AG101: 0.999 | AH101: 0.999 | AI101: 0.999 | AJ101: 0.999 | AK101: 0.998 | AL101: 0.998 | AM101: 0.997 | AN101: 0.991 | AO101: 0.985 | AP101: 0.976 | AQ101: 0.950 | AR101: 0.855 | AS101: 0.503 | AT101: 0.000 | AU101: 0.000 | AV101: 0.000 | AW101: 0.000 | AX101: 0.000 | AY101: 0.000 | AZ101: 0.000 | BA101: 0.000 | BB101: 0.000 | BC101: 0.000 | BD101: 0.000 | BE101: 0.000 | BL101: 0.998 | BM101: 0.997 | BN101: 0.999 | BO101: 0.999 | BP101: 0.999 | BQ101: 0.999 | BR101: 0.998 | BS101: 0.999 | BT101: 0.999 | BU101: 0.999 | BV101: 0.999 | BW101: 0.999 | BX101: 0.998 | BY101: 0.999 | BZ101: 0.998 | CA101: 0.999 | CB101: 0.998 | CC101: 0.996 | CD101: 0.996 | CE101: 0.992 | CF101: 0.977 | CG101: 0.964 | CH101: 0.940 | CI101: 0.880 | CJ101: 0.676 | CK101: 0.179 | CL101: 0.000 | CM101: 0.000 | CN101: 0.000 | CO101: 0.000 | CP101: 0.000 | CQ101: 0.000 | CR101: 0.000 | CS101: 0.000 | CT101: 0.000 | CU101: 0.000 | CV101: 0.000 | CW101: 0.000 | DD101: 0.995 | DE101: 0.994 | DF101: 0.997 | DG101: 0.998 | DH101: 0.999 | DI101: 0.998 | DJ101: 0.996 | DK101: 0.998 | DL101: 0.998 | DM101: 0.998 | DN101: 0.998 | DO101: 0.998 | DP101: 0.996 | DQ101: 0.998 | DR101: 0.996 | DS101: 0.998 | DT101: 0.995 | DU101: 0.992 | DV101: 0.993 | DW101: 0.984 | DX101: 0.954 | DY101: 0.928 | DZ101: 0.884 | EA101: 0.774 | EB101: 0.457 | EC101: 0.032 | ED101: 0.000 | EE101: 0.000 | EF101: 0.000 | EG101: 0.000 | EH101: 0.000 | EI101: 0.000 | EJ101: 0.000 | EK101: 0.000 | EL101: 0.000 | EM101: 0.000 | EN101: 0.000 | EO101: 0.000
A102: MC-FDS910-50 | B102: 3.1667902 | C102: 0 | D102: -1.3141416 | E102: -2 | F102: 4.7178656 | G102: -2 | H102: 2.2684284 | I102: -3 | J102: -5.3672387 | K102: -5 | L102: 2.5328422 | M102: -5 | T102: 0.999 | U102: 0.998 | V102: 0.999 | W102: 0.999 | X102: 0.999 | Y102: 0.999 | Z102: 0.999 | AA102: 0.999 | AB102: 0.999 | AC102: 0.999 | AD102: 0.999 | AE102: 0.999 | AF102: 0.999 | AG102: 0.999 | AH102: 0.999 | AI102: 0.999 | AJ102: 0.999 | AK102: 0.998 | AL102: 0.999 | AM102: 0.998 | AN102: 0.995 | AO102: 0.993 | AP102: 0.990 | AQ102: 0.986 | AR102: 0.976 | AS102: 0.941 | AT102: 0.881 | AU102: 0.728 | AV102: 0.432 | AW102: 0.022 | AX102: 0.000 | AY102: 0.000 | AZ102: 0.000 | BA102: 0.000 | BB102: 0.000 | BC102: 0.000 | BD102: 0.000 | BE102: 0.000 | BL102: 0.996 | BM102: 0.996 | BN102: 0.997 | BO102: 0.999 | BP102: 0.999 | BQ102: 0.999 | BR102: 0.999 | BS102: 0.999 | BT102: 0.999 | BU102: 0.999 | BV102: 0.999 | BW102: 0.999 | BX102: 0.999 | BY102: 0.998 | BZ102: 0.999 | CA102: 0.998 | CB102: 0.997 | CC102: 0.996 | CD102: 0.996 | CE102: 0.995 | CF102: 0.988 | CG102: 0.982 | CH102: 0.985 | CI102: 0.964 | CJ102: 0.941 | CK102: 0.859 | CL102: 0.729 | CM102: 0.451 | CN102: 0.124 | CO102: 0.000 | CP102: 0.000 | CQ102: 0.000 | CR102: 0.000 | CS102: 0.000 | CT102: 0.000 | CU102: 0.000 | CV102: 0.000 | CW102: 0.000 | DD102: 0.993 | DE102: 0.992 | DF102: 0.995 | DG102: 0.999 | DH102: 0.999 | DI102: 0.999 | DJ102: 0.999 | DK102: 0.998 | DL102: 0.998 | DM102: 0.998 | DN102: 0.998 | DO102: 0.998 | DP102: 0.999 | DQ102: 0.997 | DR102: 0.998 | DS102: 0.996 | DT102: 0.994 | DU102: 0.992 | DV102: 0.993 | DW102: 0.990 | DX102: 0.975 | DY102: 0.965 | DZ102: 0.952 | EA102: 0.930 | EB102: 0.885 | EC102: 0.737 | ED102: 0.531 | EE102: 0.204 | EF102: 0.015 | EG102: 0.000 | EH102: 0.000 | EI102: 0.000 | EJ102: 0.000 | EK102: 0.000 | EL102: 0.000 | EM102: 0.000 | EN102: 0.000 | EO102: 0.000
A103: MC-LAC130 | B103: 2.8134120 | C103: 0 | D103: -1.3324480 | E103: -2 | F103: 1.9278650 | G103: -2 | H103: 4.1244520 | I103: -4 | J103: -9.9404320 | K103: -6 | L103: 9.6220240 | M103: -7 | T103: 0.999 | U103: 0.999 | V103: 0.999 | W103: 0.999 | X103: 0.999 | Y103: 0.999 | Z103: 0.999 | AA103: 0.999 | AB103: 0.999 | AC103: 0.999 | AD103: 0.999 | AE103: 0.999 | AF103: 0.999 | AG103: 0.999 | AH103: 0.999 | AI103: 0.999 | AJ103: 0.999 | AK103: 0.999 | AL103: 0.999 | AM103: 0.999 | AN103: 0.999 | AO103: 0.999 | AP103: 0.999 | AQ103: 0.999 | AR103: 0.998 | AS103: 0.997 | AT103: 0.996 | AU103: 0.993 | AV103: 0.988 | AW103: 0.978 | AX103: 0.959 | AY103: 0.931 | AZ103: 0.887 | BA103: 0.823 | BB103: 0.739 | BC103: 0.650 | BD103: 0.528 | BE103: 0.359 | BL103: 0.998 | BM103: 0.998 | BN103: 0.999 | BO103: 0.999 | BP103: 0.999 | BQ103: 0.999 | BR103: 0.999 | BS103: 0.999 | BT103: 0.999 | BU103: 0.999 | BV103: 0.999 | BW103: 0.999 | BX103: 0.999 | BY103: 0.999 | BZ103: 0.999 | CA103: 0.999 | CB103: 0.999 | CC103: 0.999 | CD103: 0.999 | CE103: 0.999 | CF103: 0.999 | CG103: 0.999 | CH103: 0.998 | CI103: 0.997 | CJ103: 0.996 | CK103: 0.994 | CL103: 0.990 | CM103: 0.983 | CN103: 0.971 | CO103: 0.947 | CP103: 0.900 | CQ103: 0.835 | CR103: 0.741 | CS103: 0.614 | CT103: 0.470 | CU103: 0.341 | CV103: 0.203 | CW103: 0.077 | DD103: 0.997 | DE103: 0.997 | DF103: 0.997 | DG103: 0.999 | DH103: 0.999 | DI103: 0.999 | DJ103: 0.999 | DK103: 0.999 | DL103: 0.999 | DM103: 0.999 | DN103: 0.999 | DO103: 0.999 | DP103: 0.998 | DQ103: 0.999 | DR103: 0.998 | DS103: 0.999 | DT103: 0.999 | DU103: 0.999 | DV103: 0.998 | DW103: 0.999 | DX103: 0.999 | DY103: 0.997 | DZ103: 0.996 | EA103: 0.994 | EB103: 0.991 | EC103: 0.987 | ED103: 0.980 | EE103: 0.966 | EF103: 0.943 | EG103: 0.897 | EH103: 0.811 | EI103: 0.698 | EJ103: 0.549 | EK103: 0.377 | EL103: 0.221 | EM103: 0.116 | EN103: 0.041 | EO103: 0.000
A104: MC-NBF1 | B104: 2.9752450 | C104: 0 | D104: -1.4250160 | E104: -2 | F104: 2.1400740 | G104: -2 | H104: 9.7553370 | I104: -4 | J104: -6.9795300 | K104: -5 | L104: 4.1149240 | M104: -6 | BL104: 0.994 | BM104: 0.994 | BN104: 0.994 | BO104: 0.998 | BP104: 0.999 | BQ104: 0.999 | BR104: 0.999 | BS104: 0.999 | BT104: 0.998 | BU104: 0.999 | BV104: 0.999 | BW104: 0.999 | BX104: 0.999 | BY104: 0.999 | BZ104: 0.999 | CA104: 0.999 | CB104: 0.999 | CC104: 0.999 | CD104: 0.999 | CE104: 0.999 | CF104: 0.999 | CG104: 0.999 | CH104: 0.998 | CI104: 0.998 | CJ104: 0.997 | CK104: 0.996 | CL104: 0.994 | CM104: 0.991 | CN104: 0.984 | CO104: 0.973 | CP104: 0.953 | CQ104: 0.923 | CR104: 0.881 | CS104: 0.823 | CT104: 0.697 | CU104: 0.672 | CV104: 0.584 | CW104: 0.412 | DD104: 0.989 | DE104: 0.988 | DF104: 0.988 | DG104: 0.996 | DH104: 0.997 | DI104: 0.997 | DJ104: 0.997 | DK104: 0.997 | DL104: 0.997 | DM104: 0.997 | DN104: 0.998 | DO104: 0.999 | DP104: 0.999 | DQ104: 0.999 | DR104: 0.999 | DS104: 0.999 | DT104: 0.999 | DU104: 0.999 | DV104: 0.999 | DW104: 0.998 | DX104: 0.998 | DY104: 0.997 | DZ104: 0.997 | EA104: 0.996 | EB104: 0.995 | EC104: 0.992 | ED104: 0.988 | EE104: 0.981 | EF104: 0.969 | EG104: 0.946 | EH104: 0.909 | EI104: 0.852 | EJ104: 0.775 | EK104: 0.677 | EL104: 0.486 | EM104: 0.451 | EN104: 0.341 | EO104: 0.170
A105: MC-NBFD130 | B105: 3.1737940 | C105: 0 | D105: -1.4986580 | E105: -2 | F105: 2.9067410 | G105: -2 | H105: 1.2048290 | I105: -3 | J105: -5.3551580 | K105: -5 | L105: 5.2713500 | M105: -6 | N105: 0.896 | O105: 0.934 | P105: 0.978 | Q105: 0.991 | R105: 0.996 | S105: 0.999 | T105: 0.999 | U105: 0.999 | V105: 0.999 | W105: 0.999 | X105: 0.999 | Y105: 0.999 | Z105: 0.999 | AA105: 0.999 | AB105: 0.999 | AC105: 0.999 | AD105: 0.999 | AE105: 0.999 | AF105: 0.999 | AG105: 0.999 | AH105: 0.999 | AI105: 0.999 | AJ105: 0.999 | AK105: 0.999 | AL105: 0.999 | AM105: 0.999 | AN105: 0.998 | AO105: 0.997 | AP105: 0.996 | AQ105: 0.996 | AR105: 0.994 | AS105: 0.990 | AT105: 0.985 | AU105: 0.976 | AV105: 0.959 | AW105: 0.913 | AX105: 0.815 | AY105: 0.604 | AZ105: 0.291 | BA105: 0.000 | BB105: 0.000 | BC105: 0.000 | BD105: 0.000 | BE105: 0.000 | BF105: 0.759 | BG105: 0.842 | BH105: 0.947 | BI105: 0.978 | BJ105: 0.990 | BK105: 0.997 | BL105: 0.997 | BM105: 0.997 | BN105: 0.998 | BO105: 0.999 | BP105: 0.999 | BQ105: 0.999 | BR105: 0.999 | BS105: 0.999 | BT105: 0.999 | BU105: 0.999 | BV105: 0.999 | BW105: 0.999 | BX105: 0.998 | BY105: 0.999 | BZ105: 0.998 | CA105: 0.998 | CB105: 0.998 | CC105: 0.997 | CD105: 0.997 | CE105: 0.997 | CF105: 0.995 | CG105: 0.993 | CH105: 0.991 | CI105: 0.988 | CJ105: 0.984 | CK105: 0.974 | CL105: 0.963 | CM105: 0.942 | CN105: 0.901 | CO105: 0.797 | CP105: 0.601 | CQ105: 0.284 | CR105: 0.046 | CS105: 0.000 | CT105: 0.000 | CU105: 0.000 | CV105: 0.000 | CW105: 0.000 | CX105: 0.576 | CY105: 0.709 | CZ105: 0.896 | DA105: 0.957 | DB105: 0.980 | DC105: 0.994 | DD105: 0.994 | DE105: 0.993 | DF105: 0.997 | DG105: 0.998 | DH105: 0.998 | DI105: 0.998 | DJ105: 0.998 | DK105: 0.998 | DL105: 0.998 | DM105: 0.998 | DN105: 0.998 | DO105: 0.998 | DP105: 0.996 | DQ105: 0.997 | DR105: 0.995 | DS105: 0.996 | DT105: 0.996 | DU105: 0.995 | DV105: 0.994 | DW105: 0.993 | DX105: 0.990 | DY105: 0.986 | DZ105: 0.981 | EA105: 0.976 | EB105: 0.969 | EC105: 0.949 | ED105: 0.927 | EE105: 0.887 | EF105: 0.811 | EG105: 0.635 | EH105: 0.361 | EI105: 0.080 | EJ105: 0.000 | EK105: 0.000 | EL105: 0.000 | EM105: 0.000 | EN105: 0.000 | EO105: 0.000
A106: MC-NBFD135 | B106: 3.1819698 | C106: 0 | D106: -1.4926522 | E106: -2 | F106: 2.8987649 | G106: -2 | H106: 1.2223654 | I106: -3 | J106: -5.2916688 | K106: -5 | L106: 4.7807227 | M106: -6 | N106: 0.896 | O106: 0.932 | P106: 0.980 | Q106: 0.995 | R106: 0.999 | S106: 0.999 | T106: 0.999 | U106: 0.999 | V106: 0.999 | W106: 0.999 | X106: 0.999 | Y106: 0.999 | Z106: 0.999 | AA106: 0.999 | AB106: 0.999 | AC106: 0.999 | AD106: 0.999 | AE106: 0.999 | AF106: 0.999 | AG106: 0.999 | AH106: 0.999 | AI106: 0.999 | AJ106: 0.999 | AK106: 0.999 | AL106: 0.999 | AM106: 0.999 | AN106: 0.999 | AO106: 0.999 | AP106: 0.998 | AQ106: 0.997 | AR106: 0.996 | AS106: 0.992 | AT106: 0.989 | AU106: 0.982 | AV106: 0.968 | AW106: 0.935 | AX106: 0.853 | AY106: 0.677 | AZ106: 0.386 | BA106: 0.000 | BB106: 0.000 | BC106: 0.000 | BD106: 0.000 | BE106: 0.000 | BF106: 0.760 | BG106: 0.840 | BH106: 0.952 | BI106: 0.987 | BJ106: 0.997 | BK106: 0.999 | BL106: 0.998 | BM106: 0.998 | BN106: 0.999 | BO106: 0.999 | BP106: 0.999 | BQ106: 0.999 | BR106: 0.999 | BS106: 0.999 | BT106: 0.999 | BU106: 0.999 | BV106: 0.999 | BW106: 0.999 | BX106: 0.999 | BY106: 0.999 | BZ106: 0.999 | CA106: 0.999 | CB106: 0.999 | CC106: 0.999 | CD106: 0.999 | CE106: 0.999 | CF106: 0.998 | CG106: 0.997 | CH106: 0.994 | CI106: 0.993 | CJ106: 0.989 | CK106: 0.981 | CL106: 0.972 | CM106: 0.956 | CN106: 0.921 | CO106: 0.844 | CP106: 0.671 | CQ106: 0.376 | CR106: 0.092 | CS106: 0.000 | CT106: 0.000 | CU106: 0.000 | CV106: 0.000 | CW106: 0.000 | CX106: 0.577 | CY106: 0.705 | CZ106: 0.906 | DA106: 0.974 | DB106: 0.995 | DC106: 0.999 | DD106: 0.997 | DE106: 0.997 | DF106: 0.997 | DG106: 0.999 | DH106: 0.999 | DI106: 0.999 | DJ106: 0.999 | DK106: 0.999 | DL106: 0.999 | DM106: 0.999 | DN106: 0.999 | DO106: 0.999 | DP106: 0.998 | DQ106: 0.999 | DR106: 0.998 | DS106: 0.999 | DT106: 0.999 | DU106: 0.999 | DV106: 0.999 | DW106: 0.999 | DX106: 0.995 | DY106: 0.994 | DZ106: 0.989 | EA106: 0.985 | EB106: 0.978 | EC106: 0.963 | ED106: 0.945 | EE106: 0.914 | EF106: 0.848 | EG106: 0.713 | EH106: 0.451 | EI106: 0.142 | EJ106: 0.000 | EK106: 0.000 | EL106: 0.000 | EM106: 0.000 | EN106: 0.000 | EO106: 0.000
A107: MC-PCD4-40 | B107: 2.5831471 | C107: 0 | D107: -9.7502344 | E107: -3 | F107: 1.3615374 | G107: -2 | H107: 3.6346122 | I107: -4 | J107: -2.1187082 | K107: -5 | L107: 1.1536132 | M107: -6 | T107: 0.999 | U107: 0.999 | V107: 0.999 | W107: 0.999 | X107: 0.999 | Y107: 0.999 | Z107: 0.999 | AA107: 0.999 | AB107: 0.999 | AC107: 0.999 | AD107: 0.999 | AE107: 0.999 | AF107: 0.999 | AG107: 0.999 | AH107: 0.999 | AI107: 0.999 | AJ107: 0.999 | AK107: 0.999 | AL107: 0.999 | AM107: 0.999 | AN107: 0.999 | AO107: 0.999 | AP107: 0.999 | AQ107: 0.998 | AR107: 0.998 | AS107: 0.997 | AT107: 0.995 | AU107: 0.991 | AV107: 0.981 | AW107: 0.960 | AX107: 0.921 | AY107: 0.854 | AZ107: 0.751 | BA107: 0.620 | BB107: 0.471 | BC107: 0.332 | BD107: 0.216 | BE107: 0.112 | BL107: 0.997 | BM107: 0.997 | BN107: 0.997 | BO107: 0.998 | BP107: 0.998 | BQ107: 0.997 | BR107: 0.997 | BS107: 0.997 | BT107: 0.997 | BU107: 0.997 | BV107: 0.997 | BW107: 0.997 | BX107: 0.997 | BY107: 0.999 | BZ107: 0.998 | CA107: 0.999 | CB107: 0.999 | CC107: 0.998 | CD107: 0.998 | CE107: 0.999 | CF107: 0.998 | CG107: 0.998 | CH107: 0.997 | CI107: 0.996 | CJ107: 0.996 | CK107: 0.993 | CL107: 0.988 | CM107: 0.977 | CN107: 0.954 | CO107: 0.903 | CP107: 0.814 | CQ107: 0.675 | CR107: 0.489 | CS107: 0.304 | CT107: 0.154 | CU107: 0.063 | CV107: 0.022 | CW107: 0.000 | DD107: 0.994 | DE107: 0.994 | DF107: 0.995 | DG107: 0.996 | DH107: 0.995 | DI107: 0.995 | DJ107: 0.994 | DK107: 0.994 | DL107: 0.994 | DM107: 0.994 | DN107: 0.994 | DO107: 0.994 | DP107: 0.994 | DQ107: 0.997 | DR107: 0.997 | DS107: 0.997 | DT107: 0.997 | DU107: 0.996 | DV107: 0.997 | DW107: 0.998 | DX107: 0.997 | DY107: 0.996 | DZ107: 0.994 | EA107: 0.992 | EB107: 0.991 | EC107: 0.986 | ED107: 0.976 | EE107: 0.954 | EF107: 0.911 | EG107: 0.815 | EH107: 0.663 | EI107: 0.455 | EJ107: 0.240 | EK107: 0.092 | EL107: 0.024 | EM107: 0.000 | EN107: 0.000 | EO107: 0.000
A108: MC-PCD51-70 | B108: 2.5025436 | C108: 0 | D108: -1.0321437 | E108: -2 | F108: 1.2433636 | G108: -2 | H108: 2.1866535 | I108: -4 | J108: -5.5793977 | K108: -6 | L108: 3.0188383 | M108: -7 | N108: 0.956 | O108: 0.969 | P108: 0.981 | Q108: 0.994 | R108: 0.997 | S108: 0.999 | T108: 0.998 | U108: 0.998 | V108: 0.999 | W108: 0.999 | X108: 0.999 | Y108: 0.999 | Z108: 0.999 | AA108: 0.999 | AB108: 0.999 | AC108: 0.999 | AD108: 0.999 | AE108: 0.999 | AF108: 0.999 | AG108: 0.999 | AH108: 0.999 | AI108: 0.999 | AJ108: 0.999 | AK108: 0.999 | AL108: 0.999 | AM108: 0.999 | AN108: 0.999 | AO108: 0.999 | AP108: 0.999 | AQ108: 0.998 | AR108: 0.998 | AS108: 0.998 | AT108: 0.998 | AU108: 0.997 | AV108: 0.996 | AW108: 0.993 | AX108: 0.987 | AY108: 0.976 | AZ108: 0.957 | BA108: 0.929 | BB108: 0.887 | BC108: 0.832 | BD108: 0.765 | BE108: 0.681 | BF108: 0.894 | BG108: 0.925 | BH108: 0.954 | BI108: 0.985 | BJ108: 0.993 | BK108: 0.998 | BL108: 0.996 | BM108: 0.996 | BN108: 0.997 | BO108: 0.999 | BP108: 0.999 | BQ108: 0.999 | BR108: 0.999 | BS108: 0.999 | BT108: 0.999 | BU108: 0.999 | BV108: 0.999 | BW108: 0.999 | BX108: 0.999 | BY108: 0.999 | BZ108: 0.999 | CA108: 0.999 | CB108: 0.999 | CC108: 0.999 | CD108: 0.998 | CE108: 0.999 | CF108: 0.998 | CG108: 0.998 | CH108: 0.997 | CI108: 0.996 | CJ108: 0.996 | CK108: 0.996 | CL108: 0.995 | CM108: 0.993 | CN108: 0.989 | CO108: 0.982 | CP108: 0.967 | CQ108: 0.940 | CR108: 0.895 | CS108: 0.831 | CT108: 0.740 | CU108: 0.630 | CV108: 0.510 | CW108: 0.381 | CX108: 0.800 | CY108: 0.856 | CZ108: 0.910 | DA108: 0.971 | DB108: 0.986 | DC108: 0.997 | DD108: 0.992 | DE108: 0.992 | DF108: 0.994 | DG108: 0.998 | DH108: 0.998 | DI108: 0.998 | DJ108: 0.999 | DK108: 0.998 | DL108: 0.998 | DM108: 0.999 | DN108: 0.999 | DO108: 0.999 | DP108: 0.999 | DQ108: 0.999 | DR108: 0.999 | DS108: 0.999 | DT108: 0.998 | DU108: 0.998 | DV108: 0.997 | DW108: 0.998 | DX108: 0.997 | DY108: 0.996 | DZ108: 0.994 | EA108: 0.992 | EB108: 0.991 | EC108: 0.991 | ED108: 0.990 | EE108: 0.986 | EF108: 0.978 | EG108: 0.964 | EH108: 0.935 | EI108: 0.884 | EJ108: 0.802 | EK108: 0.690 | EL108: 0.547 | EM108: 0.397 | EN108: 0.260 | EO108: 0.145
A109: MC-TAF1 | B109: 3.0708060 | C109: 0 | D109: -1.2276924 | E109: -2 | F109: 2.4565660 | G109: -2 | H109: 4.7436648 | I109: -4 | J109: 5.4326160 | K109: -7 | L109: 6.5976661 | M109: -7 | BL109: 0.998 | BM109: 0.998 | BN109: 0.999 | BO109: 0.999 | BP109: 0.999 | BQ109: 0.999 | BR109: 0.999 | BS109: 0.999 | BT109: 0.999 | BU109: 0.999 | BV109: 0.999 | BW109: 0.999 | BX109: 0.999 | BY109: 0.999 | BZ109: 0.999 | CA109: 0.999 | CB109: 0.999 | CC109: 0.999 | CD109: 0.998 | CE109: 0.999 | CF109: 0.999 | CG109: 0.998 | CH109: 0.997 | CI109: 0.996 | CJ109: 0.995 | CK109: 0.992 | CL109: 0.989 | CM109: 0.983 | CN109: 0.971 | CO109: 0.949 | CP109: 0.912 | CQ109: 0.855 | CR109: 0.773 | CS109: 0.668 | CT109: 0.449 | CU109: 0.429 | CV109: 0.340 | CW109: 0.217 | DD109: 0.997 | DE109: 0.996 | DF109: 0.997 | DG109: 0.998 | DH109: 0.998 | DI109: 0.998 | DJ109: 0.998 | DK109: 0.998 | DL109: 0.998 | DM109: 0.998 | DN109: 0.998 | DO109: 0.999 | DP109: 0.999 | DQ109: 0.998 | DR109: 0.998 | DS109: 0.998 | DT109: 0.998 | DU109: 0.997 | DV109: 0.997 | DW109: 0.998 | DX109: 0.997 | DY109: 0.996 | DZ109: 0.994 | EA109: 0.992 | EB109: 0.990 | EC109: 0.985 | ED109: 0.978 | EE109: 0.966 | EF109: 0.942 | EG109: 0.900 | EH109: 0.831 | EI109: 0.731 | EJ109: 0.598 | EK109: 0.446 | EL109: 0.202 | EM109: 0.184 | EN109: 0.116 | EO109: 0.047
A110: MC-TAF101-100 | B110: 3.0591566 | C110: 0 | D110: -1.3604717 | E110: -2 | F110: 2.4624272 | G110: -2 | H110: 4.1834242 | I110: -4 | J110: 2.5361908 | K110: -6 | L110: 7.9980820 | M110: -7 | N110: 0.864 | O110: 0.907 | P110: 0.971 | Q110: 0.992 | R110: 0.998 | S110: 0.999 | T110: 0.998 | U110: 0.998 | V110: 0.998 | W110: 0.999 | X110: 0.999 | Y110: 0.999 | Z110: 0.999 | AA110: 0.999 | AB110: 0.999 | AC110: 0.999 | AD110: 0.999 | AE110: 0.999 | AF110: 0.999 | AG110: 0.999 | AH110: 0.999 | AI110: 0.999 | AJ110: 0.999 | AK110: 0.999 | AL110: 0.999 | AM110: 0.999 | AN110: 0.999 | AO110: 0.999 | AP110: 0.999 | AQ110: 0.998 | AR110: 0.998 | AS110: 0.996 | AT110: 0.995 | AU110: 0.993 | AV110: 0.989 | AW110: 0.980 | AX110: 0.968 | AY110: 0.949 | AZ110: 0.922 | BA110: 0.885 | BB110: 0.780 | BC110: 0.783 | BD110: 0.723 | BE110: 0.589 | BF110: 0.694 | BG110: 0.784 | BH110: 0.929 | BI110: 0.979 | BJ110: 0.994 | BK110: 0.999 | BL110: 0.996 | BM110: 0.996 | BN110: 0.996 | BO110: 0.999 | BP110: 0.999 | BQ110: 0.999 | BR110: 0.999 | BS110: 0.999 | BT110: 0.999 | BU110: 0.999 | BV110: 0.999 | BW110: 0.999 | BX110: 0.999 | BY110: 0.999 | BZ110: 0.999 | CA110: 0.999 | CB110: 0.999 | CC110: 0.999 | CD110: 0.999 | CE110: 0.999 | CF110: 0.999 | CG110: 0.998 | CH110: 0.997 | CI110: 0.996 | CJ110: 0.995 | CK110: 0.991 | CL110: 0.988 | CM110: 0.982 | CN110: 0.972 | CO110: 0.951 | CP110: 0.922 | CQ110: 0.878 | CR110: 0.817 | CS110: 0.737 | CT110: 0.538 | CU110: 0.543 | CV110: 0.444 | CW110: 0.266 | CX110: 0.482 | CY110: 0.614 | CZ110: 0.863 | DA110: 0.958 | DB110: 0.988 | DC110: 0.999 | DD110: 0.993 | DE110: 0.992 | DF110: 0.992 | DG110: 0.999 | DH110: 0.999 | DI110: 0.999 | DJ110: 0.999 | DK110: 0.999 | DL110: 0.999 | DM110: 0.999 | DN110: 0.999 | DO110: 0.999 | DP110: 0.998 | DQ110: 0.998 | DR110: 0.998 | DS110: 0.998 | DT110: 0.998 | DU110: 0.998 | DV110: 0.998 | DW110: 0.998 | DX110: 0.997 | DY110: 0.996 | DZ110: 0.994 | EA110: 0.992 | EB110: 0.989 | EC110: 0.983 | ED110: 0.976 | EE110: 0.964 | EF110: 0.944 | EG110: 0.905 | EH110: 0.850 | EI110: 0.770 | EJ110: 0.668 | EK110: 0.543 | EL110: 0.289 | EM110: 0.295 | EN110: 0.197 | EO110: 0.071
A111: MC-TAF105 | B111: 3.0705638 | C111: 0 | D111: -1.3310234 | E111: -2 | F111: 2.5280355 | G111: -2 | H111: 2.1829234 | I111: -4 | J111: 3.2555293 | K111: -5 | L111: -8.1300421 | M111: -7 | T111: 0.999 | U111: 0.999 | V111: 0.999 | W111: 0.999 | X111: 0.999 | Y111: 0.999 | Z111: 0.999 | AA111: 0.999 | AB111: 0.999 | AC111: 0.999 | AD111: 0.999 | AE111: 0.999 | AF111: 0.999 | AG111: 0.999 | AH111: 0.999 | AI111: 0.999 | AJ111: 0.999 | AK111: 0.999 | AL111: 0.999 | AM111: 0.999 | AN111: 0.999 | AO111: 0.999 | AP111: 0.999 | AQ111: 0.999 | AR111: 0.998 | AS111: 0.997 | AT111: 0.995 | AU111: 0.992 | AV111: 0.987 | AW111: 0.977 | AX111: 0.962 | AY111: 0.939 | AZ111: 0.905 | BA111: 0.859 | BB111: 0.735 | BC111: 0.720 | BD111: 0.628 | BE111: 0.474 | BL111: 0.997 | BM111: 0.997 | BN111: 0.997 | BO111: 0.999 | BP111: 0.999 | BQ111: 0.999 | BR111: 0.999 | BS111: 0.999 | BT111: 0.999 | BU111: 0.999 | BV111: 0.999 | BW111: 0.999 | BX111: 0.999 | BY111: 0.999 | BZ111: 0.999 | CA111: 0.999 | CB111: 0.999 | CC111: 0.999 | CD111: 0.999 | CE111: 0.999 | CF111: 0.999 | CG111: 0.999 | CH111: 0.998 | CI111: 0.997 | CJ111: 0.996 | CK111: 0.992 | CL111: 0.988 | CM111: 0.981 | CN111: 0.969 | CO111: 0.945 | CP111: 0.909 | CQ111: 0.854 | CR111: 0.779 | CS111: 0.684 | CT111: 0.464 | CU111: 0.439 | CV111: 0.314 | CW111: 0.156 | DD111: 0.994 | DE111: 0.995 | DF111: 0.994 | DG111: 0.999 | DH111: 0.999 | DI111: 0.999 | DJ111: 0.999 | DK111: 0.999 | DL111: 0.998 | DM111: 0.998 | DN111: 0.998 | DO111: 0.998 | DP111: 0.997 | DQ111: 0.999 | DR111: 0.999 | DS111: 0.999 | DT111: 0.999 | DU111: 0.999 | DV111: 0.999 | DW111: 0.999 | DX111: 0.999 | DY111: 0.997 | DZ111: 0.997 | EA111: 0.995 | EB111: 0.991 | EC111: 0.984 | ED111: 0.977 | EE111: 0.962 | EF111: 0.939 | EG111: 0.892 | EH111: 0.826 | EI111: 0.729 | EJ111: 0.607 | EK111: 0.468 | EL111: 0.215 | EM111: 0.193 | EN111: 0.098 | EO111: 0.024
A112: MC-TAF31-15 | B112: 3.1644750 | C112: 0 | D112: -1.3801295 | E112: -2 | F112: 2.7926276 | G112: -2 | H112: 5.7403000 | I112: -4 | J112: 9.8223773 | K112: -7 | L112: 1.3284244 | M112: -6 | T112: 0.999 | U112: 0.999 | V112: 0.999 | W112: 0.999 | X112: 0.999 | Y112: 0.999 | Z112: 0.999 | AA112: 0.999 | AB112: 0.999 | AC112: 0.999 | AD112: 0.999 | AE112: 0.999 | AF112: 0.999 | AG112: 0.999 | AH112: 0.999 | AI112: 0.999 | AJ112: 0.999 | AK112: 0.999 | AL112: 0.999 | AM112: 0.999 | AN112: 0.999 | AO112: 0.999 | AP112: 0.999 | AQ112: 0.998 | AR112: 0.998 | AS112: 0.996 | AT112: 0.994 | AU112: 0.991 | AV112: 0.985 | AW112: 0.976 | AX112: 0.960 | AY112: 0.937 | AZ112: 0.904 | BA112: 0.859 | BB112: 0.757 | BC112: 0.738 | BD112: 0.650 | BE112: 0.488 | BL112: 0.998 | BM112: 0.998 | BN112: 0.998 | BO112: 0.999 | BP112: 0.999 | BQ112: 0.999 | BR112: 0.999 | BS112: 0.999 | BT112: 0.999 | BU112: 0.999 | BV112: 0.999 | BW112: 0.999 | BX112: 0.999 | BY112: 0.999 | BZ112: 0.999 | CA112: 0.999 | CB112: 0.999 | CC112: 0.999 | CD112: 0.999 | CE112: 0.999 | CF112: 0.998 | CG112: 0.998 | CH112: 0.997 | CI112: 0.995 | CJ112: 0.994 | CK112: 0.989 | CL112: 0.985 | CM112: 0.977 | CN112: 0.964 | CO112: 0.941 | CP112: 0.902 | CQ112: 0.849 | CR112: 0.777 | CS112: 0.684 | CT112: 0.498 | CU112: 0.468 | CV112: 0.340 | CW112: 0.166 | DD112: 0.997 | DE112: 0.996 | DF112: 0.997 | DG112: 0.999 | DH112: 0.999 | DI112: 0.999 | DJ112: 0.999 | DK112: 0.999 | DL112: 0.999 | DM112: 0.999 | DN112: 0.998 | DO112: 0.999 | DP112: 0.999 | DQ112: 0.999 | DR112: 0.999 | DS112: 0.999 | DT112: 0.999 | DU112: 0.998 | DV112: 0.998 | DW112: 0.998 | DX112: 0.996 | DY112: 0.995 | DZ112: 0.993 | EA112: 0.991 | EB112: 0.987 | EC112: 0.978 | ED112: 0.970 | EE112: 0.955 | EF112: 0.928 | EG112: 0.886 | EH112: 0.814 | EI112: 0.720 | EJ112: 0.604 | EK112: 0.468 | EL112: 0.248 | EM112: 0.219 | EN112: 0.115 | EO112: 0.028
A113: MC-TAF401 | B113: 3.0727900 | C113: 0 | D113: -1.3663850 | E113: -2 | F113: 2.5273460 | G113: -2 | H113: 6.1218200 | I113: -4 | J113: -1.1470450 | K113: -5 | L113: 1.5430000 | M113: -6 | T113: 0.999 | U113: 0.999 | V113: 0.999 | W113: 0.999 | X113: 0.999 | Y113: 0.999 | Z113: 0.999 | AA113: 0.999 | AB113: 0.999 | AC113: 0.999 | AD113: 0.999 | AE113: 0.998 | AF113: 0.998 | AG113: 0.998 | AH113: 0.999 | AI113: 0.998 | AJ113: 0.999 | AK113: 0.999 | AL113: 0.999 | AM113: 0.999 | AN113: 0.999 | AO113: 0.999 | AP113: 0.998 | AQ113: 0.998 | AR113: 0.997 | AS113: 0.995 | AT113: 0.992 | AU113: 0.988 | AV113: 0.981 | AW113: 0.966 | AX113: 0.938 | AY113: 0.890 | AZ113: 0.801 | BA113: 0.644 | BB113: 0.373 | BC113: 0.000 | BD113: 0.000 | BE113: 0.000 | BL113: 0.997 | BM113: 0.997 | BN113: 0.998 | BO113: 0.998 | BP113: 0.998 | BQ113: 0.998 | BR113: 0.998 | BS113: 0.997 | BT113: 0.997 | BU113: 0.997 | BV113: 0.997 | BW113: 0.996 | BX113: 0.996 | BY113: 0.996 | BZ113: 0.997 | CA113: 0.996 | CB113: 0.997 | CC113: 0.998 | CD113: 0.998 | CE113: 0.999 | CF113: 0.998 | CG113: 0.997 | CH113: 0.995 | CI113: 0.994 | CJ113: 0.992 | CK113: 0.987 | CL113: 0.981 | CM113: 0.971 | CN113: 0.952 | CO113: 0.917 | CP113: 0.852 | CQ113: 0.748 | CR113: 0.575 | CS113: 0.333 | CT113: 0.085 | CU113: 0.000 | CV113: 0.000 | CW113: 0.000 | DD113: 0.994 | DE113: 0.995 | DF113: 0.995 | DG113: 0.996 | DH113: 0.996 | DI113: 0.995 | DJ113: 0.995 | DK113: 0.995 | DL113: 0.994 | DM113: 0.995 | DN113: 0.994 | DO113: 0.993 | DP113: 0.992 | DQ113: 0.992 | DR113: 0.993 | DS113: 0.993 | DT113: 0.991 | DU113: 0.991 | DV113: 0.991 | DW113: 0.991 | DX113: 0.991 | DY113: 0.991 | DZ113: 0.991 | EA113: 0.988 | EB113: 0.984 | EC113: 0.975 | ED113: 0.962 | EE113: 0.943 | EF113: 0.907 | EG113: 0.840 | EH113: 0.726 | EI113: 0.560 | EJ113: 0.331 | EK113: 0.111 | EL113: 0.000 | EM113: 0.000 | EN113: 0.000 | EO113: 0.000
A114: MC-TAFD305 | B114: 3.3271840 | C114: 0 | D114: -1.3432420 | E114: -2 | F114: 3.3398000 | G114: -2 | H114: 1.0060470 | I114: -3 | J114: -2.1369080 | K114: -5 | L114: 3.9725610 | M114: -6 | N114: 0.909 | O114: 0.943 | P114: 0.983 | Q114: 0.994 | R114: 0.998 | S114: 0.999 | T114: 0.999 | U114: 0.999 | V114: 0.999 | W114: 0.999 | X114: 0.999 | Y114: 0.999 | Z114: 0.999 | AA114: 0.999 | AB114: 0.999 | AC114: 0.999 | AD114: 0.999 | AE114: 0.999 | AF114: 0.999 | AG114: 0.999 | AH114: 0.999 | AI114: 0.999 | AJ114: 0.999 | AK114: 0.999 | AL114: 0.999 | AM114: 0.999 | AN114: 0.999 | AO114: 0.998 | AP114: 0.997 | AQ114: 0.996 | AR114: 0.994 | AS114: 0.987 | AT114: 0.981 | AU114: 0.967 | AV114: 0.938 | AW114: 0.874 | AX114: 0.728 | AY114: 0.474 | AZ114: 0.000 | BA114: 0.000 | BB114: 0.000 | BC114: 0.000 | BD114: 0.000 | BE114: 0.000 | BF114: 0.788 | BG114: 0.864 | BH114: 0.959 | BI114: 0.986 | BJ114: 0.996 | BK114: 0.999 | BL114: 0.998 | BM114: 0.998 | BN114: 0.998 | BO114: 0.998 | BP114: 0.997 | BQ114: 0.997 | BR114: 0.997 | BS114: 0.997 | BT114: 0.997 | BU114: 0.997 | BV114: 0.997 | BW114: 0.997 | BX114: 0.998 | BY114: 0.997 | BZ114: 0.997 | CA114: 0.998 | CB114: 0.999 | CC114: 0.999 | CD114: 0.999 | CE114: 0.999 | CF114: 0.997 | CG114: 0.995 | CH114: 0.993 | CI114: 0.989 | CJ114: 0.985 | CK114: 0.969 | CL114: 0.952 | CM114: 0.919 | CN114: 0.851 | CO114: 0.714 | CP114: 0.452 | CQ114: 0.155 | CR114: 0.000 | CS114: 0.000 | CT114: 0.000 | CU114: 0.000 | CV114: 0.000 | CW114: 0.000 | CX114: 0.621 | CY114: 0.746 | CZ114: 0.920 | DA114: 0.973 | DB114: 0.992 | DC114: 0.999 | DD114: 0.995 | DE114: 0.996 | DF114: 0.996 | DG114: 0.996 | DH114: 0.995 | DI114: 0.994 | DJ114: 0.994 | DK114: 0.994 | DL114: 0.993 | DM114: 0.994 | DN114: 0.993 | DO114: 0.994 | DP114: 0.996 | DQ114: 0.994 | DR114: 0.995 | DS114: 0.995 | DT114: 0.995 | DU114: 0.995 | DV114: 0.996 | DW114: 0.997 | DX114: 0.995 | DY114: 0.990 | DZ114: 0.986 | EA114: 0.979 | EB114: 0.970 | EC114: 0.939 | ED114: 0.906 | EE114: 0.845 | EF114: 0.724 | EG114: 0.509 | EH114: 0.204 | EI114: 0.024 | EJ114: 0.000 | EK114: 0.000 | EL114: 0.000 | EM114: 0.000 | EN114: 0.000 | EO114: 0.000
A115: MC-TAFD307 | B115: 3.4286062 | C115: 0 | D115: -1.3845333 | E115: -2 | F115: 3.7363009 | G115: -2 | H115: 1.1894554 | I115: -3 | J115: -1.5979979 | K115: -5 | L115: 5.1827398 | M115: -6 | T115: 0.999 | U115: 0.999 | V115: 0.999 | W115: 0.999 | X115: 0.999 | Y115: 0.999 | Z115: 0.999 | AA115: 0.999 | AB115: 0.999 | AC115: 0.999 | AD115: 0.999 | AE115: 0.999 | AF115: 0.999 | AG115: 0.999 | AH115: 0.999 | AI115: 0.999 | AJ115: 0.999 | AK115: 0.999 | AL115: 0.999 | AM115: 0.999 | AN115: 0.997 | AO115: 0.996 | AP115: 0.995 | AQ115: 0.993 | AR115: 0.989 | AS115: 0.979 | AT115: 0.967 | AU115: 0.944 | AV115: 0.894 | AW115: 0.762 | AX115: 0.528 | AY115: 0.132 | AZ115: 0.000 | BA115: 0.000 | BB115: 0.000 | BC115: 0.000 | BD115: 0.000 | BE115: 0.000 | BL115: 0.997 | BM115: 0.997 | BN115: 0.998 | BO115: 0.999 | BP115: 0.999 | BQ115: 0.999 | BR115: 0.999 | BS115: 0.999 | BT115: 0.999 | BU115: 0.999 | BV115: 0.999 | BW115: 0.999 | BX115: 0.999 | BY115: 0.998 | BZ115: 0.998 | CA115: 0.998 | CB115: 0.998 | CC115: 0.997 | CD115: 0.997 | CE115: 0.996 | CF115: 0.993 | CG115: 0.990 | CH115: 0.987 | CI115: 0.982 | CJ115: 0.972 | CK115: 0.948 | CL115: 0.920 | CM115: 0.866 | CN115: 0.755 | CO115: 0.507 | CP115: 0.202 | CQ115: 0.000 | CR115: 0.000 | CS115: 0.000 | CT115: 0.000 | CU115: 0.000 | CV115: 0.000 | CW115: 0.000 | DD115: 0.995 | DE115: 0.994 | DF115: 0.996 | DG115: 0.997 | DH115: 0.998 | DI115: 0.997 | DJ115: 0.998 | DK115: 0.997 | DL115: 0.997 | DM115: 0.997 | DN115: 0.997 | DO115: 0.998 | DP115: 0.998 | DQ115: 0.996 | DR115: 0.996 | DS115: 0.996 | DT115: 0.995 | DU115: 0.994 | DV115: 0.994 | DW115: 0.993 | DX115: 0.986 | DY115: 0.981 | DZ115: 0.975 | EA115: 0.965 | EB115: 0.946 | EC115: 0.898 | ED115: 0.847 | EE115: 0.749 | EF115: 0.571 | EG115: 0.257 | EH115: 0.041 | EI115: 0.000 | EJ115: 0.000 | EK115: 0.000 | EL115: 0.000 | EM115: 0.000 | EN115: 0.000 | EO115: 0.000
A116: MC-TAFD51-50 | B116: 3.2288052 | C116: 0 | D116: -1.4433046 | E116: -2 | F116: 2.9863488 | G116: -2 | H116: 8.2119282 | I116: -4 | J116: -1.0943492 | K116: -5 | L116: 2.5804939 | M116: -6 | T116: 0.999 | U116: 0.999 | V116: 0.999 | W116: 0.999 | X116: 0.999 | Y116: 0.999 | Z116: 0.999 | AA116: 0.999 | AB116: 0.999 | AC116: 0.999 | AD116: 0.999 | AE116: 0.999 | AF116: 0.999 | AG116: 0.999 | AH116: 0.999 | AI116: 0.999 | AJ116: 0.999 | AK116: 0.999 | AL116: 0.999 | AM116: 0.999 | AN116: 0.999 | AO116: 0.998 | AP116: 0.998 | AQ116: 0.997 | AR116: 0.996 | AS116: 0.992 | AT116: 0.987 | AU116: 0.979 | AV116: 0.961 | AW116: 0.922 | AX116: 0.820 | AY116: 0.614 | AZ116: 0.222 | BA116: 0.019 | BB116: 0.000 | BC116: 0.000 | BD116: 0.000 | BE116: 0.000 | BL116: 0.998 | BM116: 0.998 | BN116: 0.998 | BO116: 0.999 | BP116: 0.999 | BQ116: 0.999 | BR116: 0.999 | BS116: 0.999 | BT116: 0.999 | BU116: 0.999 | BV116: 0.999 | BW116: 0.999 | BX116: 0.999 | BY116: 0.999 | BZ116: 0.999 | CA116: 0.999 | CB116: 0.999 | CC116: 0.999 | CD116: 0.999 | CE116: 0.999 | CF116: 0.997 | CG116: 0.996 | CH116: 0.995 | CI116: 0.993 | CJ116: 0.989 | CK116: 0.980 | CL116: 0.969 | CM116: 0.949 | CN116: 0.906 | CO116: 0.816 | CP116: 0.608 | CQ116: 0.296 | CR116: 0.023 | CS116: 0.000 | CT116: 0.000 | CU116: 0.000 | CV116: 0.000 | CW116: 0.000 | DD116: 0.996 | DE116: 0.996 | DF116: 0.997 | DG116: 0.999 | DH116: 0.999 | DI116: 0.999 | DJ116: 0.999 | DK116: 0.999 | DL116: 0.999 | DM116: 0.999 | DN116: 0.999 | DO116: 0.998 | DP116: 0.999 | DQ116: 0.999 | DR116: 0.999 | DS116: 0.999 | DT116: 0.999 | DU116: 0.998 | DV116: 0.998 | DW116: 0.997 | DX116: 0.995 | DY116: 0.993 | DZ116: 0.990 | EA116: 0.985 | EB116: 0.979 | EC116: 0.960 | ED116: 0.940 | EE116: 0.900 | EF116: 0.821 | EG116: 0.666 | EH116: 0.369 | EI116: 0.088 | EJ116: 0.000 | EK116: 0.000 | EL116: 0.000 | EM116: 0.000 | EN116: 0.000 | EO116: 0.000
A117: M-FCD1 | B117: 2.2189068 | C117: 0 | D117: -6.1707065 | E117: -3 | F117: 8.0887631 | G117: -3 | H117: 1.3357782 | I117: -4 | J117: 1.9476186 | K117: -7 | L117: -2.2577804 | M117: -7 | N117: 0.997 | O117: 0.999 | P117: 0.999 | Q117: 0.999 | R117: 0.999 | S117: 0.999 | T117: 0.999 | U117: 0.999 | V117: 0.999 | W117: 0.999 | X117: 0.999 | Y117: 0.999 | Z117: 0.999 | AA117: 0.999 | AB117: 0.999 | AC117: 0.999 | AD117: 0.999 | AE117: 0.999 | AF117: 0.999 | AG117: 0.999 | AH117: 0.999 | AI117: 0.999 | AJ117: 0.999 | AK117: 0.999 | AL117: 0.999 | AM117: 0.999 | AN117: 0.999 | AO117: 0.999 | AP117: 0.999 | AQ117: 0.999 | AR117: 0.999 | AS117: 0.999 | AT117: 0.999 | AU117: 0.997 | AV117: 0.994 | AW117: 0.987 | AX117: 0.971 | AY117: 0.938 | AZ117: 0.877 | BA117: 0.780 | BB117: 0.645 | BC117: 0.489 | BD117: 0.337 | BE117: 0.205 | BF117: 0.992 | BG117: 0.997 | BH117: 0.997 | BI117: 0.998 | BJ117: 0.998 | BK117: 0.998 | BL117: 0.999 | BM117: 0.998 | BN117: 0.999 | BO117: 0.999 | BP117: 0.999 | BQ117: 0.999 | BR117: 0.999 | BS117: 0.999 | BT117: 0.999 | BU117: 0.999 | BV117: 0.998 | BW117: 0.998 | BX117: 0.998 | BY117: 0.998 | BZ117: 0.998 | CA117: 0.998 | CB117: 0.999 | CC117: 0.999 | CD117: 0.999 | CE117: 0.999 | CF117: 0.999 | CG117: 0.999 | CH117: 0.998 | CI117: 0.998 | CJ117: 0.998 | CK117: 0.998 | CL117: 0.997 | CM117: 0.993 | CN117: 0.986 | CO117: 0.968 | CP117: 0.929 | CQ117: 0.852 | CR117: 0.721 | CS117: 0.537 | CT117: 0.334 | CU117: 0.167 | CV117: 0.066 | CW117: 0.019 | CX117: 0.985 | CY117: 0.994 | CZ117: 0.995 | DA117: 0.997 | DB117: 0.997 | DC117: 0.996 | DD117: 0.997 | DE117: 0.997 | DF117: 0.997 | DG117: 0.999 | DH117: 0.999 | DI117: 0.999 | DJ117: 0.999 | DK117: 0.999 | DL117: 0.999 | DM117: 0.999 | DN117: 0.999 | DO117: 0.999 | DP117: 0.999 | DQ117: 0.999 | DR117: 0.999 | DS117: 0.999 | DT117: 0.998 | DU117: 0.998 | DV117: 0.999 | DW117: 0.999 | DX117: 0.999 | DY117: 0.998 | DZ117: 0.997 | EA117: 0.996 | EB117: 0.995 | EC117: 0.996 | ED117: 0.993 | EE117: 0.987 | EF117: 0.972 | EG117: 0.938 | EH117: 0.863 | EI117: 0.726 | EJ117: 0.520 | EK117: 0.288 | EL117: 0.112 | EM117: 0.028 | EN117: 0.000 | EO117: 0.000
A118: M-FCD500 | B118: 2.3841554 | C118: 0 | D118: -7.8084423 | E118: -3 | F118: 9.7130883 | G118: -3 | H118: 4.9959889 | I118: -4 | J118: -4.7303224 | K118: -5 | L118: 2.3205441 | M118: -6 | N118: 0.996 | O118: 0.998 | P118: 0.998 | Q118: 0.999 | R118: 0.999 | S118: 0.999 | T118: 0.999 | U118: 0.999 | V118: 0.999 | W118: 0.999 | X118: 0.999 | Y118: 0.999 | Z118: 0.999 | AA118: 0.999 | AB118: 0.999 | AC118: 0.999 | AD118: 0.999 | AE118: 0.999 | AF118: 0.999 | AG118: 0.999 | AH118: 0.999 | AI118: 0.999 | AJ118: 0.999 | AK118: 0.999 | AL118: 0.999 | AM118: 0.999 | AN118: 0.999 | AO118: 0.999 | AP118: 0.999 | AQ118: 0.999 | AR118: 0.999 | AS118: 0.998 | AT118: 0.997 | AU118: 0.994 | AV118: 0.987 | AW118: 0.972 | AX118: 0.938 | AY118: 0.878 | AZ118: 0.779 | BA118: 0.643 | BB118: 0.480 | BC118: 0.323 | BD118: 0.181 | BE118: 0.000 | BF118: 0.990 | BG118: 0.995 | BH118: 0.996 | BI118: 0.998 | BJ118: 0.998 | BK118: 0.998 | BL118: 0.999 | BM118: 0.998 | BN118: 0.999 | BO118: 0.999 | BP118: 0.999 | BQ118: 0.999 | BR118: 0.999 | BS118: 0.999 | BT118: 0.999 | BU118: 0.999 | BV118: 0.998 | BW118: 0.998 | BX118: 0.998 | BY118: 0.998 | BZ118: 0.998 | CA118: 0.998 | CB118: 0.999 | CC118: 0.999 | CD118: 0.999 | CE118: 0.999 | CF118: 0.999 | CG118: 0.999 | CH118: 0.998 | CI118: 0.997 | CJ118: 0.997 | CK118: 0.996 | CL118: 0.993 | CM118: 0.986 | CN118: 0.969 | CO118: 0.931 | CP118: 0.853 | CQ118: 0.722 | CR118: 0.536 | CS118: 0.331 | CT118: 0.160 | CU118: 0.059 | CV118: 0.014 | CW118: 0.000 | CX118: 0.980 | CY118: 0.991 | CZ118: 0.992 | DA118: 0.997 | DB118: 0.997 | DC118: 0.997 | DD118: 0.997 | DE118: 0.997 | DF118: 0.997 | DG118: 0.999 | DH118: 0.999 | DI118: 0.999 | DJ118: 0.999 | DK118: 0.999 | DL118: 0.999 | DM118: 0.999 | DN118: 0.999 | DO118: 0.999 | DP118: 0.999 | DQ118: 0.999 | DR118: 0.999 | DS118: 0.999 | DT118: 0.998 | DU118: 0.998 | DV118: 0.999 | DW118: 0.999 | DX118: 0.999 | DY118: 0.998 | DZ118: 0.996 | EA118: 0.995 | EB118: 0.994 | EC118: 0.993 | ED118: 0.986 | EE118: 0.972 | EF118: 0.939 | EG118: 0.867 | EH118: 0.728 | EI118: 0.521 | EJ118: 0.287 | EK118: 0.109 | EL118: 0.026 | EM118: 0.000 | EN118: 0.000 | EO118: 0.000
A119: M-FD80 | B119: 2.7616380 | C119: 0 | D119: -1.1326330 | E119: -2 | F119: 2.8653460 | G119: -2 | H119: 1.5290380 | I119: -3 | J119: -8.7435770 | K119: -5 | L119: 1.4965790 | M119: -5 | T119: 0.999 | U119: 0.999 | V119: 0.998 | W119: 0.999 | X119: 0.999 | Y119: 0.999 | Z119: 0.999 | AA119: 0.999 | AB119: 0.999 | AC119: 0.999 | AD119: 0.999 | AE119: 0.999 | AF119: 0.999 | AG119: 0.999 | AH119: 0.999 | AI119: 0.999 | AJ119: 0.999 | AK119: 0.999 | AL119: 0.999 | AM119: 0.998 | AN119: 0.995 | AO119: 0.994 | AP119: 0.991 | AQ119: 0.988 | AR119: 0.982 | AS119: 0.965 | AT119: 0.941 | AU119: 0.878 | AV119: 0.734 | AW119: 0.488 | AX119: 0.000 | AY119: 0.000 | AZ119: 0.000 | BA119: 0.000 | BB119: 0.000 | BC119: 0.000 | BD119: 0.000 | BE119: 0.000 | BL119: 0.997 | BM119: 0.997 | BN119: 0.995 | BO119: 0.999 | BP119: 0.999 | BQ119: 0.999 | BR119: 0.999 | BS119: 0.999 | BT119: 0.999 | BU119: 0.999 | BV119: 0.999 | BW119: 0.999 | BX119: 0.999 | BY119: 0.998 | BZ119: 0.998 | CA119: 0.998 | CB119: 0.997 | CC119: 0.997 | CD119: 0.997 | CE119: 0.995 | CF119: 0.988 | CG119: 0.984 | CH119: 0.978 | CI119: 0.970 | CJ119: 0.955 | CK119: 0.914 | CL119: 0.858 | CM119: 0.723 | CN119: 0.461 | CO119: 0.166 | CP119: 0.000 | CQ119: 0.000 | CR119: 0.000 | CS119: 0.000 | CT119: 0.000 | CU119: 0.000 | CV119: 0.000 | CW119: 0.000 | DD119: 0.994 | DE119: 0.994 | DF119: 0.990 | DG119: 0.997 | DH119: 0.998 | DI119: 0.998 | DJ119: 0.998 | DK119: 0.998 | DL119: 0.997 | DM119: 0.997 | DN119: 0.998 | DO119: 0.998 | DP119: 0.998 | DQ119: 0.996 | DR119: 0.996 | DS119: 0.996 | DT119: 0.994 | DU119: 0.994 | DV119: 0.994 | DW119: 0.990 | DX119: 0.976 | DY119: 0.968 | DZ119: 0.957 | EA119: 0.941 | EB119: 0.911 | EC119: 0.836 | ED119: 0.736 | EE119: 0.523 | EF119: 0.213 | EG119: 0.027 | EH119: 0.000 | EI119: 0.000 | EJ119: 0.000 | EK119: 0.000 | EL119: 0.000 | EM119: 0.000 | EN119: 0.000 | EO119: 0.000
A120: M-FDS1 | B120: 3.4984224 | C120: 0 | D120: -1.6895420 | E120: -2 | F120: 5.7567078 | G120: -2 | H120: 5.1693668 | I120: -3 | J120: -3.9966310 | K120: -4 | L120: 6.2368582 | M120: -5 | BL120: 0.998 | BM120: 0.998 | BN120: 0.999 | BO120: 0.999 | BP120: 0.999 | BQ120: 0.999 | BR120: 0.999 | BS120: 0.999 | BT120: 0.999 | BU120: 0.999 | BV120: 0.999 | BW120: 0.998 | BX120: 0.998 | BY120: 0.998 | BZ120: 0.998 | CA120: 0.998 | CB120: 0.997 | CC120: 0.997 | CD120: 0.996 | CE120: 0.992 | CF120: 0.976 | CG120: 0.965 | CH120: 0.947 | CI120: 0.907 | CJ120: 0.801 | CK120: 0.457 | CL120: 0.181 | CM120: 0.000 | CN120: 0.000 | CO120: 0.000 | CP120: 0.000 | CQ120: 0.000 | CR120: 0.000 | CS120: 0.000 | CT120: 0.000 | CU120: 0.000 | CV120: 0.000 | CW120: 0.000 | DD120: 0.996 | DE120: 0.995 | DF120: 0.998 | DG120: 0.999 | DH120: 0.999 | DI120: 0.999 | DJ120: 0.999 | DK120: 0.999 | DL120: 0.998 | DM120: 0.998 | DN120: 0.997 | DO120: 0.996 | DP120: 0.996 | DQ120: 0.997 | DR120: 0.996 | DS120: 0.996 | DT120: 0.995 | DU120: 0.994 | DV120: 0.993 | DW120: 0.983 | DX120: 0.953 | DY120: 0.932 | DZ120: 0.896 | EA120: 0.823 | EB120: 0.641 | EC120: 0.209 | ED120: 0.033 | EE120: 0.000 | EF120: 0.000 | EG120: 0.000 | EH120: 0.000 | EI120: 0.000 | EJ120: 0.000 | EK120: 0.000 | EL120: 0.000 | EM120: 0.000 | EN120: 0.000 | EO120: 0.000
A121: M-FDS2 | B121: 3.7715810 | C121: 0 | D121: -2.0445364 | E121: -2 | F121: 6.3942579 | G121: -2 | H121: 8.3545470 | I121: -3 | J121: -8.2031984 | K121: -4 | L121: 1.0279507 | M121: -4 | T121: 0.999 | U121: 0.999 | V121: 0.999 | W121: 0.999 | X121: 0.999 | Y121: 0.999 | Z121: 0.999 | AA121: 0.999 | AB121: 0.999 | AC121: 0.999 | AD121: 0.999 | AE121: 0.999 | AF121: 0.999 | AG121: 0.999 | AH121: 0.999 | AI121: 0.999 | AJ121: 0.999 | AK121: 0.999 | AL121: 0.998 | AM121: 0.994 | AN121: 0.982 | AO121: 0.972 | AP121: 0.954 | AQ121: 0.915 | AR121: 0.803 | AS121: 0.457 | AT121: 0.132 | AU121: 0.000 | AV121: 0.000 | AW121: 0.000 | AX121: 0.000 | AY121: 0.000 | AZ121: 0.000 | BA121: 0.000 | BB121: 0.000 | BC121: 0.000 | BD121: 0.000 | BE121: 0.000 | BL121: 0.999 | BM121: 0.998 | BN121: 0.999 | BO121: 0.999 | BP121: 0.999 | BQ121: 0.999 | BR121: 0.999 | BS121: 0.999 | BT121: 0.999 | BU121: 0.999 | BV121: 0.999 | BW121: 0.999 | BX121: 0.998 | BY121: 0.999 | BZ121: 0.999 | CA121: 0.999 | CB121: 0.998 | CC121: 0.997 | CD121: 0.995 | CE121: 0.986 | CF121: 0.955 | CG121: 0.931 | CH121: 0.890 | CI121: 0.802 | CJ121: 0.578 | CK121: 0.143 | CL121: 0.000 | CM121: 0.000 | CN121: 0.000 | CO121: 0.000 | CP121: 0.000 | CQ121: 0.000 | CR121: 0.000 | CS121: 0.000 | CT121: 0.000 | CU121: 0.000 | CV121: 0.000 | CW121: 0.000 | DD121: 0.997 | DE121: 0.997 | DF121: 0.998 | DG121: 0.998 | DH121: 0.998 | DI121: 0.998 | DJ121: 0.999 | DK121: 0.999 | DL121: 0.999 | DM121: 0.999 | DN121: 0.999 | DO121: 0.998 | DP121: 0.997 | DQ121: 0.999 | DR121: 0.999 | DS121: 0.999 | DT121: 0.997 | DU121: 0.994 | DV121: 0.991 | DW121: 0.972 | DX121: 0.911 | DY121: 0.867 | DZ121: 0.792 | EA121: 0.643 | EB121: 0.334 | EC121: 0.020 | ED121: 0.000 | EE121: 0.000 | EF121: 0.000 | EG121: 0.000 | EH121: 0.000 | EI121: 0.000 | EJ121: 0.000 | EK121: 0.000 | EL121: 0.000 | EM121: 0.000 | EN121: 0.000 | EO121: 0.000
A122: M-FDS910 | B122: 3.1659870 | C122: 0 | D122: -1.3491960 | E122: -2 | F122: 4.6499180 | G122: -2 | H122: 2.4714130 | I122: -3 | J122: -8.6595960 | K122: -5 | L122: 2.7259270 | M122: -5 | N122: 0.973 | O122: 0.980 | P122: 0.989 | Q122: 0.997 | R122: 0.998 | S122: 0.998 | T122: 0.999 | U122: 0.999 | V122: 0.999 | W122: 0.999 | X122: 0.999 | Y122: 0.999 | Z122: 0.999 | AA122: 0.999 | AB122: 0.999 | AC122: 0.999 | AD122: 0.999 | AE122: 0.999 | AF122: 0.999 | AG122: 0.999 | AH122: 0.999 | AI122: 0.999 | AJ122: 0.999 | AK122: 0.999 | AL122: 0.999 | AM122: 0.998 | AN122: 0.992 | AO122: 0.989 | AP122: 0.983 | AQ122: 0.974 | AR122: 0.955 | AS122: 0.902 | AT122: 0.829 | AU122: 0.684 | AV122: 0.453 | AW122: 0.000 | AX122: 0.000 | AY122: 0.000 | AZ122: 0.000 | BA122: 0.000 | BB122: 0.000 | BC122: 0.000 | BD122: 0.000 | BE122: 0.000 | BF122: 0.935 | BG122: 0.950 | BH122: 0.972 | BI122: 0.992 | BJ122: 0.996 | BK122: 0.996 | BL122: 0.999 | BM122: 0.999 | BN122: 0.999 | BO122: 0.999 | BP122: 0.999 | BQ122: 0.999 | BR122: 0.999 | BS122: 0.999 | BT122: 0.999 | BU122: 0.999 | BV122: 0.999 | BW122: 0.999 | BX122: 0.999 | BY122: 0.999 | BZ122: 0.999 | CA122: 0.999 | CB122: 0.999 | CC122: 0.998 | CD122: 0.998 | CE122: 0.994 | CF122: 0.981 | CG122: 0.972 | CH122: 0.958 | CI122: 0.937 | CJ122: 0.892 | CK122: 0.772 | CL122: 0.626 | CM122: 0.387 | CN122: 0.138 | CO122: 0.000 | CP122: 0.000 | CQ122: 0.000 | CR122: 0.000 | CS122: 0.000 | CT122: 0.000 | CU122: 0.000 | CV122: 0.000 | CW122: 0.000 | CX122: 0.875 | CY122: 0.902 | CZ122: 0.945 | DA122: 0.985 | DB122: 0.993 | DC122: 0.993 | DD122: 0.999 | DE122: 0.999 | DF122: 0.999 | DG122: 0.999 | DH122: 0.999 | DI122: 0.999 | DJ122: 0.999 | DK122: 0.999 | DL122: 0.999 | DM122: 0.999 | DN122: 0.999 | DO122: 0.999 | DP122: 0.999 | DQ122: 0.999 | DR122: 0.998 | DS122: 0.998 | DT122: 0.997 | DU122: 0.995 | DV122: 0.995 | DW122: 0.988 | DX122: 0.962 | DY122: 0.944 | DZ122: 0.918 | EA122: 0.877 | EB122: 0.795 | EC122: 0.596 | ED122: 0.392 | EE122: 0.150 | EF122: 0.019 | EG122: 0.000 | EH122: 0.000 | EI122: 0.000 | EJ122: 0.000 | EK122: 0.000 | EL122: 0.000 | EM122: 0.000 | EN122: 0.000 | EO122: 0.000
A123: M-LAC130 | B123: 2.8134120 | C123: 0 | D123: -1.3324480 | E123: -2 | F123: 1.9278650 | G123: -2 | H123: 4.1244520 | I123: -4 | J123: -9.9404320 | K123: -6 | L123: 9.6220240 | M123: -7 | N123: 0.895 | O123: 0.925 | P123: 0.980 | Q123: 0.994 | R123: 0.998 | S123: 0.999 | T123: 0.999 | U123: 0.999 | V123: 0.999 | W123: 0.999 | X123: 0.999 | Y123: 0.999 | Z123: 0.999 | AA123: 0.999 | AB123: 0.999 | AC123: 0.999 | AD123: 0.999 | AE123: 0.999 | AF123: 0.999 | AG123: 0.999 | AH123: 0.999 | AI123: 0.999 | AJ123: 0.999 | AK123: 0.999 | AL123: 0.999 | AM123: 0.999 | AN123: 0.999 | AO123: 0.999 | AP123: 0.999 | AQ123: 0.999 | AR123: 0.998 | AS123: 0.997 | AT123: 0.996 | AU123: 0.992 | AV123: 0.986 | AW123: 0.975 | AX123: 0.954 | AY123: 0.921 | AZ123: 0.873 | BA123: 0.806 | BB123: 0.722 | BC123: 0.626 | BD123: 0.511 | BE123: 0.366 | BF123: 0.758 | BG123: 0.823 | BH123: 0.950 | BI123: 0.985 | BJ123: 0.995 | BK123: 0.999 | BL123: 0.999 | BM123: 0.998 | BN123: 0.998 | BO123: 0.999 | BP123: 0.999 | BQ123: 0.999 | BR123: 0.999 | BS123: 0.999 | BT123: 0.999 | BU123: 0.999 | BV123: 0.999 | BW123: 0.999 | BX123: 0.999 | BY123: 0.999 | BZ123: 0.999 | CA123: 0.999 | CB123: 0.999 | CC123: 0.999 | CD123: 0.999 | CE123: 0.999 | CF123: 0.999 | CG123: 0.999 | CH123: 0.998 | CI123: 0.997 | CJ123: 0.996 | CK123: 0.993 | CL123: 0.989 | CM123: 0.981 | CN123: 0.967 | CO123: 0.938 | CP123: 0.889 | CQ123: 0.815 | CR123: 0.712 | CS123: 0.584 | CT123: 0.443 | CU123: 0.311 | CV123: 0.186 | CW123: 0.081 | CX123: 0.574 | CY123: 0.678 | CZ123: 0.903 | DA123: 0.970 | DB123: 0.991 | DC123: 0.999 | DD123: 0.997 | DE123: 0.997 | DF123: 0.997 | DG123: 0.999 | DH123: 0.999 | DI123: 0.999 | DJ123: 0.999 | DK123: 0.999 | DL123: 0.999 | DM123: 0.999 | DN123: 0.999 | DO123: 0.999 | DP123: 0.999 | DQ123: 0.999 | DR123: 0.999 | DS123: 0.999 | DT123: 0.999 | DU123: 0.999 | DV123: 0.999 | DW123: 0.999 | DX123: 0.999 | DY123: 0.999 | DZ123: 0.997 | EA123: 0.995 | EB123: 0.992 | EC123: 0.985 | ED123: 0.978 | EE123: 0.963 | EF123: 0.934 | EG123: 0.880 | EH123: 0.791 | EI123: 0.664 | EJ123: 0.507 | EK123: 0.341 | EL123: 0.196 | EM123: 0.096 | EN123: 0.035 | EO123: 0.000
A124: M-LAC14 | B124: 2.8278386 | C124: 0 | D124: -1.4773939 | E124: -2 | F124: 1.8211733 | G124: -2 | H124: 4.9311964 | I124: -4 | J124: -2.5486886 | K124: -5 | L124: 1.6795487 | M124: -6 | T124: 0.999 | U124: 0.999 | V124: 0.999 | W124: 0.999 | X124: 0.999 | Y124: 0.999 | Z124: 0.999 | AA124: 0.999 | AB124: 0.999 | AC124: 0.999 | AD124: 0.999 | AE124: 0.999 | AF124: 0.999 | AG124: 0.999 | AH124: 0.999 | AI124: 0.999 | AJ124: 0.999 | AK124: 0.999 | AL124: 0.999 | AM124: 0.999 | AN124: 0.999 | AO124: 0.999 | AP124: 0.999 | AQ124: 0.998 | AR124: 0.997 | AS124: 0.996 | AT124: 0.994 | AU124: 0.991 | AV124: 0.985 | AW124: 0.976 | AX124: 0.958 | AY124: 0.931 | AZ124: 0.890 | BA124: 0.835 | BB124: 0.748 | BC124: 0.684 | BD124: 0.601 | BE124: 0.493 | BL124: 0.999 | BM124: 0.999 | BN124: 0.999 | BO124: 0.999 | BP124: 0.999 | BQ124: 0.999 | BR124: 0.999 | BS124: 0.999 | BT124: 0.999 | BU124: 0.999 | BV124: 0.999 | BW124: 0.999 | BX124: 0.999 | BY124: 0.999 | BZ124: 0.999 | CA124: 0.999 | CB124: 0.999 | CC124: 0.999 | CD124: 0.999 | CE124: 0.999 | CF124: 0.999 | CG124: 0.998 | CH124: 0.997 | CI124: 0.995 | CJ124: 0.993 | CK124: 0.989 | CL124: 0.985 | CM124: 0.978 | CN124: 0.964 | CO124: 0.941 | CP124: 0.898 | CQ124: 0.836 | CR124: 0.748 | CS124: 0.637 | CT124: 0.484 | CU124: 0.387 | CV124: 0.280 | CW124: 0.171 | DD124: 0.998 | DE124: 0.998 | DF124: 0.998 | DG124: 0.999 | DH124: 0.999 | DI124: 0.999 | DJ124: 0.999 | DK124: 0.999 | DL124: 0.999 | DM124: 0.999 | DN124: 0.999 | DO124: 0.999 | DP124: 0.999 | DQ124: 0.999 | DR124: 0.999 | DS124: 0.999 | DT124: 0.999 | DU124: 0.999 | DV124: 0.999 | DW124: 0.999 | DX124: 0.998 | DY124: 0.997 | DZ124: 0.994 | EA124: 0.990 | EB124: 0.987 | EC124: 0.978 | ED124: 0.970 | EE124: 0.956 | EF124: 0.930 | EG124: 0.886 | EH124: 0.807 | EI124: 0.699 | EJ124: 0.560 | EK124: 0.406 | EL124: 0.234 | EM124: 0.150 | EN124: 0.078 | EO124: 0.029
A125: M-LAC8 | B125: 2.8817481 | C125: 0 | D125: -1.5730804 | E125: -2 | F125: 1.7690493 | G125: -2 | H125: 1.0526690 | I125: -3 | J125: -9.9093080 | K125: -5 | L125: 5.5248378 | M125: -6 | BL125: 0.998 | BM125: 0.998 | BN125: 0.998 | BO125: 0.999 | BP125: 0.999 | BQ125: 0.999 | BR125: 0.999 | BS125: 0.999 | BT125: 0.999 | BU125: 0.999 | BV125: 0.999 | BW125: 0.999 | BX125: 0.999 | BY125: 0.999 | BZ125: 0.999 | CA125: 0.999 | CB125: 0.999 | CC125: 0.999 | CD125: 0.999 | CE125: 0.999 | CF125: 0.998 | CG125: 0.998 | CH125: 0.996 | CI125: 0.995 | CJ125: 0.993 | CK125: 0.989 | CL125: 0.984 | CM125: 0.976 | CN125: 0.960 | CO125: 0.930 | CP125: 0.880 | CQ125: 0.813 | CR125: 0.710 | CS125: 0.590 | CT125: 0.420 | CU125: 0.340 | CV125: 0.240 | CW125: 0.000 | DD125: 0.996 | DE125: 0.996 | DF125: 0.996 | DG125: 0.999 | DH125: 0.999 | DI125: 0.998 | DJ125: 0.998 | DK125: 0.998 | DL125: 0.998 | DM125: 0.998 | DN125: 0.998 | DO125: 0.998 | DP125: 0.998 | DQ125: 0.999 | DR125: 0.998 | DS125: 0.998 | DT125: 0.998 | DU125: 0.997 | DV125: 0.997 | DW125: 0.998 | DX125: 0.997 | DY125: 0.995 | DZ125: 0.993 | EA125: 0.990 | EB125: 0.986 | EC125: 0.977 | ED125: 0.968 | EE125: 0.952 | EF125: 0.922 | EG125: 0.860 | EH125: 0.780 | EI125: 0.660 | EJ125: 0.510 | EK125: 0.350 | EL125: 0.170 | EM125: 0.110 | EN125: 0.050 | EO125: 0.000
A126: M-LAF81 | B126: 2.9167886 | C126: 0 | D126: -1.2398199 | E126: -2 | F126: 2.6675237 | G126: -2 | H126: 6.5190504 | I126: -4 | J126: 4.6956175 | K126: -6 | L126: 2.6910540 | M126: -6 | BF126: 0.864 | BG126: 0.900 | BH126: 0.973 | BI126: 0.994 | BJ126: 0.999 | BK126: 0.999 | BL126: 0.997 | BM126: 0.997 | BN126: 0.995 | BO126: 0.998 | BP126: 0.999 | BQ126: 0.999 | BR126: 0.999 | BS126: 0.999 | BT126: 0.999 | BU126: 0.999 | BV126: 0.999 | BW126: 0.999 | BX126: 0.999 | BY126: 0.999 | BZ126: 0.999 | CA126: 0.999 | CB126: 0.999 | CC126: 0.999 | CD126: 0.999 | CE126: 0.998 | CF126: 0.996 | CG126: 0.994 | CH126: 0.990 | CI126: 0.984 | CJ126: 0.976 | CK126: 0.956 | CL126: 0.936 | CM126: 0.909 | CN126: 0.873 | CO126: 0.811 | CP126: 0.668 | CQ126: 0.408 | CR126: 0.136 | CS126: 0.000 | CT126: 0.000 | CU126: 0.000 | CV126: 0.000 | CW126: 0.000 | CX126: 0.746 | CY126: 0.810 | CZ126: 0.947 | DA126: 0.988 | DB126: 0.999 | DC126: 0.999 | DD126: 0.995 | DE126: 0.994 | DF126: 0.989 | DG126: 0.995 | DH126: 0.999 | DI126: 0.999 | DJ126: 0.999 | DK126: 0.999 | DL126: 0.999 | DM126: 0.999 | DN126: 0.999 | DO126: 0.999 | DP126: 0.999 | DQ126: 0.999 | DR126: 0.999 | DS126: 0.999 | DT126: 0.999 | DU126: 0.999 | DV126: 0.998 | DW126: 0.997 | DX126: 0.993 | DY126: 0.988 | DZ126: 0.980 | EA126: 0.968 | EB126: 0.952 | EC126: 0.914 | ED126: 0.876 | EE126: 0.826 | EF126: 0.763 | EG126: 0.658 | EH126: 0.446 | EI126: 0.167 | EJ126: 0.019 | EK126: 0.000 | EL126: 0.000 | EM126: 0.000 | EN126: 0.000 | EO126: 0.000
A127: M-NBF1 | B127: 2.9752450 | C127: 0 | D127: -1.4250160 | E127: -2 | F127: 2.1400740 | G127: -2 | H127: 9.7553370 | I127: -4 | J127: -6.9795300 | K127: -5 | L127: 4.1149240 | M127: -6 | BF127: 0.742 | BG127: 0.829 | BH127: 0.953 | BI127: 0.985 | BJ127: 0.996 | BK127: 0.999 | BL127: 0.997 | BM127: 0.997 | BN127: 0.995 | BO127: 0.998 | BP127: 0.999 | BQ127: 0.999 | BR127: 0.999 | BS127: 0.999 | BT127: 0.999 | BU127: 0.999 | BV127: 0.999 | BW127: 0.999 | BX127: 0.999 | BY127: 0.999 | BZ127: 0.999 | CA127: 0.999 | CB127: 0.999 | CC127: 0.999 | CD127: 0.999 | CE127: 0.999 | CF127: 0.998 | CG127: 0.997 | CH127: 0.997 | CI127: 0.996 | CJ127: 0.994 | CK127: 0.990 | CL127: 0.986 | CM127: 0.980 | CN127: 0.969 | CO127: 0.949 | CP127: 0.915 | CQ127: 0.870 | CR127: 0.805 | CS127: 0.722 | CT127: 0.572 | CU127: 0.500 | CV127: 0.363 | CW127: 0.179 | CX127: 0.550 | CY127: 0.687 | CZ127: 0.909 | DA127: 0.970 | DB127: 0.993 | DC127: 0.999 | DD127: 0.995 | DE127: 0.994 | DF127: 0.989 | DG127: 0.995 | DH127: 0.999 | DI127: 0.999 | DJ127: 0.999 | DK127: 0.999 | DL127: 0.999 | DM127: 0.999 | DN127: 0.999 | DO127: 0.999 | DP127: 0.999 | DQ127: 0.999 | DR127: 0.999 | DS127: 0.999 | DT127: 0.999 | DU127: 0.998 | DV127: 0.998 | DW127: 0.998 | DX127: 0.997 | DY127: 0.995 | DZ127: 0.993 | EA127: 0.991 | EB127: 0.987 | EC127: 0.981 | ED127: 0.972 | EE127: 0.961 | EF127: 0.938 | EG127: 0.901 | EH127: 0.838 | EI127: 0.757 | EJ127: 0.648 | EK127: 0.521 | EL127: 0.327 | EM127: 0.250 | EN127: 0.132 | EO127: 0.032
A128: M-NBFD10 | B128: 3.2646230 | C128: 0 | D128: -1.5819770 | E128: -2 | F128: 3.2258940 | G128: -2 | H128: 1.7093120 | I128: -3 | J128: -1.0819570 | K128: -4 | L128: 1.0583230 | M128: -5 | T128: 0.999 | U128: 0.999 | V128: 0.999 | W128: 0.999 | X128: 0.999 | Y128: 0.999 | Z128: 0.999 | AA128: 0.999 | AB128: 0.999 | AC128: 0.999 | AD128: 0.999 | AE128: 0.999 | AF128: 0.999 | AG128: 0.999 | AH128: 0.999 | AI128: 0.999 | AJ128: 0.999 | AK128: 0.999 | AL128: 0.999 | AM128: 0.999 | AN128: 0.998 | AO128: 0.996 | AP128: 0.994 | AQ128: 0.991 | AR128: 0.985 | AS128: 0.974 | AT128: 0.963 | AU128: 0.943 | AV128: 0.904 | AW128: 0.816 | AX128: 0.642 | AY128: 0.397 | AZ128: 0.000 | BA128: 0.000 | BB128: 0.000 | BC128: 0.000 | BD128: 0.000 | BE128: 0.000 | BL128: 0.999 | BM128: 0.999 | BN128: 0.999 | BO128: 0.999 | BP128: 0.999 | BQ128: 0.999 | BR128: 0.999 | BS128: 0.999 | BT128: 0.999 | BU128: 0.999 | BV128: 0.999 | BW128: 0.999 | BX128: 0.999 | BY128: 0.998 | BZ128: 0.999 | CA128: 0.999 | CB128: 0.999 | CC128: 0.999 | CD128: 0.999 | CE128: 0.999 | CF128: 0.994 | CG128: 0.990 | CH128: 0.985 | CI128: 0.977 | CJ128: 0.964 | CK128: 0.936 | CL128: 0.909 | CM128: 0.863 | CN128: 0.776 | CO128: 0.601 | CP128: 0.331 | CQ128: 0.099 | CR128: 0.000 | CS128: 0.000 | CT128: 0.000 | CU128: 0.000 | CV128: 0.000 | CW128: 0.000 | DD128: 0.998 | DE128: 0.998 | DF128: 0.998 | DG128: 0.999 | DH128: 0.999 | DI128: 0.998 | DJ128: 0.998 | DK128: 0.998 | DL128: 0.997 | DM128: 0.997 | DN128: 0.997 | DO128: 0.998 | DP128: 0.998 | DQ128: 0.997 | DR128: 0.998 | DS128: 0.997 | DT128: 0.999 | DU128: 0.999 | DV128: 0.999 | DW128: 0.997 | DX128: 0.989 | DY128: 0.981 | DZ128: 0.970 | EA128: 0.955 | EB128: 0.929 | EC128: 0.876 | ED128: 0.827 | EE128: 0.745 | EF128: 0.603 | EG128: 0.361 | EH128: 0.109 | EI128: 0.000 | EJ128: 0.000 | EK128: 0.000 | EL128: 0.000 | EM128: 0.000 | EN128: 0.000 | EO128: 0.000
A129: M-NBFD130 | B129: 3.1737940 | C129: 0 | D129: -1.4986580 | E129: -2 | F129: 2.9067410 | G129: -2 | H129: 1.2048290 | I129: -3 | J129: -5.3551580 | K129: -5 | L129: 5.2713500 | M129: -6 | N129: 0.904 | O129: 0.938 | P129: 0.983 | Q129: 0.996 | R129: 0.999 | S129: 0.999 | T129: 0.999 | U129: 0.999 | V129: 0.999 | W129: 0.999 | X129: 0.999 | Y129: 0.999 | Z129: 0.999 | AA129: 0.999 | AB129: 0.999 | AC129: 0.999 | AD129: 0.999 | AE129: 0.998 | AF129: 0.999 | AG129: 0.998 | AH129: 0.999 | AI129: 0.999 | AJ129: 0.999 | AK129: 0.999 | AL129: 0.999 | AM129: 0.999 | AN129: 0.999 | AO129: 0.998 | AP129: 0.997 | AQ129: 0.996 | AR129: 0.994 | AS129: 0.988 | AT129: 0.983 | AU129: 0.972 | AV129: 0.951 | AW129: 0.904 | AX129: 0.803 | AY129: 0.625 | AZ129: 0.374 | BA129: 0.000 | BB129: 0.000 | BC129: 0.000 | BD129: 0.000 | BE129: 0.000 | BF129: 0.777 | BG129: 0.853 | BH129: 0.959 | BI129: 0.989 | BJ129: 0.998 | BK129: 0.999 | BL129: 0.998 | BM129: 0.998 | BN129: 0.997 | BO129: 0.999 | BP129: 0.999 | BQ129: 0.998 | BR129: 0.998 | BS129: 0.997 | BT129: 0.997 | BU129: 0.997 | BV129: 0.997 | BW129: 0.996 | BX129: 0.997 | BY129: 0.996 | BZ129: 0.997 | CA129: 0.997 | CB129: 0.999 | CC129: 0.999 | CD129: 0.999 | CE129: 0.999 | CF129: 0.998 | CG129: 0.996 | CH129: 0.993 | CI129: 0.989 | CJ129: 0.984 | CK129: 0.971 | CL129: 0.957 | CM129: 0.931 | CN129: 0.882 | CO129: 0.778 | CP129: 0.578 | CQ129: 0.309 | CR129: 0.086 | CS129: 0.000 | CT129: 0.000 | CU129: 0.000 | CV129: 0.000 | CW129: 0.000 | CX129: 0.604 | CY129: 0.728 | CZ129: 0.919 | DA129: 0.978 | DB129: 0.996 | DC129: 0.999 | DD129: 0.995 | DE129: 0.995 | DF129: 0.993 | DG129: 0.998 | DH129: 0.996 | DI129: 0.994 | DJ129: 0.995 | DK129: 0.993 | DL129: 0.992 | DM129: 0.992 | DN129: 0.991 | DO129: 0.991 | DP129: 0.991 | DQ129: 0.993 | DR129: 0.992 | DS129: 0.993 | DT129: 0.999 | DU129: 0.999 | DV129: 0.999 | DW129: 0.999 | DX129: 0.996 | DY129: 0.992 | DZ129: 0.986 | EA129: 0.979 | EB129: 0.968 | EC129: 0.943 | ED129: 0.916 | EE129: 0.868 | EF129: 0.779 | EG129: 0.605 | EH129: 0.334 | EI129: 0.095 | EJ129: 0.000 | EK129: 0.000 | EL129: 0.000 | EM129: 0.000 | EN129: 0.000 | EO129: 0.000
A130: MP-BACD12 | B130: 2.4687810 | C130: 0 | D130: -1.0626390 | E130: -2 | F130: 1.3251840 | G130: -2 | H130: 4.0486120 | I130: -4 | J130: -2.9747990 | K130: -5 | L130: 1.8258840 | M130: -6 | N130: 0.951 | O130: 0.962 | P130: 0.979 | Q130: 0.994 | R130: 0.997 | S130: 0.999 | T130: 0.999 | U130: 0.999 | V130: 0.999 | W130: 0.999 | X130: 0.999 | Y130: 0.999 | Z130: 0.999 | AA130: 0.999 | AB130: 0.999 | AC130: 0.999 | AD130: 0.999 | AE130: 0.999 | AF130: 0.999 | AG130: 0.999 | AH130: 0.999 | AI130: 0.999 | AJ130: 0.999 | AK130: 0.999 | AL130: 0.999 | AM130: 0.999 | AN130: 0.999 | AO130: 0.999 | AP130: 0.999 | AQ130: 0.999 | AR130: 0.999 | AS130: 0.999 | AT130: 0.999 | AU130: 0.998 | AV130: 0.996 | AW130: 0.993 | AX130: 0.985 | AY130: 0.972 | AZ130: 0.949 | BA130: 0.906 | BB130: 0.838 | BC130: 0.739 | BD130: 0.615 | BE130: 0.482 | BF130: 0.883 | BG130: 0.909 | BH130: 0.949 | BI130: 0.986 | BJ130: 0.992 | BK130: 0.998 | BL130: 0.998 | BM130: 0.998 | BN130: 0.998 | BO130: 0.999 | BP130: 0.998 | BQ130: 0.998 | BR130: 0.998 | BS130: 0.998 | BT130: 0.998 | BU130: 0.998 | BV130: 0.998 | BW130: 0.998 | BX130: 0.998 | BY130: 0.998 | BZ130: 0.998 | CA130: 0.999 | CB130: 0.999 | CC130: 0.999 | CD130: 0.999 | CE130: 0.999 | CF130: 0.999 | CG130: 0.999 | CH130: 0.999 | CI130: 0.998 | CJ130: 0.998 | CK130: 0.998 | CL130: 0.996 | CM130: 0.994 | CN130: 0.990 | CO130: 0.982 | CP130: 0.964 | CQ130: 0.932 | CR130: 0.876 | CS130: 0.782 | CT130: 0.643 | CU130: 0.469 | CV130: 0.297 | CW130: 0.160 | CX130: 0.779 | CY130: 0.826 | CZ130: 0.900 | DA130: 0.972 | DB130: 0.985 | DC130: 0.997 | DD130: 0.996 | DE130: 0.996 | DF130: 0.996 | DG130: 0.997 | DH130: 0.997 | DI130: 0.996 | DJ130: 0.996 | DK130: 0.996 | DL130: 0.995 | DM130: 0.995 | DN130: 0.995 | DO130: 0.996 | DP130: 0.996 | DQ130: 0.997 | DR130: 0.996 | DS130: 0.998 | DT130: 0.999 | DU130: 0.999 | DV130: 0.999 | DW130: 0.999 | DX130: 0.999 | DY130: 0.999 | DZ130: 0.998 | EA130: 0.996 | EB130: 0.997 | EC130: 0.996 | ED130: 0.993 | EE130: 0.988 | EF130: 0.981 | EG130: 0.964 | EH130: 0.929 | EI130: 0.869 | EJ130: 0.768 | EK130: 0.612 | EL130: 0.413 | EM130: 0.220 | EN130: 0.088 | EO130: 0.026
A131: MP-BACD15 | B131: 2.5909190 | C131: 0 | D131: -1.2594760 | E131: -2 | F131: 1.5202050 | G131: -2 | H131: 2.9999800 | I131: -4 | J131: -1.1315470 | K131: -5 | L131: 9.1546400 | M131: -7 | T131: 0.999 | U131: 0.999 | V131: 0.999 | W131: 0.999 | X131: 0.999 | Y131: 0.999 | Z131: 0.999 | AA131: 0.999 | AB131: 0.999 | AC131: 0.999 | AD131: 0.999 | AE131: 0.999 | AF131: 0.999 | AG131: 0.999 | AH131: 0.999 | AI131: 0.999 | AJ131: 0.999 | AK131: 0.999 | AL131: 0.999 | AM131: 0.999 | AN131: 0.999 | AO131: 0.999 | AP131: 0.999 | AQ131: 0.998 | AR131: 0.998 | AS131: 0.998 | AT131: 0.997 | AU131: 0.996 | AV131: 0.994 | AW131: 0.989 | AX131: 0.979 | AY131: 0.963 | AZ131: 0.936 | BA131: 0.893 | BB131: 0.816 | BC131: 0.746 | BD131: 0.644 | BE131: 0.500 | BL131: 0.998 | BM131: 0.998 | BN131: 0.998 | BO131: 0.999 | BP131: 0.998 | BQ131: 0.998 | BR131: 0.998 | BS131: 0.998 | BT131: 0.998 | BU131: 0.998 | BV131: 0.998 | BW131: 0.998 | BX131: 0.998 | BY131: 0.998 | BZ131: 0.998 | CA131: 0.999 | CB131: 0.998 | CC131: 0.998 | CD131: 0.998 | CE131: 0.999 | CF131: 0.998 | CG131: 0.998 | CH131: 0.997 | CI131: 0.996 | CJ131: 0.996 | CK131: 0.995 | CL131: 0.993 | CM131: 0.990 | CN131: 0.984 | CO131: 0.972 | CP131: 0.949 | CQ131: 0.910 | CR131: 0.847 | CS131: 0.753 | CT131: 0.602 | CU131: 0.481 | CV131: 0.333 | CW131: 0.177 | DD131: 0.996 | DE131: 0.996 | DF131: 0.996 | DG131: 0.997 | DH131: 0.997 | DI131: 0.996 | DJ131: 0.996 | DK131: 0.996 | DL131: 0.995 | DM131: 0.995 | DN131: 0.995 | DO131: 0.996 | DP131: 0.996 | DQ131: 0.997 | DR131: 0.996 | DS131: 0.998 | DT131: 0.997 | DU131: 0.996 | DV131: 0.996 | DW131: 0.997 | DX131: 0.996 | DY131: 0.996 | DZ131: 0.995 | EA131: 0.992 | EB131: 0.991 | EC131: 0.989 | ED131: 0.985 | EE131: 0.979 | EF131: 0.968 | EG131: 0.945 | EH131: 0.900 | EI131: 0.827 | EJ131: 0.718 | EK131: 0.567 | EL131: 0.363 | EM131: 0.231 | EN131: 0.111 | EO131: 0.031
A132: MP-BACD5N | B132: 2.4895100 | C132: 0 | D132: -1.2244960 | E132: -2 | F132: 1.2942620 | G132: -2 | H132: 3.4904490 | I132: -4 | J132: -1.7772280 | K132: -5 | L132: 9.1137190 | M132: -7 | N132: 0.923 | O132: 0.940 | P132: 0.973 | Q132: 0.993 | R132: 0.997 | S132: 0.999 | T132: 0.998 | U132: 0.998 | V132: 0.996 | W132: 0.998 | X132: 0.998 | Y132: 0.998 | Z132: 0.998 | AA132: 0.998 | AB132: 0.998 | AC132: 0.998 | AD132: 0.998 | AE132: 0.998 | AF132: 0.998 | AG132: 0.998 | AH132: 0.999 | AI132: 0.999 | AJ132: 0.999 | AK132: 0.999 | AL132: 0.999 | AM132: 0.999 | AN132: 0.999 | AO132: 0.999 | AP132: 0.999 | AQ132: 0.999 | AR132: 0.999 | AS132: 0.999 | AT132: 0.998 | AU132: 0.997 | AV132: 0.994 | AW132: 0.989 | AX132: 0.979 | AY132: 0.962 | AZ132: 0.932 | BA132: 0.882 | BB132: 0.808 | BC132: 0.707 | BD132: 0.587 | BE132: 0.461 | BF132: 0.819 | BG132: 0.857 | BH132: 0.935 | BI132: 0.983 | BJ132: 0.992 | BK132: 0.998 | BL132: 0.995 | BM132: 0.994 | BN132: 0.991 | BO132: 0.996 | BP132: 0.996 | BQ132: 0.996 | BR132: 0.995 | BS132: 0.996 | BT132: 0.996 | BU132: 0.996 | BV132: 0.996 | BW132: 0.996 | BX132: 0.996 | BY132: 0.996 | BZ132: 0.997 | CA132: 0.998 | CB132: 0.999 | CC132: 0.999 | CD132: 0.999 | CE132: 0.999 | CF132: 0.999 | CG132: 0.999 | CH132: 0.999 | CI132: 0.999 | CJ132: 0.998 | CK132: 0.997 | CL132: 0.995 | CM132: 0.992 | CN132: 0.986 | CO132: 0.973 | CP132: 0.949 | CQ132: 0.907 | CR132: 0.838 | CS132: 0.731 | CT132: 0.587 | CU132: 0.421 | CV132: 0.264 | CW132: 0.144 | CX132: 0.671 | CY132: 0.734 | CZ132: 0.874 | DA132: 0.967 | DB132: 0.985 | DC132: 0.996 | DD132: 0.990 | DE132: 0.989 | DF132: 0.981 | DG132: 0.992 | DH132: 0.992 | DI132: 0.991 | DJ132: 0.990 | DK132: 0.991 | DL132: 0.991 | DM132: 0.991 | DN132: 0.992 | DO132: 0.992 | DP132: 0.992 | DQ132: 0.993 | DR132: 0.994 | DS132: 0.996 | DT132: 0.999 | DU132: 0.999 | DV132: 0.999 | DW132: 0.999 | DX132: 0.999 | DY132: 0.999 | DZ132: 0.998 | EA132: 0.997 | EB132: 0.996 | EC132: 0.994 | ED132: 0.990 | EE132: 0.984 | EF132: 0.972 | EG132: 0.946 | EH132: 0.900 | EI132: 0.822 | EJ132: 0.702 | EK132: 0.534 | EL132: 0.344 | EM132: 0.177 | EN132: 0.070 | EO132: 0.021
A133: M-PCD4 | B133: 2.5823350 | C133: 0 | D133: -9.9520390 | E133: -3 | F133: 1.3291840 | G133: -2 | H133: 4.5506210 | I133: -4 | J133: -3.3271320 | K133: -5 | L133: 1.7301720 | M133: -6 | T133: 0.999 | U133: 0.999 | V133: 0.999 | W133: 0.999 | X133: 0.999 | Y133: 0.999 | Z133: 0.999 | AA133: 0.999 | AB133: 0.999 | AC133: 0.999 | AD133: 0.999 | AE133: 0.999 | AF133: 0.999 | AG133: 0.999 | AH133: 0.999 | AI133: 0.999 | AJ133: 0.999 | AK133: 0.999 | AL133: 0.999 | AM133: 0.999 | AN133: 0.999 | AO133: 0.999 | AP133: 0.999 | AQ133: 0.998 | AR133: 0.998 | AS133: 0.995 | AT133: 0.992 | AU133: 0.984 | AV133: 0.969 | AW133: 0.937 | AX133: 0.878 | AY133: 0.786 | AZ133: 0.660 | BA133: 0.509 | BB133: 0.358 | BC133: 0.218 | BD133: 0.000 | BE133: 0.000 | BL133: 0.999 | BM133: 0.998 | BN133: 0.999 | BO133: 0.999 | BP133: 0.999 | BQ133: 0.999 | BR133: 0.999 | BS133: 0.999 | BT133: 0.999 | BU133: 0.999 | BV133: 0.998 | BW133: 0.998 | BX133: 0.998 | BY133: 0.998 | BZ133: 0.998 | CA133: 0.998 | CB133: 0.998 | CC133: 0.999 | CD133: 0.999 | CE133: 0.999 | CF133: 0.999 | CG133: 0.998 | CH133: 0.997 | CI133: 0.996 | CJ133: 0.994 | CK133: 0.989 | CL133: 0.980 | CM133: 0.961 | CN133: 0.924 | CO133: 0.850 | CP133: 0.722 | CQ133: 0.548 | CR133: 0.353 | CS133: 0.185 | CT133: 0.077 | CU133: 0.000 | CV133: 0.000 | CW133: 0.000 | DD133: 0.997 | DE133: 0.997 | DF133: 0.998 | DG133: 0.999 | DH133: 0.999 | DI133: 0.999 | DJ133: 0.998 | DK133: 0.998 | DL133: 0.998 | DM133: 0.998 | DN133: 0.997 | DO133: 0.996 | DP133: 0.997 | DQ133: 0.996 | DR133: 0.995 | DS133: 0.996 | DT133: 0.996 | DU133: 0.997 | DV133: 0.998 | DW133: 0.999 | DX133: 0.998 | DY133: 0.996 | DZ133: 0.994 | EA133: 0.991 | EB133: 0.988 | EC133: 0.977 | ED133: 0.960 | EE133: 0.924 | EF133: 0.854 | EG133: 0.723 | EH133: 0.521 | EI133: 0.300 | EJ133: 0.125 | EK133: 0.034 | EL133: 0.000 | EM133: 0.000 | EN133: 0.000 | EO133: 0.000
A134: M-PCD51 | B134: 2.5020260 | C134: 0 | D134: -1.1082920 | E134: -2 | F134: 1.1277200 | G134: -2 | H134: 5.7154080 | I134: -4 | J134: -5.5874550 | K134: -5 | L134: 2.9052920 | M134: -6 | N134: 0.962 | O134: 0.973 | P134: 0.984 | Q134: 0.995 | R134: 0.997 | S134: 0.999 | T134: 0.999 | U134: 0.999 | V134: 0.999 | W134: 0.999 | X134: 0.999 | Y134: 0.999 | Z134: 0.999 | AA134: 0.999 | AB134: 0.999 | AC134: 0.999 | AD134: 0.999 | AE134: 0.999 | AF134: 0.999 | AG134: 0.999 | AH134: 0.999 | AI134: 0.999 | AJ134: 0.999 | AK134: 0.999 | AL134: 0.999 | AM134: 0.999 | AN134: 0.999 | AO134: 0.999 | AP134: 0.999 | AQ134: 0.999 | AR134: 0.999 | AS134: 0.999 | AT134: 0.998 | AU134: 0.997 | AV134: 0.994 | AW134: 0.988 | AX134: 0.978 | AY134: 0.959 | AZ134: 0.930 | BA134: 0.885 | BB134: 0.823 | BC134: 0.743 | BD134: 0.643 | BE134: 0.517 | BF134: 0.909 | BG134: 0.933 | BH134: 0.960 | BI134: 0.986 | BJ134: 0.993 | BK134: 0.997 | BL134: 0.999 | BM134: 0.998 | BN134: 0.999 | BO134: 0.999 | BP134: 0.999 | BQ134: 0.999 | BR134: 0.999 | BS134: 0.999 | BT134: 0.999 | BU134: 0.999 | BV134: 0.998 | BW134: 0.998 | BX134: 0.998 | BY134: 0.998 | BZ134: 0.998 | CA134: 0.998 | CB134: 0.999 | CC134: 0.999 | CD134: 0.999 | CE134: 0.999 | CF134: 0.999 | CG134: 0.999 | CH134: 0.998 | CI134: 0.998 | CJ134: 0.997 | CK134: 0.996 | CL134: 0.995 | CM134: 0.992 | CN134: 0.985 | CO134: 0.971 | CP134: 0.945 | CQ134: 0.902 | CR134: 0.834 | CS134: 0.737 | CT134: 0.615 | CU134: 0.476 | CV134: 0.331 | CW134: 0.191 | CX134: 0.826 | CY134: 0.871 | CZ134: 0.921 | DA134: 0.973 | DB134: 0.986 | DC134: 0.995 | DD134: 0.997 | DE134: 0.997 | DF134: 0.998 | DG134: 0.999 | DH134: 0.999 | DI134: 0.999 | DJ134: 0.998 | DK134: 0.998 | DL134: 0.998 | DM134: 0.998 | DN134: 0.999 | DO134: 0.998 | DP134: 0.999 | DQ134: 0.998 | DR134: 0.998 | DS134: 0.998 | DT134: 0.999 | DU134: 0.999 | DV134: 0.999 | DW134: 0.999 | DX134: 0.999 | DY134: 0.998 | DZ134: 0.997 | EA134: 0.995 | EB134: 0.994 | EC134: 0.993 | ED134: 0.990 | EE134: 0.983 | EF134: 0.970 | EG134: 0.943 | EH134: 0.893 | EI134: 0.813 | EJ134: 0.696 | EK134: 0.544 | EL134: 0.378 | EM134: 0.226 | EN134: 0.110 | EO134: 0.037
A135: M-PCD55AR | B135: 2.6366261 | C135: 0 | D135: -9.2645802 | E135: -3 | F135: 1.6956609 | G135: -2 | H135: 2.6444551 | I135: -4 | J135: 6.1366528 | K135: -6 | L135: 3.4208341 | M135: -7 | N135: 0.976 | O135: 0.981 | P135: 0.992 | Q135: 0.998 | R135: 0.999 | S135: 0.999 | T135: 0.999 | U135: 0.999 | V135: 0.999 | W135: 0.999 | X135: 0.999 | Y135: 0.999 | Z135: 0.999 | AA135: 0.999 | AB135: 0.999 | AC135: 0.999 | AD135: 0.999 | AE135: 0.999 | AF135: 0.999 | AG135: 0.999 | AH135: 0.999 | AI135: 0.999 | AJ135: 0.999 | AK135: 0.999 | AL135: 0.999 | AM135: 0.999 | AN135: 0.999 | AO135: 0.999 | AP135: 0.998 | AQ135: 0.997 | AR135: 0.996 | AS135: 0.993 | AT135: 0.989 | AU135: 0.983 | AV135: 0.971 | AW135: 0.948 | AX135: 0.910 | AY135: 0.850 | AZ135: 0.751 | BA135: 0.594 | BB135: 0.000 | BC135: 0.000 | BD135: 0.000 | BE135: 0.000 | BF135: 0.940 | BG135: 0.953 | BH135: 0.979 | BI135: 0.994 | BJ135: 0.997 | BK135: 0.998 | BL135: 0.998 | BM135: 0.998 | BN135: 0.998 | BO135: 0.999 | BP135: 0.999 | BQ135: 0.998 | BR135: 0.998 | BS135: 0.998 | BT135: 0.998 | BU135: 0.998 | BV135: 0.998 | BW135: 0.998 | BX135: 0.998 | BY135: 0.999 | BZ135: 0.999 | CA135: 0.999 | CB135: 0.999 | CC135: 0.999 | CD135: 0.999 | CE135: 0.999 | CF135: 0.998 | CG135: 0.997 | CH135: 0.996 | CI135: 0.993 | CJ135: 0.990 | CK135: 0.982 | CL135: 0.973 | CM135: 0.957 | CN135: 0.930 | CO135: 0.874 | CP135: 0.791 | CQ135: 0.666 | CR135: 0.489 | CS135: 0.272 | CT135: 0.000 | CU135: 0.000 | CV135: 0.000 | CW135: 0.000 | CX135: 0.734 | CY135: 0.788 | CZ135: 0.899 | DA135: 0.972 | DB135: 0.984 | DC135: 0.990 | DD135: 0.991 | DE135: 0.990 | DF135: 0.990 | DG135: 0.994 | DH135: 0.992 | DI135: 0.991 | DJ135: 0.996 | DK135: 0.996 | DL135: 0.996 | DM135: 0.996 | DN135: 0.996 | DO135: 0.997 | DP135: 0.997 | DQ135: 0.998 | DR135: 0.998 | DS135: 0.999 | DT135: 0.999 | DU135: 0.999 | DV135: 0.999 | DW135: 0.999 | DX135: 0.996 | DY135: 0.994 | DZ135: 0.991 | EA135: 0.987 | EB135: 0.980 | EC135: 0.965 | ED135: 0.948 | EE135: 0.916 | EF135: 0.864 | EG135: 0.764 | EH135: 0.625 | EI135: 0.443 | EJ135: 0.239 | EK135: 0.074 | EL135: 0.000 | EM135: 0.000 | EN135: 0.000 | EO135: 0.000
A136: MP-FCD1-M20 | B136: 2.2209418 | C136: 0 | D136: -7.4830372 | E136: -3 | F136: 6.2463392 | G136: -3 | H136: 7.1157759 | I136: -4 | J136: -8.2274254 | K136: -5 | L136: 4.0430546 | M136: -6 | N136: 0.997 | O136: 0.999 | P136: 0.999 | Q136: 0.999 | R136: 0.999 | S136: 0.999 | T136: 0.999 | U136: 0.999 | V136: 0.999 | W136: 0.999 | X136: 0.999 | Y136: 0.999 | Z136: 0.999 | AA136: 0.999 | AB136: 0.999 | AC136: 0.999 | AD136: 0.999 | AE136: 0.999 | AF136: 0.999 | AG136: 0.999 | AH136: 0.999 | AI136: 0.999 | AJ136: 0.999 | AK136: 0.999 | AL136: 0.999 | AM136: 0.999 | AN136: 0.999 | AO136: 0.999 | AP136: 0.999 | AQ136: 0.999 | AR136: 0.999 | AS136: 0.999 | AT136: 0.999 | AU136: 0.997 | AV136: 0.994 | AW136: 0.987 | AX136: 0.971 | AY136: 0.938 | AZ136: 0.877 | BA136: 0.780 | BB136: 0.645 | BC136: 0.489 | BD136: 0.337 | BE136: 0.205 | BF136: 0.992 | BG136: 0.997 | BH136: 0.997 | BI136: 0.998 | BJ136: 0.998 | BK136: 0.998 | BL136: 0.999 | BM136: 0.998 | BN136: 0.999 | BO136: 0.999 | BP136: 0.999 | BQ136: 0.999 | BR136: 0.999 | BS136: 0.999 | BT136: 0.999 | BU136: 0.999 | BV136: 0.998 | BW136: 0.998 | BX136: 0.998 | BY136: 0.998 | BZ136: 0.998 | CA136: 0.998 | CB136: 0.999 | CC136: 0.999 | CD136: 0.999 | CE136: 0.999 | CF136: 0.999 | CG136: 0.999 | CH136: 0.998 | CI136: 0.998 | CJ136: 0.998 | CK136: 0.998 | CL136: 0.997 | CM136: 0.993 | CN136: 0.986 | CO136: 0.968 | CP136: 0.929 | CQ136: 0.852 | CR136: 0.721 | CS136: 0.537 | CT136: 0.334 | CU136: 0.167 | CV136: 0.066 | CW136: 0.019 | CX136: 0.985 | CY136: 0.994 | CZ136: 0.995 | DA136: 0.997 | DB136: 0.997 | DC136: 0.996 | DD136: 0.997 | DE136: 0.997 | DF136: 0.997 | DG136: 0.999 | DH136: 0.999 | DI136: 0.999 | DJ136: 0.999 | DK136: 0.999 | DL136: 0.999 | DM136: 0.999 | DN136: 0.999 | DO136: 0.999 | DP136: 0.999 | DQ136: 0.999 | DR136: 0.999 | DS136: 0.999 | DT136: 0.998 | DU136: 0.998 | DV136: 0.999 | DW136: 0.999 | DX136: 0.999 | DY136: 0.998 | DZ136: 0.997 | EA136: 0.996 | EB136: 0.995 | EC136: 0.996 | ED136: 0.993 | EE136: 0.987 | EF136: 0.972 | EG136: 0.938 | EH136: 0.863 | EI136: 0.726 | EJ136: 0.520 | EK136: 0.288 | EL136: 0.112 | EM136: 0.028 | EN136: 0.000 | EO136: 0.000
